Workbook

Sheet Dev
H8: To start BYGUM, allow macros
H9: to run in your security settings.
C11: RIM is software from the University of Western Australia and the Department of Agriculture
C12: and Food of Western Australia. ©1998-2013. MS Excel 2007® or higher recommended.
C14: BYGUM is an adjusted version of RIM from the Australian Cotton Research and
C15: Development Corporation, Innokas Intellectual Services, and the Queensland
C16: Department of Agriculture and Fisheries. ©2015
D57: Before to screen-copy, zoom to 100% and make sure computer resolution settings are normal
N61: The first step is to personalise your paddock. | V61: For the second step, build your strategy. | AD61: The last step allows you to compare your results | AL61: Barnyard grass population and seed bank dynamics | AT61: Crop yields and competition | BB61: Exporting your results
F63: Welcome to BYGUM! | N63: Assume an average to good year. | S63: For each of the 10 seasons shown, | AB63: By clicking on or | BJ63: Unlocking BYGUM
S64: choose a crop or fallow from the second row: | AL64: This page allows further comparison of your two sets of results,
N65: You can start with updating your yields and grain prices… | AL65: focusing on the evolution over time of: | AT65: This page focuses on the impacts of your management choices | BB65: If you experience problems with printing or saving,
AD66: you can compare two different strategies (same paddock): | AJ66: - the BYG plant numbers (plain line); and | AT66: and of the ryegrass burden on your crops. | BB66: try running BYGUM with a more recent version of Excel.
F67: BYGUM allows you to test how weed populations and gross margins | AC67: Mr.West, Sandy Paddock - Cropping | AJ67: - the seed bank (background area).
F68: change over time, depending on your management choices. | AC68: Mr.West, Sandy Paddock - Pasture & Hay | BB68: You can also go back to the Title
AL69: In the previous graphs (Summary & Economics tab) | AT69: BYGUM uses the 'weed-free long-term average' yields that | BB69: and unlock BYGUM from the Info page. | BJ69: … might compromise it
F70: BYGUM is like a forecast game: what trends will result from | K70: Find more information by | AL70: only the end of the season numbers are represented. | AT70: you chose in your Profile as a starting point. | BB70: This will allow you to access the unprotected version. | BJ70: and is not recommended!
F71: the choices you make? | K71: hovering over the red corners | AD71: or two different paddock profiles (same strategy, or not) | AL71: Here, plants and seeds are counted at several times of the year. | BB71: You can then print selections.
AC72: Mr.West, Sandy Paddock - Cropping | AT72: This 'yield potential' ( ) is affected by practices
K73: …and continue with the other main parameters. You can specify | S73: Then choose your control options… | AC73: Ms.South, Best Paddock - Cropping | AL73: Typically, weed numbers go up with the start of | AT73: and rotations ( ). For instance, a cereal will benefit from | BB73: The assumptions used in BYGUM can be deduced from
K74: the details of the control options you require (herbicides etc.) in | AL74: the cropping season, and reduce when control occurs. | AT74: following a legume crop, while late sowing can result | BB74: the comments and from the background calculations. | BH74: You may want to unlock BYGUM if:
K75: this table: | M75: ...and further customise your information here: | AL75: Germination and seed mortality progressively | AT75: in lower yield. Sometimes, one effect compensates for another. | BB75: They are also detailed in a User guide available on the website
AB76: Click on this button to change the graph axes: | AL76: deplete the seed bank. | BB76: (see Info). | BH76: - you experience issues running it or exporting results
AB77: Auto | AC77: - to adjust graphs to the values
AB78: Fixed | AC78: - to compare results more easily | AT78: The final yield ( ) takes into account competition. | BH78: - you wish to customise BYGUM's parameters further
F79: Will you keep your barnyard grass under control? | L79: Once complete, name your paddock profile. | AT79: If you kept your weed numbers down, this penalty (%)
F80: Will you lose or earn money? | L80: You can save it and recall it later here: | AT80: will be close to zero. | BB80: For enquiries, comments and general feedback, | BH80: - you wish to investigate the equations underlying
F81: What if you cannot rely on some herbicides? | S81: …and see the effect on your weed numbers, and on your return. | AD81: To see more outputs, click on the tab buttons: | BB81: please contact Innokas Intellectual Services. | BH81: the model and its assumptions
F82: Should you invest in alternative techniques? | BB82: david@innokasintellectual.com.au
F83: What about rotations, cover crops, harvest options? | K83: Go to the next step using the navigation buttons: | T83: Once complete, name your strategy. | BH83: - you wish to modify and/or peruse the model for research
T84: You can save it and recall it later here: | AG84: This tab shows the data on which | BH84: purposes. In both cases, by unlocking the program
AG85: all the graphs are based | AS85: This graph is shown as a reference. | BH85: you acknowledge the copyright terms and conditions.
AS86: It illustrates the importance of crop competition | AZ86: Click on the logo to go back to the title page anytime.
L87: Click on the BYGUM logo to go back to the title page anytime. | S87: To see more results, click twice on | W87: and try | AA87: To print and export your results, click on | AI87: To see the results from a different perspective, try | AS87: and how it varies depending on crop type | BB87: Any changes you make will be retained
L88: Any changes you make will be saved automatically. | AS88: and on planting density. | BB88: (but not saved for another session, unless you click 'save'.)
H90: Continue!
M91: Zoom to 80% only
F93: Brought to you by:

Sheet Title
M9: Barnyard Grass Understanding
M10: and Management
C20: A tool to evaluate the profitability of barnyard grass control strategies
C21: in Australian cotton cropping, in three simple steps:
C26: 1. Define your paddock 2. Build your strategy 3. Compare your results
AM33: 1
U35: Version 2016.1 | AM35: FALSE
B107: Log since official release on February 2013:
B108: 2013 | C108: March | D108: Added missing link in mouldboarding yield benefit

Sheet 1.Profile
A3: 1. DEFINE Your Paddock
B5: Main parameters | D5: Winter crop | E5: Sorghum | F5: Irrig Cotton | G5: Dryland Cotton | H5: Corn | I5: Beans | L5: Cover Crop (Millet)
C7: Weed-free yields | D7: 1.8 | E7: 4 | F7: =F9*0.227 -> 3.178 | G7: =G9*0.227 -> 2.497 | H7: 14 | I7: 1 | J7: t/ha | K7: Production costs | M7: 40 | N7: $/ha | R7: Last year's BYG population
C8: Prices | D8: 275 | E8: 225 | F8: =F10/0.227 -> 2334.801762 | G8: =G10/0.227 -> 2334.801762 | H8: 240 | I8: 800 | J8: $/t | R8: 2 | S8: /m2
F9: 14 | G9: 11 | H9: bales/ha | K9: Operation cost of sprayer | O9: 4.5 | P9: $/ha
F10: 530 | G10: 530 | H10: $/bale | K10: Average area cropped | O10: 1000 | P10: ha
B13: BYG Control options | E13: Irrig cotton | F13: D/L cotton, beans | G13: W/crop, Corn & Sorghum | H13: Summer fallow | I13: Irrig cotton | J13: D/L cotton, beans | K13: Corn & Sorghum | L13: Summer fallow
B14: Enter herbicide names, cost and % barnyard grass controlled: | F14: Cost ($/ha) | J14: % of barnyard grass controlled
C15: Glyphosate | E15: 8 | F15: 8 | G15: 8 | H15: 8 | I15: 0.2 | J15: 0.2 | K15: 0.2 | L15: 0.2
B16: Pre/non-crop | C16: Paraquat | E16: 10 | F16: 10 | G16: 10 | H16: 10 | I16: 0.95 | J16: 0.95 | K16: 0.95 | L16: 0.95
B17: knockdowns | C17: Group A | E17: 15 | F17: 15 | G17: 15 | H17: 15 | I17: 0.95 | J17: 0.95 | K17: 0.95 | L17: 0.95
C18: Tillage | E18: 9 | F18: 9 | G18: 9 | H18: 9 | I18: 0.96 | J18: 0.96 | K18: 0.96 | L18: 0.96
B19: Double-knock | C19: Glyphosate/Paraquat | E19: 18 | F19: 18 | G19: 18 | H19: 18 | I19: 1 | J19: 1 | K19: 1 | L19: 1
C21: Trifluralin | E21: 20 | F21: 20 | G21: 20 | H21: 20 | I21: 0.85 | J21: 0.85 | K21: 0.85 | L21: 0.85
B22: Pre- | C22: Diuron | E22: 15 | F22: 15 | G22: 15 | H22: 15 | I22: 0.85 | J22: 0.85 | K22: 0.85 | L22: 0.85
B23: emergence | C23: Pendimethalin | E23: 35 | F23: 35 | G23: 35 | H23: 35 | I23: 0.82 | J23: 0.8 | K23: 0.8 | L23: 0.8 | N23: Save Profile
B24: herbicides | C24: s-Metolachlor | E24: 30 | F24: 25 | G24: 25 | H24: 30 | I24: 0.92 | J24: 0.9 | K24: 0.9 | L24: 0.9
C25: Fluometuron+Prometryn | E25: 60 | F25: 60 | G25: 60 | H25: 60 | I25: 0.86 | J25: 0.85 | K25: 0.85 | L25: 0.85
C27: Glyphosate | E27: 11 | F27: 11 | G27: 11 | H27: 8 | I27: 0.15 | J27: 0.2 | K27: 0.2 | L27: 0.2 | O27: Paddock name: | Q27: GR
B28: In-crop | C28: Glufosinate | E28: 18 | F28: 18 | G28: 18 | H28: 18 | I28: 0.65 | J28: 0.7 | K28: 0.7 | L28: 0.7 | O28: Your name: | Q28: BYGUM
B29: post-emergent | C29: Paraquat (shielded) | E29: 9 | F29: 9 | G29: 9 | H29: 11 | I29: 0.8 | J29: 0.8 | K29: 0.8 | L29: 0.95
B30: tactics | C30: Inter-row tillage | E30: 9 | F30: 9 | G30: 9 | H30: 8 | I30: 0.8 | J30: 0.85 | K30: 0.85 | L30: 0.95
C31: Group A | E31: 15 | F31: 15 | G31: 15 | H31: 15 | I31: 0.9 | J31: 0.92 | K31: 0.92 | L31: 0.95 | Q31: BYGUM, GR
B32: Enter additional control options: | Q32: BYGUM, non-GR
B33: Layby | C33: Diuron | E33: 10 | F33: 11 | G33: 10 | H33: 10 | I33: 0.7 | J33: 0.7 | K33: 0.7 | L33: 0.7 | Q33: BYGUM, Test cotton 1
B34: options | C34: Pendimethalin | E34: 20 | F34: 20 | G34: 20 | H34: 35 | I34: 0.7 | J34: 0.7 | K34: 0.7 | L34: 0.7 | Q34: BYGUM, Test cotton 1
B36: Harvest | C36: Defol glyphosate | E36: 0 | F36: 10 | G36: 10 | H36: 10 | I36: 0.12 | J36: 0.12 | K36: 0.15 | L36: 0.3 | Q36: Susceptible, Default
B37: options | C37: Defol Dropp | E37: 10 | F37: 10 | G37: 0 | H37: 0 | I37: 0.06 | J37: 0.05 | K37: 0 | L37: 0
AT40: =P_1P -> TRUE | AV40: indicator for printing
AT47: FALSE | AV47: indicator for tutorials
T49: Note: careful with deleting/inserting lines, could stuff up the saving/loading macros
B50: Profile_0 | C50: =Q36 -> Susceptible, Default | E50: Additional references for the default Profile, Options and Prices (2012): Stephen Powles (AHRI, UWA), Vanessa Stewart (DAFWA), Abul Ashem (DAFWA), David Pfeiffer (Synergy Consulting), Alistair Drapper, Bevan Addison.
AE51: =COUNT(D7:I8,'1.Profile'!O9:O10,M7,SeedNos_SH,Q27:S28) -> 16 | AF51: Some information is missing on this page
B52: Main parameters | D52: Winter crop | E52: Sorghum | F52: Irrig Cotton | G52: Dryland Cotton | H52: Corn | I52: Beans | L52: Cover Crop (Millet) | AE52: ='+Prices'!AC46 -> 28 | AF52: Some information is missing in 'More Prices'
AE53: ='+Options'!AC47 -> 30 | AF53: Some information is missing in 'More Options'
C54: Weed-free yields | D54: 1.8 | E54: 4 | F54: =F56*0.227 -> 3.178 | G54: =G56*0.227 -> 2.497 | H54: 14 | I54: 1 | J54: t/ha | K54: Production costs | M54: 40 | N54: $/ha | R54: Last year's BYG population | AE54: =IF(OR(SUM('1.Profile'!J15:J16)<0.6,SUM('1.Profile'!L15:L16)<0.6,SUM('1.Profile'!I15:I16)<0.6),"Adjust","OK") -> OK | AF54: Please adjust the spring options ↑
C55: Prices | D55: 275 | E55: 225 | F55: =F57/0.227 -> 2334.801762 | G55: =G57/0.227 -> 2334.801762 | H55: 240 | I55: 800 | J55: $/t | R55: 2 | S55: /m2
F56: 14 | G56: 11 | H56: bales/ha | K56: Operation cost of sprayer | O56: 4.5 | P56: $/ha
F57: 530 | G57: 530 | H57: $/bale | K57: Average area cropped | O57: 1000 | P57: ha | AF57: Resistant, Non-selectives
AF58: Resistant, Gr. A B D
B60: BYG Control options | E60: Irrig cotton | F60: D/L cotton, beans | G60: W/crop, Corn & Sorghum | H60: Summer fallow | I60: Irrig cotton | J60: D/L cotton, beans | K60: Corn & Sorghum | L60: Summer fallow | AF60: Susceptible, Default
B61: Enter herbicide names, cost and % barnyard grass controlled: | F61: Cost ($/ha) | J61: % of barnyard grass controlled
C62: Glyphosate | E62: 8 | F62: 8 | G62: 8 | H62: 8 | I62: 0.4 | J62: 0.4 | K62: 0.4 | L62: 0.4
B63: Pre/non-crop | C63: Paraquat | E63: 10 | F63: 10 | G63: 10 | H63: 10 | I63: 0.95 | J63: 0.95 | K63: 0.95 | L63: 0.95
B64: knockdowns | C64: Group A | E64: 15 | F64: 15 | G64: 15 | H64: 15 | I64: 0.95 | J64: 0.95 | K64: 0.95 | L64: 0.95
C65: Tillage | E65: 9 | F65: 9 | G65: 9 | H65: 9 | I65: 0.96 | J65: 0.96 | K65: 0.96 | L65: 0.96
B66: Double-knock | C66: Glyphosate/Paraquat | E66: 18 | F66: 18 | G66: 18 | H66: 18 | I66: 1 | J66: 1 | K66: 1 | L66: 1
C68: Trifluralin | E68: 20 | F68: 20 | G68: 20 | H68: 20 | I68: 0.85 | J68: 0.85 | K68: 0.85 | L68: 0.85
B69: Pre- | C69: Diuron | E69: 15 | F69: 15 | G69: 15 | H69: 15 | I69: 0.85 | J69: 0.85 | K69: 0.85 | L69: 0.85
B70: emergence | C70: Pendimethalin | E70: 35 | F70: 35 | G70: 35 | H70: 35 | I70: 0.82 | J70: 0.8 | K70: 0.8 | L70: 0.8 | N70: Save Profile
B71: herbicides | C71: s-Metolachlor | E71: 30 | F71: 25 | G71: 25 | H71: 30 | I71: 0.92 | J71: 0.9 | K71: 0.9 | L71: 0.9
C72: Fluometuron+Prometryn | E72: 60 | F72: 60 | G72: 60 | H72: 60 | I72: 0.86 | J72: 0.85 | K72: 0.85 | L72: 0.85
C74: Glyphosate | E74: 11 | F74: 11 | G74: 11 | H74: 8 | I74: 0.3 | J74: 0.35 | K74: 0.35 | L74: 0.4 | O74: Paddock name: | Q74: Test cotton 1
B75: In-crop | C75: Glufosinate | E75: 18 | F75: 18 | G75: 18 | H75: 18 | I75: 0.65 | J75: 0.7 | K75: 0.7 | L75: 0.7 | O75: Your name: | Q75: BYGUM
B76: post-emergent | C76: Paraquat (shielded) | E76: 9 | F76: 9 | G76: 9 | H76: 11 | I76: 0.8 | J76: 0.8 | K76: 0.8 | L76: 0.95
B77: tactics | C77: Inter-row tillage | E77: 9 | F77: 9 | G77: 9 | H77: 8 | I77: 0.8 | J77: 0.85 | K77: 0.85 | L77: 0.95
C78: Group A | E78: 15 | F78: 15 | G78: 15 | H78: 15 | I78: 0.9 | J78: 0.92 | K78: 0.92 | L78: 0.95 | Q78: BYGUM, Test cotton 1
B79: Enter additional control options: | Q79: BYGUM, Test cotton 1
B80: Layby | C80: Diuron | E80: 10 | F80: 11 | G80: 10 | H80: 10 | I80: 0.7 | J80: 0.7 | K80: 0.7 | L80: 0.7 | Q80: BYGUM, Test cotton 1
B81: options | C81: Pendimethalin | E81: 20 | F81: 20 | G81: 20 | H81: 35 | I81: 0.7 | J81: 0.7 | K81: 0.7 | L81: 0.7 | Q81: BYGUM, Test cotton 1
B83: Harvest | C83: Defol glyphosate | E83: 0 | F83: 10 | G83: 10 | H83: 10 | I83: 0.12 | J83: 0.12 | K83: 0.15 | L83: 0.3 | Q83: Susceptible, Default
B84: options | C84: Defol Dropp | E84: 10 | F84: 10 | G84: 0 | H84: 0 | I84: 0.06 | J84: 0.05 | K84: 0 | L84: 0
B89: Profile_1 | C89: =Q31 -> BYGUM, GR
B91: Main parameters | D91: Winter crop | E91: Sorghum | F91: Irrig Cotton | G91: Dryland Cotton | H91: Corn | I91: Beans | L91: Cover Crop (Millet)
C93: Weed-free yields | D93: 1.8 | E93: 4 | F93: =F95*0.227 -> 3.178 | G93: =G95*0.227 -> 2.497 | H93: 14 | I93: 1 | J93: t/ha | K93: Production costs | M93: 40 | N93: $/ha | R93: Last year's BYG population
C94: Prices | D94: 275 | E94: 225 | F94: =F96/0.227 -> 2334.801762 | G94: =G96/0.227 -> 2334.801762 | H94: 240 | I94: 800 | J94: $/t | R94: 2 | S94: /m2
F95: 14 | G95: 11 | H95: bales/ha | K95: Operation cost of sprayer | O95: 4.5 | P95: $/ha
F96: 530 | G96: 530 | H96: $/bale | K96: Average area cropped | O96: 1000 | P96: ha
B99: BYG Control options | E99: Irrig cotton | F99: D/L cotton, beans | G99: W/crop, Corn & Sorghum | H99: Summer fallow | I99: Irrig cotton | J99: D/L cotton, beans | K99: Corn & Sorghum | L99: Summer fallow
B100: Enter herbicide names, cost and % barnyard grass controlled: | F100: Cost ($/ha) | J100: % of barnyard grass controlled
C101: Glyphosate | E101: 8 | F101: 8 | G101: 8 | H101: 8 | I101: 0.2 | J101: 0.2 | K101: 0.2 | L101: 0.2
B102: Pre/non-crop | C102: Paraquat | E102: 10 | F102: 10 | G102: 10 | H102: 10 | I102: 0.95 | J102: 0.95 | K102: 0.95 | L102: 0.95
B103: knockdowns | C103: Group A | E103: 15 | F103: 15 | G103: 15 | H103: 15 | I103: 0.95 | J103: 0.95 | K103: 0.95 | L103: 0.95
C104: Tillage | E104: 9 | F104: 9 | G104: 9 | H104: 9 | I104: 0.96 | J104: 0.96 | K104: 0.96 | L104: 0.96
B105: Double-knock | C105: Glyphosate/Paraquat | E105: 18 | F105: 18 | G105: 18 | H105: 18 | I105: 1 | J105: 1 | K105: 1 | L105: 1
C107: Trifluralin | E107: 20 | F107: 20 | G107: 20 | H107: 20 | I107: 0.85 | J107: 0.85 | K107: 0.85 | L107: 0.85
B108: Pre- | C108: Diuron | E108: 15 | F108: 15 | G108: 15 | H108: 15 | I108: 0.85 | J108: 0.85 | K108: 0.85 | L108: 0.85
B109: emergence | C109: Pendimethalin | E109: 35 | F109: 35 | G109: 35 | H109: 35 | I109: 0.82 | J109: 0.8 | K109: 0.8 | L109: 0.8 | N109: Save Profile
B110: herbicides | C110: s-Metolachlor | E110: 30 | F110: 25 | G110: 25 | H110: 30 | I110: 0.92 | J110: 0.9 | K110: 0.9 | L110: 0.9
C111: Fluometuron+Prometryn | E111: 60 | F111: 60 | G111: 60 | H111: 60 | I111: 0.86 | J111: 0.85 | K111: 0.85 | L111: 0.85
C113: Glyphosate | E113: 11 | F113: 11 | G113: 11 | H113: 8 | I113: 0.15 | J113: 0.2 | K113: 0.2 | L113: 0.2 | O113: Paddock name: | Q113: GR
B114: In-crop | C114: Glufosinate | E114: 18 | F114: 18 | G114: 18 | H114: 18 | I114: 0.65 | J114: 0.7 | K114: 0.7 | L114: 0.7 | O114: Your name: | Q114: BYGUM
B115: post-emergent | C115: Paraquat (shielded) | E115: 9 | F115: 9 | G115: 9 | H115: 11 | I115: 0.8 | J115: 0.8 | K115: 0.8 | L115: 0.95
B116: tactics | C116: Inter-row tillage | E116: 9 | F116: 9 | G116: 9 | H116: 8 | I116: 0.8 | J116: 0.85 | K116: 0.85 | L116: 0.95
C117: Group A | E117: 15 | F117: 15 | G117: 15 | H117: 15 | I117: 0.9 | J117: 0.92 | K117: 0.92 | L117: 0.95 | Q117: Testgum, BYGUM
B118: Enter additional control options: | Q118: Testgum, BYGUM
B119: Layby | C119: Diuron | E119: 10 | F119: 11 | G119: 10 | H119: 10 | I119: 0.7 | J119: 0.7 | K119: 0.7 | L119: 0.7 | Q119: Testgum, BYGUM
B120: options | C120: Pendimethalin | E120: 20 | F120: 20 | G120: 20 | H120: 35 | I120: 0.7 | J120: 0.7 | K120: 0.7 | L120: 0.7 | Q120: Testgum, BYGUM
B122: Harvest | C122: Defol glyphosate | E122: 0 | F122: 10 | G122: 10 | H122: 10 | I122: 0.12 | J122: 0.12 | K122: 0.15 | L122: 0.3 | Q122: Susceptible, Default
B123: options | C123: Defol Dropp | E123: 10 | F123: 10 | G123: 0 | H123: 0 | I123: 0.06 | J123: 0.05 | K123: 0 | L123: 0
B127: Profile_2 | C127: =Q32 -> BYGUM, non-GR
B129: Main parameters | D129: Winter crop | E129: Sorghum | F129: Irrig Cotton | G129: Dryland Cotton | H129: Corn | I129: Beans | L129: Cover Crop (Millet)
C131: Weed-free yields | D131: 1.8 | E131: 4 | F131: =F133*0.227 -> 3.178 | G131: =G133*0.227 -> 2.497 | H131: 14 | I131: 1 | J131: t/ha | K131: Production costs | M131: 40 | N131: $/ha | R131: Last year's BYG population
C132: Prices | D132: 275 | E132: 225 | F132: =F134/0.227 -> 2334.801762 | G132: =G134/0.227 -> 2334.801762 | H132: 240 | I132: 800 | J132: $/t | R132: 2 | S132: /m2
F133: 14 | G133: 11 | H133: bales/ha | K133: Operation cost of sprayer | O133: 4.5 | P133: $/ha
F134: 530 | G134: 530 | H134: $/bale | K134: Average area cropped | O134: 1000 | P134: ha
B137: BYG Control options | E137: Irrig cotton | F137: D/L cotton, beans | G137: W/crop, Corn & Sorghum | H137: Summer fallow | I137: Irrig cotton | J137: D/L cotton, beans | K137: Corn & Sorghum | L137: Summer fallow
B138: Enter herbicide names, cost and % barnyard grass controlled: | F138: Cost ($/ha) | J138: % of barnyard grass controlled
C139: Glyphosate | E139: 8 | F139: 8 | G139: 8 | H139: 8 | I139: 0.96 | J139: 0.96 | K139: 0.96 | L139: 0.96
B140: Pre/non-crop | C140: Paraquat | E140: 10 | F140: 10 | G140: 10 | H140: 10 | I140: 0.95 | J140: 0.95 | K140: 0.95 | L140: 0.95
B141: knockdowns | C141: Group A | E141: 15 | F141: 15 | G141: 15 | H141: 15 | I141: 0.95 | J141: 0.95 | K141: 0.95 | L141: 0.95
C142: Tillage | E142: 9 | F142: 9 | G142: 9 | H142: 9 | I142: 0.96 | J142: 0.96 | K142: 0.96 | L142: 0.96
B143: Double-knock | C143: Glyphosate/Paraquat | E143: 18 | F143: 18 | G143: 18 | H143: 18 | I143: 1 | J143: 1 | K143: 1 | L143: 1
C145: Trifluralin | E145: 20 | F145: 20 | G145: 20 | H145: 20 | I145: 0.85 | J145: 0.85 | K145: 0.85 | L145: 0.85
B146: Pre- | C146: Diuron | E146: 15 | F146: 15 | G146: 15 | H146: 15 | I146: 0.85 | J146: 0.85 | K146: 0.85 | L146: 0.85
B147: emergence | C147: Pendimethalin | E147: 35 | F147: 35 | G147: 35 | H147: 35 | I147: 0.82 | J147: 0.8 | K147: 0.8 | L147: 0.8 | N147: Save Profile
B148: herbicides | C148: s-Metolachlor | E148: 30 | F148: 25 | G148: 25 | H148: 30 | I148: 0.92 | J148: 0.9 | K148: 0.9 | L148: 0.9
C149: Fluometuron+Prometryn | E149: 60 | F149: 60 | G149: 60 | H149: 60 | I149: 0.86 | J149: 0.85 | K149: 0.85 | L149: 0.85
C151: Glyphosate | E151: 11 | F151: 11 | G151: 11 | H151: 8 | I151: 0.95 | J151: 0.95 | K151: 0.95 | L151: 0.95 | O151: Paddock name: | Q151: non-GR
B152: In-crop | C152: Glufosinate | E152: 18 | F152: 18 | G152: 18 | H152: 18 | I152: 0.65 | J152: 0.7 | K152: 0.7 | L152: 0.7 | O152: Your name: | Q152: BYGUM
B153: post-emergent | C153: Paraquat (shielded) | E153: 9 | F153: 9 | G153: 9 | H153: 11 | I153: 0.8 | J153: 0.8 | K153: 0.8 | L153: 0.95
B154: tactics | C154: Inter-row tillage | E154: 9 | F154: 9 | G154: 9 | H154: 8 | I154: 0.8 | J154: 0.85 | K154: 0.85 | L154: 0.95
C155: Group A | E155: 15 | F155: 15 | G155: 15 | H155: 15 | I155: 0.9 | J155: 0.92 | K155: 0.92 | L155: 0.95 | Q155: Testgum, BYGUM
B156: Enter additional control options: | Q156: Testgum, BYGUM
B157: Layby | C157: Diuron | E157: 10 | F157: 11 | G157: 10 | H157: 10 | I157: 0.7 | J157: 0.7 | K157: 0.7 | L157: 0.7 | Q157: Testgum, BYGUM
B158: options | C158: Pendimethalin | E158: 20 | F158: 20 | G158: 20 | H158: 35 | I158: 0.7 | J158: 0.7 | K158: 0.7 | L158: 0.7 | Q158: Testgum, BYGUM
B160: Harvest | C160: Defol glyphosate | E160: 0 | F160: 10 | G160: 10 | H160: 10 | I160: 0.12 | J160: 0.12 | K160: 0.15 | L160: 0.3 | Q160: Susceptible, Default
B161: options | C161: Defol Dropp | E161: 10 | F161: 10 | G161: 0 | H161: 0 | I161: 0.06 | J161: 0.05 | K161: 0 | L161: 0
B166: Main parameters | D166: Winter crop | E166: Sorghum | F166: Irrig Cotton | G166: Dryland Cotton | H166: Corn | I166: Beans | L166: Cover Crop (Millet)
C168: Weed-free yields | D168: 1.8 | E168: 4 | F168: =F170*0.227 -> 3.178 | G168: =G170*0.227 -> 2.497 | H168: 14 | I168: 1 | J168: t/ha | K168: Production costs | M168: 40 | N168: $/ha | R168: Last year's BYG population
C169: Prices | D169: 275 | E169: 225 | F169: =F171/0.227 -> 2334.801762 | G169: =G171/0.227 -> 2334.801762 | H169: 240 | I169: 800 | J169: $/t | R169: 2 | S169: /m2
F170: 14 | G170: 11 | H170: bales/ha | K170: Operation cost of sprayer | O170: 4.5 | P170: $/ha
F171: 530 | G171: 530 | H171: $/bale | K171: Average area cropped | O171: 1000 | P171: ha
B174: BYG Control options | E174: Irrig cotton | F174: D/L cotton, beans | G174: W/crop, Corn & Sorghum | H174: Summer fallow | I174: Irrig cotton | J174: D/L cotton, beans | K174: Corn & Sorghum | L174: Summer fallow
B175: Enter herbicide names, cost and % barnyard grass controlled: | F175: Cost ($/ha) | J175: % of barnyard grass controlled
C176: Glyphosate | E176: 8 | F176: 8 | G176: 8 | H176: 8 | I176: 0.4 | J176: 0.4 | K176: 0.4 | L176: 0.4
B177: Pre/non-crop | C177: Paraquat | E177: 10 | F177: 10 | G177: 10 | H177: 10 | I177: 0.95 | J177: 0.95 | K177: 0.95 | L177: 0.95
B178: knockdowns | C178: Group A | E178: 15 | F178: 15 | G178: 15 | H178: 15 | I178: 0.95 | J178: 0.95 | K178: 0.95 | L178: 0.95
C179: Tillage | E179: 9 | F179: 9 | G179: 9 | H179: 9 | I179: 0.96 | J179: 0.96 | K179: 0.96 | L179: 0.96
B180: Double-knock | C180: Glyphosate/Paraquat | E180: 18 | F180: 18 | G180: 18 | H180: 18 | I180: 1 | J180: 1 | K180: 1 | L180: 1
C182: Trifluralin | E182: 20 | F182: 20 | G182: 20 | H182: 20 | I182: 0.85 | J182: 0.85 | K182: 0.85 | L182: 0.85
B183: Pre- | C183: Diuron | E183: 15 | F183: 15 | G183: 15 | H183: 15 | I183: 0.85 | J183: 0.85 | K183: 0.85 | L183: 0.85
B184: emergence | C184: Pendimethalin | E184: 35 | F184: 35 | G184: 35 | H184: 35 | I184: 0.82 | J184: 0.8 | K184: 0.8 | L184: 0.8 | N184: Save Profile
B185: herbicides | C185: s-Metolachlor | E185: 30 | F185: 25 | G185: 25 | H185: 30 | I185: 0.92 | J185: 0.9 | K185: 0.9 | L185: 0.9
C186: Fluometuron+Prometryn | E186: 60 | F186: 60 | G186: 60 | H186: 60 | I186: 0.86 | J186: 0.85 | K186: 0.85 | L186: 0.85
C188: Glyphosate | E188: 11 | F188: 11 | G188: 11 | H188: 8 | I188: 0.3 | J188: 0.35 | K188: 0.35 | L188: 0.4 | O188: Paddock name: | Q188: Test cotton 1
B189: In-crop | C189: Glufosinate | E189: 18 | F189: 18 | G189: 18 | H189: 18 | I189: 0.65 | J189: 0.7 | K189: 0.7 | L189: 0.7 | O189: Your name: | Q189: BYGUM
B190: post-emergent | C190: Paraquat (shielded) | E190: 9 | F190: 9 | G190: 9 | H190: 11 | I190: 0.8 | J190: 0.8 | K190: 0.8 | L190: 0.95
B191: tactics | C191: Inter-row tillage | E191: 9 | F191: 9 | G191: 9 | H191: 8 | I191: 0.8 | J191: 0.85 | K191: 0.85 | L191: 0.95
C192: Group A | E192: 15 | F192: 15 | G192: 15 | H192: 15 | I192: 0.9 | J192: 0.92 | K192: 0.92 | L192: 0.95 | Q192: Testgum, BYGUM
B193: Enter additional control options: | Q193: Testgum, BYGUM
B194: Layby | C194: Diuron | E194: 10 | F194: 11 | G194: 10 | H194: 10 | I194: 0.7 | J194: 0.7 | K194: 0.7 | L194: 0.7 | Q194: Testgum, BYGUM
B195: options | C195: Pendimethalin | E195: 20 | F195: 20 | G195: 20 | H195: 35 | I195: 0.7 | J195: 0.7 | K195: 0.7 | L195: 0.7 | Q195: Testgum, BYGUM
B197: Harvest | C197: Defol glyphosate | E197: 0 | F197: 10 | G197: 10 | H197: 10 | I197: 0.12 | J197: 0.12 | K197: 0.15 | L197: 0.3 | Q197: Susceptible, Default
B198: options | C198: Defol Dropp | E198: 10 | F198: 10 | G198: 0 | H198: 0 | I198: 0.06 | J198: 0.05 | K198: 0 | L198: 0
B205: Profile_4 | C205: =Q34 -> BYGUM, Test cotton 1
B207: Main parameters | D207: Winter crop | E207: Sorghum | F207: Irrig Cotton | G207: Dryland Cotton | H207: Corn | I207: Beans | L207: Cover Crop (Millet)
C209: Weed-free yields | D209: 1.8 | E209: 4 | F209: =F211*0.227 -> 3.178 | G209: =G211*0.227 -> 2.497 | H209: 14 | I209: 1 | J209: t/ha | K209: Production costs | M209: 40 | N209: $/ha | R209: Last year's BYG population
C210: Prices | D210: 275 | E210: 225 | F210: =F212/0.227 -> 2334.801762 | G210: =G212/0.227 -> 2334.801762 | H210: 240 | I210: 800 | J210: $/t | R210: 2 | S210: /m2
F211: 14 | G211: 11 | H211: bales/ha | K211: Operation cost of sprayer | O211: 4.5 | P211: $/ha
F212: 530 | G212: 530 | H212: $/bale | K212: Average area cropped | O212: 1000 | P212: ha
B215: BYG Control options | E215: Irrig cotton | F215: D/L cotton, beans | G215: W/crop, Corn & Sorghum | H215: Summer fallow | I215: Irrig cotton | J215: D/L cotton, beans | K215: Corn & Sorghum | L215: Summer fallow
B216: Enter herbicide names, cost and % barnyard grass controlled: | F216: Cost ($/ha) | J216: % of barnyard grass controlled
C217: Glyphosate | E217: 8 | F217: 8 | G217: 8 | H217: 8 | I217: 0.4 | J217: 0.4 | K217: 0.4 | L217: 0.4
B218: Pre/non-crop | C218: Paraquat | E218: 10 | F218: 10 | G218: 10 | H218: 10 | I218: 0.95 | J218: 0.95 | K218: 0.95 | L218: 0.95
B219: knockdowns | C219: Group A | E219: 15 | F219: 15 | G219: 15 | H219: 15 | I219: 0.95 | J219: 0.95 | K219: 0.95 | L219: 0.95
C220: Tillage | E220: 9 | F220: 9 | G220: 9 | H220: 9 | I220: 0.96 | J220: 0.96 | K220: 0.96 | L220: 0.96
B221: Double-knock | C221: Glyphosate/Paraquat | E221: 18 | F221: 18 | G221: 18 | H221: 18 | I221: 1 | J221: 1 | K221: 1 | L221: 1
C223: Trifluralin | E223: 20 | F223: 20 | G223: 20 | H223: 20 | I223: 0.85 | J223: 0.85 | K223: 0.85 | L223: 0.85
B224: Pre- | C224: Diuron | E224: 15 | F224: 15 | G224: 15 | H224: 15 | I224: 0.85 | J224: 0.85 | K224: 0.85 | L224: 0.85
B225: emergence | C225: Pendimethalin | E225: 35 | F225: 35 | G225: 35 | H225: 35 | I225: 0.82 | J225: 0.8 | K225: 0.8 | L225: 0.8 | N225: Save Profile
B226: herbicides | C226: s-Metolachlor | E226: 30 | F226: 25 | G226: 25 | H226: 30 | I226: 0.92 | J226: 0.9 | K226: 0.9 | L226: 0.9
C227: Fluometuron+Prometryn | E227: 60 | F227: 60 | G227: 60 | H227: 60 | I227: 0.86 | J227: 0.85 | K227: 0.85 | L227: 0.85
C229: Glyphosate | E229: 11 | F229: 11 | G229: 11 | H229: 8 | I229: 0.3 | J229: 0.35 | K229: 0.35 | L229: 0.4 | O229: Paddock name: | Q229: Test cotton 1
B230: In-crop | C230: Glufosinate | E230: 18 | F230: 18 | G230: 18 | H230: 18 | I230: 0.65 | J230: 0.7 | K230: 0.7 | L230: 0.7 | O230: Your name: | Q230: BYGUM
B231: post-emergent | C231: Paraquat (shielded) | E231: 9 | F231: 9 | G231: 9 | H231: 11 | I231: 0.8 | J231: 0.8 | K231: 0.8 | L231: 0.95
B232: tactics | C232: Inter-row tillage | E232: 9 | F232: 9 | G232: 9 | H232: 8 | I232: 0.8 | J232: 0.85 | K232: 0.85 | L232: 0.95
C233: Group A | E233: 15 | F233: 15 | G233: 15 | H233: 15 | I233: 0.9 | J233: 0.92 | K233: 0.92 | L233: 0.95 | Q233: Testgum, BYGUM
B234: Enter additional control options: | Q234: Testgum, BYGUM
B235: Layby | C235: Diuron | E235: 10 | F235: 11 | G235: 10 | H235: 10 | I235: 0.7 | J235: 0.7 | K235: 0.7 | L235: 0.7 | Q235: Testgum, BYGUM
B236: options | C236: Pendimethalin | E236: 20 | F236: 20 | G236: 20 | H236: 35 | I236: 0.7 | J236: 0.7 | K236: 0.7 | L236: 0.7 | Q236: Testgum, BYGUM
B238: Harvest | C238: Defol glyphosate | E238: 0 | F238: 10 | G238: 10 | H238: 10 | I238: 0.12 | J238: 0.12 | K238: 0.15 | L238: 0.3 | Q238: Susceptible, Default
B239: options | C239: Defol Dropp | E239: 10 | F239: 10 | G239: 0 | H239: 0 | I239: 0.06 | J239: 0.05 | K239: 0 | L239: 0

Sheet +Prices
B7: More Prices… | I7: ='1.Profile'!Q28&", "&'1.Profile'!Q27 -> BYGUM, GR
B10: Establishment costs | F10: Winter crop | G10: Irrig cotton | H10: Dryland cotton | I10: Sorghum | J10: Corn | K10: Beans
C12: Seed (standard rate) | E12: $/ha | F12: 35 | G12: 20 | H12: 7.73 | I12: 35 | J12: 15 | K12: 40
C13: incl. dressing / cleaning / inoculum / etc.
C14: Fertilisers - standard, average practice | E14: $/ha | F14: 90 | G14: 95 | H14: 70 | I14: 40 | J14: 55 | K14: 35
C15: Fertilisers - following a legume | E15: $/ha | F15: 85 | G15: 95 | H15: 70 | I15: 35 | J15: 50 | K15: 35
C17: Additional costs (incl. application costs) | E17: $/ha | F17: 30 | G17: 120 | H17: 30 | I17: 30 | J17: 30 | K17: 20
C18: insecticides, fungicides, broadleaf weed control, bed preparation, technical package, advisor costs, insurance, etc.
B23: Other costs | I23: Machinery
C25: Environmental cost of soil disturbance | E25: $/ha | F25: 5 | J25: Harvester:
C26: Winter fallow management costs | E26: $/ha | F26: 12 | J26: ● Maintenance costs | N26: $/ha /year | O26: 10
C27: Summer fallow management costs | E27: $/ha | F27: 12 | J27: ● Fuel consumption | N27: l/ha | O27: 6
C28: Crop topping (your selected tactic) | E28: $/ha | F28: 25 | J28: ● Diesel price | N28: $/l | O28: 1.1
J30: Purchase cost of:
J31: ● Narrow windrow chute | N31: $ | O31: 500
J32: ● Chaff cart | N32: $ | O32: 70000
J33: ● Harrington seed destructor (HSD) | N33: $ | O33: 160000
J34: ● Bale direct system (BDS) | N34: $ | O34: 140000
J36: Machinery repayments:
J37: ● Loan duration | N37: years | O37: 8
J38: ● Interest rate | O38: 0.06
AR39: =P_1P -> TRUE
AC46: =COUNT(G12:I12,I14:L14,K12:L12,G14:H15,G17:L17,F19:H19,F27:F29,F25,O26:O28,O31:O34,O37:O38,F21) -> 28
B48: Prices_0 | C48: ='1.Profile'!Q36 -> Susceptible, Default
AP49: Walsh, M. and Powles, S. (2007) Management Strategies for Herbicide-Resistant Weed Populations in Australian Dryland Crop Production Systems. Weed Technology 21:332–338
B50: Establishment costs | F50: Winter crop | G50: Irrig cotton | H50: Dryland cotton | I50: Sorghum | J50: Corn | K50: Beans | AI50: Establishment costs - machinery | AP50: Walsh, M. and P. Newman (2007) Burning narrow windrows for weed seed destruction. Field Crops Research 104:24–30.
AP51: Walsh, M., Harrington, R. and Powles, S (2012) Harrington Seed Destructor: a new non-chemical weed control tool for global grain crops. Crop Science (2012) 52:1343-1347
C52: Seed (standard rate) | E52: $/ha | F52: 35 | G52: 20 | H52: 7.73 | I52: 35 | J52: 15 | K52: 40 | AI52: References used for ratios | AJ52: R&M | AK52: Fuel | AL52: Operating | AM52: Residue | AN52: R&M | AO52: Fuel | AP52: Operating | AQ52: N removal | AR52: Capital cost
C53: incl. dressing / cleaning / inoculum / etc. | AI53: Tickle (shallow cultivation ) | AJ53: 3 | AK53: 3 | AL53: extra | AM53: removal
C54: Fertilisers - standard, average practice | E54: $/ha | F54: 90 | G54: 95 | H54: 70 | I54: 40 | J54: 55 | K54: 35 | AI54: No-till seeding | AJ54: 5 | AK54: 5.5 | AN54: Alistair Drapper, 2012
C55: Fertilisers - following a legume | E55: $/ha | F55: 85 | G55: 95 | H55: 70 | I55: 35 | J55: 50 | K55: 35 | AI55: Full cut seeding | AJ55: 6 | AK55: 6
AI56: Harvest | AJ56: 10 | AK56: 6
C57: Additional costs (incl. application costs) | E57: $/ha | F57: 30 | G57: 40 | H57: 30 | I57: 30 | J57: 30 | K57: 20 | AI57: Cart+B. = Chaff cart system (burning dumps) | AJ57: 0.25 | AK57: 0.5 | AL57: 2 | AM57: 2.5 | AR57: 60 000 | AU57: Legend: | AV57: 22 | AW57: linked to interface (current page or otherwise specified)
C58: insecticides, fungicides, broadleaf weed control, bed preparation, technical package, advisor costs, insurance, etc. | AI58: Narr+B. = Narrow windrows burning system | AL58: 2 | AM58: 3.8 | AR58: 500 | AV58: 22 | AW58: calculation
AI59: HSD = Harrington seed destructor | AJ59: 2 | AK59: 3.5 | AO59: Peter Newman, DAFWA, 2012 | AQ59: nominal | AR59: 160 000 | AW59: n.a.
AI60: Tram = Chaff-tramlining (no extra requirement since already in) | AL60: see Calc | AM60: 2.5 | AQ60: proportions | AR60: 1 000 | AV60: 0.22 | AW60: not linked (direct input)
AI61: add harvest option here | AQ61: only | AV61: 0.22 | AW61: not linked, do not change without good advice
AI62: BDS = Bale direct system | AJ62: 2.5 | AK62: 4 | AL62: 5 | AM62: 4 | AO62: Rob Grima, DAFWA, 2012 | AR62: 190 000 | AV62: 0.22 | AW62: reference data, in cases used for ratios
B63: Other costs | I63: Machinery | AI63: B.all = Burn whole paddock | AL63: 2 | AM63: 7.5 | AR63: -
AS64: Note: RIM uses a standard farm as a baseline and hence accounts for the extra capital cost of specific machinery only
C65: Environmental cost of soil disturbance | E65: $/ha | F65: 5 | J65: Harvester: | AS65: (not for the harvester or sprayer that are part of the part anyway) | AU65: Financial values
C66: Winter fallow management costs | E66: $/ha | F66: 12 | J66: ● Maintenance costs | N66: $/ha /year | O66: 10 | AJ66: R&M | AK66: Fuel | AL66: Extra operating | AU66: These rates apply for the whole 10 year period
C67: Summer fallow management costs | E67: $/ha | F67: 12 | J67: ● Fuel consumption | N67: l/ha | O67: 6 | AJ67: ($/ha) | AK67: (L/ha) | AL67: costs ($/ha) | AN67: TOTAL | AQ67: Repayments | AU67: Rates of Price and Yield Increase | AX67: Reviewed 2012
C68: Crop topping (your selected tactic) | E68: $/ha | F68: 25 | J68: ● Diesel price | N68: $/l | O68: 1.1 | AI68: Tickle (shallow cultivation ) | AJ68: =$AJ$71*AJ53/$AJ$56 -> 3 | AK68: =$AK$71*AK53/$AK$56 -> 3 | AL68: (conducting | AN68: =AJ68+AK68*$O$28 -> 6.3 | AU68: Rate of increase of potential crop yield (%/year) | AV68: 0.01 | AX68: 0.01
AI69: No-till seeding | AJ69: =$AJ$71*AJ54/$AJ$56 -> 5 | AK69: =$AK$71*AK54/$AK$56 -> 5.5 | AL69: or burning) | AN69: =AJ69+AK69*$O$28 -> 11.05 | AO69: see | AU69: Rate of increase of sheep/pasture productivity (%/year) | AV69: 0.005 | AX69: 0.005
J70: Purchase cost of: | AI70: Full cut seeding | AJ70: =$AJ$71*AJ55/$AJ$56 -> 6 | AK70: =$AK$71*AK55/$AK$56 -> 6 | AM70: Residue | AN70: =AJ70+AK70*$O$28 -> 12.6 | AO70: below | AU70: Inflation rate for crop sale prices (%/year) | AV70: 0.01 | AX70: 0.01
J71: ● Narrow windrow chute | N71: $ | O71: 500 | AI71: Harvest | AJ71: =O26 -> 10 | AK71: =O27 -> 6 | AM71: removal | AN71: =AJ71+AK71*$O$28 -> 16.6 | AU71: Inflation rate for sheep product prices (%/year) | AV71: 0.005 | AX71: 0.005
J72: ● Chaff cart | N72: $ | O72: 70000 | AI72: =AI57 -> Cart+B. = Chaff cart system (burning dumps) | AJ72: =$AJ$71*AJ57/$AJ$56 -> 0.25 | AK72: =$AK$71*AK57/$AK$56 -> 0.5 | AL72: =AL57 -> 2 | AM72: =AM57 -> 2.5 | AN72: =AJ72+AK72*$O$28+AL72+AM72 -> 5.3 | AP72: =AI57 -> Cart+B. = Chaff cart system (burning dumps) | AR72: =-PMT('+Prices'!$O$38,'+Prices'!$O$37,'+Prices'!O32,0,0)/'+Prices'!$AR$80 -> 11.27251599 | AU72: Inflation rate for input costs (%/year) | AV72: 0.03 | AX72: 0.03
J73: ● Harrington seed destructor (HSD) | N73: $ | O73: 160000 | AI73: =AI58 -> Narr+B. = Narrow windrows burning system | AL73: =AL58 -> 2 | AM73: =AM58 -> 3.8 | AN73: =AJ73+AK73*$O$28+AL73+AM73 -> 5.8 | AO73: to Calc | AP73: =AI58 -> Narr+B. = Narrow windrows burning system | AR73: =-PMT('+Prices'!$O$38,'+Prices'!$O$37,'+Prices'!O31,0,0)/'+Prices'!$AR$80 -> 0.08051797132 | AU73: Long-term interest rate (%) * | AV73: 0.08 | AX73: 0.08
J74: ● Bale direct system (BDS) | N74: $ | O74: 140000 | AI74: HSD = Harrington seed destructor | AJ74: =$AJ$71*AJ59/$AJ$56 -> 2 | AK74: =$AK$71*AK59/$AK$56 -> 3.5 | AN74: 5.85 | AP74: HSD = Harrington seed destructor | AR74: =-PMT('+Prices'!$O$38,'+Prices'!$O$37,'+Prices'!O33,0,0)/'+Prices'!$AR$80 -> 25.76575082 | AU74: Marginal tax rate (%) | AV74: 0.3 | AX74: 0.21
AI75: Tram = Chaff-tramlining (no extra requirement since already in) | AM75: =AM60 -> 2.5 | AN75: 2.5 | AP75: Tram = Chaff-tramlining (no extra requirement since already in) | AR75: =-PMT('+Prices'!$O$38,'+Prices'!$O$37,('+Prices'!O31*2),0,0)/'+Prices'!$AR$80 -> 0.1610359426 | AU75: * Note: Use the raw interest rate (do not deduct the inflation rate to express
J76: Machinery repayments: | AI76: add harvest option here | AJ76: =AJ61 -> 0 | AK76: =$AK$71*AK61/$AK$56 -> 0 | AL76: =AL62 -> 5 | AM76: =AM61 -> 0 | AN76: 5 | AP76: add harvest option here | AR76: =-PMT('+Prices'!$O$38,'+Prices'!$O$37,'+Prices'!AR61,0,0)/'+Prices'!$AR$80 -> 0 | AU76: it in "real" terms) as all calculations are done in "nominal" terms.
J77: ● Loan duration | N77: years | O77: 8 | AI77: BDS = Bale direct system | AJ77: =AJ62 -> 2.5 | AK77: =$AK$71*AK62/$AK$56 -> 4 | AL77: =AL62 -> 5 | AM77: =AM62 -> 4 | AN77: 15.9 | AP77: BDS = Bale direct system | AR77: =-PMT('+Prices'!$O$38,'+Prices'!$O$37,'+Prices'!O34,0,0)/'+Prices'!$AR$80 -> 22.54503197
J78: ● Interest rate | O78: 0.06 | AI78: B.all = Burn whole paddock | AL78: =AL63 -> 2 | AM78: =$AM$77*AM63/$AM$62 -> 7.5 | AN78: 9.5 | AP78: B.all = Burn whole paddock | AU78: Note also that the model's main calculations are done on the basis that prices
AU79: and potential yields don't change over time. In the "Economic results" sheet
AO80: Average area (ha) on which machinery is used | AR80: ='1.Profile'!O10 -> 1000 | AU80: the above rates of increase are applied to the results.
B81: Prices_1 | C81: ='1.Profile'!Q31 -> BYGUM, GR | AR81: from Profile
B83: Establishment costs | F83: Winter crop | G83: Irrig cotton | H83: Dryland cotton | I83: Sorghum | J83: Corn | K83: Beans | AI83: Establishment costs - crops
AJ84: Irrig cotton | AK84: Dryland cotton | AL84: Sorghum | AM84: Corn | AN84: Beans | AO84: Wheat | AQ84: References used for ratios
C85: Seed (standard rate) | E85: $/ha | F85: 35 | G85: 20 | H85: 7.73 | I85: 35 | J85: 15 | K85: 40 | AI85: Fertilisers | AJ85: Wheat | AK85: Sorghum | AL85: Cotton | AM85: Legumes | AO85: ?Needed? | AP85: Savings in kg/ha of N after a legume:
C86: incl. dressing / cleaning / inoculum / etc. | AI86: Total cost of all fertilisers ($/ha) | AJ86: =G14 -> 95 | AK86: =H14 -> 70 | AL86: =I14 -> 40 | AM86: =J14 -> 55 | AN86: =K14 -> 35 | AO86: =F14 -> 90 | AQ86: Wheat | AR86: Sorghum | AS86: Cotton | AU86: Planfarm and Bankwest (2012) Planfarm Bankwest Benchmarks 2011/2012. Planfarm Pty. Ltd. and BankWest Agribusiness Centre, West Perth and Wembley, Western Australia, 81pp.
C87: Fertilisers - standard, average practice | E87: $/ha | F87: 90 | G87: 95 | H87: 70 | I87: 40 | J87: 55 | K87: 35 | AI87: Saving in N fertiliser application 1 year after legumes (kg/ha) | AJ87: =G14-G15 -> 0 | AK87: =H14-H15 -> 0 | AL87: =I14-I15 -> 5 | AM87: =J14-J15 -> 5 | AN87: =K14-K15 -> 0 | AO87: =F14-F15 -> 5 | AP87: 1st year | AQ87: 30 | AR87: 30 | AS87: 40
C88: Fertilisers - following a legume | E88: $/ha | F88: 85 | G88: 95 | H88: 70 | I88: 35 | J88: 50 | K88: 35 | AI88: Saving in N fertiliser application 2 years after legumes (kg/ha) | AJ88: =AJ87/2 -> 0 | AK88: 0 | AL88: 2.5 | AM88: 2.5 | AN88: 0 | AO88: 2.5 | AP88: 2nd year | AQ88: 10 | AR88: 10 | AS88: 12
AJ89: Note: this data also used for crop following pasture
C90: Additional costs (incl. application costs) | E90: $/ha | F90: 30 | G90: 120 | H90: 30 | I90: 30 | J90: 30 | K90: 20 | AI90: Seed and other inputs
C91: insecticides, fungicides, broadleaf weed control, bed preparation, technical package, advisor costs, insurance, etc. | AI91: Cost of seed (including dressing/cleaning/inoculum/etc.) ($/ha) | AJ91: =G12 -> 20 | AK91: =H12 -> 7.73 | AL91: =I12 -> 35 | AM91: =J12 -> 15 | AN91: =K12 -> 40 | AO91: =F12 -> 35 | AP91: 19.97 | AQ91: 21.17 | AR91: 7.73 | AS91: 35
AI92: Cost of additional input ($/ha) | AJ92: =G17 -> 120 | AK92: =H17 -> 30 | AL92: =I17 -> 30 | AM92: =J17 -> 30 | AN92: =K17 -> 20 | AO92: =F17 -> 30 | AP92: 40 | AQ92: 40 | AR92: 30 | AS92: 30
B96: Other costs | I96: Machinery | AI96: Total cost no-till (machinery + inputs), no tickle ($/ha) | AJ96: =$AN$69+$AN$71+AJ86+AJ91+AJ92 -> 262.65 | AK96: 135.38 | AL96: 132.65 | AM96: 127.65 | AN96: 122.65 | AO96: 182.65 | AP96: Non-selective for brown manuring and for after swathing, haying, silage etc ($/ha)
AI97: Extra cost of "tickle" (shallow cultivation) ($/ha) | AJ97: =AN68 -> 6.3 | AK97: =AN68 -> 6.3 | AL97: =AN68 -> 6.3 | AM97: =AN68 -> 6.3 | AN97: =AN68 -> 6.3 | AO97: =AO68 -> 0 | AP97: Crop/pasture topping
C98: Environmental cost of soil disturbance | E98: $/ha | F98: 5 | J98: Harvester: | AI98: Extra cost of full disturb for prep ($/ha) | AJ98: =$AN$70 -> 12.6 | AK98: 12.6 | AL98: 12.6 | AM98: 12.6 | AN98: 12.6 | AO98: 12.6 | AP98: Sprayer cost counted every time herbicide sprayed | AU98: 4.5 Alistair Drapper, 2012
C99: Winter fallow management costs | E99: $/ha | F99: 12 | J99: ● Maintenance costs | N99: $/ha /year | O99: 10 | AI99: Extra cost of seeding with full cut cultivation ($/ha) | AJ99: =AN70-AN69 -> 1.55 | AK99: =AN70-AN69 -> 1.55 | AL99: =AN70-AN69 -> 1.55 | AM99: =AN70-AN69 -> 1.55 | AN99: =AN70-AN69 -> 1.55 | AO99: =AN70-AN69 -> 1.55 | AP99: Environmental costs of burning and of cultivation
C100: Summer fallow management costs | E100: $/ha | F100: 12 | J100: ● Fuel consumption | N100: l/ha | O100: 6 | AI100: Extra cost of high seeding rate | AJ100: =('+Options'!AI57-'+Options'!AI56)/'+Options'!AI56*AJ91 -> 3.076923077 | AK100: =('+Options'!AJ57-'+Options'!AJ56)/'+Options'!AJ56*AK91 -> 3.312857143 | AL100: =('+Options'!AH57-'+Options'!AH56)/'+Options'!AH56*AL91 -> 11.66666667 | AM100: =('+Options'!AK57-'+Options'!AK56)/'+Options'!AK56*AM91 -> 5 | AN100: =('+Options'!AL57-'+Options'!AL56)/'+Options'!AL56*AN91 -> 13.33333333 | AO100: =('+Options'!AG57-'+Options'!AG56)/'+Options'!AG56*AN91 -> 17.14285714 | AP100: Cost of green manuring
C101: Crop topping (your selected tactic) | E101: $/ha | F101: 25 | J101: ● Diesel price | N101: $/l | O101: 1.1
J103: Purchase cost of:
J104: ● Narrow windrow chute | N104: $ | O104: 500 | AI104: Establishment costs - pastures
J105: ● Chaff cart | N105: $ | O105: 70000
J106: ● Harrington seed destructor (HSD) | N106: $ | O106: 160000
J107: ● Bale direct system (BDS) | N107: $ | O107: 140000 | AI107: Volunteer pasture inputs | AJ107: Year 1 | AK107: Year 2 | AL107: Year 3
AI108: NO SOWING (otherwise, compatibility issues)
J109: Machinery repayments: | AI109: Cost of fertilisers ($/ha/year) | AJ109: =J14 -> 55 | AK109: =AJ109 -> 55 | AL109: =AJ109 -> 55
J110: ● Loan duration | N110: years | O110: 8 | AI110: Additional costs, incl. insecticide application ($/ha) | AJ110: =J17 -> 30 | AK110: =AJ110 -> 30 | AL110: =AJ110*0.2 -> 6
J111: ● Interest rate | O111: 0.06 | AI111: Total, inputs, no tickle ($/ha) | AJ111: =SUM(AJ109:AJ110) -> 85 | AK111: =SUM(AK109:AK110) -> 85 | AL111: =SUM(AL109:AL110) -> 61
AI112: Extra cost of "tickle" (shallow cultivation) ($/ha) | AJ112: =AJ97 -> 6.3 | AK112: =AJ112 -> 6.3 | AL112: =AJ112 -> 6.3
AI113: Extra cost of mouldboard ploughing ($/ha) | AJ113: =AJ98 -> 12.6 | AK113: =AJ113 -> 12.6 | AL113: =AJ113 -> 12.6
B115: Prices_2 | C115: ='1.Profile'!Q32 -> BYGUM, non-GR | AI115: Sub-clover inputs
AI116: Cost of sowing (seed + machinery) ($/ha) | AJ116: =IF(K12=0,0,(K12+AN69)) -> 51.05
B117: Establishment costs | F117: Winter crop | G117: Irrig cotton | H117: Dryland cotton | I117: Sorghum | J117: Corn | K117: Beans | AI117: Cost of fertilisers ($/ha/year) | AJ117: =$K$14 -> 35 | AK117: =AJ117 -> 35 | AL117: =AJ117 -> 35
AI118: Additional costs, incl. insecticide application ($/ha) | AJ118: =K17 -> 20 | AK118: =AJ118*0.2 -> 4 | AL118: =AJ118*0.2 -> 4
C119: Seed (standard rate) | E119: $/ha | F119: 35 | G119: 20 | H119: 7.73 | I119: 35 | J119: 15 | K119: 40 | AI119: Total, inputs, no tickle ($/ha) | AJ119: =SUM(AJ116:AJ118) -> 106.05 | AK119: =SUM(AK116:AK118) -> 39 | AL119: =SUM(AL116:AL118) -> 39
C120: incl. dressing / cleaning / inoculum / etc. | AI120: Extra cost of "tickle" (shallow cultivation) ($/ha) | AJ120: =AJ97 -> 6.3 | AK120: =AJ120 -> 6.3 | AL120: =AJ120 -> 6.3
C121: Fertilisers - standard, average practice | E121: $/ha | F121: 90 | G121: 95 | H121: 70 | I121: 40 | J121: 55 | K121: 35 | AI121: Extra cost of mouldboard ploughing ($/ha) | AJ121: =AJ98 -> 12.6 | AK121: =AJ121 -> 12.6 | AL121: =AJ121 -> 12.6
C122: Fertilisers - following a legume | E122: $/ha | F122: 85 | G122: 95 | H122: 70 | I122: 35 | J122: 50 | K122: 35 | AI122: Extra cost of seeding with full cut cultivation ($/ha) | AJ122: =AJ99 -> 1.55
AI123: Costs for 1st year of clover if not sown | AJ123: =AJ119-AJ116 -> 55
C124: Additional costs (incl. application costs) | E124: $/ha | F124: 30 | G124: 120 | H124: 30 | I124: 30 | J124: 30 | K124: 20
C125: insecticides, fungicides, broadleaf weed control, bed preparation, technical package, advisor costs, insurance, etc. | AI125: Cadiz serradella inputs
AI126: Cost of sowing (seed + machinery) ($/ha) | AJ126: =IF(L12=0,0,(L12+$AN$69)) -> 0
AI127: Cost of fertilisers ($/ha/year) | AJ127: =$L$14 -> 0 | AK127: =AJ127 -> 0 | AL127: =AJ127 -> 0
AI128: Additional costs, incl. insecticide application ($/ha) | AJ128: =L17 -> 0 | AK128: =AJ128*0.2 -> 0 | AL128: =AJ128*0.2 -> 0
AI129: Total, inputs, no tickle ($/ha) | AJ129: =SUM(AJ126:AJ128) -> 0 | AK129: =SUM(AK126:AK128) -> 0 | AL129: =SUM(AL126:AL128) -> 0
B130: Other costs | I130: Machinery | AI130: Extra cost of "tickle" (shallow cultivation) ($/ha) | AJ130: =AJ120 -> 6.3 | AK130: =AJ130 -> 6.3 | AL130: =AJ130 -> 6.3
AI131: Extra cost of mouldboard ploughing ($/ha) | AJ131: =AJ121 -> 12.6 | AK131: =AJ131 -> 12.6 | AL131: =AJ131 -> 12.6
C132: Environmental cost of soil disturbance | E132: $/ha | F132: 5 | J132: Harvester: | AI132: Extra cost of seeding with full cut cultivation ($/ha) | AJ132: =AJ99 -> 1.55
C133: Winter fallow management costs | E133: $/ha | F133: 12 | J133: ● Maintenance costs | N133: $/ha /year | O133: 10
C134: Summer fallow management costs | E134: $/ha | F134: 12 | J134: ● Fuel consumption | N134: l/ha | O134: 6
C135: Crop topping (your selected tactic) | E135: $/ha | F135: 25 | J135: ● Diesel price | N135: $/l | O135: 1.1
J137: Purchase cost of:
J138: ● Narrow windrow chute | N138: $ | O138: 500
J139: ● Chaff cart | N139: $ | O139: 70000
J140: ● Harrington seed destructor (HSD) | N140: $ | O140: 160000
J141: ● Bale direct system (BDS) | N141: $ | O141: 140000
J143: Machinery repayments:
J144: ● Loan duration | N144: years | O144: 8
J145: ● Interest rate | O145: 0.06
B149: Prices_3 | C149: ='1.Profile'!Q33 -> BYGUM, Test cotton 1
B151: Establishment costs | F151: Winter crop | G151: Irrig cotton | H151: Dryland cotton | I151: Sorghum | J151: Corn | K151: Beans
C153: Seed (standard rate) | E153: $/ha | F153: 35 | G153: 20 | H153: 7.73 | I153: 35 | J153: 15 | K153: 40
C154: incl. dressing / cleaning / inoculum / etc.
C155: Fertilisers - standard, average practice | E155: $/ha | F155: 90 | G155: 95 | H155: 70 | I155: 40 | J155: 55 | K155: 35
C156: Fertilisers - following a legume | E156: $/ha | F156: 85 | G156: 95 | H156: 70 | I156: 35 | J156: 50 | K156: 35
C158: Additional costs (incl. application costs) | E158: $/ha | F158: 30 | G158: 60 | H158: 30 | I158: 30 | J158: 30 | K158: 20
C159: insecticides, fungicides, broadleaf weed control, bed preparation, technical package, advisor costs, insurance, etc.
B164: Other costs | I164: Machinery
C166: Environmental cost of soil disturbance | E166: $/ha | F166: 5 | J166: Harvester:
C167: Winter fallow management costs | E167: $/ha | F167: 12 | J167: ● Maintenance costs | N167: $/ha /year | O167: 10
C168: Summer fallow management costs | E168: $/ha | F168: 12 | J168: ● Fuel consumption | N168: l/ha | O168: 6
C169: Crop topping (your selected tactic) | E169: $/ha | F169: 25 | J169: ● Diesel price | N169: $/l | O169: 1.1
J171: Purchase cost of:
J172: ● Narrow windrow chute | N172: $ | O172: 500
J173: ● Chaff cart | N173: $ | O173: 70000
J174: ● Harrington seed destructor (HSD) | N174: $ | O174: 160000
J175: ● Bale direct system (BDS) | N175: $ | O175: 140000
J177: Machinery repayments:
J178: ● Loan duration | N178: years | O178: 8
J179: ● Interest rate | O179: 0.06
B182: Prices_4 | C182: ='1.Profile'!Q34 -> BYGUM, Test cotton 1
B184: Establishment costs | F184: Winter crop | G184: Irrig cotton | H184: Dryland cotton | I184: Sorghum | J184: Corn | K184: Beans
C186: Seed (standard rate) | E186: $/ha | F186: 35 | G186: 20 | H186: 7.73 | I186: 35 | J186: 15 | K186: 40
C187: incl. dressing / cleaning / inoculum / etc.
C188: Fertilisers - standard, average practice | E188: $/ha | F188: 90 | G188: 95 | H188: 70 | I188: 40 | J188: 55 | K188: 35
C189: Fertilisers - following a legume | E189: $/ha | F189: 85 | G189: 95 | H189: 70 | I189: 35 | J189: 50 | K189: 35
C191: Additional costs (incl. application costs) | E191: $/ha | F191: 30 | G191: 60 | H191: 30 | I191: 30 | J191: 30 | K191: 20
C192: insecticides, fungicides, broadleaf weed control, bed preparation, technical package, advisor costs, insurance, etc.
B197: Other costs | I197: Machinery
C199: Environmental cost of soil disturbance | E199: $/ha | F199: 5 | J199: Harvester:
C200: Winter fallow management costs | E200: $/ha | F200: 12 | J200: ● Maintenance costs | N200: $/ha /year | O200: 10
C201: Summer fallow management costs | E201: $/ha | F201: 12 | J201: ● Fuel consumption | N201: l/ha | O201: 6
C202: Crop topping (your selected tactic) | E202: $/ha | F202: 25 | J202: ● Diesel price | N202: $/l | O202: 1.1
J204: Purchase cost of:
J205: ● Narrow windrow chute | N205: $ | O205: 500
J206: ● Chaff cart | N206: $ | O206: 70000
J207: ● Harrington seed destructor (HSD) | N207: $ | O207: 160000
J208: ● Bale direct system (BDS) | N208: $ | O208: 140000
J210: Machinery repayments:
J211: ● Loan duration | N211: years | O211: 8
J212: ● Interest rate | O212: 0.06

Sheet +Options
B7: More Options… | J7: ='1.Profile'!Q28&", "&'1.Profile'!Q27 -> BYGUM, GR
B10: Crops | E10: Winter crop | F10: Sorghum | G10: Irrig Cotton | H10: D/L Cotton | I10: Corn | J10: Beans
C12: Seeding rate - Standard | D12: kg/ha | E12: 35 | F12: 3 | G12: 13 | H12: 7 | I12: 12 | J12: 12
C13: Seeding rate - High | D13: kg/ha | E13: 50 | F13: 4 | G13: 15 | H13: 10 | I13: 16 | J13: 16
B18: Yield benefits | E18: Winter crop | F18: Sorghum | G18: Irrig Cotton | H18: D/L Cotton | I18: Corn | J18: Beans
L19: Barnyard grass control
C20: - following a legume | E20: 0.12 | F20: 0.12 | G20: 0.02 | H20: 0.02 | I20: 0.12 | L20: Plants (in crop or at planting):
C21: - due to preceding cover crop | E21: 0.08 | F21: 0.08 | G21: 0.08 | H21: 0.08 | I21: 0.08 | J21: 0.08 | M21: Planting: Min till method | Q21: 0.2
C22: - for early sowing | E22: 0.08 | F22: 0.08 | G22: 0.08 | H22: 0.08 | I22: 0.08 | J22: 0.08 | M22: Planting: Conv. till method | Q22: 0.95
C23: - for dryland cotton, following two summer fallows | H23: 0.6 | M23: Topping - Cereals | Q23: 0.75
M24: Topping - Cotton/Legumes | Q24: 0.75
B25: Yield penalties | E25: Winter crop | F25: Sorghum | G25: Irrig Cotton | H25: D/L Cotton | I25: Corn | J25: Beans
C27: - for late sowing | E27: 0.05 | F27: 0.05 | G27: 0.05 | H27: 0.072 | I27: 0.01 | J27: 0.01
C28: - for crop-topping | E28: 0.05 | F28: 0.05 | G28: 0.05 | H28: 0.072 | I28: 0.05 | J28: 0.05 | L28: Plants (at time of cover crop sprayout):
C29: - if following another crop | E29: 0.7 | F29: 0.5 | G29: 0.1 | H29: 0.7 | I29: 0.5 | J29: 0.1 | M29: Sprayout with DK | Q29: 1
L30: Seeds (harvest weed seed control in grains):
C31: - on crops, from pre- and post-emergent phytotoxic effects | I31: 0.02 | M31: Catch & chaff tramlining | Q31: 0.85
M32: Catch & HSD or BDS | Q32: 0.85
C33: - on beans if break between beans is only 1 year | I33: 0 | M33: Catch & burn: chaff cart dumps | Q33: 0.85
M34: Catch & burn: narrow windrows | Q34: 0.85
C35: - on dryland Cotton if preceding summer is not fallow | I35: 0.4 | M35: Whole-paddock burning (residues) | Q35: 0.6
AR38: =P_1P -> TRUE
AC47: =COUNT(F12:J13,I16,O14:P16,E15:I15,Q16:Q17,I20:I23,E27:I28,I31,I33:I34,Q21:Q27,Q29,P31:P35,#REF!) -> 30
AQ49: Legend: | AR49: 22 | AS49: linked to interface (current page or otherwise specified)
B50: Options_0 | C50: ='1.Profile'!Q36 -> Susceptible, Default | E50: 0 | AR50: 22 | AS50: calculation
AS51: n.a.
B52: Crops | E52: Winter crop | F52: Sorghum | G52: Irrig Cotton | H52: D/L Cotton | I52: Corn | J52: Beans | AF52: Crops | AR52: 0.22 | AS52: not linked (direct input)
AF53: Boost and penalties | AR53: 0.22 | AS53: not linked, and do not change without good advice
C54: Seeding rate - Standard | D54: kg/ha | E54: 35 | F54: 3 | G54: 13 | H54: 7 | I54: 12 | J54: 12 | AF54: Crop Variables | AG54: Wheat | AH54: Sorghum | AI54: Irrig Cotton | AJ54: Dryland Cotton | AK54: Corn | AL54: Beans | AO54: Wheat | AP54: Sorghum | AQ54: Cotton | AR54: Beans | AT54: 0.22 | AU54: reference data
C55: Seeding rate - High | D55: kg/ha | E55: 50 | F55: 4 | G55: 15 | H55: 10 | I55: 16 | J55: 16 | AF55: Weed-free yield (after long break with no legume) (t/ha) | AG55: ='1.Profile'!D7 -> 1.8 | AH55: ='1.Profile'!E7 -> 4 | AI55: ='1.Profile'!F7 -> 3.178 | AJ55: ='1.Profile'!G7 -> 2.497 | AK55: ='1.Profile'!H7 -> 14 | AL55: ='1.Profile'!I7 -> 1 | AM55: From Profile | AO55: 2 | AP55: 2.2 | AQ55: 1 | AR55: 1 | AT55: 0.22 | AU55: reference data used for ratios
AF56: Standard seeding rate (kg/ha) | AG56: =E12 -> 35 | AH56: 3 | AI56: 13 | AJ56: 7 | AK56: 12 | AL56: 12 | AO56: 60 | AP56: 70 | AQ56: 3 | AR56: 100 | AT56: blabla | AU56: information / tracking data (not involved in calculations)
AF57: High seeding rate (kg/ha) | AG57: 50 | AH57: 4 | AI57: 15 | AJ57: 10 | AK57: 16 | AL57: 16 | AO57: 90 | AP57: 100 | AQ57: 5-6 | AR57: 125
AF58: Standard density (plants/m2) | AG58: =AG56*100/AG$82*AG$83 -> 70.94594595 | AH58: 6.428571429 | AI58: 12.58947368 | AJ58: 6.263157895 | AK58: 2.684210526 | AL58: 3.84 | AO58: 120 | AP58: 145-150 | AQ58: 60 | AR58: 50
AF59: High density (plants/m2) | AG59: =AG57*100/AG$82*AG$84 -> 94.59459459 | AH59: 8 | AI59: 14.52631579 | AJ59: 8.947368421 | AK59: =AK57*100/AK$82*AK$84 -> 3.452631579 | AL59: 4.8 | AO59: 165 | AP59: 195 | AQ59: 90-100 | AR59: 60-65
B60: Yield benefits | E60: Winter crop | F60: Sorghum | G60: Irrig Cotton | H60: D/L Cotton | I60: Corn | J60: Beans | AF60: Harvest index (proportion) | AG60: =D15 -> 0 | AH60: =E15 -> 0 | AI60: =F15 -> 0 | AJ60: =G15 -> 0 | AK60: =G15 -> 0 | AL60: =I15 -> 0 | AO60: 0.4 | AP60: 0.4 | AQ60: 0.4 | AR60: 0.3
L61: Barnyard grass control | AF61: % of fodder yield relative to (grain yield/harvest index) | AG61: =I16 -> 0 | AH61: =$AG$61*AP61/$AO$61 -> 0 | AI61: =$AG$61*AQ61/$AO$61 -> 0 | AJ61: =$AG$61*AR61/$AO$61 -> 0 | AK61: =$AG$61*AQ61/$AO$61 -> 0 | AL61: =$AG$61*AR61/$AO$61 -> 0 | AM61: all based on wheat | AO61: 0.8 | AP61: 0.8 | AQ61: 0.8 | AR61: 0.8
C62: - following a legume | E62: 0.12 | F62: 0.12 | G62: 0.02 | H62: 0.02 | I62: 0.12 | L62: Plants (in crop or at planting): | AF62: Yield benefits
C63: - due to preceding cover crop | E63: 0.08 | F63: 0.08 | G63: 0.08 | H63: 0.08 | I63: 0.08 | J63: 0.08 | M63: Planting: Min till method | Q63: 0.4 | AD63: Use these for Calcs Table 8 | AF63: Yield benefit 1st year after legumes | AG63: =E20 -> 0.12 | AH63: =F20 -> 0.12 | AI63: =G20 -> 0.02 | AJ63: =H20 -> 0.02 | AK63: =I20 -> 0.12 | AM63: all based on wheat | AO63: 0.2 | AP63: 0.2 | AQ63: 0
C64: - for early sowing | E64: 0.08 | F64: 0.08 | G64: 0.08 | H64: 0.08 | I64: 0.08 | J64: 0.08 | M64: Planting: Conv. till method | Q64: 0.95 | AD64: But reword/repurpose | AF64: Yield benefit after 2 summer fallows (one in 2 out) | AJ64: =H23 -> 0.6 | AM64: based on 1st year after legumes | AO64: 0.1 | AP64: 0.06666666667 | AQ64: 0
C65: - for dryland cotton, following two summer fallows | H65: 0.6 | M65: Topping - Cereals | Q65: 0.75 | AF65: Yield benefit 1st year after cover crop | AG65: =E21 -> 0.08 | AH65: 0.08 | AI65: 0.08 | AJ65: 0.08 | AK65: 0.08 | AL65: 0.08 | AM65: based on 1st year after legumes | AO65: 0.05 | AP65: 0.05
M66: Topping - Cotton/Legumes | Q66: 0.75 | AF66: Yield benefit for early sowing (if any) (%) | AG66: 0.08 | AH66: 0.08 | AI66: 0.08 | AJ66: 0.08 | AK66: 0.08 | AL66: 0.08 | AM66: From Profile | AO66: 0.05 | AP66: 0.02 | AQ66: 10-20% | AR66: 0.05
B67: Yield penalties | E67: Winter crop | F67: Sorghum | G67: Irrig Cotton | H67: D/L Cotton | I67: Corn | J67: Beans | AF67: Yield benefit after green manuring (on top of any other benefit) | AG67: 0 | AH67: 0 | AI67: 0 | AJ67: 0 | AK67: 0 | AL67: 0 | AM67: all same | AO67: 0.1 | AP67: 0.1 | AQ67: 0.1 | AR67: 0.1
AF68: Yield benefit after brown manuring (on top of any other benefit) | AG68: 0 | AH68: 0 | AI68: 0 | AJ68: 0 | AK68: 0 | AL68: 0 | AM68: all same | AO68: 0.05 | AP68: 0.05 | AQ68: 0.05 | AR68: 0.05
C69: - for late sowing | E69: 0.05 | F69: 0.05 | G69: 0.05 | H69: 0.072 | I69: 0.01 | J69: 0.01 | AF69: Yield benefit after mowing (on top of any other benefit) | AG69: 0 | AH69: 0 | AI69: 0 | AJ69: 0 | AK69: 0 | AL69: 0 | AM69: all same | AO69: 0.05 | AP69: 0.05 | AQ69: 0.05 | AR69: 0.05
C70: - for crop-topping | E70: 0.05 | F70: 0.05 | G70: 0.05 | H70: 0.072 | I70: 0.05 | J70: 0.05 | L70: Plants (at time of cover crop sprayout): | AF70: Yield benefit for all crops, after mouldboarding (permanent benefit) | AR70: 0.15
C71: - if following another crop | E71: 0.7 | F71: 0.5 | G71: 0.1 | H71: 0.7 | I71: 0.5 | J71: 0.1 | M71: Sprayout with DK | Q71: 1 | AF71: Yield penalties | AT71: Walsh, M. and Powles, S. (2007) Management Strategies for Herbicide-Resistant Weed Populations in Australian Dryland Crop Production Systems. Weed Technology 21:332–338
L72: Seeds (harvest weed seed control in grains): | AF72: Yield penalty for not swathing | AG72: 0 | AH72: 0 | AI72: 0 | AJ72: 0 | AK72: 0 | AL72: 0 | AO72: 0.02 | AP72: 0.02 | AQ72: 0.05 | AR72: 0 | AT72: Seymour, M., Kirkegaard, J.A., Peoples, M.B., White, P.F. and French, R.J. (2012) Break-crop benefits to wheat in Western Australia – insights from over three decades of research. Crop and Pasture Science 63:1-16.
C73: - on crops, from pre- and post-emergent phytotoxic effects | I73: 0.02 | M73: Catch & chaff tramlining | Q73: 0.85 | AF73: Yield penalty for crop-topping | AG73: =E28 -> 0.05 | AH73: 0.05 | AI73: 0.05 | AJ73: 0.072 | AK73: 0.05 | AL73: 0.05 | AO73: 0.05 | AP73: 0.05 | AQ73: 0.05 | AR73: 0.05 | AT73: Planfarm and Bankwest (2012) Planfarm Bankwest Benchmarks 2011/2012. Planfarm Pty. Ltd. and BankWest Agribusiness Centre, West Perth and Wembley, Western Australia, 81pp.
M74: Catch & HSD or BDS | Q74: 0.85 | AF74: D/L cotton yield penalty if there is no preceding summer fallow | AI74: 0 | AJ74: =I35 -> 0.4 | AQ74: 0.1
C75: - on beans if break between beans is only 1 year | I75: 0 | M75: Catch & burn: chaff cart dumps | Q75: 0.85 | AF75: Cotton yield penalty if break between Cottons is one year | AJ75: =I34 -> 0 | AM75: based on 1st year | AQ75: 0.03
C76: - on dryland Cotton if break between cottons is only 1 year | I76: 0 | M76: Catch & burn: narrow windrows | Q76: 0.85 | AF76: Legumes yield penalty if break between legumes is one year | AL76: =I33 -> 0 | AR76: 0.05
C77: - on dryland Cotton if preceding summer is not fallow | I77: 0.4 | M77: Whole-paddock burning (residues) | Q77: 0.6 | AF77: Legumes yield penalty if legumes sown into a burnt crop stubble | AL77: 0 | AR77: 0-10%
AF78: Yield penalty for late sowing (if any) (%) | AG78: =E27 -> 0.05 | AH78: 0.05 | AI78: 0.05 | AJ78: 0.072 | AK78: 0.01 | AL78: 0.01 | AM78: based on 3 weeks | AO78: 0.05 | AP78: 0.05 | AQ78: 0.1 | AR78: 0.05
AF79: Yield penalty for immediately following another crop | AG79: =E29 -> 0.7 | AH79: 0.5 | AI79: 0.1 | AJ79: 0.7 | AK79: 0.5 | AL79: 0.1 | AM79: From Profile | AO79: 0.1 | AP79: 0.05 | AQ79: 0.2 | AR79: 0.1
AF80: Average yield penalty from phytotoxic effect herbicides (of pre- and post-emergents) | AL80: =I31 -> 0.02 | AR80: 0.02
AF81: Critical factors
AF82: Average kernel weight (mg) | AG82: 37 | AH82: 35 | AI82: 95 | AJ82: 95 | AK82: 380 | AL82: 250 | AO82: 37 | AP82: 35 | AQ82: 3 | AR82: 150
AF83: Expected standard rates seedling establishment (% of seeds) | AG83: 0.75 | AH83: 0.75 | AI83: 0.92 | AJ83: 0.85 | AK83: 0.85 | AL83: 0.8 | AO83: 0.75 | AP83: 0.75 | AQ83: 0.6 | AR83: 0.8
B84: Options_1 | C84: ='1.Profile'!Q31 -> BYGUM, GR | AF84: Expected high rates seedling establishment (% of seeds) | AG84: 0.7 | AH84: 0.7 | AI84: 0.92 | AJ84: 0.85 | AK84: 0.82 | AL84: 0.75 | AO84: 0.7 | AP84: 0.7 | AQ84: 0.55 | AR84: 0.75
AF85: Maximum proportion of yield lost at high weed density | AG85: 0.7 | AH85: 0.65 | AI85: 0.85 | AJ85: 0.9 | AK85: 0.6 | AL85: 0.9 | AO85: 0.6 | AP85: 0.45 | AQ85: 0.6 | AR85: 0.6 | AT85: Goggin, D.E., Powles, S.B. and Steadman, K,J. (2012) Understanding Lolium rigidum Seeds: The Key to Managing a Problem Weed? Agronomy 2:222-239
B86: Crops | E86: Winter crop | F86: Sorghum | G86: Irrig Cotton | H86: D/L Cotton | I86: Corn | J86: Beans | AF86: Competition factor on ryegrass | AG86: 3 | AH86: 3.3 | AI86: 3.5 | AJ86: 3 | AK86: 3.5 | AL86: 2.9 | AO86: 3 | AP86: 3.3 | AQ86: 2.6 | AR86: 3.9 | AS86: * | AT86: Doole, G.J. (2009) Increased cropping activity and herbicide resistance: the case of rigid ryegrass in Western Australian dryland agriculture. In: Berklian, Y.U. (Ed.), Crop Rotation: Economics, Impact, and Management. Nova Science Publishers, Hauppauge, pp. 1–40.
AF87: Density standard (not the actual density - a standard level for comparison) (plants/m2) | AG87: 110 | AH87: 145 | AI87: 200 | AJ87: 150 | AK87: 145 | AL87: 80 | AO87: 110 | AP87: 145 | AQ87: 60 | AR87: 50
C88: Seeding rate - Standard | D88: kg/ha | E88: 35 | F88: 3 | G88: 13 | H88: 7 | I88: 12 | J88: 12 | AF88: Background competition factor | AG88: 5 | AH88: 3 | AI88: 1.5 | AJ88: 5 | AK88: 3 | AL88: 9 | AO88: 5 | AP88: 3 | AQ88: 5 | AR88: 9 | AS88: *
C89: Seeding rate - High | D89: kg/ha | E89: 50 | F89: 4 | G89: 15 | H89: 10 | I89: 16 | J89: 16 | AG89: Do not change without good advice | AM89: * A. Diggle, D.Pannell, John Moore, 1999.
AF93: Barnyard Grass
B94: Yield benefits | E94: Winter crop | F94: Sorghum | G94: Irrig Cotton | H94: D/L Cotton | I94: Corn | J94: Beans
L95: Barnyard grass control | AF95: Viable weed seed in August year 1 (seeds/m2) | AG95: =SeedNos_SH -> 2 | AH95: From Profile
C96: - following a legume | E96: 0.12 | F96: 0.12 | G96: 0.02 | H96: 0.02 | I96: 0.12 | L96: Plants (in crop or at planting): | AI96: 0.05
C97: - due to preceding cover crop | E97: 0.08 | F97: 0.08 | G97: 0.08 | H97: 0.08 | I97: 0.08 | J97: 0.08 | M97: Planting: Min till method | Q97: 0.2 | AF97: Note: Germination is: | AI97: 0.4 | AJ97: Standard
C98: - for early sowing | E98: 0.08 | F98: 0.08 | G98: 0.08 | H98: 0.08 | I98: 0.08 | J98: 0.08 | M98: Planting: Conv. till method | Q98: 0.95 | AF98: - the least in regenerating pasture without tickle (minimal disturbance) | AI98: 0.4
C99: - for dryland cotton, following two summer fallows | H99: 0.6 | M99: Topping - Cereals | Q99: 0.75 | AF99: - skewed earlier if tickle (and slight change in amount ) | AI99: 0.4
M100: Topping - Cotton/Legumes | Q100: 0.75 | AF100: - a bit greater with full-cut compared to no-till | AI100: 0.1 | AJ100: 0.82 | AL100: Germination, | AM100: Seeds that | AO100: Germination, | AP100: Seeds that
B101: Yield penalties | E101: Winter crop | F101: Sorghum | G101: Irrig Cotton | H101: D/L Cotton | I101: Corn | J101: Beans | AL101: % of original | AM101: remain in | AO101: % of original | AP101: remain in
AF102: Germination percentage of seeds remaining in the seed bank at that time, not % of original seed bank. | AL102: seed bank | AM102: seed bank | AO102: seed bank | AP102: seed bank
C103: - for late sowing | E103: 0.05 | F103: 0.05 | G103: 0.05 | H103: 0.072 | I103: 0.01 | J103: 0.01 | AF103: Germination - No sowing and: | AG103: no tickle | AI103: + tickle | AL103: no tickle | AO103: + tickle
C104: - for crop-topping | E104: 0.05 | F104: 0.05 | G104: 0.05 | H104: 0.072 | I104: 0.05 | J104: 0.05 | L104: Plants (at time of cover crop sprayout): | AF104: Germination prior to break | AG104: 0.006 | AI104: 0.013 | AL104: =AG104 -> 0.006 | AM104: =1*(1-AG104) -> 0.994 | AO104: =AI104 -> 0.013 | AP104: =1*(1-AI104) -> 0.987
C105: - if following another crop | E105: 0.7 | F105: 0.5 | G105: 0.1 | H105: 0.7 | I105: 0.5 | J105: 0.1 | M105: Sprayout with DK | Q105: 1 | AF105: Germination 1-10 days after break** | AG105: 0.022 | AI105: 0.022 | AL105: =AM104-AM105 -> 0.021868 | AM105: =AM104*(1-AG105) -> 0.972132 | AO105: =AP104-AP105 -> 0.021714 | AP105: =AP104*(1-AI105) -> 0.965286
L106: Seeds (harvest weed seed control in grains): | AF106: Germination 11-20 days after break** | AG106: 0.014 | AI106: 0.015 | AL106: =AM105-AM106 -> 0.013609848 | AM106: =AM105*(1-AG106) -> 0.958522152 | AO106: =AP105-AP106 -> 0.01447929 | AP106: =AP105*(1-AI106) -> 0.95080671
C107: - on crops, from pre- and post-emergent phytotoxic effects | I107: 0.02 | M107: Catch & chaff tramlining | Q107: 0.85 | AF107: Additional germination before in-crop sprays** | AG107: 0.021 | AI107: 0.021 | AL107: =AM106-AM107 -> 0.02012896519 | AM107: =AM106*(1-AG107) -> 0.9383931868 | AO107: =AP106-AP107 -> 0.01996694091 | AP107: =AP106*(1-AI107) -> 0.9308397691
M108: Catch & HSD or BDS | Q108: 0.85 | AF108: Germination after in-crop sprays** | AG108: 0.005 | AI108: 0.006 | AL108: =AM107-AM108 -> 0.004691965934 | AM108: =AM107*(1-AG108) -> 0.9337012209 | AO108: =AP107-AP108 -> 0.005585038615 | AP108: =AP107*(1-AI108) -> 0.9252547305
C109: - on beans if break between beans is only 1 year | I109: 0 | M109: Catch & burn: chaff cart dumps | Q109: 0.85 | AL109: total: | AM109: =1-AM108 -> 0.06629877913 | AN109: =SUM(AL104:AL108)+AM108 -> 1 | AO109: total: | AP109: =1-AP108 -> 0.07474526952 | AQ109: =SUM(AO104:AO108)+AP108 -> 1
M110: Catch & burn: narrow windrows | Q110: 0.85 | AG110: =1-AM108 -> 0.06629877913 | AI110: =1-AP108 -> 0.07474526952
C111: - on dryland Cotton if preceding summer is not fallow | I111: 0.4 | M111: Whole-paddock burning (residues) | Q111: 0.6
AF112: Germination - Sowing (crop or pasture) and: | AG112: no tickle | AI112: + tickle | AL112: no tickle | AO112: no tickle
AG113: no-till | AH113: full cut | AI113: no-till | AJ113: full cut | AL113: no-till | AO113: full cut
AF114: Germination prior to break | AG114: 0.007 | AH114: 0.011 | AI114: 0.018 | AJ114: 0.019 | AL114: =AG114 -> 0.007 | AM114: =1*(1-AG114) -> 0.993 | AO114: =AH114 -> 0.011 | AP114: =1*(1-AH114) -> 0.989
AF115: Germination 1-10 days after break** | AG115: 0.022 | AH115: 0.023 | AI115: 0.027 | AJ115: 0.027 | AL115: =AM114-AM115 -> 0.021846 | AM115: =AM114*(1-AG115) -> 0.971154 | AO115: =AP114-AP115 -> 0.022747 | AP115: =AP114*(1-AH115) -> 0.966253
AF116: Germination 11-20 days after break** | AG116: 0.014 | AH116: 0.014 | AI116: 0.015 | AJ116: 0.016 | AL116: =AM115-AM116 -> 0.013596156 | AM116: =AM115*(1-AG116) -> 0.957557844 | AO116: =AP115-AP116 -> 0.013527542 | AP116: =AP115*(1-AH116) -> 0.952725458
AF117: Additional germination before in-crop sprays** | AG117: 0.017 | AH117: 0.018 | AI117: 0.016 | AJ117: 0.018 | AL117: =AM116-AM117 -> 0.01627848335 | AM117: =AM116*(1-AG117) -> 0.9412793607 | AO117: =AP116-AP117 -> 0.01714905824 | AP117: =AP116*(1-AH117) -> 0.9355763998
B118: Options_2 | C118: ='1.Profile'!Q32 -> BYGUM, non-GR | AF118: Germination after in-crop sprays** | AG118: 0.006 | AH118: 0.01 | AI118: 0.009 | AJ118: 0.011 | AL118: =AM117-AM118 -> 0.005647676164 | AM118: =AM117*(1-AG118) -> 0.9356316845 | AO118: =AP117-AP118 -> 0.009355763998 | AP118: =AP117*(1-AH118) -> 0.9262206358
AL119: total: | AM119: =1-AM118 -> 0.06436831551 | AN119: =SUM(AL114:AL118)+AM118 -> 1 | AO119: total: | AP119: =1-AP118 -> 0.07377936424 | AQ119: =SUM(AO114:AO118)+AP118 -> 1
B120: Crops | E120: Winter crop | F120: Sorghum | G120: Irrig Cotton | H120: D/L Cotton | I120: Corn | J120: Beans | AG120: =1-AM118 -> 0.06436831551 | AH120: =1-AP118 -> 0.07377936424 | AI120: =1-AM126 -> 0.08223960662 | AJ120: =1-AP126 -> 0.08781122129 | AL120: + tickle | AO120: + tickle
AL121: no-till | AO121: full cut
C122: Seeding rate - Standard | D122: kg/ha | E122: 35 | F122: 3 | G122: 13 | H122: 7 | I122: 12 | J122: 12 | AF122: BYG Variables | AL122: =AI114 -> 0.018 | AM122: =1*(1-AI114) -> 0.982 | AO122: =AJ114 -> 0.019 | AP122: =1*(1-AJ114) -> 0.981
C123: Seeding rate - High | D123: kg/ha | E123: 50 | F123: 4 | G123: 15 | H123: 10 | I123: 16 | J123: 16 | AF123: Nb of viable seeds at start (Yr1) per mature plant last year (from profile) | AG123: 100 | AI123: 50 | AJ123: Steve Powles, 2012 | AL123: =AM122-AM123 -> 0.026514 | AM123: =AM122*(1-AI115) -> 0.955486 | AO123: =AP122-AP123 -> 0.026487 | AP123: =AP122*(1-AJ115) -> 0.954513
AF124: Full cultivation: % emerged plants controlled | AG124: 1 | AI124: 1 | AJ124: GRDC, 2012 | AL124: =AM123-AM124 -> 0.01433229 | AM124: =AM123*(1-AI116) -> 0.94115371 | AO124: =AP123-AP124 -> 0.015272208 | AP124: =AP123*(1-AJ116) -> 0.939240792
AF125: full cultivation: % seeds controlled first time | AG125: 0.7 | AI125: 0.95 | AJ125: GRDC, 2012 | AL125: =AM124-AM125 -> 0.01505845936 | AM125: =AM124*(1-AI117) -> 0.9260952506 | AO125: =AP124-AP125 -> 0.01690633426 | AP125: =AP124*(1-AJ117) -> 0.9223344577
AF126: Full cultivation: % seeds controlled if less than 4 years | AG126: 0.3 | AI126: 0.3 | AJ126: adapted from Goggin et al. 2012 | AL126: =AM125-AM126 -> 0.008334857256 | AM126: =AM125*(1-AI118) -> 0.9177603934 | AO126: =AP125-AP126 -> 0.01014567904 | AP126: =AP125*(1-AJ118) -> 0.9121887787
AF127: Natural mortality of seedlings (% of total seedlings) | AG127: 0.05 | AI127: 0.05 | AJ127: Cheam, AgWA 1999 | AL127: total: | AM127: =1-AM126 -> 0.08223960662 | AN127: =SUM(AL122:AL126)+AM126 -> 1 | AO127: total: | AP127: =1-AP126 -> 0.08781122129 | AQ127: =SUM(AO122:AO126)+AP126 -> 1
B128: Yield benefits | E128: Winter crop | F128: Sorghum | G128: Irrig Cotton | H128: D/L Cotton | I128: Corn | J128: Beans | AF128: Natural mortality of dormant seeds during season | AG128: 0.5 | AI128: 0.2 | AJ128: J. Holmes, RTC & M. Monjardino, UWA 1999
L129: Barnyard grass control | AF129: Natural mortality of seeds over winter | AG129: 0.92 | AI129: 0.3 | AJ129: M. Monjardino, UWA 1999
C130: - following a legume | E130: 0.12 | F130: 0.12 | G130: 0.02 | H130: 0.02 | I130: 0.12 | L130: Plants (in crop or at planting): | AF130: Sub-lethal effect of selective herbicides - lower seed production of surviving weeds. | AG130: 0.33 | AI130: 0.33 | AJ130: D. Pannell & V. Stewart, 1999
C131: - due to preceding cover crop | E131: 0.08 | F131: 0.08 | G131: 0.08 | H131: 0.08 | I131: 0.08 | J131: 0.08 | M131: Planting: Min till method | Q131: 0.2 | AF131: Effect of late-season application of non-selective herbicideherbicides - lower viability of newly produced seeds | AG131: 0.5 | AI131: 0.5 | AJ131: Steadman et al., 2006 | AM131: A number of those ryegrass parameters are reviewed in:
C132: - for early sowing | E132: 0.08 | F132: 0.08 | G132: 0.08 | H132: 0.08 | I132: 0.08 | J132: 0.08 | M132: Planting: Conv. till method | Q132: 0.95 | AF132: Maximum byg seed production (seeds/m2/year) | AG132: 120000 | AI132: 35000 | AJ132: M. Monjardino, UWA 1999 | AM132: Goggin, D.E., Powles, S.B. and Steadman, K,J. (2012) Understanding Lolium rigidum Seeds: The Key to Managing a Problem Weed? Agronomy 2:222-239
C133: - for dryland cotton, following two summer fallows | H133: 0.6 | M133: Topping - Cereals | Q133: 0.75 | AF133: Removal of weed seed in grain with normal harvesting | AG133: 0.05 | AI133: 0.05 | AJ133: Michael Walsh, 2012 | AM133: Doole, G.J. (2009) Increased cropping activity and herbicide resistance: the case of rigid ryegrass in Western Australian dryland agriculture. In: Berklian, Y.U. (Ed.), Crop Rotation: Economics, Impact, and Management. Nova Science Publishers, Hauppauge, pp. 1–40.
M134: Topping - Cotton/Legumes | Q134: 0.75 | AF134: barnyard grass background comp. factor | AG134: 10 | AI134: 25 | AJ134: A. Diggle, AgWA
B135: Yield penalties | E135: Winter crop | F135: Sorghum | G135: Irrig Cotton | H135: D/L Cotton | I135: Corn | J135: Beans | AF135: BYG competition factor in wheat | AG135: 0.33 | AI135: 0.33 | AJ135: D. Pannell, UWA 1999
AF136: BYG competition factor in Sorghum, corn, DLC | AG136: 0.15 | AI136: 0.3 | AJ136: D. Pannell, UWA 1999
C137: - for late sowing | E137: 0.05 | F137: 0.05 | G137: 0.05 | H137: 0.072 | I137: 0.01 | J137: 0.01 | AF137: BYG competition factor in Irrig Cotton | AG137: 0.1 | AI137: 0.35 | AJ137: D. Pannell, UWA 1999
C138: - for crop-topping | E138: 0.05 | F138: 0.05 | G138: 0.05 | H138: 0.072 | I138: 0.05 | J138: 0.05 | L138: Plants (at time of cover crop sprayout): | AF138: BYG competition factor in beans | AG138: 0.25 | AI138: 0.24 | AJ138: D. Pannell, UWA 1999
C139: - if following another crop | E139: 0.7 | F139: 0.5 | G139: 0.1 | H139: 0.7 | I139: 0.5 | J139: 0.1 | M139: Sprayout with DK | Q139: 1 | AG139: Don't change without good advice | AK139: John Moore, DAWA, Dec 2000
L140: Seeds (harvest weed seed control in grains): | AF140: Progeny index for BYG | AG140: Early sow | AH140: Avg sow | AI140: Late sow | AK140: Seed day 0 | AL140: Seed day 10 | AM140: Seed day 20
C141: - on crops, from pre- and post-emergent phytotoxic effects | I141: 0.02 | M141: Catch & chaff tramlining | Q141: 0.85 | AF141: Weeds emerging 1-10 days after break | AG141: 1 | AH141: 1 | AI141: 1 | AK141: 1 | AL141: 1 | AM141: 1
M142: Catch & HSD or BDS | Q142: 0.85 | AF142: Weeds emerging 11-20 days after break | AG142: 0.6 | AH142: 0.7 | AI142: 0.9 | AK142: 0.3 | AL142: 1 | AM142: 1
C143: - on beans if break between beans is only 1 year | I143: 0 | M143: Catch & burn: chaff cart dumps | Q143: 0.85 | AF143: Additional weeds emerging before post-em herbicides | AG143: 0.4 | AH143: 0.5 | AI143: 0.6 | AK143: 0.1 | AL143: 0.3 | AM143: 0.45
M144: Catch & burn: narrow windrows | Q144: 0.85 | AF144: Weeds emerging after post-em herbicides | AG144: 0.08 | AH144: 0.08 | AI144: 0.1 | AK144: 0.02 | AL144: 0.1 | AM144: 0.1
C145: - on dryland Cotton if preceding summer is not fallow | I145: 0.4 | M145: Whole-paddock burning (residues) | Q145: 0.6
AG146: =AVERAGE(AG141:AG144) -> 0.52 | AH146: =AVERAGE(AH141:AH144) -> 0.57 | AI146: =AVERAGE(AI141:AI144) -> 0.65
AF150: Pastures | AG150: All Data Source from AgWA Pastures Group - Mike Ewing, Brad Nutt, Clinton Revell, Keith Devenish, 2001 ; reviewed 2012 by Mike Ewing (UWA), Clinton Revell, Mark Seymour (DAFWA)
AF151: Stocking rates - Standard Intensity Grazing = | AG151: Average annual pasture stocking rate (DSE/ha) for year round grazing at standard intensity | AP151: Planfarm and Bankwest (2012) Planfarm Bankwest Benchmarks 2011/2012. Planfarm Pty. Ltd. and BankWest Agribusiness Centre, West Perth and Wembley, Western Australia, 81pp.
B152: Options_3 | C152: ='1.Profile'!Q33 -> BYGUM, Test cotton 1 | AF152: Stocking rates - High Intensity Grazing = | AG152: Average pasture stocking rate (DSE/ha) given high intensity grazing during winter/spring. | AP152: Seymour, M., Kirkegaard, J.A., Peoples, M.B., White, P.F. and French, R.J. (2012) Break-crop benefits to wheat in Western Australia – insights from over three decades of research. Crop and Pasture Science 63:1-16.
AF153: Hay Cut, Silage Cut, Green Manuring = | AG153: Pasture stocking rate (DSE/ha) if cutting hay, cutting silage or green manuring when the
B154: Crops | E154: Winter crop | F154: Sorghum | G154: Irrig Cotton | H154: D/L Cotton | I154: Corn | J154: Beans | AG154: stocking rate is averaged over the same period as year round grazing.
AL155: Reference used for ratios | AP155: Crops after pasture: | AS155: First cereal | AT155: 2nd | AU155: Cotton 1st | AX155: Reference used for ratios
C156: Seeding rate - Standard | D156: kg/ha | E156: 35 | F156: 3 | G156: 13 | H156: 7 | I156: 12 | J156: 12 | AF156: Grazing only | AG156: Sub-clover | AH156: Cadiz | AI156: Volunteer | AK156: Sub-clover | AL156: Cadiz | AM156: Volunteer | AP156: Saving in Nitrogen Fertiliser ($/ha) | AS156: after past. | AT156: consecutiv. Cereal | AU156: year after pasture | AW156: 1st cereal | AX156: 2nd cereal | AY156: 1st Cotton
C157: Seeding rate - High | D157: kg/ha | E157: 50 | F157: 4 | G157: 15 | H157: 10 | I157: 16 | J157: 16 | AF157: Stocking rates - Standard | AQ157: 1 year of pasture | AS157: =$AS$162*AW157/$AW$162 -> 0 | AT157: 0 | AU157: 0 | AW157: 5 | AX157: 0 | AY157: 5 | AZ157: This table in
AF158: 1st yr of pasture | AG158: =$AG$160*(AK158/$AK$160) -> 0 | AH158: 0 | AI158: 0 | AK158: 2 | AL158: 2.5 | AM158: 1.5 | AP158: after Volunteer Pasture | AQ158: 2 consecutive years of pasture | AS158: 0 | AT158: 0 | AU158: 0 | AW158: 10 | AX158: 5 | AY158: 10 | AZ158: !! kg/ha
AF159: 2nd consecutive yr of pasture | AG159: 0 | AH159: 0 | AI159: 0 | AK159: 3.5 | AL159: 4 | AM159: 2 | AQ159: 3 consecutive years of pasture | AS159: 0 | AT159: 0 | AU159: 0 | AW159: 12 | AX159: 5.5 | AY159: 12
AF160: 3rd consecutive yr of pasture | AG160: =O14 -> 0 | AH160: =$AG$160*(AL160/$AK$160) -> 0 | AI160: =$AG$160*(AM160/$AK$160) -> 0 | AK160: 4.5 | AL160: 4.5 | AM160: 2 | AQ160: 1 year of pasture | AS160: 0 | AT160: 0 | AU160: 0 | AW160: 15 | AX160: 5 | AY160: 15
AF161: Stocking rates - High | AP161: after Sub-Clover Pasture | AQ161: 2 consecutive years of pasture | AS161: 0 | AT161: 0 | AU161: 0 | AW161: 25 | AX161: 7 | AY161: 25
B162: Yield benefits | E162: Winter crop | F162: Sorghum | G162: Irrig Cotton | H162: D/L Cotton | I162: Corn | J162: Beans | AF162: 1st yr of pasture | AG162: =$AG$164*(AK162/$AK$164) -> 0 | AH162: 0 | AI162: 0 | AK162: 3 | AL162: 3 | AM162: 2.5 | AQ162: 3 consecutive years of pasture | AS162: ='+Prices'!AJ87 -> 0 | AT162: =$AS$162*AX162/$AW$162 -> 0 | AU162: 0 | AW162: 30 | AX162: 10 | AY162: 30
L163: Barnyard grass control | AF163: 2nd consecutive yr of pasture | AG163: 0 | AH163: 0 | AI163: 0 | AK163: 5 | AL163: 5.5 | AM163: 3 | AQ163: 1 year of pasture | AS163: =$AS$162*AW163/$AW$162 -> 0 | AT163: 0 | AU163: 0 | AW163: 16 | AX163: 5 | AY163: 16
C164: - following a legume | E164: 0.12 | F164: 0.12 | G164: 0.02 | H164: 0.02 | I164: 0.12 | L164: Plants (in crop or at planting): | AF164: 3rd consecutive yr of pasture | AG164: =O15 -> 0 | AH164: =$AG$164*(AL164/$AK$164) -> 0 | AI164: =$AG$164*(AM164/$AK$164) -> 0 | AK164: 6.5 | AL164: 6.5 | AM164: 3 | AP164: after Cadiz Pasture | AQ164: 2 consecutive years of pasture | AS164: =$AS$162*AW164/$AW$162 -> 0 | AT164: 0 | AU164: 0 | AW164: 27 | AX164: 7 | AY164: 27
C165: - due to preceding cover crop | E165: 0.08 | F165: 0.08 | G165: 0.08 | H165: 0.08 | I165: 0.08 | J165: 0.08 | M165: Planting: Min till method | Q165: 0.2 | AQ165: 3 consecutive years of pasture | AS165: =$AS$162*AW165/$AW$162 -> 0 | AT165: 0 | AU165: 0 | AW165: 32 | AX165: 11 | AY165: 32
C166: - for early sowing | E166: 0.08 | F166: 0.08 | G166: 0.08 | H166: 0.08 | I166: 0.08 | J166: 0.08 | M166: Planting: Conv. till method | Q166: 0.95 | AF166: Grazing only - Ryegrass Control | AP166: Yiled benefits in Crop (%) for: | AS166: From +Prices: cf 30 kg/ha: same as the 'saving if planted after legume crop' value | BA166: old Cotton
C167: - for dryland cotton, following two summer fallows | H167: 0.6 | M167: Topping - Cereals | Q167: 0.75 | AF167: Stocking rates - Standard | AQ167: 1 year of pasture | AS167: =$AS$172*AW167/$AW$172 -> 0.048 | AT167: 0.024 | AU167: 0.048 | AW167: 0.08 | AX167: 0.04 | AY167: 0.08 | BA167: 0.08
M168: Topping - Cotton/Legumes | Q168: 0.75 | AF168: 1st yr of pasture | AG168: =$AG$170*(AK168/$AK$170) -> 0 | AH168: 0 | AI168: 0 | AK168: 0.5 | AL168: 0.3 | AM168: 0.4 | AP168: after Volunteer Pasture | AQ168: 2 consecutive years of pasture | AS168: 0.06 | AT168: 0.03 | AU168: 0.06 | AW168: 0.1 | AX168: 0.05 | AY168: 0.1 | BA168: 0.1
B169: Yield penalties | E169: Winter crop | F169: Sorghum | G169: Irrig Cotton | H169: D/L Cotton | I169: Corn | J169: Beans | AF169: 2nd consecutive yr of pasture | AG169: 0 | AH169: 0 | AI169: 0 | AK169: 0.7 | AL169: 0.5 | AM169: 0.6 | AQ169: 3 consecutive years of pasture | AS169: 0.06 | AT169: 0.03 | AU169: 0.06 | AW169: 0.1 | AX169: 0.05 | AY169: 0.1 | BA169: 0.1
AF170: 3rd consecutive yr of pasture | AG170: =P14 -> 0 | AH170: =$AG$170*(AL170/$AK$170) -> 0 | AI170: =$AG$170*(AM170/$AK$170) -> 0 | AK170: 0.8 | AL170: 0.7 | AM170: 0.75 | AQ170: 1 year of pasture | AS170: 0.102 | AT170: 0.048 | AU170: 0 | AW170: 0.17 | AX170: 0.08 | AY170: 0 | BA170: 0.17
C171: - for late sowing | E171: 0.05 | F171: 0.05 | G171: 0.05 | H171: 0.072 | I171: 0.01 | J171: 0.01 | AF171: Stocking rates - High | AP171: after Sub-Clover Pasture | AQ171: 2 consecutive years of pasture | AS171: 0.12 | AT171: 0.06 | AU171: -0.09 | AW171: 0.2 | AX171: 0.1 | AY171: -0.15 | BA171: 0.2
C172: - for crop-topping | E172: 0.05 | F172: 0.05 | G172: 0.05 | H172: 0.072 | I172: 0.05 | J172: 0.05 | L172: Plants (at time of cover crop sprayout): | AF172: 1st yr of pasture | AG172: =$AG$174*(AK172/$AK$174) -> 0 | AH172: 0 | AI172: 0 | AK172: 0.85 | AL172: 0.7 | AM172: 0.85 | AQ172: 3 consecutive years of pasture | AS172: =E20 -> 0.12 | AT172: =$AS$172*AX172/$AW$172 -> 0.06 | AU172: -0.18 | AW172: 0.2 | AX172: 0.1 | AY172: -0.3 | BA172: 0.2
C173: - if following another crop | E173: 0.7 | F173: 0.5 | G173: 0.1 | H173: 0.7 | I173: 0.5 | J173: 0.1 | M173: Sprayout with DK | Q173: 1 | AF173: 2nd consecutive yr of pasture | AG173: 0 | AH173: 0 | AI173: 0 | AK173: 0.9 | AL173: 0.8 | AM173: 0.9 | AQ173: 1 year of pasture | AS173: =$AS$172*AW173/$AW$172 -> 0.102 | AT173: 0.048 | AU173: 0 | AW173: 0.17 | AX173: 0.08 | AY173: 0 | BA173: 0.17
L174: Seeds (harvest weed seed control in grains): | AF174: 3rd consecutive yr of pasture | AG174: =P15 -> 0 | AH174: =$AG$174*(AL174/$AK$174) -> 0 | AI174: =$AG$174*(AM174/$AK$174) -> 0 | AK174: 0.95 | AL174: 0.9 | AM174: 0.95 | AP174: after Cadiz Pasture | AQ174: 2 consecutive years of pasture | AS174: =$AS$172*AW174/$AW$172 -> 0.12 | AT174: 0.06 | AU174: -0.09 | AW174: 0.2 | AX174: 0.1 | AY174: -0.15 | BA174: 0.2
C175: - on crops, from pre- and post-emergent phytotoxic effects | I175: 0.02 | M175: Catch & chaff tramlining | Q175: 0.85 | AQ175: 3 consecutive years of pasture | AS175: =$AS$172*AW175/$AW$172 -> 0.12 | AT175: 0.06 | AU175: -0.18 | AW175: 0.2 | AX175: 0.1 | AY175: -0.3 | BA175: 0.2
M176: Catch & HSD or BDS | Q176: 0.85 | AF176: If Hay Cut, Silage Cut, Green Manuring planned
C177: - on beans if break between beans is only 1 year | I177: 0 | M177: Catch & burn: chaff cart dumps | Q177: 0.85 | AF177: Stocking rates - Standard | AP177: Seymour, M., Kirkegaard, J.A., Peoples, M.B., White, P.F. and French, R.J. (2012) Break-crop benefits to wheat in Western Australia – insights from over three decades of research. Crop and Pasture Science 63:1-16.
M178: Catch & burn: narrow windrows | Q178: 0.85 | AF178: 1st yr of pasture | AG178: =$AG$180*(AK178/$AK$180) -> 0 | AH178: 0 | AI178: 0 | AK178: 1.5 | AL178: 1.5 | AM178: 0.5
C179: - on dryland Cotton if preceding summer is not fallow | I179: 0.4 | M179: Whole-paddock burning (residues) | Q179: 0.6 | AF179: 2nd consecutive yr of pasture | AG179: 0 | AH179: 0 | AI179: 0 | AK179: 3 | AL179: 2 | AM179: 1
AF180: 3rd consecutive yr of pasture | AG180: =O16 -> 0 | AH180: =$AG$180*(AL180/$AK$180) -> 0 | AI180: =$AG$180*(AM180/$AK$180) -> 0 | AK180: 4 | AL180: 2 | AM180: 1 | AT180: A. Diggle
AF181: Hay/Silage Production (t/ha) with Standard Grazing | AP181: Competition factor of pasture on ryegrass | AS181: 300 | AT181: 300
AF182: 1st yr of pasture | AG182: =$AG$184*(AK182/$AK$184) -> 0 | AH182: 0 | AI182: 0 | AK182: 0.5 | AL182: 3 | AM182: 0.5 | AP182: Do not change without good advice
AF183: 2nd consecutive yr of pasture | AG183: 0 | AH183: 0 | AI183: 0 | AK183: 0.7 | AL183: 2.5 | AM183: 0.3 | AP183: This figure equals the wheat competition factor on ryegrass * standard wheat density.
AF184: 3rd consecutive yr of pasture | AG184: =Q16 -> 0 | AH184: =$AG$184*(AL184/$AK$184) -> 0 | AI184: =$AG$184*(AM184/$AK$184) -> 0 | AK184: 1 | AL184: 1.5 | AM184: 0.1 | AP184: We assume that all three pastures are equally competitive and have a similar competitive
AF185: Stocking rates - High | AP185: effect on ryegrass as a wheat crop.
AF186: 1st yr of pasture | AG186: =AG178*((AG162/AG158)+1)/2 -> 
B187: Options_4 | C187: ='1.Profile'!Q34 -> BYGUM, Test cotton 1 | AF187: 2nd consecutive yr of pasture
AF188: 3rd consecutive yr of pasture
B189: Crops | E189: Winter crop | F189: Sorghum | G189: Irrig Cotton | H189: D/L Cotton | I189: Corn | J189: Beans | AF189: Hay/Silage Production (t/ha) with High intensity grazing
AF190: 1st yr of pasture | AG190: =AG182/2 -> 0 | AH190: =AH182/2 -> 0 | AI190: =AI182/2 -> 0
C191: Seeding rate - Standard | D191: kg/ha | E191: 35 | F191: 3 | G191: 13 | H191: 7 | I191: 12 | J191: 12 | AF191: 2nd consecutive yr of pasture | AG191: =AG183/2 -> 0 | AH191: 0 | AI191: 0
C192: Seeding rate - High | D192: kg/ha | E192: 50 | F192: 4 | G192: 15 | H192: 10 | I192: 16 | J192: 16 | AF192: 3rd consecutive yr of pasture | AG192: 0 | AH192: 0 | AI192: 0
AF194: If Hay Cut /Silage Cut only
AF195: Hay/Silage Production (t/ha) WITHOUT grazing
AF196: 1st yr of pasture | AG196: =$AG$198*(AK196/$AK$198) -> 0 | AH196: 0 | AI196: 0 | AK196: 0.8 | AL196: 4.8 | AM196: 1
B197: Yield benefits | E197: Winter crop | F197: Sorghum | G197: Irrig Cotton | H197: D/L Cotton | I197: Corn | J197: Beans | AF197: 2nd consecutive yr of pasture | AG197: 0 | AH197: 0 | AI197: 0 | AK197: 1.5 | AL197: 4 | AM197: 0.8
L198: Barnyard grass control | AF198: 3rd consecutive yr of pasture | AG198: =Q17 -> 0 | AH198: =$AG$198*(AL198/$AK$198) -> 0 | AI198: =$AG$198*(AM198/$AK$198) -> 0 | AK198: 2 | AL198: 2.4 | AM198: 0.5
C199: - following a legume | E199: 0.12 | F199: 0.12 | G199: 0.02 | H199: 0.02 | I199: 0.12 | L199: Plants (in crop or at planting): | AO199: Note: By default (see 'Calc'), sowing of a pasture occurs:
C200: - due to preceding cover crop | E200: 0.08 | F200: 0.08 | G200: 0.08 | H200: 0.08 | I200: 0.08 | J200: 0.08 | M200: Planting: Min till method | Q200: 0.2 | AF200: Production benefit if nothing done the previous year | AG200: 0.2 | AP200: Cadiz = only in 1st year of a run of cadiz
C201: - for early sowing | E201: 0.08 | F201: 0.08 | G201: 0.08 | H201: 0.08 | I201: 0.08 | J201: 0.08 | M201: Planting: Conv. till method | Q201: 0.95 | AP201: Clover = only if no clover in past 3 years
C202: - for dryland cotton, following two summer fallows | H202: 0.6 | M202: Topping - Cereals | Q202: 0.75 | AP202: Volunteer = never.
M203: Topping - Cotton/Legumes | Q203: 0.75
B204: Yield penalties | E204: Winter crop | F204: Sorghum | G204: Irrig Cotton | H204: D/L Cotton | I204: Corn | J204: Beans
AK205: Frozen, original references
C206: - for late sowing | E206: 0.05 | F206: 0.05 | G206: 0.05 | H206: 0.072 | I206: 0.01 | J206: 0.01 | AL206: Reference used for ratios
C207: - for crop-topping | E207: 0.05 | F207: 0.05 | G207: 0.05 | H207: 0.072 | I207: 0.05 | J207: 0.05 | L207: Plants (at time of cover crop sprayout): | AK207: Sub-clover | AL207: Cadiz | AM207: Volunteer
C208: - if following another crop | E208: 0.7 | F208: 0.5 | G208: 0.1 | H208: 0.7 | I208: 0.5 | J208: 0.1 | M208: Sprayout with DK | Q208: 1
L209: Seeds (harvest weed seed control in grains): | AK209: 2.5 | AL209: 3 | AM209: 1.5
C210: - on crops, from pre- and post-emergent phytotoxic effects | I210: 0.02 | M210: Catch & chaff tramlining | Q210: 0.85 | AK210: 4 | AL210: 5 | AM210: 2.4
M211: Catch & HSD or BDS | Q211: 0.85 | AK211: 5 | AL211: 6 | AM211: 2.4
C212: - on beans if break between beans is only 1 year | I212: 0 | M212: Catch & burn: chaff cart dumps | Q212: 0.85
M213: Catch & burn: narrow windrows | Q213: 0.85 | AK213: 4 | AL213: 4 | AM213: 3
C214: - on dryland Cotton if preceding summer is not fallow | I214: 0.4 | M214: Whole-paddock burning (residues) | Q214: 0.6 | AK214: 5 | AL214: 6 | AM214: 3
AK215: 6 | AL215: 7 | AM215: 3
AK219: 0.5 | AL219: 0.3 | AM219: 0.4
AK220: 0.7 | AL220: 0.5 | AM220: 0.4
AK221: 0.8 | AL221: 0.7 | AM221: 0.4
AK223: 0.87 | AL223: 0.82 | AM223: 0.87
AK224: 0.92 | AL224: 0.85 | AM224: 0.92
AK225: 0.95 | AL225: 0.9 | AM225: 0.95
AK229: 1.5 | AL229: 1.5 | AM229: 0.5
AK230: 3 | AL230: 2.5 | AM230: 1.4
AK231: 4 | AL231: 3 | AM231: 1.4
AK233: 0.5 | AL233: 3 | AM233: 0.5
AK234: 0.6 | AL234: 2.5 | AM234: 0.25
AK235: 0.75 | AL235: 1.5 | AM235: 0.125

Sheet 2.Strategy
B1: 2. BUILD Your Strategy | J1: ='1.Profile'!Q28&", "&'1.Profile'!Q27 -> BYGUM, GR
C3: Choose enterprise | D3: Sum 1 | E3: Wint 1 | F3: Sum 2 | G3: Wint 2 | H3: Sum 3 | I3: Wint 3 | J3: Sum 4 | K3: Wint 4 | L3: Sum 5 | M3: Wint 5
C4: and control options: | D4: Irrig Cotton | E4: Winter fallow | F4: Irrig Cotton | G4: Winter fallow | H4: Irrig Cotton | I4: Winter fallow | J4: Irrig Cotton | K4: Winter fallow | L4: Irrig Cotton | M4: Winter fallow | O4: Save & Load | AV4: Excluded
A5: 13 | C5: Time of sowing | D5: Average | E5: Average | F5: Average | G5: Average | H5: Average | I5: V Early | J5: Average | K5: Average | L5: Average | M5: Average | O5: Strategy name: | AV5: Winter fallowSummer fallow
A6: 10 | C6: Soil preparation | D6: Cultivate | F6: Cultivate | G6: Tickle | H6: Cultivate | J6: Cultivate | L6: Tickle | O6: irrigated cotton
A7: 1 | C7: Knock-down / Double-knock | D7: Glyphosate | E7: Paraquat | F7: Glyphosate | G7: Glyphosate | H7: Glyphosate | J7: Glyphosate | K7: Paraquat | L7: Glyphosate | M7: Tillage
A8: 4 | C8: Early season residual | G8: Trifluralin | H8: Pendimethali | I8: s-Metolachlo | M8: Trifluralin | O8: 1 in 1 out
A9: 11 | C9: Sowing method | D9: Tillage | E9: No-till | F9: No-till | G9: No-till | H9: No-till | I9: No-till | K9: No-till | L9: No-till | M9: No-till | O9: Mixed summer rotation | AV9: Winter fallowSummer fallow
A10: 9 | C10: Crop seeding rate | D10: Standard | E10: Standard | F10: Standard | G10: Standard | H10: Standard | I10: Standard | J10: Standard | K10: Standard | L10: Standard | M10: Standard | O10: 1 in 1 out CC | AV10: Winter fallowSummer fallow
A11: 15 | C11: Weed control 1 | D11: Glyphosate | F11: Glyphosate | H11: Glyphosate | K11: Group A | L11: Glyphosate | M11: Glyphosate | O11: 2+2 resistant
A12: 16 | C12: Weed control 2 | H12: Glyphosate | J12: Glyphosate | L12: Inter-row ti | O12: irrigated cotton
A13: 17 | C13: Weed control 3 | D13: Glyphosate | F13: Glyphosate | H13: Inter-row ti | L13: Glyphosate | O13: 2 in 5 test
A14: 23 | C14: Layby weed control 4 | D14: Pendimetha | E14: Diuron | O14: Default | AV14: =D62&E62&F62&G62&H62&I62 -> Winter cropSorghumD/L CottonIrrig CottonCornBeans
A15: 35 | C15: Weed control 5 | E15: Glyphosate | F15: Inter-row ti | L15: Inter-row ti
A16: 25 | C16: Weed control 6 | D16: Glyphosate | H16: Glyphosate | J16: Glyphosate | P16: =IF(C47="Err 1",E53,IF(COUNTIF(D47:M47,"Err 4")>0,E48,IF(COUNTIF(D47:M47,"Err NS")>0,E49,IF(COUNTIF(D47:M47,"Err E")>0,E50,IF(COUNTIF(D47:M47,"Err H")>0,E51,IF(COUNTIF(D47:M47,"Err 3")>0,E52,"")))))) ->  | AV16: =K62 -> Winter fallow
A17: 31 | C17: Harvest options - Grains | F17: Tram. | I17: Narr+B. | P17: =IF(C47="Err 1",H53,IF(COUNTIF(D47:M47,"Err 4")>0,H48,IF(COUNTIF(D47:M47,"Err NS")>0,H49,IF(COUNTIF(D47:M47,"Err E")>0,H50,IF(COUNTIF(D47:M47,"Err H")>0,H51,IF(COUNTIF(D47:M47,"Err 3")>0,H52,"")))))) -> 
A18: 35 | C18: Harvest options - Other crops | D18: Defol Drop | F18: Defol Drop | H18: Defol Drop | J18: Defol Drop | L18: Defol Drop | P18: =IF(C47="Err 1",J53,IF(COUNTIF(D47:M47,"Err 4")>0,J48,IF(COUNTIF(D47:M47,"Err NS")>0,J49,IF(COUNTIF(D47:M47,"Err E")>0,J50,IF(COUNTIF(D47:M47,"Err H")>0,J51,IF(COUNTIF(D47:M47,"Err 3")>0,J52,"")))))) ->  | AV18: D/L CottonIrrig CottonSummer fallowWinter fallow
C19: Mature BYG setting seed: | D19: =IF('Bio results'!D$8>$O$67,">"&$O$67,'Bio results'!D$8) -> 0.340953204 | E19: 0 | F19: =IF('Bio results'!F$8>$O$67,">"&$O$67,'Bio results'!F$8) -> 0.7326278595 | G19: 0 | H19: =IF('Bio results'!H$8>$O$67,">"&$O$67,'Bio results'!H$8) -> 2.823434071 | I19: 0 | J19: =IF('Bio results'!J$8>$O$67,">"&$O$67,'Bio results'!J$8) -> 18.7630353 | K19: 0 | L19: =IF('Bio results'!L$8>$O$67,">"&$O$67,'Bio results'!L$8) -> 18.38834806 | M19: 0
C20: Seeds in soil next spring (/m2): | D20: =IF('Bio results'!D$22>$O$68,">"&$O$68,'Bio results'!D$22) -> 636.9305305 | E20: 0 | F20: =IF('Bio results'!F$22>$O$68,">"&$O$68,'Bio results'!F$22) -> 1268.954835 | G20: 0 | H20: =IF('Bio results'!H$22>$O$68,">"&$O$68,'Bio results'!H$22) -> 3490.037717 | I20: 0 | J20: =IF('Bio results'!J$22>$O$68,">"&$O$68,'Bio results'!J$22) -> 7314.858752 | K20: 0 | L20: =IF('Bio results'!L$22>$O$68,">"&$O$68,'Bio results'!L$22) -> 7516.353705 | M20: 0
C21: Gross margin ($/ha) | D21: ='Eco results'!E51 -> 5959.43679 | E21: ='Eco results'!F51 -> -39 | F21: ='Eco results'!G51 -> 6021.803288 | G21: ='Eco results'!H51 -> -69.8 | H21: ='Eco results'!I51 -> 5712.98022 | I21: ='Eco results'!J51 -> -46.5 | J21: ='Eco results'!K51 -> 5555.563032 | K21: ='Eco results'!L51 -> -31.5 | L21: ='Eco results'!M51 -> 4093.84737 | M21: ='Eco results'!N51 -> -62.5
D23: ='Eco results'!E61 -> 5226.3234
D24: /ha /year "on average"
AU25: FALSE
AU26: 1
O28: =IF(AND('Eco results'!Q5='Eco results'!Q23,'Eco results'!P5='Eco results'!P23),"Current","") -> Current | P28: =IF('3. Out Eco'!C10=0,"",'3. Out Eco'!C10) -> 5226.3234
O29: ='3. Out Eco'!F10 -> BYGUM, GR - irrigated cotton
O35: =IF(AND('Eco results'!Q5='Eco results'!Q41,'Eco results'!P5='Eco results'!P41),"Current","") -> Current | P35: =IF('3. Out Eco'!C25=0,"",'3. Out Eco'!C25) -> 5226.3234
O36: ='3. Out Eco'!F25 -> BYGUM, GR - irrigated cotton
AR37: 0
P38: Auto
AR39: =P_2S -> TRUE
C45: ERROR
C46: Error handling | D46: Yr 1 | E46: Yr 2 | F46: Yr 3 | G46: Yr 4 | H46: Yr 5 | I46: Yr 6 | J46: Yr 7 | K46: Yr 8 | L46: Yr 9 | M46: Yr 10
C47: =IF(OR(COUNTIF(D4:M4,E62)>7,COUNTIF(D4:M4,F62)>7,COUNTIF(D4:M4,G62)>7,COUNTIF(D4:M4,D62)>7),"Err 1","OK") -> OK | D47: =IF(Calcs!P44>5,"Err 3",IF(Calcs!P45>0,"Err 4",IF((ISERROR(FIND(D7,$D$54,1))=TRUE),"Err NS",IF((ISERROR(FIND(D8,$D$56,1))=TRUE),"Err E",IF(OR(ISERROR(FIND(D11,$D$58,1))=TRUE,ISERROR(FIND(D12,$D$58,1))=TRUE,ISERROR(FIND(D13,$D$58,1))=TRUE),"Err H","OK"))))) -> OK | E47: =IF(Calcs!Q44>5,"Err 3",IF(Calcs!Q45>0,"Err 4",IF((ISERROR(FIND(E7,$D$54,1))=TRUE),"Err NS",IF((ISERROR(FIND(E8,$D$56,1))=TRUE),"Err E",IF(OR(ISERROR(FIND(E11,$D$58,1))=TRUE,ISERROR(FIND(E12,$D$58,1))=TRUE,ISERROR(FIND(E13,$D$58,1))=TRUE),"Err H","OK"))))) -> OK | F47: =IF(Calcs!R44>5,"Err 3",IF(Calcs!R45>0,"Err 4",IF((ISERROR(FIND(F7,$D$54,1))=TRUE),"Err NS",IF((ISERROR(FIND(F8,$D$56,1))=TRUE),"Err E",IF(OR(ISERROR(FIND(F11,$D$58,1))=TRUE,ISERROR(FIND(F12,$D$58,1))=TRUE,ISERROR(FIND(F13,$D$58,1))=TRUE),"Err H","OK"))))) -> OK | G47: =IF(Calcs!S44>5,"Err 3",IF(Calcs!S45>0,"Err 4",IF((ISERROR(FIND(G7,$D$54,1))=TRUE),"Err NS",IF((ISERROR(FIND(G8,$D$56,1))=TRUE),"Err E",IF(OR(ISERROR(FIND(G11,$D$58,1))=TRUE,ISERROR(FIND(G12,$D$58,1))=TRUE,ISERROR(FIND(G13,$D$58,1))=TRUE),"Err H","OK"))))) -> OK | H47: =IF(Calcs!T44>5,"Err 3",IF(Calcs!T45>0,"Err 4",IF((ISERROR(FIND(H7,$D$54,1))=TRUE),"Err NS",IF((ISERROR(FIND(H8,$D$56,1))=TRUE),"Err E",IF(OR(ISERROR(FIND(H11,$D$58,1))=TRUE,ISERROR(FIND(H12,$D$58,1))=TRUE,ISERROR(FIND(H13,$D$58,1))=TRUE),"Err H","OK"))))) -> OK | I47: =IF(Calcs!U44>5,"Err 3",IF(Calcs!U45>0,"Err 4",IF((ISERROR(FIND(I7,$D$54,1))=TRUE),"Err NS",IF((ISERROR(FIND(I8,$D$56,1))=TRUE),"Err E",IF(OR(ISERROR(FIND(I11,$D$58,1))=TRUE,ISERROR(FIND(I12,$D$58,1))=TRUE,ISERROR(FIND(I13,$D$58,1))=TRUE),"Err H","OK"))))) -> OK | J47: =IF(Calcs!V44>5,"Err 3",IF(Calcs!V45>0,"Err 4",IF((ISERROR(FIND(J7,$D$54,1))=TRUE),"Err NS",IF((ISERROR(FIND(J8,$D$56,1))=TRUE),"Err E",IF(OR(ISERROR(FIND(J11,$D$58,1))=TRUE,ISERROR(FIND(J12,$D$58,1))=TRUE,ISERROR(FIND(J13,$D$58,1))=TRUE),"Err H","OK"))))) -> OK | K47: =IF(Calcs!W44>5,"Err 3",IF(Calcs!W45>0,"Err 4",IF((ISERROR(FIND(K7,$D$54,1))=TRUE),"Err NS",IF((ISERROR(FIND(K8,$D$56,1))=TRUE),"Err E",IF(OR(ISERROR(FIND(K11,$D$58,1))=TRUE,ISERROR(FIND(K12,$D$58,1))=TRUE,ISERROR(FIND(K13,$D$58,1))=TRUE),"Err H","OK"))))) -> OK | L47: =IF(Calcs!X44>5,"Err 3",IF(Calcs!X45>0,"Err 4",IF((ISERROR(FIND(L7,$D$54,1))=TRUE),"Err NS",IF((ISERROR(FIND(L8,$D$56,1))=TRUE),"Err E",IF(OR(ISERROR(FIND(L11,$D$58,1))=TRUE,ISERROR(FIND(L12,$D$58,1))=TRUE,ISERROR(FIND(L13,$D$58,1))=TRUE),"Err H","OK"))))) -> OK | M47: =IF(Calcs!Y44>5,"Err 3",IF(Calcs!Y45>0,"Err 4",IF((ISERROR(FIND(M7,$D$54,1))=TRUE),"Err NS",IF((ISERROR(FIND(M8,$D$56,1))=TRUE),"Err E",IF(OR(ISERROR(FIND(M11,$D$58,1))=TRUE,ISERROR(FIND(M12,$D$58,1))=TRUE,ISERROR(FIND(M13,$D$58,1))=TRUE),"Err H","OK"))))) -> OK
D48: 4 | E48: Error! Two consecutive years | H48: of Cotton or legumes | J48: (high disease risk) | L48: Error! Two consecutive years of Cotton or legumes (high disease risk)
D49: NS | E49: Error! A non-selective | H49: herbicide has not been | J49: updated | L49: Error! A non-selective herbicide has not been updated
D50: E | E50: Error! A pre-emergent | H50: herbicide has not been | J50: updated | L50: Error! A pre-emergent herbicide has not been updated
C51: Error messages | D51: H | E51: Error! A post-emergent | H51: herbicide has not been | J51: updated | L51: Error! A post-emergent herbicide has not been updated
D52: 3 | E52: Error! Too many Spring | H52: and/or Harvest options | L52: Error! Too many Spring and/or Harvest options
D53: 1 | E53: Error! Please set a rotation | H53: which reflects your | J53: long-term yield averages | L53: Error! Please set a rotation which reflects your
D54: =CONCATENATE(P75,P76,P77,P78,P79) -> GlyphosateParaquatGroup ATillageGlyphosate/P
D55: =IF((ISERROR(FIND(D7,$D$54,1))=TRUE),"Err NS","Found it") -> Found it | E55: Found it | F55: Found it | G55: Found it | H55: Found it | I55: Found it | J55: Found it | K55: Found it | L55: Found it | M55: Found it
C56: Formulas for Err NS, E and H | D56: =CONCATENATE('2.Strategy'!P85,'2.Strategy'!P86,'2.Strategy'!P87,'2.Strategy'!P88,'2.Strategy'!P89) -> TrifluralinDiuronPendimethalis-MetolachloFluometuron+
D57: =IF((ISERROR(FIND(D8,$D$56,1))=TRUE),"Err E","Found it") -> Found it | E57: Found it | F57: Found it | G57: Found it | H57: Found it | I57: Found it | J57: Found it | K57: Found it | L57: Found it | M57: Found it
D58: =CONCATENATE('2.Strategy'!P93,'2.Strategy'!P94,'2.Strategy'!P95,'2.Strategy'!P96,'2.Strategy'!P97) -> GlyphosateGlufosinateParaquat (shInter-row tiGroup A
D59: =IF(OR(ISERROR(FIND(D11,$D$58,1))=TRUE,ISERROR(FIND(D12,$D$58,1))=TRUE,ISERROR(FIND(D13,$D$58,1))=TRUE),"Err H","Found it") -> Found it | E59: =IF(OR(ISERROR(FIND(E11,$D$58,1))=TRUE,ISERROR(FIND(E12,$D$58,1))=TRUE,ISERROR(FIND(E13,$D$58,1))=TRUE),"Nope","Found it") -> Found it | F59: Found it | G59: Found it | H59: Found it | I59: Found it | J59: Found it | K59: Found it | L59: Found it | M59: Found it
C61: VARIOUS
C62: Choice of enterprises | D62: Winter crop | E62: Sorghum | F62: D/L Cotton | G62: Irrig Cotton | H62: Corn | I62: Beans | J62: Cover crop | K62: Winter fallow | L62: Summer fallow
C63: Enterprise+year for graphs | D63: =VLOOKUP(Calcs!U251,Calcs!$Q256:$S303,2)&" 1" -> Irrig cotton 1 | E63: =VLOOKUP(Calcs!V251,Calcs!$Q256:$S303,2)&" 2" -> Winter fallow 2 | F63: =VLOOKUP(Calcs!W251,Calcs!$Q256:$S303,2)&" 3" -> Irrig cotton 3 | G63: =VLOOKUP(Calcs!X251,Calcs!$Q256:$S303,2)&" 4" -> Winter fallow 4 | H63: =VLOOKUP(Calcs!Y251,Calcs!$Q256:$S303,2)&" 5" -> Irrig cotton 5 | I63: =VLOOKUP(Calcs!Z251,Calcs!$Q256:$S303,2)&" 6" -> Winter fallow 6 | J63: =VLOOKUP(Calcs!AA251,Calcs!$Q256:$S303,2)&" 7" -> Irrig cotton 7 | K63: =VLOOKUP(Calcs!AB251,Calcs!$Q256:$S303,2)&" 8" -> Winter fallow 8 | L63: =VLOOKUP(Calcs!AC251,Calcs!$Q256:$S303,2)&" 9" -> Irrig cotton 9 | M63: =VLOOKUP(Calcs!AD251,Calcs!$Q256:$S303,2)&" 10" -> Winter fallow 10
C64: Earliest weed control available? (for conditional formatting) | D64: =IF(D65="no","yes",IF(OR(D5="",D5=$D$77,D5=$D$78),"no","yes")) -> yes | E64: yes | F64: yes | G64: yes | H64: yes | I64: yes | J64: yes | K64: yes | L64: yes | M64: yes
C65: Need to plant? (for conditional formatting) | D65: =IF(Calcs!U246<8,"yes","no") -> yes | E65: =IF(Calcs!V246<8,"yes","no") -> no | F65: =IF(Calcs!W246<8,"yes","no") -> yes | G65: =IF(Calcs!X246<8,"yes","no") -> no | H65: =IF(Calcs!Y246<8,"yes","no") -> yes | I65: =IF(Calcs!Z246<8,"yes","no") -> no | J65: =IF(Calcs!AA246<8,"yes","no") -> yes | K65: =IF(Calcs!AB246<8,"yes","no") -> no | L65: =IF(Calcs!AC246<8,"yes","no") -> yes | M65: =IF(Calcs!AD246<8,"yes","no") -> no | O65: Critical densities
C66: BYG setting seed, March. (per m2) | D66: ='Bio results'!D8 -> 0.340953204 | E66: ='Bio results'!E8 -> 0 | F66: ='Bio results'!F8 -> 0.7326278595 | G66: ='Bio results'!G8 -> 0 | H66: ='Bio results'!H8 -> 2.823434071 | I66: ='Bio results'!I8 -> 0 | J66: ='Bio results'!J8 -> 18.7630353 | K66: ='Bio results'!K8 -> 0 | L66: ='Bio results'!L8 -> 18.38834806 | M66: ='Bio results'!M8 -> 0 | O66: for warnings
C67: BYG seeds in soil next Sept (per m2) | D67: ='Bio results'!D$22 -> 636.9305305 | E67: ='Bio results'!E$22 -> 0 | F67: ='Bio results'!F$22 -> 1268.954835 | G67: ='Bio results'!G$22 -> 0 | H67: ='Bio results'!H$22 -> 3490.037717 | I67: ='Bio results'!I$22 -> 0 | J67: ='Bio results'!J$22 -> 7314.858752 | K67: ='Bio results'!K$22 -> 0 | L67: ='Bio results'!L$22 -> 7516.353705 | M67: ='Bio results'!M$22 -> 0 | O67: 500
O68: 20000
C69: CATEGORIES
C70: Soil preparation | F70: None
D71: Tickle | F71: Tickle - shallow cultivation
D72: Cultivate | F72: Standard cultivation - no stimulation, kills 99% of weeds and some seeds.
P73: KD / DK
C74: Planting system | D74: No-till | F74: No till = any style of min till planter. Default
D75: Tillage | F75: Full-disturbance cultivation at planting. | P75: =LEFT('1.Profile'!C15,12) -> Glyphosate
P76: =LEFT('1.Profile'!C16,12) -> Paraquat
C77: Time of sowing | D77: V Early | F77: Competition boost. No opportunity to pre-plant knockdown (no emergence yet) | P77: =LEFT('1.Profile'!C17,12) -> Group A
D78: Early | F78: Small competition boost. Can do one knockdown. | P78: =LEFT('1.Profile'!C18,12) -> Tillage
D79: Average | F79: formerly: 'Wait 10 days'. Default. | P79: =LEFT('1.Profile'!C19,12) -> Glyphosate/P
D80: Late | F80: formerly: 'Wait 20 days'. Yield penalty from possibly not finishing.
C82: Crop seeding rate | D82: Standard | F82: Default
D83: High | F83: Use high crop seeding rate | P83: Pre-E
D85: Graz1 | F85: (Grazing options removed from here) | P85: =LEFT('1.Profile'!C21,12) -> Trifluralin
D86: Graz2 | P86: =LEFT('1.Profile'!C22,12) -> Diuron
D87: Graz3 | P87: =LEFT('1.Profile'!C23,12) -> Pendimethali
P88: =LEFT('1.Profile'!C24,12) -> s-Metolachlo
C89: Layby options | F89: none | P89: =LEFT('1.Profile'!C25,12) -> Fluometuron+
C90: in chrono order | D90: =LEFT('1.Profile'!C33,10) -> Diuron
D91: =LEFT('1.Profile'!C34,10) -> Pendimetha | P91: Post-E | Q91: <-- Weed Control 1-3
D92: Topping | F92: Crop/pasture topping (using an average of paraquat and glyphosate for price)
F93: add spring option here | P93: =LEFT('1.Profile'!C27,12) -> Glyphosate
P94: =LEFT('1.Profile'!C28,12) -> Glufosinate
C95: Late season options - 1 | F95: These appear under 'Weed control 5' -- could add some specific late-season options to | P95: =LEFT('1.Profile'!C29,12) -> Paraquat (sh
D96: =LEFT('1.Profile'!C27,12) -> Glyphosate | F96: the user-defined list here | P96: =LEFT('1.Profile'!C30,12) -> Inter-row ti
D97: =LEFT('1.Profile'!C28,12) -> Glufosinate | P97: =LEFT('1.Profile'!C31,12) -> Group A
D98: =LEFT('1.Profile'!C29,12) -> Paraquat (sh
D99: =LEFT('1.Profile'!C30,12) -> Inter-row ti
D100: =LEFT('1.Profile'!C31,12) -> Group A
C102: Late season options - 2 | F102: These appear under 'Weed control 6' -- could add some specific late-season options to
D103: =LEFT('1.Profile'!C27,12) -> Glyphosate | F103: the user-defined list here
D104: =LEFT('1.Profile'!C28,12) -> Glufosinate
D105: =LEFT('1.Profile'!C29,12) -> Paraquat (sh
D106: =LEFT('1.Profile'!C30,12) -> Inter-row ti
D107: =LEFT('1.Profile'!C31,12) -> Group A
C109: Harvest options - grains | F109: No harvest weed seed management, no burning
C110: applies to grain crops only | D110: Cart+B. | F110: Chaff cart system, burning dumps
D111: Narr+B. | F111: Narrow windrows burning system
D112: HSD | F112: HSD - Harrington seed destructor
D113: Tram. | F113: Chaff-tramlining
D114: BDS+E. | F114: BDS - Bale direct system, exporting bales
F115: add harvest option here
C117: Harvest options - others
C118: applies to all | D118: Burn | F118: Burn whole paddock (crop stubble or pasture residues)
D119: =LEFT('1.Profile'!C36,10) -> Defol glyp | F119: B1 (Harvest)
D120: =LEFT('1.Profile'!C37,10) -> Defol Drop | F120: B2 (Harvest)
R124: Note: careful with deleting/inserting lines, could stuff up the saving/loading macros
C125: Strategy_0 | D125: D/L Cotton | E125: Winter fallow | F125: Summer fallow | G125: Winter fallow | H125: D/L Cotton | I125: Winter fallow | J125: Cover crop | K125: Winter fallow | L125: D/L Cotton | M125: Winter fallow
D126: V Early | E126: Average | F126: Average | G126: Average | H126: Average | I126: V Early | J126: V Early | K126: Average | L126: Average | M126: Average | P126: no volunteer over east
C127: Standard | D127: Tickle | E127: Cultivate | F127: Tickle | G127: Tickle | J127: Tickle
C128: /current practice | D128: Glyphosate | E128: Paraquat | F128: Group A | G128: Glyphosate | H128: Glyphosate/P | J128: Glyphosate | K128: Paraquat | L128: Glyphosate/P | M128: Tillage
D129: Diuron | F129: Trifluralin | G129: Trifluralin | I129: s-Metolachlo | J129: Trifluralin | M129: Trifluralin
D130: Tillage | E130: No-till | F130: No-till | G130: No-till | H130: No-till | I130: No-till | K130: No-till | L130: No-till | M130: No-till
D131: Standard | E131: Standard | F131: Standard | G131: Standard | H131: Standard | I131: Standard | K131: Standard | L131: Standard | M131: Standard
D132: Group A | E132: Glufosinate | F132: Group A | H132: Group A | I132: Group A | K132: Group A | L132: Glyphosate | M132: Glyphosate
E133: Glufosinate | F133: Glyphosate | L133: Glyphosate
D134: Glyphosate | E134: Glufosinate | F134: Paraquat (sh | L134: Inter-row ti
E135: Diuron | F135: Pendimetha | G135: Topping | I135: Topping | J135: Pendimetha | L135: Pendimetha
D136: Glufosinate | E136: Glyphosate | F136: Paraquat (sh
D137: Group A | E137: Inter-row ti | F137: Group A | J137: Paraquat (sh
F138: Tram. | I138: Narr+B.
D139: Defol Drop | L139: Defol Drop
C142: Strategy_1 | D142: D/L Cotton | E142: Winter fallow | F142: Summer fallow | G142: Winter fallow | H142: D/L Cotton | I142: Winter fallow | J142: Summer fallow | K142: Winter fallow | L142: D/L Cotton | M142: Winter fallow
D143: Average | E143: Average | F143: Average | G143: Average | H143: Average | I143: V Early | J143: V Early | K143: Average | L143: Average | M143: Average
C144: 1 in 1 out | G144: Tickle
D145: Glyphosate | E145: Paraquat | F145: Glyphosate | G145: Glyphosate | H145: Glyphosate | J145: Glyphosate | K145: Paraquat | L145: Glyphosate | M145: Tillage
F146: Trifluralin | G146: Trifluralin | H146: s-Metolachlo | I146: s-Metolachlo | J146: Trifluralin | M146: Trifluralin
D147: No-till | E147: No-till | F147: No-till | G147: No-till | H147: No-till | I147: No-till | K147: No-till | L147: No-till | M147: No-till
D148: Standard | E148: Standard | F148: Standard | G148: Standard | H148: Standard | I148: Standard | K148: Standard | L148: Standard | M148: Standard
D149: Glyphosate | F149: Glyphosate | H149: Glyphosate | K149: Group A | L149: Glyphosate | M149: Glyphosate
H150: Glyphosate | J150: Glyphosate | L150: Inter-row ti
D151: Glyphosate | F151: Glyphosate | L151: Glyphosate
E152: Diuron | H152: Diuron
E153: Glyphosate | L153: Inter-row ti
D154: Glyphosate | H154: Glyphosate | J154: Glyphosate
F155: Tram. | I155: Narr+B.
D156: Defol Drop | H156: Defol Drop | L156: Defol Drop
C159: Strategy_2 | D159: D/L Cotton | E159: Winter fallow | F159: Sorghum | G159: Winter fallow | H159: Beans | I159: Winter fallow | J159: Cover crop | K159: Winter fallow | L159: D/L Cotton | M159: Winter fallow
D160: V Early | E160: Average | F160: Average | G160: Average | H160: Average | I160: V Early | J160: V Early | K160: Average | L160: Average | M160: Average
C161: Mixed summer rotation | D161: Tickle | E161: Cultivate | F161: Tickle | G161: Tickle | J161: Tickle
D162: Glyphosate | E162: Paraquat | F162: Group A | G162: Glyphosate | H162: Glyphosate/P | J162: Glyphosate | K162: Paraquat | L162: Glyphosate/P | M162: Tillage
D163: Diuron | G163: Trifluralin | I163: s-Metolachlo | J163: Trifluralin | M163: Trifluralin
D164: Tillage | E164: No-till | F164: No-till | G164: No-till | H164: No-till | I164: No-till | K164: No-till | L164: No-till | M164: No-till
D165: Standard | E165: Standard | F165: Standard | G165: Standard | H165: Standard | I165: Standard | K165: Standard | L165: Standard | M165: Standard
D166: Group A | E166: Glufosinate | H166: Group A | I166: Group A | K166: Group A | L166: Glyphosate | M166: Glyphosate
E167: Glufosinate | F167: Glyphosate | L167: Glyphosate
D168: Glyphosate | E168: Glufosinate | L168: Inter-row ti
E169: Diuron | G169: Topping | I169: Topping | J169: Pendimetha | L169: Pendimetha
D170: Glufosinate | E170: Glyphosate | F170: Paraquat (sh
D171: Group A | E171: Inter-row ti | J171: Paraquat (sh
F172: BDS+E. | I172: Narr+B.
D173: Defol Drop | L173: Defol Drop
C176: Strategy_3 | D176: D/L Cotton | E176: Winter fallow | F176: Summer fallow | G176: Winter fallow | H176: D/L Cotton | I176: Winter fallow | J176: Cover crop | K176: Winter fallow | L176: D/L Cotton | M176: Winter fallow
D177: Average | E177: Average | F177: Average | G177: Average | H177: Average | I177: V Early | J177: V Early | K177: Average | L177: Average | M177: Average
C178: 1 in 1 out CC | D178: Tickle | G178: Tickle | J178: Tickle
D179: Glyphosate | E179: Paraquat | G179: Glyphosate | H179: Glyphosate | J179: Glyphosate | K179: Paraquat | L179: Glyphosate | M179: Tillage
D180: s-Metolachlo | F180: Trifluralin | G180: Trifluralin | H180: s-Metolachlo | I180: s-Metolachlo | J180: Trifluralin | M180: Trifluralin
D181: No-till | E181: No-till | F181: No-till | G181: No-till | H181: No-till | I181: No-till | K181: No-till | L181: No-till | M181: No-till
D182: Standard | E182: Standard | F182: Standard | G182: Standard | H182: Standard | I182: Standard | K182: Standard | L182: Standard | M182: Standard
D183: Glyphosate | F183: Glyphosate | H183: Glyphosate | K183: Group A | L183: Glyphosate | M183: Glyphosate
D184: Glyphosate | F184: Group A | H184: Glyphosate | L184: Inter-row ti
D185: Glyphosate | F185: Glyphosate | H185: Inter-row ti | L185: Glyphosate
D186: Pendimetha | E186: Diuron | H186: Diuron | J186: Pendimetha
E187: Glyphosate | F187: Inter-row ti | L187: Inter-row ti
D188: Glyphosate | H188: Glyphosate | J188: Paraquat (sh
F189: Tram. | I189: Narr+B.
D190: Defol Drop | H190: Defol Drop | L190: Defol Drop
C193: Strategy_4 | D193: D/L Cotton | E193: Winter fallow | F193: Summer fallow | G193: Winter fallow | H193: D/L Cotton | I193: Winter fallow | J193: Summer fallow | K193: Winter fallow | L193: D/L Cotton | M193: Winter fallow
D194: Average | E194: Average | F194: Average | G194: Average | H194: Average | I194: V Early | J194: V Early | K194: Average | L194: Average | M194: Average
C195: 2+2 resistant | G195: Tickle
D196: Glyphosate | E196: Paraquat | F196: Glyphosate/P | G196: Glyphosate | H196: Glyphosate | J196: Glyphosate/P | K196: Paraquat | L196: Glyphosate | M196: Tillage
D197: s-Metolachlo | F197: Trifluralin | G197: Trifluralin | I197: s-Metolachlo | J197: Trifluralin | M197: Trifluralin
D198: No-till | E198: No-till | F198: No-till | G198: No-till | H198: No-till | I198: No-till | K198: No-till | L198: No-till | M198: No-till
D199: Standard | E199: Standard | F199: Standard | G199: Standard | H199: Standard | I199: Standard | K199: Standard | L199: Standard | M199: Standard
D200: Glyphosate | F200: Glyphosate | H200: Glyphosate | J200: Paraquat (sh | K200: Group A | L200: Glyphosate | M200: Glyphosate
D201: Glyphosate | F201: Group A | H201: Glyphosate | J201: Glyphosate | L201: Inter-row ti
D202: Glyphosate | F202: Glyphosate | H202: Inter-row ti | J202: Glyphosate | L202: Glyphosate
D203: Pendimetha | E203: Diuron | H203: Diuron
E204: Glyphosate | F204: Inter-row ti | L204: Inter-row ti
D205: Glyphosate | H205: Glyphosate | J205: Glyphosate
F206: Tram. | I206: Narr+B.
D207: Defol Drop | H207: Defol Drop | L207: Defol Drop
C210: Strategy_5 | D210: Irrig Cotton | E210: Winter fallow | F210: Irrig Cotton | G210: Winter fallow | H210: Irrig Cotton | I210: Winter fallow | J210: Irrig Cotton | K210: Winter fallow | L210: Irrig Cotton | M210: Winter fallow
D211: Average | E211: Average | F211: Average | G211: Average | H211: Average | I211: V Early | J211: Average | K211: Average | L211: Average | M211: Average
C212: irrigated cotton | D212: Cultivate | F212: Cultivate | G212: Tickle | H212: Cultivate | J212: Cultivate | L212: Tickle
D213: Glyphosate | E213: Paraquat | F213: Glyphosate | G213: Glyphosate | H213: Glyphosate | J213: Glyphosate | K213: Paraquat | L213: Glyphosate | M213: Tillage
D214: s-Metolachlo | F214: Trifluralin | G214: Trifluralin | H214: s-Metolachlo | I214: s-Metolachlo | M214: Trifluralin
D215: Tillage | E215: No-till | F215: No-till | G215: No-till | H215: No-till | I215: No-till | K215: No-till | L215: No-till | M215: No-till
D216: Standard | E216: Standard | F216: Standard | G216: Standard | H216: Standard | I216: Standard | J216: Standard | K216: Standard | L216: Standard | M216: Standard
D217: Glyphosate | F217: Glyphosate | H217: Glyphosate | K217: Group A | L217: Glyphosate | M217: Glyphosate
H218: Glyphosate | J218: Glyphosate | L218: Inter-row ti
D219: Glyphosate | F219: Glyphosate | H219: Inter-row ti | L219: Glyphosate
D220: Pendimetha | E220: Diuron
E221: Glyphosate | F221: Inter-row ti | L221: Inter-row ti
D222: Glyphosate | H222: Glyphosate | J222: Glyphosate
F223: Tram. | I223: Narr+B.
D224: Defol Drop | F224: Defol Drop | H224: Defol Drop | J224: Defol Drop | L224: Defol Drop
C227: Strategy_6 | D227: D/L Cotton | E227: Winter fallow | F227: Summer fallow | G227: Winter fallow | H227: Summer fallow | I227: Winter fallow | J227: Cover crop | K227: Winter fallow | L227: D/L Cotton | M227: Winter fallow
D228: Average | E228: Average | F228: Average | G228: Average | H228: Average | I228: V Early | J228: V Early | K228: Average | L228: Average | M228: Average
C229: 2 in 5 test | D229: Cultivate | G229: Tickle | H229: Cultivate | J229: Tickle
D230: Gly fb Para | G230: Glyphosate | H230: Gly fb Para | J230: Glyphosate | K230: Paraquat | L230: Glyphosate | M230: Tillage
D231: s-Metolachlo | H231: Diuron | I231: s-Metolachlo | J231: Trifluralin | M231: Trifluralin
D232: No-till | E232: No-till | F232: No-till | G232: No-till | H232: No-till | I232: No-till | K232: No-till | L232: No-till | M232: No-till
D233: Standard | E233: Standard | F233: Standard | G233: Standard | H233: Standard | I233: Standard | K233: Standard | L233: Standard | M233: Standard
H234: Group A | K234: Group A | L234: Glyphosate | M234: Glyphosate
... 6 more rows

Sheet Calcs
B1: Phase | C1: ='2.Strategy'!D63 -> Irrig cotton 1 | D1: ='2.Strategy'!E63 -> Winter fallow 2 | E1: ='2.Strategy'!F63 -> Irrig cotton 3 | F1: ='2.Strategy'!G63 -> Winter fallow 4 | G1: ='2.Strategy'!H63 -> Irrig cotton 5 | H1: ='2.Strategy'!I63 -> Winter fallow 6 | I1: ='2.Strategy'!J63 -> Irrig cotton 7 | J1: ='2.Strategy'!K63 -> Winter fallow 8 | K1: ='2.Strategy'!L63 -> Irrig cotton 9 | L1: ='2.Strategy'!M63 -> Winter fallow 10
N3: SUMMARY - 'CALC' PAGE | U3: SUMMARY - OTHER PAGES
B4: Table 1. Selected options & enterprises | C4: First table behind the chosen strategy: displays the enterprise code for each option. Their labels are | O4: =B4 -> Table 1. Selected options & enterprises
C5: sourced from under the strategy table, feeding into the drop-down lists and into the labels of this table. | O5: =N32 -> Table 1a. Non-selective herbicides counts | U5: DEV | W5: Tutorial templates
C6: Codes #1: 1=wc, 2=Sorghum, 3=corn, 4=beans, 5=d/l cotton, 6=irri cotton, 7=cover crop, 8=wf, 9=sf | O6: =N42 -> Table 1b. Error and sowing handling, herbicides type counts
A7: 1 | B7: ="KD/DK: "&'1.Profile'!C15 -> KD/DK: Glyphosate | C7: =IF(AND('2.Strategy'!D64="yes",'2.Strategy'!D7='2.Strategy'!$P$75,'2.Strategy'!$P$75<>""),U$246,"") -> 6 | D7: =IF(AND('2.Strategy'!E64="yes",'2.Strategy'!E7='2.Strategy'!$P$75,'2.Strategy'!$P$75<>""),V$246,"") ->  | E7: =IF(AND('2.Strategy'!F64="yes",'2.Strategy'!F7='2.Strategy'!$P$75,'2.Strategy'!$P$75<>""),W$246,"") -> 6 | F7: =IF(AND('2.Strategy'!G64="yes",'2.Strategy'!G7='2.Strategy'!$P$75,'2.Strategy'!$P$75<>""),X$246,"") -> 8 | G7: =IF(AND('2.Strategy'!H64="yes",'2.Strategy'!H7='2.Strategy'!$P$75,'2.Strategy'!$P$75<>""),Y$246,"") -> 6 | H7: =IF(AND('2.Strategy'!I64="yes",'2.Strategy'!I7='2.Strategy'!$P$75,'2.Strategy'!$P$75<>""),Z$246,"") ->  | I7: =IF(AND('2.Strategy'!J64="yes",'2.Strategy'!J7='2.Strategy'!$P$75,'2.Strategy'!$P$75<>""),AA$246,"") -> 6 | J7: =IF(AND('2.Strategy'!K64="yes",'2.Strategy'!K7='2.Strategy'!$P$75,'2.Strategy'!$P$75<>""),AB$246,"") ->  | K7: =IF(AND('2.Strategy'!L64="yes",'2.Strategy'!L7='2.Strategy'!$P$75,'2.Strategy'!$P$75<>""),AC$246,"") -> 6 | L7: =IF(AND('2.Strategy'!M64="yes",'2.Strategy'!M7='2.Strategy'!$P$75,'2.Strategy'!$P$75<>""),AD$246,"") -> 
A8: 2 | B8: ="KD/DK: "&'1.Profile'!C16 -> KD/DK: Paraquat | C8: =IF(AND('2.Strategy'!D64="yes",'2.Strategy'!D7='2.Strategy'!$P$76,'2.Strategy'!$P$76<>""),U$246,"") ->  | D8: =IF(AND('2.Strategy'!E64="yes",'2.Strategy'!E7='2.Strategy'!$P$75,'2.Strategy'!$P$75<>""),V$246,"") ->  | E8: =IF(AND('2.Strategy'!F64="yes",'2.Strategy'!F7='2.Strategy'!$P$75,'2.Strategy'!$P$75<>""),W$246,"") -> 6 | F8: =IF(AND('2.Strategy'!G64="yes",'2.Strategy'!G7='2.Strategy'!$P$75,'2.Strategy'!$P$75<>""),X$246,"") -> 8 | G8: =IF(AND('2.Strategy'!H64="yes",'2.Strategy'!H7='2.Strategy'!$P$75,'2.Strategy'!$P$75<>""),Y$246,"") -> 6 | H8: =IF(AND('2.Strategy'!I64="yes",'2.Strategy'!I7='2.Strategy'!$P$75,'2.Strategy'!$P$75<>""),Z$246,"") ->  | I8: =IF(AND('2.Strategy'!J64="yes",'2.Strategy'!J7='2.Strategy'!$P$75,'2.Strategy'!$P$75<>""),AA$246,"") -> 6 | J8: =IF(AND('2.Strategy'!K64="yes",'2.Strategy'!K7='2.Strategy'!$P$75,'2.Strategy'!$P$75<>""),AB$246,"") ->  | K8: =IF(AND('2.Strategy'!L64="yes",'2.Strategy'!L7='2.Strategy'!$P$75,'2.Strategy'!$P$75<>""),AC$246,"") -> 6 | L8: =IF(AND('2.Strategy'!M64="yes",'2.Strategy'!M7='2.Strategy'!$P$75,'2.Strategy'!$P$75<>""),AD$246,"") ->  | N8: Go to | O8: =B63 -> Table 2. Selected RG control (%) | U8: PRICES
A9: 3 | B9: ="KD/DK: "&'1.Profile'!C17 -> KD/DK: Group A | C9: =IF(AND('2.Strategy'!D64="yes",'2.Strategy'!D7='2.Strategy'!$P$77,'2.Strategy'!$P$77<>""),U$246,"") ->  | D9: =IF(AND('2.Strategy'!E64="yes",'2.Strategy'!E7='2.Strategy'!$P$77,'2.Strategy'!$P$77<>""),V$246,"") ->  | E9: =IF(AND('2.Strategy'!F64="yes",'2.Strategy'!F7='2.Strategy'!$P$77,'2.Strategy'!$P$77<>""),W$246,"") ->  | F9: =IF(AND('2.Strategy'!G64="yes",'2.Strategy'!G7='2.Strategy'!$P$77,'2.Strategy'!$P$77<>""),X$246,"") ->  | G9: =IF(AND('2.Strategy'!H64="yes",'2.Strategy'!H7='2.Strategy'!$P$77,'2.Strategy'!$P$77<>""),Y$246,"") ->  | H9: =IF(AND('2.Strategy'!I64="yes",'2.Strategy'!I7='2.Strategy'!$P$77,'2.Strategy'!$P$77<>""),Z$246,"") ->  | I9: =IF(AND('2.Strategy'!J64="yes",'2.Strategy'!J7='2.Strategy'!$P$77,'2.Strategy'!$P$77<>""),AA$246,"") ->  | J9: =IF(AND('2.Strategy'!K64="yes",'2.Strategy'!K7='2.Strategy'!$P$77,'2.Strategy'!$P$77<>""),AB$246,"") ->  | K9: =IF(AND('2.Strategy'!L64="yes",'2.Strategy'!L7='2.Strategy'!$P$77,'2.Strategy'!$P$77<>""),AC$246,"") ->  | L9: =IF(AND('2.Strategy'!M64="yes",'2.Strategy'!M7='2.Strategy'!$P$77,'2.Strategy'!$P$77<>""),AD$246,"") ->  | O9: =N62 -> Table 2a. BYG control (%) | V9: Establishment costs - Machinery
A10: 4 | B10: ="KD/DK: "&'1.Profile'!C18 -> KD/DK: Tillage | C10: =IF(AND('2.Strategy'!D64="yes",'2.Strategy'!D7='2.Strategy'!$P$78,'2.Strategy'!$P$78<>""),U$246,"") ->  | D10: =IF(AND('2.Strategy'!E64="yes",'2.Strategy'!E7='2.Strategy'!$P$78,'2.Strategy'!$P$78<>""),V$246,"") ->  | E10: =IF(AND('2.Strategy'!F64="yes",'2.Strategy'!F7='2.Strategy'!$P$78,'2.Strategy'!$P$78<>""),W$246,"") ->  | F10: =IF(AND('2.Strategy'!G64="yes",'2.Strategy'!G7='2.Strategy'!$P$78,'2.Strategy'!$P$78<>""),X$246,"") ->  | G10: =IF(AND('2.Strategy'!H64="yes",'2.Strategy'!H7='2.Strategy'!$P$78,'2.Strategy'!$P$78<>""),Y$246,"") ->  | H10: =IF(AND('2.Strategy'!I64="yes",'2.Strategy'!I7='2.Strategy'!$P$78,'2.Strategy'!$P$78<>""),Z$246,"") ->  | I10: =IF(AND('2.Strategy'!J64="yes",'2.Strategy'!J7='2.Strategy'!$P$78,'2.Strategy'!$P$78<>""),AA$246,"") ->  | J10: =IF(AND('2.Strategy'!K64="yes",'2.Strategy'!K7='2.Strategy'!$P$78,'2.Strategy'!$P$78<>""),AB$246,"") ->  | K10: =IF(AND('2.Strategy'!L64="yes",'2.Strategy'!L7='2.Strategy'!$P$78,'2.Strategy'!$P$78<>""),AC$246,"") ->  | L10: =IF(AND('2.Strategy'!M64="yes",'2.Strategy'!M7='2.Strategy'!$P$78,'2.Strategy'!$P$78<>""),AD$246,"") -> 8 | V10: Establishment costs - Crops
A11: 5 | B11: ="KD/DK: "&'1.Profile'!C19 -> KD/DK: Glyphosate/Paraquat | C11: =IF(AND('2.Strategy'!D64="yes",'2.Strategy'!D7='2.Strategy'!$P$79,'2.Strategy'!$P$79<>""),U$246,"") ->  | D11: =IF(AND('2.Strategy'!E64="yes",'2.Strategy'!E7='2.Strategy'!$P$79,'2.Strategy'!$P$79<>""),V$246,"") ->  | E11: =IF(AND('2.Strategy'!F64="yes",'2.Strategy'!F7='2.Strategy'!$P$79,'2.Strategy'!$P$79<>""),W$246,"") ->  | F11: =IF(AND('2.Strategy'!G64="yes",'2.Strategy'!G7='2.Strategy'!$P$79,'2.Strategy'!$P$79<>""),X$246,"") ->  | G11: =IF(AND('2.Strategy'!H64="yes",'2.Strategy'!H7='2.Strategy'!$P$79,'2.Strategy'!$P$79<>""),Y$246,"") ->  | H11: =IF(AND('2.Strategy'!I64="yes",'2.Strategy'!I7='2.Strategy'!$P$79,'2.Strategy'!$P$79<>""),Z$246,"") ->  | I11: =IF(AND('2.Strategy'!J64="yes",'2.Strategy'!J7='2.Strategy'!$P$79,'2.Strategy'!$P$79<>""),AA$246,"") ->  | J11: =IF(AND('2.Strategy'!K64="yes",'2.Strategy'!K7='2.Strategy'!$P$79,'2.Strategy'!$P$79<>""),AB$246,"") ->  | K11: =IF(AND('2.Strategy'!L64="yes",'2.Strategy'!L7='2.Strategy'!$P$79,'2.Strategy'!$P$79<>""),AC$246,"") ->  | L11: =IF(AND('2.Strategy'!M64="yes",'2.Strategy'!M7='2.Strategy'!$P$79,'2.Strategy'!$P$79<>""),AD$246,"") ->  | N11: Go to | O11: =B124 -> Table 3. Selected costs ($/ha) | V11: Establishment costs - Pastures
A12: 6 | B12: ="Pre-E: "&'1.Profile'!C21 -> Pre-E: Trifluralin | C12: =IF(AND('2.Strategy'!D8='2.Strategy'!$P$85,'1.Profile'!$C$21<>""),U$246,"") ->  | D12: =IF(AND('2.Strategy'!E8='2.Strategy'!$P$85,'1.Profile'!$C$21<>""),V$246,"") ->  | E12: =IF(AND('2.Strategy'!F8='2.Strategy'!$P$85,'1.Profile'!$C$21<>""),W$246,"") ->  | F12: =IF(AND('2.Strategy'!G8='2.Strategy'!$P$85,'1.Profile'!$C$21<>""),X$246,"") -> 8 | G12: =IF(AND('2.Strategy'!H8='2.Strategy'!$P$85,'1.Profile'!$C$21<>""),Y$246,"") ->  | H12: =IF(AND('2.Strategy'!I8='2.Strategy'!$P$85,'1.Profile'!$C$21<>""),Z$246,"") ->  | I12: =IF(AND('2.Strategy'!J8='2.Strategy'!$P$85,'1.Profile'!$C$21<>""),AA$246,"") ->  | J12: =IF(AND('2.Strategy'!K8='2.Strategy'!$P$85,'1.Profile'!$C$21<>""),AB$246,"") ->  | K12: =IF(AND('2.Strategy'!L8='2.Strategy'!$P$85,'1.Profile'!$C$21<>""),AC$246,"") ->  | L12: =IF(AND('2.Strategy'!M8='2.Strategy'!$P$85,'1.Profile'!$C$21<>""),AD$246,"") -> 8 | V12: Financial values: quality, inflation, tax, etc.
A13: 7 | B13: ="Pre-E: "&'1.Profile'!C22 -> Pre-E: Diuron | C13: =IF(AND('2.Strategy'!D8='2.Strategy'!$P$86,'1.Profile'!$C$22<>""),U$246,"") ->  | D13: =IF(AND('2.Strategy'!E8='2.Strategy'!$P$86,'1.Profile'!$C$22<>""),V$246,"") ->  | E13: =IF(AND('2.Strategy'!F8='2.Strategy'!$P$86,'1.Profile'!$C$22<>""),W$246,"") ->  | F13: =IF(AND('2.Strategy'!G8='2.Strategy'!$P$86,'1.Profile'!$C$22<>""),X$246,"") ->  | G13: =IF(AND('2.Strategy'!H8='2.Strategy'!$P$86,'1.Profile'!$C$22<>""),Y$246,"") ->  | H13: =IF(AND('2.Strategy'!I8='2.Strategy'!$P$86,'1.Profile'!$C$22<>""),Z$246,"") ->  | I13: =IF(AND('2.Strategy'!J8='2.Strategy'!$P$86,'1.Profile'!$C$22<>""),AA$246,"") ->  | J13: =IF(AND('2.Strategy'!K8='2.Strategy'!$P$86,'1.Profile'!$C$22<>""),AB$246,"") ->  | K13: =IF(AND('2.Strategy'!L8='2.Strategy'!$P$86,'1.Profile'!$C$22<>""),AC$246,"") ->  | L13: =IF(AND('2.Strategy'!M8='2.Strategy'!$P$86,'1.Profile'!$C$22<>""),AD$246,"") ->  | N13: Go to | O13: =B183 -> Table 4. BYG germination
A14: 8 | B14: ="Pre-E: "&'1.Profile'!C23 -> Pre-E: Pendimethalin | C14: =IF(AND('2.Strategy'!D8='2.Strategy'!$P$87,'1.Profile'!$C$23<>""),U$246,"") ->  | D14: =IF(AND('2.Strategy'!E8='2.Strategy'!$P$87,'1.Profile'!$C$23<>""),V$246,"") ->  | E14: =IF(AND('2.Strategy'!F8='2.Strategy'!$P$87,'1.Profile'!$C$23<>""),W$246,"") ->  | F14: =IF(AND('2.Strategy'!G8='2.Strategy'!$P$87,'1.Profile'!$C$23<>""),X$246,"") ->  | G14: =IF(AND('2.Strategy'!H8='2.Strategy'!$P$87,'1.Profile'!$C$23<>""),Y$246,"") -> 6 | H14: =IF(AND('2.Strategy'!I8='2.Strategy'!$P$87,'1.Profile'!$C$23<>""),Z$246,"") ->  | I14: =IF(AND('2.Strategy'!J8='2.Strategy'!$P$87,'1.Profile'!$C$23<>""),AA$246,"") ->  | J14: =IF(AND('2.Strategy'!K8='2.Strategy'!$P$87,'1.Profile'!$C$23<>""),AB$246,"") ->  | K14: =IF(AND('2.Strategy'!L8='2.Strategy'!$P$87,'1.Profile'!$C$23<>""),AC$246,"") ->  | L14: =IF(AND('2.Strategy'!M8='2.Strategy'!$P$87,'1.Profile'!$C$23<>""),AD$246,"") ->  | O14: =B191 -> Table 5a. BYG seed control | U14: OPTIONS
A15: 9 | B15: ="Pre-E: "&'1.Profile'!C24 -> Pre-E: s-Metolachlor | C15: =IF(AND('2.Strategy'!D8='2.Strategy'!$P$88,'1.Profile'!$C$24<>""),U$246,"") ->  | D15: =IF(AND('2.Strategy'!E8='2.Strategy'!$P$88,'1.Profile'!$C$24<>""),V$246,"") ->  | E15: =IF(AND('2.Strategy'!F8='2.Strategy'!$P$88,'1.Profile'!$C$24<>""),W$246,"") ->  | F15: =IF(AND('2.Strategy'!G8='2.Strategy'!$P$88,'1.Profile'!$C$24<>""),X$246,"") ->  | G15: =IF(AND('2.Strategy'!H8='2.Strategy'!$P$88,'1.Profile'!$C$24<>""),Y$246,"") ->  | H15: =IF(AND('2.Strategy'!I8='2.Strategy'!$P$88,'1.Profile'!$C$24<>""),Z$246,"") -> 8 | I15: =IF(AND('2.Strategy'!J8='2.Strategy'!$P$88,'1.Profile'!$C$24<>""),AA$246,"") ->  | J15: =IF(AND('2.Strategy'!K8='2.Strategy'!$P$88,'1.Profile'!$C$24<>""),AB$246,"") ->  | K15: =IF(AND('2.Strategy'!L8='2.Strategy'!$P$88,'1.Profile'!$C$24<>""),AC$246,"") ->  | L15: =IF(AND('2.Strategy'!M8='2.Strategy'!$P$88,'1.Profile'!$C$24<>""),AD$246,"") ->  | O15: =B196 -> Table 5b. BYG control per period | V15: Crops: variables, yield benefits, penalties
A16: 10 | B16: ="Pre-E: "&'1.Profile'!C25 -> Pre-E: Fluometuron+Prometryn | C16: =IF(AND('2.Strategy'!D8='2.Strategy'!$P$89,'1.Profile'!$C$25<>""),U$246,"") ->  | D16: =IF(AND('2.Strategy'!E8='2.Strategy'!$P$89,'1.Profile'!$C$25<>""),V$246,"") ->  | E16: =IF(AND('2.Strategy'!F8='2.Strategy'!$P$89,'1.Profile'!$C$25<>""),W$246,"") ->  | F16: =IF(AND('2.Strategy'!G8='2.Strategy'!$P$89,'1.Profile'!$C$25<>""),X$246,"") ->  | G16: =IF(AND('2.Strategy'!H8='2.Strategy'!$P$89,'1.Profile'!$C$25<>""),Y$246,"") ->  | H16: =IF(AND('2.Strategy'!I8='2.Strategy'!$P$89,'1.Profile'!$C$25<>""),Z$246,"") ->  | I16: =IF(AND('2.Strategy'!J8='2.Strategy'!$P$89,'1.Profile'!$C$25<>""),AA$246,"") ->  | J16: =IF(AND('2.Strategy'!K8='2.Strategy'!$P$89,'1.Profile'!$C$25<>""),AB$246,"") ->  | K16: =IF(AND('2.Strategy'!L8='2.Strategy'!$P$89,'1.Profile'!$C$25<>""),AC$246,"") ->  | L16: =IF(AND('2.Strategy'!M8='2.Strategy'!$P$89,'1.Profile'!$C$25<>""),AD$246,"") ->  | O16: =B206 -> Table 6. Healthy equivalent weeds/m2 | V16: Ryegrass: germination, variables
A17: 11 | B17: High crop seeding rate selected | C17: =IF('2.Strategy'!D10='2.Strategy'!$D$83,U$246,"") ->  | D17: =IF('2.Strategy'!E10='2.Strategy'!$D$83,V$246,"") ->  | E17: =IF('2.Strategy'!F10='2.Strategy'!$D$83,W$246,"") ->  | F17: =IF('2.Strategy'!G10='2.Strategy'!$D$83,X$246,"") ->  | G17: =IF('2.Strategy'!H10='2.Strategy'!$D$83,Y$246,"") ->  | H17: =IF('2.Strategy'!I10='2.Strategy'!$D$83,Z$246,"") ->  | I17: =IF('2.Strategy'!J10='2.Strategy'!$D$83,AA$246,"") ->  | J17: =IF('2.Strategy'!K10='2.Strategy'!$D$83,AB$246,"") ->  | K17: =IF('2.Strategy'!L10='2.Strategy'!$D$83,AC$246,"") ->  | L17: =IF('2.Strategy'!M10='2.Strategy'!$D$83,AD$246,"") ->  | V17: Pastures: stocking rates, N savings
A18: 12 | B18: Tickle selected | C18: =IF('2.Strategy'!D64="yes",IF('2.Strategy'!D6='2.Strategy'!$D$71,U$246,""),"") ->  | D18: =IF('2.Strategy'!E64="yes",IF('2.Strategy'!E6='2.Strategy'!$D$71,V$246,""),"") ->  | E18: =IF('2.Strategy'!F64="yes",IF('2.Strategy'!F6='2.Strategy'!$D$71,W$246,""),"") ->  | F18: =IF('2.Strategy'!G64="yes",IF('2.Strategy'!G6='2.Strategy'!$D$71,X$246,""),"") -> 8 | G18: =IF('2.Strategy'!H64="yes",IF('2.Strategy'!H6='2.Strategy'!$D$71,Y$246,""),"") ->  | H18: =IF('2.Strategy'!I64="yes",IF('2.Strategy'!I6='2.Strategy'!$D$71,Z$246,""),"") ->  | I18: =IF('2.Strategy'!J64="yes",IF('2.Strategy'!J6='2.Strategy'!$D$71,AA$246,""),"") ->  | J18: =IF('2.Strategy'!K64="yes",IF('2.Strategy'!K6='2.Strategy'!$D$71,AB$246,""),"") ->  | K18: =IF('2.Strategy'!L64="yes",IF('2.Strategy'!L6='2.Strategy'!$D$71,AC$246,""),"") -> 6 | L18: =IF('2.Strategy'!M64="yes",IF('2.Strategy'!M6='2.Strategy'!$D$71,AD$246,""),"") ->  | N18: Go to | O18: =B214 -> Table 7. Rotation codes
A19: 13 | B19: Cultivate selected | C19: =IF('2.Strategy'!D64="yes",IF('2.Strategy'!D6='2.Strategy'!$D$72,U$246,""),"") -> 6 | D19: =IF('2.Strategy'!E64="yes",IF('2.Strategy'!E6='2.Strategy'!$D$72,V$246,""),"") ->  | E19: =IF('2.Strategy'!F64="yes",IF('2.Strategy'!F6='2.Strategy'!$D$72,W$246,""),"") -> 6 | F19: =IF('2.Strategy'!G64="yes",IF('2.Strategy'!G6='2.Strategy'!$D$72,X$246,""),"") ->  | G19: =IF('2.Strategy'!H64="yes",IF('2.Strategy'!H6='2.Strategy'!$D$72,Y$246,""),"") -> 6 | H19: =IF('2.Strategy'!I64="yes",IF('2.Strategy'!I6='2.Strategy'!$D$72,Z$246,""),"") ->  | I19: =IF('2.Strategy'!J64="yes",IF('2.Strategy'!J6='2.Strategy'!$D$72,AA$246,""),"") -> 6 | J19: =IF('2.Strategy'!K64="yes",IF('2.Strategy'!K6='2.Strategy'!$D$72,AB$246,""),"") ->  | K19: =IF('2.Strategy'!L64="yes",IF('2.Strategy'!L6='2.Strategy'!$D$72,AC$246,""),"") ->  | L19: =IF('2.Strategy'!M64="yes",IF('2.Strategy'!M6='2.Strategy'!$D$72,AD$246,""),"") ->  | O19: =B225 -> Table 8. Rotation values
A20: 14 | B20: Full disturbance tillage | C20: =IF(AND('2.Strategy'!D65="yes",'2.Strategy'!D9='2.Strategy'!$D$75),U$246,"") -> 6 | D20: =IF(AND('2.Strategy'!E65="yes",'2.Strategy'!E9='2.Strategy'!$D$75),V$246,"") ->  | E20: =IF(AND('2.Strategy'!F65="yes",'2.Strategy'!F9='2.Strategy'!$D$75),W$246,"") ->  | F20: =IF(AND('2.Strategy'!G65="yes",'2.Strategy'!G9='2.Strategy'!$D$75),X$246,"") ->  | G20: =IF(AND('2.Strategy'!H65="yes",'2.Strategy'!H9='2.Strategy'!$D$75),Y$246,"") ->  | H20: =IF(AND('2.Strategy'!I65="yes",'2.Strategy'!I9='2.Strategy'!$D$75),Z$246,"") ->  | I20: =IF(AND('2.Strategy'!J65="yes",'2.Strategy'!J9='2.Strategy'!$D$75),AA$246,"") ->  | J20: =IF(AND('2.Strategy'!K65="yes",'2.Strategy'!K9='2.Strategy'!$D$75),AB$246,"") ->  | K20: =IF(AND('2.Strategy'!L65="yes",'2.Strategy'!L9='2.Strategy'!$D$75),AC$246,"") ->  | L20: =IF(AND('2.Strategy'!M65="yes",'2.Strategy'!M9='2.Strategy'!$D$75),AD$246,"") ->  | U20: BIO RESULTS
A21: 15 | B21: Very early sowing | C21: =IF('2.Strategy'!D65="yes",IF('2.Strategy'!D5='2.Strategy'!$D$77,U$246,""),"") ->  | D21: =IF('2.Strategy'!E65="yes",IF('2.Strategy'!E5='2.Strategy'!$D$77,V$246,""),"") ->  | E21: =IF('2.Strategy'!F65="yes",IF('2.Strategy'!F5='2.Strategy'!$D$77,W$246,""),"") ->  | F21: =IF('2.Strategy'!G65="yes",IF('2.Strategy'!G5='2.Strategy'!$D$77,X$246,""),"") ->  | G21: =IF('2.Strategy'!H65="yes",IF('2.Strategy'!H5='2.Strategy'!$D$77,Y$246,""),"") ->  | H21: =IF('2.Strategy'!I65="yes",IF('2.Strategy'!I5='2.Strategy'!$D$77,Z$246,""),"") ->  | I21: =IF('2.Strategy'!J65="yes",IF('2.Strategy'!J5='2.Strategy'!$D$77,AA$246,""),"") ->  | J21: =IF('2.Strategy'!K65="yes",IF('2.Strategy'!K5='2.Strategy'!$D$77,AB$246,""),"") ->  | K21: =IF('2.Strategy'!L65="yes",IF('2.Strategy'!L5='2.Strategy'!$D$77,AC$246,""),"") ->  | L21: =IF('2.Strategy'!M65="yes",IF('2.Strategy'!M5='2.Strategy'!$D$77,AD$246,""),"") ->  | N21: Go to | O21: =B329 -> Table 9. Production costs ($/ha) | V21: Ryegrass: plants/m2, seeds/m2
A22: 16 | B22: Early sowing | C22: =IF('2.Strategy'!D65="yes",IF('2.Strategy'!D5='2.Strategy'!$D$78,U$246,""),"") ->  | D22: =IF('2.Strategy'!E65="yes",IF('2.Strategy'!E5='2.Strategy'!$D$78,V$246,""),"") ->  | E22: =IF('2.Strategy'!F65="yes",IF('2.Strategy'!F5='2.Strategy'!$D$78,W$246,""),"") ->  | F22: =IF('2.Strategy'!G65="yes",IF('2.Strategy'!G5='2.Strategy'!$D$78,X$246,""),"") ->  | G22: =IF('2.Strategy'!H65="yes",IF('2.Strategy'!H5='2.Strategy'!$D$78,Y$246,""),"") ->  | H22: =IF('2.Strategy'!I65="yes",IF('2.Strategy'!I5='2.Strategy'!$D$78,Z$246,""),"") ->  | I22: =IF('2.Strategy'!J65="yes",IF('2.Strategy'!J5='2.Strategy'!$D$78,AA$246,""),"") ->  | J22: =IF('2.Strategy'!K65="yes",IF('2.Strategy'!K5='2.Strategy'!$D$78,AB$246,""),"") ->  | K22: =IF('2.Strategy'!L65="yes",IF('2.Strategy'!L5='2.Strategy'!$D$78,AC$246,""),"") ->  | L22: =IF('2.Strategy'!M65="yes",IF('2.Strategy'!M5='2.Strategy'!$D$78,AD$246,""),"") ->  | O22: =B342 -> Table 10. RG control after grazing | V22: Impacts on yields
A23: 17 | B23: Average sowing time | C23: =IF('2.Strategy'!D65="yes",IF('2.Strategy'!D5='2.Strategy'!$D$79,U$246,""),"") -> 6 | D23: =IF('2.Strategy'!E65="yes",IF('2.Strategy'!E5='2.Strategy'!$D$79,V$246,""),"") ->  | E23: =IF('2.Strategy'!F65="yes",IF('2.Strategy'!F5='2.Strategy'!$D$79,W$246,""),"") -> 6 | F23: =IF('2.Strategy'!G65="yes",IF('2.Strategy'!G5='2.Strategy'!$D$79,X$246,""),"") ->  | G23: =IF('2.Strategy'!H65="yes",IF('2.Strategy'!H5='2.Strategy'!$D$79,Y$246,""),"") -> 6 | H23: =IF('2.Strategy'!I65="yes",IF('2.Strategy'!I5='2.Strategy'!$D$79,Z$246,""),"") ->  | I23: =IF('2.Strategy'!J65="yes",IF('2.Strategy'!J5='2.Strategy'!$D$79,AA$246,""),"") -> 6 | J23: =IF('2.Strategy'!K65="yes",IF('2.Strategy'!K5='2.Strategy'!$D$79,AB$246,""),"") ->  | K23: =IF('2.Strategy'!L65="yes",IF('2.Strategy'!L5='2.Strategy'!$D$79,AC$246,""),"") -> 6 | L23: =IF('2.Strategy'!M65="yes",IF('2.Strategy'!M5='2.Strategy'!$D$79,AD$246,""),"") ->  | O23: =B350 -> Table 11. Returns from pastures ($/ha) | V23: Ryegrass and yields for outputs
A24: 18 | B24: Sow late | C24: =IF('2.Strategy'!D65="yes",IF('2.Strategy'!D5='2.Strategy'!$D$80,U$246,""),"") ->  | D24: =IF('2.Strategy'!E65="yes",IF('2.Strategy'!E5='2.Strategy'!$D$80,V$246,""),"") ->  | E24: =IF('2.Strategy'!F65="yes",IF('2.Strategy'!F5='2.Strategy'!$D$80,W$246,""),"") ->  | F24: =IF('2.Strategy'!G65="yes",IF('2.Strategy'!G5='2.Strategy'!$D$80,X$246,""),"") ->  | G24: =IF('2.Strategy'!H65="yes",IF('2.Strategy'!H5='2.Strategy'!$D$80,Y$246,""),"") ->  | H24: =IF('2.Strategy'!I65="yes",IF('2.Strategy'!I5='2.Strategy'!$D$80,Z$246,""),"") ->  | I24: =IF('2.Strategy'!J65="yes",IF('2.Strategy'!J5='2.Strategy'!$D$80,AA$246,""),"") ->  | J24: =IF('2.Strategy'!K65="yes",IF('2.Strategy'!K5='2.Strategy'!$D$80,AB$246,""),"") ->  | K24: =IF('2.Strategy'!L65="yes",IF('2.Strategy'!L5='2.Strategy'!$D$80,AC$246,""),"") ->  | L24: =IF('2.Strategy'!M65="yes",IF('2.Strategy'!M5='2.Strategy'!$D$80,AD$246,""),"") ->  | O24: =B364 -> Table 12. Pasture fodder produced (t/ha)
A25: 19 | B25: ="Post-E 1: "&'1.Profile'!C27 -> Post-E 1: Glyphosate | C25: =IF(AND('2.Strategy'!D$11='2.Strategy'!$P93,'1.Profile'!$C27<>""),U$246,"") -> 6 | D25: =IF(AND('2.Strategy'!E$11='2.Strategy'!$P93,'1.Profile'!$C27<>""),V$246,"") ->  | E25: =IF(AND('2.Strategy'!F$11='2.Strategy'!$P93,'1.Profile'!$C27<>""),W$246,"") -> 6 | F25: =IF(AND('2.Strategy'!G$11='2.Strategy'!$P93,'1.Profile'!$C27<>""),X$246,"") ->  | G25: =IF(AND('2.Strategy'!H$11='2.Strategy'!$P93,'1.Profile'!$C27<>""),Y$246,"") -> 6 | H25: =IF(AND('2.Strategy'!I$11='2.Strategy'!$P93,'1.Profile'!$C27<>""),Z$246,"") ->  | I25: =IF(AND('2.Strategy'!J$11='2.Strategy'!$P93,'1.Profile'!$C27<>""),AA$246,"") ->  | J25: =IF(AND('2.Strategy'!K$11='2.Strategy'!$P93,'1.Profile'!$C27<>""),AB$246,"") ->  | K25: =IF(AND('2.Strategy'!L$11='2.Strategy'!$P93,'1.Profile'!$C27<>""),AC$246,"") -> 6 | L25: =IF(AND('2.Strategy'!M$11='2.Strategy'!$P93,'1.Profile'!$C27<>""),AD$246,"") -> 8 | U25: ECO RESULTS
A26: 20 | B26: ="Post-E 1: "&'1.Profile'!C28 -> Post-E 1: Glufosinate | C26: =IF(AND('2.Strategy'!D$11='2.Strategy'!$P94,'1.Profile'!$C28<>""),U$246,"") ->  | D26: =IF(AND('2.Strategy'!E$11='2.Strategy'!$P94,'1.Profile'!$C28<>""),V$246,"") ->  | E26: =IF(AND('2.Strategy'!F$11='2.Strategy'!$P94,'1.Profile'!$C28<>""),W$246,"") ->  | F26: =IF(AND('2.Strategy'!G$11='2.Strategy'!$P94,'1.Profile'!$C28<>""),X$246,"") ->  | G26: =IF(AND('2.Strategy'!H$11='2.Strategy'!$P94,'1.Profile'!$C28<>""),Y$246,"") ->  | H26: =IF(AND('2.Strategy'!I$11='2.Strategy'!$P94,'1.Profile'!$C28<>""),Z$246,"") ->  | I26: =IF(AND('2.Strategy'!J$11='2.Strategy'!$P94,'1.Profile'!$C28<>""),AA$246,"") ->  | J26: =IF(AND('2.Strategy'!K$11='2.Strategy'!$P94,'1.Profile'!$C28<>""),AB$246,"") ->  | K26: =IF(AND('2.Strategy'!L$11='2.Strategy'!$P94,'1.Profile'!$C28<>""),AC$246,"") ->  | L26: =IF(AND('2.Strategy'!M$11='2.Strategy'!$P94,'1.Profile'!$C28<>""),AD$246,"") ->  | N26: Go to | O26: =B378 -> Table 13. HWSM Machinery repayments | V26: Receipts & expenses
A27: 21 | B27: ="Post-E 1: "&'1.Profile'!C29 -> Post-E 1: Paraquat (shielded) | C27: =IF(AND('2.Strategy'!D$11='2.Strategy'!$P95,'1.Profile'!$C29<>""),U$246,"") ->  | D27: =IF(AND('2.Strategy'!E$11='2.Strategy'!$P95,'1.Profile'!$C29<>""),V$246,"") ->  | E27: =IF(AND('2.Strategy'!F$11='2.Strategy'!$P95,'1.Profile'!$C29<>""),W$246,"") ->  | F27: =IF(AND('2.Strategy'!G$11='2.Strategy'!$P95,'1.Profile'!$C29<>""),X$246,"") ->  | G27: =IF(AND('2.Strategy'!H$11='2.Strategy'!$P95,'1.Profile'!$C29<>""),Y$246,"") ->  | H27: =IF(AND('2.Strategy'!I$11='2.Strategy'!$P95,'1.Profile'!$C29<>""),Z$246,"") ->  | I27: =IF(AND('2.Strategy'!J$11='2.Strategy'!$P95,'1.Profile'!$C29<>""),AA$246,"") ->  | J27: =IF(AND('2.Strategy'!K$11='2.Strategy'!$P95,'1.Profile'!$C29<>""),AB$246,"") ->  | K27: =IF(AND('2.Strategy'!L$11='2.Strategy'!$P95,'1.Profile'!$C29<>""),AC$246,"") ->  | L27: =IF(AND('2.Strategy'!M$11='2.Strategy'!$P95,'1.Profile'!$C29<>""),AD$246,"") ->  | O27: =B394 -> Table 14. Inflation factors | V27: Gross margins
A28: 22 | B28: ="Post-E 1: "&'1.Profile'!C30 -> Post-E 1: Inter-row tillage | C28: =IF(AND('2.Strategy'!D$11='2.Strategy'!$P96,'1.Profile'!$C30<>""),U$246,"") ->  | D28: =IF(AND('2.Strategy'!E$11='2.Strategy'!$P96,'1.Profile'!$C30<>""),V$246,"") ->  | E28: =IF(AND('2.Strategy'!F$11='2.Strategy'!$P96,'1.Profile'!$C30<>""),W$246,"") ->  | F28: =IF(AND('2.Strategy'!G$11='2.Strategy'!$P96,'1.Profile'!$C30<>""),X$246,"") ->  | G28: =IF(AND('2.Strategy'!H$11='2.Strategy'!$P96,'1.Profile'!$C30<>""),Y$246,"") ->  | H28: =IF(AND('2.Strategy'!I$11='2.Strategy'!$P96,'1.Profile'!$C30<>""),Z$246,"") ->  | I28: =IF(AND('2.Strategy'!J$11='2.Strategy'!$P96,'1.Profile'!$C30<>""),AA$246,"") ->  | J28: =IF(AND('2.Strategy'!K$11='2.Strategy'!$P96,'1.Profile'!$C30<>""),AB$246,"") ->  | K28: =IF(AND('2.Strategy'!L$11='2.Strategy'!$P96,'1.Profile'!$C30<>""),AC$246,"") ->  | L28: =IF(AND('2.Strategy'!M$11='2.Strategy'!$P96,'1.Profile'!$C30<>""),AD$246,"") ->  | V28: Results for outputs
A29: 23 | B29: ="Post-E 1: "&'1.Profile'!C31 -> Post-E 1: Group A | C29: =IF(AND('2.Strategy'!D$11='2.Strategy'!$P97,'1.Profile'!$C31<>""),U$246,"") ->  | D29: =IF(AND('2.Strategy'!E$11='2.Strategy'!$P97,'1.Profile'!$C31<>""),V$246,"") ->  | E29: =IF(AND('2.Strategy'!F$11='2.Strategy'!$P97,'1.Profile'!$C31<>""),W$246,"") ->  | F29: =IF(AND('2.Strategy'!G$11='2.Strategy'!$P97,'1.Profile'!$C31<>""),X$246,"") ->  | G29: =IF(AND('2.Strategy'!H$11='2.Strategy'!$P97,'1.Profile'!$C31<>""),Y$246,"") ->  | H29: =IF(AND('2.Strategy'!I$11='2.Strategy'!$P97,'1.Profile'!$C31<>""),Z$246,"") ->  | I29: =IF(AND('2.Strategy'!J$11='2.Strategy'!$P97,'1.Profile'!$C31<>""),AA$246,"") ->  | J29: =IF(AND('2.Strategy'!K$11='2.Strategy'!$P97,'1.Profile'!$C31<>""),AB$246,"") -> 8 | K29: =IF(AND('2.Strategy'!L$11='2.Strategy'!$P97,'1.Profile'!$C31<>""),AC$246,"") ->  | L29: =IF(AND('2.Strategy'!M$11='2.Strategy'!$P97,'1.Profile'!$C31<>""),AD$246,"") ->  | N29: Go to | O29: =B402 -> Table 15. Competition functions
A30: 24 | B30: ="Post-E 2: "&'1.Profile'!C27 -> Post-E 2: Glyphosate | C30: =IF(AND('2.Strategy'!D$12='2.Strategy'!$P93,'1.Profile'!$C27<>""),U$246,"") ->  | D30: =IF(AND('2.Strategy'!E$12='2.Strategy'!$P93,'1.Profile'!$C27<>""),V$246,"") ->  | E30: =IF(AND('2.Strategy'!F$12='2.Strategy'!$P93,'1.Profile'!$C27<>""),W$246,"") ->  | F30: =IF(AND('2.Strategy'!G$12='2.Strategy'!$P93,'1.Profile'!$C27<>""),X$246,"") ->  | G30: =IF(AND('2.Strategy'!H$12='2.Strategy'!$P93,'1.Profile'!$C27<>""),Y$246,"") -> 6 | H30: =IF(AND('2.Strategy'!I$12='2.Strategy'!$P93,'1.Profile'!$C27<>""),Z$246,"") ->  | I30: =IF(AND('2.Strategy'!J$12='2.Strategy'!$P93,'1.Profile'!$C27<>""),AA$246,"") -> 6 | J30: =IF(AND('2.Strategy'!K$12='2.Strategy'!$P93,'1.Profile'!$C27<>""),AB$246,"") ->  | K30: =IF(AND('2.Strategy'!L$12='2.Strategy'!$P93,'1.Profile'!$C27<>""),AC$246,"") ->  | L30: =IF(AND('2.Strategy'!M$12='2.Strategy'!$P93,'1.Profile'!$C27<>""),AD$246,"") -> 
A31: 25 | B31: ="Post-E 2: "&'1.Profile'!C28 -> Post-E 2: Glufosinate | C31: =IF(AND('2.Strategy'!D$12='2.Strategy'!$P94,'1.Profile'!$C28<>""),U$246,"") ->  | D31: =IF(AND('2.Strategy'!E$12='2.Strategy'!$P94,'1.Profile'!$C28<>""),V$246,"") ->  | E31: =IF(AND('2.Strategy'!F$12='2.Strategy'!$P94,'1.Profile'!$C28<>""),W$246,"") ->  | F31: =IF(AND('2.Strategy'!G$12='2.Strategy'!$P94,'1.Profile'!$C28<>""),X$246,"") ->  | G31: =IF(AND('2.Strategy'!H$12='2.Strategy'!$P94,'1.Profile'!$C28<>""),Y$246,"") ->  | H31: =IF(AND('2.Strategy'!I$12='2.Strategy'!$P94,'1.Profile'!$C28<>""),Z$246,"") ->  | I31: =IF(AND('2.Strategy'!J$12='2.Strategy'!$P94,'1.Profile'!$C28<>""),AA$246,"") ->  | J31: =IF(AND('2.Strategy'!K$12='2.Strategy'!$P94,'1.Profile'!$C28<>""),AB$246,"") ->  | K31: =IF(AND('2.Strategy'!L$12='2.Strategy'!$P94,'1.Profile'!$C28<>""),AC$246,"") ->  | L31: =IF(AND('2.Strategy'!M$12='2.Strategy'!$P94,'1.Profile'!$C28<>""),AD$246,"") -> 
A32: 26 | B32: ="Post-E 2: "&'1.Profile'!C29 -> Post-E 2: Paraquat (shielded) | C32: =IF(AND('2.Strategy'!D$12='2.Strategy'!$P95,'1.Profile'!$C29<>""),U$246,"") ->  | D32: =IF(AND('2.Strategy'!E$12='2.Strategy'!$P95,'1.Profile'!$C29<>""),V$246,"") ->  | E32: =IF(AND('2.Strategy'!F$12='2.Strategy'!$P95,'1.Profile'!$C29<>""),W$246,"") ->  | F32: =IF(AND('2.Strategy'!G$12='2.Strategy'!$P95,'1.Profile'!$C29<>""),X$246,"") ->  | G32: =IF(AND('2.Strategy'!H$12='2.Strategy'!$P95,'1.Profile'!$C29<>""),Y$246,"") ->  | H32: =IF(AND('2.Strategy'!I$12='2.Strategy'!$P95,'1.Profile'!$C29<>""),Z$246,"") ->  | I32: =IF(AND('2.Strategy'!J$12='2.Strategy'!$P95,'1.Profile'!$C29<>""),AA$246,"") ->  | J32: =IF(AND('2.Strategy'!K$12='2.Strategy'!$P95,'1.Profile'!$C29<>""),AB$246,"") ->  | K32: =IF(AND('2.Strategy'!L$12='2.Strategy'!$P95,'1.Profile'!$C29<>""),AC$246,"") ->  | L32: =IF(AND('2.Strategy'!M$12='2.Strategy'!$P95,'1.Profile'!$C29<>""),AD$246,"") ->  | N32: Table 1a. Non-selective herbicides counts
A33: 27 | B33: ="Post-E 2: "&'1.Profile'!C30 -> Post-E 2: Inter-row tillage | C33: =IF(AND('2.Strategy'!D$12='2.Strategy'!$P96,'1.Profile'!$C30<>""),U$246,"") ->  | D33: =IF(AND('2.Strategy'!E$12='2.Strategy'!$P96,'1.Profile'!$C30<>""),V$246,"") ->  | E33: =IF(AND('2.Strategy'!F$12='2.Strategy'!$P96,'1.Profile'!$C30<>""),W$246,"") ->  | F33: =IF(AND('2.Strategy'!G$12='2.Strategy'!$P96,'1.Profile'!$C30<>""),X$246,"") ->  | G33: =IF(AND('2.Strategy'!H$12='2.Strategy'!$P96,'1.Profile'!$C30<>""),Y$246,"") ->  | H33: =IF(AND('2.Strategy'!I$12='2.Strategy'!$P96,'1.Profile'!$C30<>""),Z$246,"") ->  | I33: =IF(AND('2.Strategy'!J$12='2.Strategy'!$P96,'1.Profile'!$C30<>""),AA$246,"") ->  | J33: =IF(AND('2.Strategy'!K$12='2.Strategy'!$P96,'1.Profile'!$C30<>""),AB$246,"") ->  | K33: =IF(AND('2.Strategy'!L$12='2.Strategy'!$P96,'1.Profile'!$C30<>""),AC$246,"") -> 6 | L33: =IF(AND('2.Strategy'!M$12='2.Strategy'!$P96,'1.Profile'!$C30<>""),AD$246,"") ->  | N33: Feeds into the weed control table below, and for phytotoxicity effects in Bio results.
A34: 28 | B34: ="Post-E 2: "&'1.Profile'!C31 -> Post-E 2: Group A | C34: =IF(AND('2.Strategy'!D$12='2.Strategy'!$P97,'1.Profile'!$C31<>""),U$246,"") ->  | D34: =IF(AND('2.Strategy'!E$12='2.Strategy'!$P97,'1.Profile'!$C31<>""),V$246,"") ->  | E34: =IF(AND('2.Strategy'!F$12='2.Strategy'!$P97,'1.Profile'!$C31<>""),W$246,"") ->  | F34: =IF(AND('2.Strategy'!G$12='2.Strategy'!$P97,'1.Profile'!$C31<>""),X$246,"") ->  | G34: =IF(AND('2.Strategy'!H$12='2.Strategy'!$P97,'1.Profile'!$C31<>""),Y$246,"") ->  | H34: =IF(AND('2.Strategy'!I$12='2.Strategy'!$P97,'1.Profile'!$C31<>""),Z$246,"") ->  | I34: =IF(AND('2.Strategy'!J$12='2.Strategy'!$P97,'1.Profile'!$C31<>""),AA$246,"") ->  | J34: =IF(AND('2.Strategy'!K$12='2.Strategy'!$P97,'1.Profile'!$C31<>""),AB$246,"") ->  | K34: =IF(AND('2.Strategy'!L$12='2.Strategy'!$P97,'1.Profile'!$C31<>""),AC$246,"") ->  | L34: =IF(AND('2.Strategy'!M$12='2.Strategy'!$P97,'1.Profile'!$C31<>""),AD$246,"") ->  | N34: Nb of times used | P34: =C1 -> Irrig cotton 1 | Q34: Winter fallow 2 | R34: Irrig cotton 3 | S34: Winter fallow 4 | T34: Irrig cotton 5 | U34: Winter fallow 6 | V34: Irrig cotton 7 | W34: Winter fallow 8 | X34: Irrig cotton 9 | Y34: Winter fallow 10
A35: 29 | B35: ="Post-E 3: "&'1.Profile'!C27 -> Post-E 3: Glyphosate | C35: =IF(AND('2.Strategy'!D$13='2.Strategy'!$P93,'1.Profile'!$C27<>""),U$246,"") -> 6 | D35: =IF(AND('2.Strategy'!E$13='2.Strategy'!$P93,'1.Profile'!$C27<>""),V$246,"") ->  | E35: =IF(AND('2.Strategy'!F$13='2.Strategy'!$P93,'1.Profile'!$C27<>""),W$246,"") -> 6 | F35: =IF(AND('2.Strategy'!G$13='2.Strategy'!$P93,'1.Profile'!$C27<>""),X$246,"") ->  | G35: =IF(AND('2.Strategy'!H$13='2.Strategy'!$P93,'1.Profile'!$C27<>""),Y$246,"") ->  | H35: =IF(AND('2.Strategy'!I$13='2.Strategy'!$P93,'1.Profile'!$C27<>""),Z$246,"") ->  | I35: =IF(AND('2.Strategy'!J$13='2.Strategy'!$P93,'1.Profile'!$C27<>""),AA$246,"") ->  | J35: =IF(AND('2.Strategy'!K$13='2.Strategy'!$P93,'1.Profile'!$C27<>""),AB$246,"") ->  | K35: =IF(AND('2.Strategy'!L$13='2.Strategy'!$P93,'1.Profile'!$C27<>""),AC$246,"") -> 6 | L35: =IF(AND('2.Strategy'!M$13='2.Strategy'!$P93,'1.Profile'!$C27<>""),AD$246,"") ->  | N35: Pre-ems | P35: =COUNT(C12:C16) -> 0 | Q35: =COUNT(D12:D16) -> 0 | R35: 0 | S35: 1 | T35: 1 | U35: 1 | V35: 0 | W35: 0 | X35: 0 | Y35: 1
A36: 30 | B36: ="Post-E 3: "&'1.Profile'!C28 -> Post-E 3: Glufosinate | C36: =IF(AND('2.Strategy'!D$13='2.Strategy'!$P94,'1.Profile'!$C28<>""),U$246,"") ->  | D36: =IF(AND('2.Strategy'!E$13='2.Strategy'!$P94,'1.Profile'!$C28<>""),V$246,"") ->  | E36: =IF(AND('2.Strategy'!F$13='2.Strategy'!$P94,'1.Profile'!$C28<>""),W$246,"") ->  | F36: =IF(AND('2.Strategy'!G$13='2.Strategy'!$P94,'1.Profile'!$C28<>""),X$246,"") ->  | G36: =IF(AND('2.Strategy'!H$13='2.Strategy'!$P94,'1.Profile'!$C28<>""),Y$246,"") ->  | H36: =IF(AND('2.Strategy'!I$13='2.Strategy'!$P94,'1.Profile'!$C28<>""),Z$246,"") ->  | I36: =IF(AND('2.Strategy'!J$13='2.Strategy'!$P94,'1.Profile'!$C28<>""),AA$246,"") ->  | J36: =IF(AND('2.Strategy'!K$13='2.Strategy'!$P94,'1.Profile'!$C28<>""),AB$246,"") ->  | K36: =IF(AND('2.Strategy'!L$13='2.Strategy'!$P94,'1.Profile'!$C28<>""),AC$246,"") ->  | L36: =IF(AND('2.Strategy'!M$13='2.Strategy'!$P94,'1.Profile'!$C28<>""),AD$246,"") ->  | N36: IRT | P36: =COUNT(C19,C20,C28,C38,C46,C51) -> 2 | Q36: =COUNT(D19,D20,D28,D38,D46,D51) -> 0 | R36: 2 | S36: 0 | T36: 2 | U36: 0 | V36: 1 | W36: 0 | X36: 1 | Y36: 0
A37: 31 | B37: ="Post-E 3: "&'1.Profile'!C29 -> Post-E 3: Paraquat (shielded) | C37: =IF(AND('2.Strategy'!D$13='2.Strategy'!$P95,'1.Profile'!$C29<>""),U$246,"") ->  | D37: =IF(AND('2.Strategy'!E$13='2.Strategy'!$P95,'1.Profile'!$C29<>""),V$246,"") ->  | E37: =IF(AND('2.Strategy'!F$13='2.Strategy'!$P95,'1.Profile'!$C29<>""),W$246,"") ->  | F37: =IF(AND('2.Strategy'!G$13='2.Strategy'!$P95,'1.Profile'!$C29<>""),X$246,"") ->  | G37: =IF(AND('2.Strategy'!H$13='2.Strategy'!$P95,'1.Profile'!$C29<>""),Y$246,"") ->  | H37: =IF(AND('2.Strategy'!I$13='2.Strategy'!$P95,'1.Profile'!$C29<>""),Z$246,"") ->  | I37: =IF(AND('2.Strategy'!J$13='2.Strategy'!$P95,'1.Profile'!$C29<>""),AA$246,"") ->  | J37: =IF(AND('2.Strategy'!K$13='2.Strategy'!$P95,'1.Profile'!$C29<>""),AB$246,"") ->  | K37: =IF(AND('2.Strategy'!L$13='2.Strategy'!$P95,'1.Profile'!$C29<>""),AC$246,"") ->  | L37: =IF(AND('2.Strategy'!M$13='2.Strategy'!$P95,'1.Profile'!$C29<>""),AD$246,"") ->  | N37: Layby options | P37: =COUNT(C40:C42) -> 1 | Q37: =COUNT(D40:D42) -> 1 | R37: 0 | S37: 0 | T37: 0 | U37: 0 | V37: 0 | W37: 0 | X37: 0 | Y37: 0
A38: 32 | B38: ="Post-E 3: "&'1.Profile'!C30 -> Post-E 3: Inter-row tillage | C38: =IF(AND('2.Strategy'!D$13='2.Strategy'!$P96,'1.Profile'!$C30<>""),U$246,"") ->  | D38: =IF(AND('2.Strategy'!E$13='2.Strategy'!$P96,'1.Profile'!$C30<>""),V$246,"") ->  | E38: =IF(AND('2.Strategy'!F$13='2.Strategy'!$P96,'1.Profile'!$C30<>""),W$246,"") ->  | F38: =IF(AND('2.Strategy'!G$13='2.Strategy'!$P96,'1.Profile'!$C30<>""),X$246,"") ->  | G38: =IF(AND('2.Strategy'!H$13='2.Strategy'!$P96,'1.Profile'!$C30<>""),Y$246,"") -> 6 | H38: =IF(AND('2.Strategy'!I$13='2.Strategy'!$P96,'1.Profile'!$C30<>""),Z$246,"") ->  | I38: =IF(AND('2.Strategy'!J$13='2.Strategy'!$P96,'1.Profile'!$C30<>""),AA$246,"") ->  | J38: =IF(AND('2.Strategy'!K$13='2.Strategy'!$P96,'1.Profile'!$C30<>""),AB$246,"") ->  | K38: =IF(AND('2.Strategy'!L$13='2.Strategy'!$P96,'1.Profile'!$C30<>""),AC$246,"") ->  | L38: =IF(AND('2.Strategy'!M$13='2.Strategy'!$P96,'1.Profile'!$C30<>""),AD$246,"") -> 
A39: 33 | B39: ="Post-E 3: "&'1.Profile'!C31 -> Post-E 3: Group A | C39: =IF(AND('2.Strategy'!D$13='2.Strategy'!$P97,'1.Profile'!$C31<>""),U$246,"") ->  | D39: =IF(AND('2.Strategy'!E$13='2.Strategy'!$P97,'1.Profile'!$C31<>""),V$246,"") ->  | E39: =IF(AND('2.Strategy'!F$13='2.Strategy'!$P97,'1.Profile'!$C31<>""),W$246,"") ->  | F39: =IF(AND('2.Strategy'!G$13='2.Strategy'!$P97,'1.Profile'!$C31<>""),X$246,"") ->  | G39: =IF(AND('2.Strategy'!H$13='2.Strategy'!$P97,'1.Profile'!$C31<>""),Y$246,"") ->  | H39: =IF(AND('2.Strategy'!I$13='2.Strategy'!$P97,'1.Profile'!$C31<>""),Z$246,"") ->  | I39: =IF(AND('2.Strategy'!J$13='2.Strategy'!$P97,'1.Profile'!$C31<>""),AA$246,"") ->  | J39: =IF(AND('2.Strategy'!K$13='2.Strategy'!$P97,'1.Profile'!$C31<>""),AB$246,"") ->  | K39: =IF(AND('2.Strategy'!L$13='2.Strategy'!$P97,'1.Profile'!$C31<>""),AC$246,"") ->  | L39: =IF(AND('2.Strategy'!M$13='2.Strategy'!$P97,'1.Profile'!$C31<>""),AD$246,"") -> 
A40: 34 | B40: ="Layby: "&'2.Strategy'!$D92 -> Layby: Topping | C40: =IF('2.Strategy'!D$14='2.Strategy'!$D$92,U$246,"") ->  | D40: =IF('2.Strategy'!E$14='2.Strategy'!$D$92,V$246,"") ->  | E40: =IF('2.Strategy'!F$14='2.Strategy'!$D$92,W$246,"") ->  | F40: =IF('2.Strategy'!G$14='2.Strategy'!$D$92,X$246,"") ->  | G40: =IF('2.Strategy'!H$14='2.Strategy'!$D$92,Y$246,"") ->  | H40: =IF('2.Strategy'!I$14='2.Strategy'!$D$92,Z$246,"") ->  | I40: =IF('2.Strategy'!J$14='2.Strategy'!$D$92,AA$246,"") ->  | J40: =IF('2.Strategy'!K$14='2.Strategy'!$D$92,AB$246,"") ->  | K40: =IF('2.Strategy'!L$14='2.Strategy'!$D$92,AC$246,"") ->  | L40: =IF('2.Strategy'!M$14='2.Strategy'!$D$92,AD$246,"") ->  | N40: Total, phyto-causing herbicides | P40: =SUM(P35:P39)+COUNT(C12:C16) -> 3 | Q40: 1 | R40: 2 | S40: 2 | T40: 4 | U40: 2 | V40: 1 | W40: 0 | X40: 1 | Y40: 2
A41: 35 | B41: ="Layby: "&'2.Strategy'!$D90 -> Layby: Diuron | C41: =IF('2.Strategy'!D$14='2.Strategy'!$D$90,U$246,"") ->  | D41: =IF('2.Strategy'!E$14='2.Strategy'!$D$90,V$246,"") -> 8 | E41: =IF('2.Strategy'!F$14='2.Strategy'!$D$90,W$246,"") ->  | F41: =IF('2.Strategy'!G$14='2.Strategy'!$D$90,X$246,"") ->  | G41: =IF('2.Strategy'!H$14='2.Strategy'!$D$90,Y$246,"") ->  | H41: =IF('2.Strategy'!I$14='2.Strategy'!$D$90,Z$246,"") ->  | I41: =IF('2.Strategy'!J$14='2.Strategy'!$D$90,AA$246,"") ->  | J41: =IF('2.Strategy'!K$14='2.Strategy'!$D$90,AB$246,"") ->  | K41: =IF('2.Strategy'!L$14='2.Strategy'!$D$90,AC$246,"") ->  | L41: =IF('2.Strategy'!M$14='2.Strategy'!$D$90,AD$246,"") -> 
A42: 36 | B42: ="Layby: "&'2.Strategy'!$D91 -> Layby: Pendimetha | C42: =IF('2.Strategy'!D14='2.Strategy'!$D$91,U$246,"") -> 6 | D42: =IF('2.Strategy'!E14='2.Strategy'!$D$91,V$246,"") ->  | E42: =IF('2.Strategy'!F14='2.Strategy'!$D$91,W$246,"") ->  | F42: =IF('2.Strategy'!G14='2.Strategy'!$D$91,X$246,"") ->  | G42: =IF('2.Strategy'!H14='2.Strategy'!$D$91,Y$246,"") ->  | H42: =IF('2.Strategy'!I14='2.Strategy'!$D$91,Z$246,"") ->  | I42: =IF('2.Strategy'!J14='2.Strategy'!$D$91,AA$246,"") ->  | J42: =IF('2.Strategy'!K14='2.Strategy'!$D$91,AB$246,"") ->  | K42: =IF('2.Strategy'!L14='2.Strategy'!$D$91,AC$246,"") ->  | L42: =IF('2.Strategy'!M14='2.Strategy'!$D$91,AD$246,"") ->  | N42: Table 1b. Error and sowing handling, herbicides type counts
A43: 37 | B43: ="Post-E 5: "&'1.Profile'!C27 -> Post-E 5: Glyphosate | C43: =IF(AND('2.Strategy'!D$15='2.Strategy'!$P93,'1.Profile'!$C27<>""),U$246,"") ->  | D43: =IF(AND('2.Strategy'!E$15='2.Strategy'!$P93,'1.Profile'!$C27<>""),V$246,"") -> 8 | E43: =IF(AND('2.Strategy'!F$15='2.Strategy'!$P93,'1.Profile'!$C27<>""),W$246,"") ->  | F43: =IF(AND('2.Strategy'!G$15='2.Strategy'!$P93,'1.Profile'!$C27<>""),X$246,"") ->  | G43: =IF(AND('2.Strategy'!H$15='2.Strategy'!$P93,'1.Profile'!$C27<>""),Y$246,"") ->  | H43: =IF(AND('2.Strategy'!I$15='2.Strategy'!$P93,'1.Profile'!$C27<>""),Z$246,"") ->  | I43: =IF(AND('2.Strategy'!J$15='2.Strategy'!$P93,'1.Profile'!$C27<>""),AA$246,"") ->  | J43: =IF(AND('2.Strategy'!K$15='2.Strategy'!$P93,'1.Profile'!$C27<>""),AB$246,"") ->  | K43: =IF(AND('2.Strategy'!L$15='2.Strategy'!$P93,'1.Profile'!$C27<>""),AC$246,"") ->  | L43: =IF(AND('2.Strategy'!M$15='2.Strategy'!$P93,'1.Profile'!$C27<>""),AD$246,"") ->  | N43: Adjust the tables in the middle of the strategy page, that controls the error messages and the white cells within the strategy table
A44: 38 | B44: ="Post-E 5: "&'1.Profile'!C28 -> Post-E 5: Glufosinate | C44: =IF(AND('2.Strategy'!D$15='2.Strategy'!$P94,'1.Profile'!$C28<>""),U$246,"") ->  | D44: =IF(AND('2.Strategy'!E$15='2.Strategy'!$P94,'1.Profile'!$C28<>""),V$246,"") ->  | E44: =IF(AND('2.Strategy'!F$15='2.Strategy'!$P94,'1.Profile'!$C28<>""),W$246,"") ->  | F44: =IF(AND('2.Strategy'!G$15='2.Strategy'!$P94,'1.Profile'!$C28<>""),X$246,"") ->  | G44: =IF(AND('2.Strategy'!H$15='2.Strategy'!$P94,'1.Profile'!$C28<>""),Y$246,"") ->  | H44: =IF(AND('2.Strategy'!I$15='2.Strategy'!$P94,'1.Profile'!$C28<>""),Z$246,"") ->  | I44: =IF(AND('2.Strategy'!J$15='2.Strategy'!$P94,'1.Profile'!$C28<>""),AA$246,"") ->  | J44: =IF(AND('2.Strategy'!K$15='2.Strategy'!$P94,'1.Profile'!$C28<>""),AB$246,"") ->  | K44: =IF(AND('2.Strategy'!L$15='2.Strategy'!$P94,'1.Profile'!$C28<>""),AC$246,"") ->  | L44: =IF(AND('2.Strategy'!M$15='2.Strategy'!$P94,'1.Profile'!$C28<>""),AD$246,"") ->  | N44: Nb of spring/harvest options | P44: =COUNTIF(C41:C52,">=0")+(IF((ISERROR(FIND('2.Strategy'!D4,'2.Strategy'!$AV$18,1))=TRUE),COUNTIF(C53:C58,">=0"),0)) -> 2 | Q44: =COUNTIF(D41:D52,">=0")+(IF((ISERROR(FIND('2.Strategy'!E4,'2.Strategy'!$AV$18,1))=TRUE),COUNTIF(D53:D58,">=0"),0)) -> 2 | R44: =COUNTIF(E41:E52,">=0")+(IF((ISERROR(FIND('2.Strategy'!F4,'2.Strategy'!$AV$18,1))=TRUE),COUNTIF(E53:E58,">=0"),0)) -> 1 | S44: =COUNTIF(F41:F52,">=0")+(IF((ISERROR(FIND('2.Strategy'!G4,'2.Strategy'!$AV$18,1))=TRUE),COUNTIF(F53:F58,">=0"),0)) -> 0 | T44: =COUNTIF(G41:G52,">=0")+(IF((ISERROR(FIND('2.Strategy'!H4,'2.Strategy'!$AV$18,1))=TRUE),COUNTIF(G53:G58,">=0"),0)) -> 1 | U44: =COUNTIF(H41:H52,">=0")+(IF((ISERROR(FIND('2.Strategy'!I4,'2.Strategy'!$AV$18,1))=TRUE),COUNTIF(H53:H58,">=0"),0)) -> 0 | V44: =COUNTIF(I41:I52,">=0")+(IF((ISERROR(FIND('2.Strategy'!J4,'2.Strategy'!$AV$18,1))=TRUE),COUNTIF(I53:I58,">=0"),0)) -> 1 | W44: =COUNTIF(J41:J52,">=0")+(IF((ISERROR(FIND('2.Strategy'!K4,'2.Strategy'!$AV$18,1))=TRUE),COUNTIF(J53:J58,">=0"),0)) -> 0 | X44: =COUNTIF(K41:K52,">=0")+(IF((ISERROR(FIND('2.Strategy'!L4,'2.Strategy'!$AV$18,1))=TRUE),COUNTIF(K53:K58,">=0"),0)) -> 1 | Y44: =COUNTIF(L41:L52,">=0")+(IF((ISERROR(FIND('2.Strategy'!M4,'2.Strategy'!$AV$18,1))=TRUE),COUNTIF(L53:L58,">=0"),0)) -> 0
A45: 39 | B45: ="Post-E 5: "&'1.Profile'!C29 -> Post-E 5: Paraquat (shielded) | C45: =IF(AND('2.Strategy'!D$15='2.Strategy'!$P95,'1.Profile'!$C29<>""),U$246,"") ->  | D45: =IF(AND('2.Strategy'!E$15='2.Strategy'!$P95,'1.Profile'!$C29<>""),V$246,"") ->  | E45: =IF(AND('2.Strategy'!F$15='2.Strategy'!$P95,'1.Profile'!$C29<>""),W$246,"") ->  | F45: =IF(AND('2.Strategy'!G$15='2.Strategy'!$P95,'1.Profile'!$C29<>""),X$246,"") ->  | G45: =IF(AND('2.Strategy'!H$15='2.Strategy'!$P95,'1.Profile'!$C29<>""),Y$246,"") ->  | H45: =IF(AND('2.Strategy'!I$15='2.Strategy'!$P95,'1.Profile'!$C29<>""),Z$246,"") ->  | I45: =IF(AND('2.Strategy'!J$15='2.Strategy'!$P95,'1.Profile'!$C29<>""),AA$246,"") ->  | J45: =IF(AND('2.Strategy'!K$15='2.Strategy'!$P95,'1.Profile'!$C29<>""),AB$246,"") ->  | K45: =IF(AND('2.Strategy'!L$15='2.Strategy'!$P95,'1.Profile'!$C29<>""),AC$246,"") ->  | L45: =IF(AND('2.Strategy'!M$15='2.Strategy'!$P95,'1.Profile'!$C29<>""),AD$246,"") ->  | N45: Cotton or legumes consecutively (Err 4) | P45: =IF(OR(AND(D217=2, E217=2),AND(D217=3,E217=3)),1,0) -> 0 | Q45: 0 | R45: 0 | S45: 0 | T45: 0 | U45: 0 | V45: 0 | W45: 0 | X45: =IF(OR(AND(L217=2, M217=2),AND(L217=3,M217=3)),1,0) -> 0 | Y45: =IF(OR(AND(M217=2, N217=2),AND(M217=3,N217=3)),1,0) -> 0
A46: 40 | B46: ="Post-E 5: "&'1.Profile'!C30 -> Post-E 5: Inter-row tillage | C46: =IF(AND('2.Strategy'!D$15='2.Strategy'!$P96,'1.Profile'!$C30<>""),U$246,"") ->  | D46: =IF(AND('2.Strategy'!E$15='2.Strategy'!$P96,'1.Profile'!$C30<>""),V$246,"") ->  | E46: =IF(AND('2.Strategy'!F$15='2.Strategy'!$P96,'1.Profile'!$C30<>""),W$246,"") -> 6 | F46: =IF(AND('2.Strategy'!G$15='2.Strategy'!$P96,'1.Profile'!$C30<>""),X$246,"") ->  | G46: =IF(AND('2.Strategy'!H$15='2.Strategy'!$P96,'1.Profile'!$C30<>""),Y$246,"") ->  | H46: =IF(AND('2.Strategy'!I$15='2.Strategy'!$P96,'1.Profile'!$C30<>""),Z$246,"") ->  | I46: =IF(AND('2.Strategy'!J$15='2.Strategy'!$P96,'1.Profile'!$C30<>""),AA$246,"") ->  | J46: =IF(AND('2.Strategy'!K$15='2.Strategy'!$P96,'1.Profile'!$C30<>""),AB$246,"") ->  | K46: =IF(AND('2.Strategy'!L$15='2.Strategy'!$P96,'1.Profile'!$C30<>""),AC$246,"") -> 6 | L46: =IF(AND('2.Strategy'!M$15='2.Strategy'!$P96,'1.Profile'!$C30<>""),AD$246,"") ->  | Z46: only in first year of a run of Cadiz, but also is previous year=GM, BM, high intensity grazing, and if Hay/Sil in the past two years
A47: 41 | B47: ="Post-E 5: "&'1.Profile'!C31 -> Post-E 5: Group A | C47: =IF(AND('2.Strategy'!D$15='2.Strategy'!$P97,'1.Profile'!$C31<>""),U$246,"") ->  | D47: =IF(AND('2.Strategy'!E$15='2.Strategy'!$P97,'1.Profile'!$C31<>""),V$246,"") ->  | E47: =IF(AND('2.Strategy'!F$15='2.Strategy'!$P97,'1.Profile'!$C31<>""),W$246,"") ->  | F47: =IF(AND('2.Strategy'!G$15='2.Strategy'!$P97,'1.Profile'!$C31<>""),X$246,"") ->  | G47: =IF(AND('2.Strategy'!H$15='2.Strategy'!$P97,'1.Profile'!$C31<>""),Y$246,"") ->  | H47: =IF(AND('2.Strategy'!I$15='2.Strategy'!$P97,'1.Profile'!$C31<>""),Z$246,"") ->  | I47: =IF(AND('2.Strategy'!J$15='2.Strategy'!$P97,'1.Profile'!$C31<>""),AA$246,"") ->  | J47: =IF(AND('2.Strategy'!K$15='2.Strategy'!$P97,'1.Profile'!$C31<>""),AB$246,"") ->  | K47: =IF(AND('2.Strategy'!L$15='2.Strategy'!$P97,'1.Profile'!$C31<>""),AC$246,"") ->  | L47: =IF(AND('2.Strategy'!M$15='2.Strategy'!$P97,'1.Profile'!$C31<>""),AD$246,"") ->  | Z47: only if no clover in the past 3 years
A48: 42 | B48: ="Post-E 6: "&'1.Profile'!C27 -> Post-E 6: Glyphosate | C48: =IF(AND('2.Strategy'!D$16='2.Strategy'!$P93,'1.Profile'!$C27<>""),U$246,"") -> 6 | D48: =IF(AND('2.Strategy'!E$16='2.Strategy'!$P93,'1.Profile'!$C27<>""),V$246,"") ->  | E48: =IF(AND('2.Strategy'!F$16='2.Strategy'!$P93,'1.Profile'!$C27<>""),W$246,"") ->  | F48: =IF(AND('2.Strategy'!G$16='2.Strategy'!$P93,'1.Profile'!$C27<>""),X$246,"") ->  | G48: =IF(AND('2.Strategy'!H$16='2.Strategy'!$P93,'1.Profile'!$C27<>""),Y$246,"") -> 6 | H48: =IF(AND('2.Strategy'!I$16='2.Strategy'!$P93,'1.Profile'!$C27<>""),Z$246,"") ->  | I48: =IF(AND('2.Strategy'!J$16='2.Strategy'!$P93,'1.Profile'!$C27<>""),AA$246,"") -> 6 | J48: =IF(AND('2.Strategy'!K$16='2.Strategy'!$P93,'1.Profile'!$C27<>""),AB$246,"") ->  | K48: =IF(AND('2.Strategy'!L$16='2.Strategy'!$P93,'1.Profile'!$C27<>""),AC$246,"") ->  | L48: =IF(AND('2.Strategy'!M$16='2.Strategy'!$P93,'1.Profile'!$C27<>""),AD$246,"") ->  | Z48: only important if 0 or 1+ (then sub-lethal effect of selective on RG seed, spring)
A49: 43 | B49: ="Post-E 6: "&'1.Profile'!C28 -> Post-E 6: Glufosinate | C49: =IF(AND('2.Strategy'!D$16='2.Strategy'!$P94,'1.Profile'!$C28<>""),U$246,"") ->  | D49: =IF(AND('2.Strategy'!E$16='2.Strategy'!$P94,'1.Profile'!$C28<>""),V$246,"") ->  | E49: =IF(AND('2.Strategy'!F$16='2.Strategy'!$P94,'1.Profile'!$C28<>""),W$246,"") ->  | F49: =IF(AND('2.Strategy'!G$16='2.Strategy'!$P94,'1.Profile'!$C28<>""),X$246,"") ->  | G49: =IF(AND('2.Strategy'!H$16='2.Strategy'!$P94,'1.Profile'!$C28<>""),Y$246,"") ->  | H49: =IF(AND('2.Strategy'!I$16='2.Strategy'!$P94,'1.Profile'!$C28<>""),Z$246,"") ->  | I49: =IF(AND('2.Strategy'!J$16='2.Strategy'!$P94,'1.Profile'!$C28<>""),AA$246,"") ->  | J49: =IF(AND('2.Strategy'!K$16='2.Strategy'!$P94,'1.Profile'!$C28<>""),AB$246,"") ->  | K49: =IF(AND('2.Strategy'!L$16='2.Strategy'!$P94,'1.Profile'!$C28<>""),AC$246,"") ->  | L49: =IF(AND('2.Strategy'!M$16='2.Strategy'!$P94,'1.Profile'!$C28<>""),AD$246,"") ->  | N49: Number of late non-selective application | P49: =COUNTIF(C43:C52,">=0") -> 1 | Q49: =COUNTIF(D43:D52,">=0") -> 1 | R49: 1 | S49: 0 | T49: 1 | U49: 0 | V49: 1 | W49: 0 | X49: 1 | Y49: 0 | Z49: only important if 0 or 1+ (then sub-lethal effect of selective on RG seed, spring)
A50: 44 | B50: ="Post-E 6: "&'1.Profile'!C29 -> Post-E 6: Paraquat (shielded) | C50: =IF(AND('2.Strategy'!D$16='2.Strategy'!$P95,'1.Profile'!$C29<>""),U$246,"") ->  | D50: =IF(AND('2.Strategy'!E$16='2.Strategy'!$P95,'1.Profile'!$C29<>""),V$246,"") ->  | E50: =IF(AND('2.Strategy'!F$16='2.Strategy'!$P95,'1.Profile'!$C29<>""),W$246,"") ->  | F50: =IF(AND('2.Strategy'!G$16='2.Strategy'!$P95,'1.Profile'!$C29<>""),X$246,"") ->  | G50: =IF(AND('2.Strategy'!H$16='2.Strategy'!$P95,'1.Profile'!$C29<>""),Y$246,"") ->  | H50: =IF(AND('2.Strategy'!I$16='2.Strategy'!$P95,'1.Profile'!$C29<>""),Z$246,"") ->  | I50: =IF(AND('2.Strategy'!J$16='2.Strategy'!$P95,'1.Profile'!$C29<>""),AA$246,"") ->  | J50: =IF(AND('2.Strategy'!K$16='2.Strategy'!$P95,'1.Profile'!$C29<>""),AB$246,"") ->  | K50: =IF(AND('2.Strategy'!L$16='2.Strategy'!$P95,'1.Profile'!$C29<>""),AC$246,"") ->  | L50: =IF(AND('2.Strategy'!M$16='2.Strategy'!$P95,'1.Profile'!$C29<>""),AD$246,"") -> 
A51: 45 | B51: ="Post-E 6: "&'1.Profile'!C30 -> Post-E 6: Inter-row tillage | C51: =IF(AND('2.Strategy'!D$16='2.Strategy'!$P96,'1.Profile'!$C30<>""),U$246,"") ->  | D51: =IF(AND('2.Strategy'!E$16='2.Strategy'!$P96,'1.Profile'!$C30<>""),V$246,"") ->  | E51: =IF(AND('2.Strategy'!F$16='2.Strategy'!$P96,'1.Profile'!$C30<>""),W$246,"") ->  | F51: =IF(AND('2.Strategy'!G$16='2.Strategy'!$P96,'1.Profile'!$C30<>""),X$246,"") ->  | G51: =IF(AND('2.Strategy'!H$16='2.Strategy'!$P96,'1.Profile'!$C30<>""),Y$246,"") ->  | H51: =IF(AND('2.Strategy'!I$16='2.Strategy'!$P96,'1.Profile'!$C30<>""),Z$246,"") ->  | I51: =IF(AND('2.Strategy'!J$16='2.Strategy'!$P96,'1.Profile'!$C30<>""),AA$246,"") ->  | J51: =IF(AND('2.Strategy'!K$16='2.Strategy'!$P96,'1.Profile'!$C30<>""),AB$246,"") ->  | K51: =IF(AND('2.Strategy'!L$16='2.Strategy'!$P96,'1.Profile'!$C30<>""),AC$246,"") ->  | L51: =IF(AND('2.Strategy'!M$16='2.Strategy'!$P96,'1.Profile'!$C30<>""),AD$246,"") -> 
A52: 46 | B52: ="Post-E 6: "&'1.Profile'!C31 -> Post-E 6: Group A | C52: =IF(AND('2.Strategy'!D$16='2.Strategy'!$P97,'1.Profile'!$C31<>""),U$246,"") ->  | D52: =IF(AND('2.Strategy'!E$16='2.Strategy'!$P97,'1.Profile'!$C31<>""),V$246,"") ->  | E52: =IF(AND('2.Strategy'!F$16='2.Strategy'!$P97,'1.Profile'!$C31<>""),W$246,"") ->  | F52: =IF(AND('2.Strategy'!G$16='2.Strategy'!$P97,'1.Profile'!$C31<>""),X$246,"") ->  | G52: =IF(AND('2.Strategy'!H$16='2.Strategy'!$P97,'1.Profile'!$C31<>""),Y$246,"") ->  | H52: =IF(AND('2.Strategy'!I$16='2.Strategy'!$P97,'1.Profile'!$C31<>""),Z$246,"") ->  | I52: =IF(AND('2.Strategy'!J$16='2.Strategy'!$P97,'1.Profile'!$C31<>""),AA$246,"") ->  | J52: =IF(AND('2.Strategy'!K$16='2.Strategy'!$P97,'1.Profile'!$C31<>""),AB$246,"") ->  | K52: =IF(AND('2.Strategy'!L$16='2.Strategy'!$P97,'1.Profile'!$C31<>""),AC$246,"") ->  | L52: =IF(AND('2.Strategy'!M$16='2.Strategy'!$P97,'1.Profile'!$C31<>""),AD$246,"") -> 
A53: 47 | B53: ="Harvest: "&'2.Strategy'!D110 -> Harvest: Cart+B. | C53: =IF('2.Strategy'!D$17='2.Strategy'!$D110,U246,"") ->  | D53: =IF('2.Strategy'!E$17='2.Strategy'!$D110,V246,"") ->  | E53: =IF('2.Strategy'!F$17='2.Strategy'!$D110,W246,"") ->  | F53: =IF('2.Strategy'!G$17='2.Strategy'!$D110,X246,"") ->  | G53: =IF('2.Strategy'!H$17='2.Strategy'!$D110,Y246,"") ->  | H53: =IF('2.Strategy'!I$17='2.Strategy'!$D110,Z246,"") ->  | I53: =IF('2.Strategy'!J$17='2.Strategy'!$D110,AA246,"") ->  | J53: =IF('2.Strategy'!K$17='2.Strategy'!$D110,AB246,"") ->  | K53: =IF('2.Strategy'!L$17='2.Strategy'!$D110,AC246,"") ->  | L53: =IF('2.Strategy'!M$17='2.Strategy'!$D110,AD246,"") -> 
A54: 48 | B54: ="Harvest: "&'2.Strategy'!D111 -> Harvest: Narr+B. | C54: =IF('2.Strategy'!D$17='2.Strategy'!$D111,U246,"") ->  | D54: =IF('2.Strategy'!E$17='2.Strategy'!$D111,V246,"") ->  | E54: =IF('2.Strategy'!F$17='2.Strategy'!$D111,W246,"") ->  | F54: =IF('2.Strategy'!G$17='2.Strategy'!$D111,X246,"") ->  | G54: =IF('2.Strategy'!H$17='2.Strategy'!$D111,Y246,"") ->  | H54: =IF('2.Strategy'!I$17='2.Strategy'!$D111,Z246,"") -> 8 | I54: =IF('2.Strategy'!J$17='2.Strategy'!$D111,AA246,"") ->  | J54: =IF('2.Strategy'!K$17='2.Strategy'!$D111,AB246,"") ->  | K54: =IF('2.Strategy'!L$17='2.Strategy'!$D111,AC246,"") ->  | L54: =IF('2.Strategy'!M$17='2.Strategy'!$D111,AD246,"") -> 
A55: 49 | B55: ="Harvest: "&'2.Strategy'!D112 -> Harvest: HSD | C55: =IF('2.Strategy'!D$17='2.Strategy'!$D112,U246,"") ->  | D55: =IF('2.Strategy'!E$17='2.Strategy'!$D112,V246,"") ->  | E55: =IF('2.Strategy'!F$17='2.Strategy'!$D112,W246,"") ->  | F55: =IF('2.Strategy'!G$17='2.Strategy'!$D112,X246,"") ->  | G55: =IF('2.Strategy'!H$17='2.Strategy'!$D112,Y246,"") ->  | H55: =IF('2.Strategy'!I$17='2.Strategy'!$D112,Z246,"") ->  | I55: =IF('2.Strategy'!J$17='2.Strategy'!$D112,AA246,"") ->  | J55: =IF('2.Strategy'!K$17='2.Strategy'!$D112,AB246,"") ->  | K55: =IF('2.Strategy'!L$17='2.Strategy'!$D112,AC246,"") ->  | L55: =IF('2.Strategy'!M$17='2.Strategy'!$D112,AD246,"") -> 
A56: 50 | B56: ="Harvest: "&'2.Strategy'!D113 -> Harvest: Tram. | C56: =IF('2.Strategy'!D$17='2.Strategy'!$D113,U246,"") ->  | D56: =IF('2.Strategy'!E$17='2.Strategy'!$D113,V246,"") ->  | E56: =IF('2.Strategy'!F$17='2.Strategy'!$D113,W246,"") -> 6 | F56: =IF('2.Strategy'!G$17='2.Strategy'!$D113,X246,"") ->  | G56: =IF('2.Strategy'!H$17='2.Strategy'!$D113,Y246,"") ->  | H56: =IF('2.Strategy'!I$17='2.Strategy'!$D113,Z246,"") ->  | I56: =IF('2.Strategy'!J$17='2.Strategy'!$D113,AA246,"") ->  | J56: =IF('2.Strategy'!K$17='2.Strategy'!$D113,AB246,"") ->  | K56: =IF('2.Strategy'!L$17='2.Strategy'!$D113,AC246,"") ->  | L56: =IF('2.Strategy'!M$17='2.Strategy'!$D113,AD246,"") -> 
A57: 51 | B57: empty slot for adding a harvest option, configured for bales | W57: Legend to the Control and Costs tables:
A58: 52 | B58: ="Harvest: "&'2.Strategy'!D114 -> Harvest: BDS+E. | C58: =IF('2.Strategy'!D$17='2.Strategy'!$D114,U246,"") ->  | D58: =IF('2.Strategy'!E$17='2.Strategy'!$D114,V246,"") ->  | E58: =IF('2.Strategy'!F$17='2.Strategy'!$D114,W246,"") ->  | F58: =IF('2.Strategy'!G$17='2.Strategy'!$D114,X246,"") ->  | G58: =IF('2.Strategy'!H$17='2.Strategy'!$D114,Y246,"") ->  | H58: =IF('2.Strategy'!I$17='2.Strategy'!$D114,Z246,"") ->  | I58: =IF('2.Strategy'!J$17='2.Strategy'!$D114,AA246,"") ->  | J58: =IF('2.Strategy'!K$17='2.Strategy'!$D114,AB246,"") ->  | K58: =IF('2.Strategy'!L$17='2.Strategy'!$D114,AC246,"") ->  | L58: =IF('2.Strategy'!M$17='2.Strategy'!$D114,AD246,"") -> 
A59: 53 | B59: ="Harvest: "&'2.Strategy'!D118 -> Harvest: Burn | C59: =IF('2.Strategy'!D$18='2.Strategy'!$D118,U$246,"") ->  | D59: =IF('2.Strategy'!E$18='2.Strategy'!$D118,V$246,"") ->  | E59: =IF('2.Strategy'!F$18='2.Strategy'!$D118,W$246,"") ->  | F59: =IF('2.Strategy'!G$18='2.Strategy'!$D118,X$246,"") ->  | G59: =IF('2.Strategy'!H$18='2.Strategy'!$D118,Y$246,"") ->  | H59: =IF('2.Strategy'!I$18='2.Strategy'!$D118,Z$246,"") ->  | I59: =IF('2.Strategy'!J$18='2.Strategy'!$D118,AA$246,"") ->  | J59: =IF('2.Strategy'!K$18='2.Strategy'!$D118,AB$246,"") ->  | K59: =IF('2.Strategy'!L$18='2.Strategy'!$D118,AC$246,"") ->  | L59: =IF('2.Strategy'!M$18='2.Strategy'!$D118,AD$246,"") ->  | W59: 22 | X59: results from calculations
A60: 54 | B60: ="Harvest B1: "&'2.Strategy'!D119 -> Harvest B1: Defol glyp | C60: =IF('2.Strategy'!D$18='2.Strategy'!$D119,U$246,"") ->  | D60: =IF('2.Strategy'!E$18='2.Strategy'!$D119,V$246,"") ->  | E60: =IF('2.Strategy'!F$18='2.Strategy'!$D119,W$246,"") ->  | F60: =IF('2.Strategy'!G$18='2.Strategy'!$D119,X$246,"") ->  | G60: =IF('2.Strategy'!H$18='2.Strategy'!$D119,Y$246,"") ->  | H60: =IF('2.Strategy'!I$18='2.Strategy'!$D119,Z$246,"") ->  | I60: =IF('2.Strategy'!J$18='2.Strategy'!$D119,AA$246,"") ->  | J60: =IF('2.Strategy'!K$18='2.Strategy'!$D119,AB$246,"") ->  | K60: =IF('2.Strategy'!L$18='2.Strategy'!$D119,AC$246,"") ->  | L60: =IF('2.Strategy'!M$18='2.Strategy'!$D119,AD$246,"") ->  | W60: 22 | X60: linked to either Profile, Prices, Option pages
A61: 55 | B61: ="Harvest B2: "&'2.Strategy'!D120 -> Harvest B2: Defol Drop | C61: =IF('2.Strategy'!D$18='2.Strategy'!$D120,U$246,"") -> 6 | D61: =IF('2.Strategy'!E$18='2.Strategy'!$D120,V$246,"") ->  | E61: =IF('2.Strategy'!F$18='2.Strategy'!$D120,W$246,"") -> 6 | F61: =IF('2.Strategy'!G$18='2.Strategy'!$D120,X$246,"") ->  | G61: =IF('2.Strategy'!H$18='2.Strategy'!$D120,Y$246,"") -> 6 | H61: =IF('2.Strategy'!I$18='2.Strategy'!$D120,Z$246,"") ->  | I61: =IF('2.Strategy'!J$18='2.Strategy'!$D120,AA$246,"") -> 6 | J61: =IF('2.Strategy'!K$18='2.Strategy'!$D120,AB$246,"") ->  | K61: =IF('2.Strategy'!L$18='2.Strategy'!$D120,AC$246,"") -> 6 | L61: =IF('2.Strategy'!M$18='2.Strategy'!$D120,AD$246,"") ->  | N61: Codes #1: 1=wc, 2=Sorghum, 3=corn, 4=beans, 5=d/l cotton, 6=irri cotton, 7=cover crop, 8=wf, 9=sf | X61: (interface or background calculations)
N62: Table 2a. BYG control (%)
B63: Table 2. Selected RG control (%) | C63: Proportions of weeds or seeds surviving each selected option. | N63: Sorghum | O63: Corn | P63: Beans | Q63: DL Cotton | R63: Irri Cotton | S63: Cov Crop | T63: SF
C64: =1-Control % as specified in Table 2.a on the right. | N64: 2 | O64: 3 | P64: 4 | Q64: 5 | R64: 6 | S64: 7 | T64: 9 | U64: from
A65: 1 | B65: =B7 -> KD/DK: Glyphosate | C65: =IF(C7<>"",1-(HLOOKUP(C7,$N$64:$T$119,$A65+1)),1) -> 0.8 | D65: 1 | E65: =IF(E7<>"",1-(HLOOKUP(E7,$N$64:$T$119,$A65+1)),1) -> 0.8 | F65: 1 | G65: 0.8 | H65: 1 | I65: 0.8 | J65: 1 | K65: 0.8 | L65: 1 | N65: ='1.Profile'!K15 -> 0.2 | O65: ='1.Profile'!K15 -> 0.2 | P65: ='1.Profile'!J15 -> 0.2 | Q65: ='1.Profile'!J15 -> 0.2 | R65: ='1.Profile'!I15 -> 0.2 | S65: ='1.Profile'!K15 -> 0.2 | T65: ='1.Profile'!L15 -> 0.2 | U65: Profile | W65: References for ryegrass control values
A66: 2 | B66: KD/DK: Paraquat | C66: =IF(C8<>"",1-(HLOOKUP(C8,$N$64:$T$119,$A66+1)),1) -> 1 | D66: 1 | E66: 0.05 | F66: 1 | G66: 0.05 | H66: 1 | I66: 0.05 | J66: 1 | K66: 0.05 | L66: 1 | N66: ='1.Profile'!K16 -> 0.95 | O66: ='1.Profile'!K16 -> 0.95 | P66: ='1.Profile'!J16 -> 0.95 | Q66: ='1.Profile'!J16 -> 0.95 | R66: ='1.Profile'!I16 -> 0.95 | S66: ='1.Profile'!K16 -> 0.95 | T66: ='1.Profile'!L16 -> 0.95 | W66: Many people have had input to these control percentages. In reality they vary widely from year to year and from farm to farm and are hence left to the user to define.
A67: 3 | B67: KD/DK: Group A | C67: =IF(C9<>"",1-(HLOOKUP(C9,$N$64:$T$119,$A67+1)),1) -> 1 | D67: 1 | E67: 1 | F67: 1 | G67: 1 | H67: 1 | I67: 1 | J67: 1 | K67: 1 | L67: 1 | N67: ='1.Profile'!K17 -> 0.95 | O67: ='1.Profile'!K17 -> 0.95 | P67: ='1.Profile'!J17 -> 0.95 | Q67: ='1.Profile'!J17 -> 0.95 | R67: ='1.Profile'!I17 -> 0.95 | S67: ='1.Profile'!K17 -> 0.95 | T67: ='1.Profile'!L17 -> 0.95 | W67: A number of those weed control options and their parameters are reviewed in:
A68: 4 | B68: KD/DK: Tillage | C68: =IF(C10<>"",1-(HLOOKUP(C10,$N$64:$T$119,$A68+1)),1) -> 1 | D68: 1 | E68: 1 | F68: 1 | G68: 1 | H68: 1 | I68: 1 | J68: 1 | K68: 1 | L68: 1 | N68: ='1.Profile'!K18 -> 0.96 | O68: ='1.Profile'!K18 -> 0.96 | P68: ='1.Profile'!J18 -> 0.96 | Q68: ='1.Profile'!J18 -> 0.96 | R68: ='1.Profile'!I18 -> 0.96 | S68: ='1.Profile'!K18 -> 0.96 | T68: ='1.Profile'!L18 -> 0.96 | U68: Profile
A69: 5 | B69: KD/DK: Glyphosate/Paraquat | C69: =IF(C11<>"",1-(HLOOKUP(C11,$N$64:$T$119,$A69+1)),1) -> 1 | D69: 1 | E69: 1 | F69: 1 | G69: 1 | H69: 1 | I69: 1 | J69: 1 | K69: 1 | L69: 1 | N69: ='1.Profile'!K19 -> 1 | O69: ='1.Profile'!K19 -> 1 | P69: ='1.Profile'!J19 -> 1 | Q69: ='1.Profile'!J19 -> 1 | R69: ='1.Profile'!I19 -> 1 | S69: ='1.Profile'!K19 -> 1 | T69: ='1.Profile'!L19 -> 1 | W69: Walsh, M. and Powles, S. (2007) Management Strategies for Herbicide-Resistant Weed Populations in Australian Dryland Crop Production Systems. Weed Technology 21:332–338
A70: 6 | B70: Pre-E: Trifluralin | C70: =IF(C12<>"",1-(HLOOKUP(C12,$N$64:$T$119,$A70+1)),1) -> 1 | D70: 1 | E70: =IF(E12<>"",1-(HLOOKUP(E12,$N$64:$T$119,$A70+1)),1) -> 1 | F70: 1 | G70: 1 | H70: 1 | I70: 1 | J70: 1 | K70: 1 | L70: 1 | N70: ='1.Profile'!K21 -> 0.85 | O70: ='1.Profile'!K21 -> 0.85 | P70: ='1.Profile'!J21 -> 0.85 | Q70: ='1.Profile'!J21 -> 0.85 | R70: ='1.Profile'!I21 -> 0.85 | S70: ='1.Profile'!K21 -> 0.85 | T70: ='1.Profile'!L21 -> 0.85 | W70: Goggin, D.E., Powles, S.B. and Steadman, K,J. (2012) Understanding Lolium rigidum Seeds: The Key to Managing a Problem Weed? Agronomy 2:222-239
A71: 7 | B71: Pre-E: Diuron | C71: =IF(C13<>"",1-(HLOOKUP(C13,$N$64:$T$119,$A71+1)),1) -> 1 | D71: 1 | E71: 1 | F71: 1 | G71: 1 | H71: 1 | I71: 1 | J71: 1 | K71: 1 | L71: 1 | N71: ='1.Profile'!K22 -> 0.85 | O71: ='1.Profile'!K22 -> 0.85 | P71: ='1.Profile'!J22 -> 0.85 | Q71: ='1.Profile'!J22 -> 0.85 | R71: ='1.Profile'!I22 -> 0.85 | S71: ='1.Profile'!K22 -> 0.85 | T71: ='1.Profile'!L22 -> 0.85 | W71: Walsh, M. and P. Newman (2007) Burning narrow windrows for weed seed destruction. Field Crops Research 104:24–30.
A72: 8 | B72: Pre-E: Pendimethalin | C72: =IF(C14<>"",1-(HLOOKUP(C14,$N$64:$T$119,$A72+1)),1) -> 1 | D72: 1 | E72: 1 | F72: 1 | G72: 0.18 | H72: 1 | I72: 1 | J72: 1 | K72: 1 | L72: 1 | N72: ='1.Profile'!K23 -> 0.8 | O72: ='1.Profile'!K23 -> 0.8 | P72: ='1.Profile'!J23 -> 0.8 | Q72: ='1.Profile'!J23 -> 0.8 | R72: ='1.Profile'!I23 -> 0.82 | S72: ='1.Profile'!K23 -> 0.8 | T72: ='1.Profile'!L23 -> 0.8 | W72: Walsh, M., Harrington, R. and Powles, S (2012) Harrington Seed Destructor: a new non-chemical weed control tool for global grain crops. Crop Science (2012) 52:1343-1347
A73: 9 | B73: Pre-E: s-Metolachlor | C73: =IF(C15<>"",1-(HLOOKUP(C15,$N$64:$T$119,$A73+1)),1) -> 1 | D73: 1 | E73: 1 | F73: 1 | G73: 1 | H73: 1 | I73: 1 | J73: 1 | K73: 1 | L73: 1 | N73: ='1.Profile'!K24 -> 0.9 | O73: ='1.Profile'!K24 -> 0.9 | P73: ='1.Profile'!J24 -> 0.9 | Q73: ='1.Profile'!J24 -> 0.9 | R73: ='1.Profile'!I24 -> 0.92 | S73: ='1.Profile'!K24 -> 0.9 | T73: ='1.Profile'!L24 -> 0.9 | W73: ='1.Profile'!E50 -> Additional references for the default Profile, Options and Prices (2012): Stephen Powles (AHRI, UWA), Vanessa Stewart (DAFWA), Abul Ashem (DAFWA), David Pfeiffer (Synergy Consulting), Alistair Drapper, Bevan Addison.
A74: 10 | B74: Pre-E: Fluometuron+Prometryn | C74: =IF(C16<>"",1-(HLOOKUP(C16,$N$64:$T$119,$A74+1)),1) -> 1 | D74: 1 | E74: 1 | F74: 1 | G74: 1 | H74: 1 | I74: 1 | J74: 1 | K74: 1 | L74: 1 | N74: ='1.Profile'!K25 -> 0.85 | O74: ='1.Profile'!K25 -> 0.85 | P74: ='1.Profile'!J25 -> 0.85 | Q74: ='1.Profile'!J25 -> 0.85 | R74: ='1.Profile'!I25 -> 0.86 | S74: ='1.Profile'!K25 -> 0.85 | T74: ='1.Profile'!L25 -> 0.85
A75: 11 | B75: High crop seeding rate selected | D75: Dealt with in Bio results. | W75: Knock-down: | Y75: 0.95
A76: 12 | B76: Tickle selected | D76: Changes the RG emergence patterns, but does not control. | W76: Double-knock: | Y76: 1
A77: 13 | B77: Cultivate selected | C77: =IF(C19<>"",1-HLOOKUP(C19,$N$64:$T$119,$A77+1),1) -> 0.05 | D77: 1 | E77: =IF(E19<>"",1-HLOOKUP(E19,$N$64:$T$119,$A77+1),1) -> 0.05 | F77: 1 | G77: 0.05 | H77: 1 | I77: 0.05 | J77: 1 | K77: 1 | L77: 1 | N77: ='+Options'!$Q$22 -> 0.95 | O77: ='+Options'!$Q$22 -> 0.95 | P77: ='+Options'!$Q$22 -> 0.95 | Q77: ='+Options'!$Q$22 -> 0.95 | R77: ='+Options'!$Q$22 -> 0.95 | S77: ='+Options'!$Q$22 -> 0.95 | T77: ='+Options'!$Q$22 -> 0.95
A78: 14 | B78: Full disturbance tillage | D78: The control % is applied to the 'time of seeding' options, below. | O78: Seeding timing & type | P78: No-till | Q78: Full disturb | W78: Tickle: | Y78: 0
A79: 15 | B79: =B21 -> Very early sowing | D79: No weed control | F79: 1 | O79: =B79 -> Very early sowing | P79: ='+Options'!Q21 -> 0.2 | Q79: ='+Options'!Q22 -> 0.95 | R79: Same control for | U79: Options | W79: Mouldboard plough | Y79: 1
A80: 16 | B80: Early sowing | C80: =IF(C22<>"",1-IF(C$20<>"",$Q79,$P79),1) -> 1 | D80: 1 | E80: =IF(E22<>"",1-IF(E$20<>"",$Q79,$P79),1) -> 1 | F80: 1 | G80: 1 | H80: 1 | I80: 1 | J80: 1 | K80: 1 | L80: 1 | O80: =B80 -> Early sowing | P80: =P79 -> 0.2 | Q80: 0.95 | R80: all crops and pastures | W80: No-till: | Y80: 0.05 | Z80: same if delayed
A81: 17 | B81: Average sowing time | C81: =IF(C23<>"",1-IF(C$20<>"",$Q80,$P80),1) -> 0.05 | D81: 1 | E81: =IF(E23<>"",1-IF(E$20<>"",$Q80,$P80),1) -> 0.8 | F81: 1 | G81: 0.8 | H81: 1 | I81: 0.8 | J81: 1 | K81: 0.8 | L81: 1 | O81: =B81 -> Average sowing time | P81: 0.2 | Q81: 0.95 | W81: Full-cut: | Y81: 0.8 | Z81: same if delayed
A82: 18 | B82: Sow late | C82: =IF(C24<>"",1-IF(C$20<>"",$Q81,$P81),1) -> 1 | D82: 1 | E82: =IF(E24<>"",1-IF(E$20<>"",$Q81,$P81),1) -> 1 | F82: 1 | G82: 1 | H82: 1 | I82: 1 | J82: 1 | K82: 1 | L82: 1 | O82: =B82 -> Sow late | P82: 0.2 | Q82: 0.95
A83: 19 | B83: Post-E 1: Glyphosate | C83: =IF(C25<>"",1-(HLOOKUP(C25,$N$64:$T$119,$A83+1)),1) -> 0.85 | D83: 1 | E83: =IF(E25<>"",1-(HLOOKUP(E25,$N$64:$T$119,$A83+1)),1) -> 0.85 | F83: 1 | G83: 0.85 | H83: 1 | I83: 1 | J83: 1 | K83: 0.85 | L83: 1 | N83: ='1.Profile'!K27 -> 0.2 | O83: ='1.Profile'!K27 -> 0.2 | P83: ='1.Profile'!J27 -> 0.2 | Q83: ='1.Profile'!J27 -> 0.2 | R83: ='1.Profile'!I27 -> 0.15 | S83: ='1.Profile'!L27 -> 0.2 | T83: ='1.Profile'!L27 -> 0.2 | U83: Profile | W83: Sacrifice + spray: | Y83: 1 | AA83: 0% if no no-selectives
A84: 20 | B84: Post-E 1: Glufosinate | C84: =IF(C26<>"",1-(HLOOKUP(C26,$N$64:$T$119,$A84+1)),1) -> 1 | D84: 1 | E84: =IF(E26<>"",1-(HLOOKUP(E26,$N$64:$T$119,$A84+1)),1) -> 1 | F84: 1 | G84: =IF(G26<>"",1-(HLOOKUP(G26,$N$64:$T$119,$A84+1)),1) -> 1 | H84: 1 | I84: =IF(I26<>"",1-(HLOOKUP(I26,$N$64:$T$119,$A84+1)),1) -> 1 | J84: 1 | K84: =IF(K26<>"",1-(HLOOKUP(K26,$N$64:$T$119,$A84+1)),1) -> 1 | L84: 1 | N84: ='1.Profile'!K28 -> 0.7 | O84: ='1.Profile'!K28 -> 0.7 | P84: ='1.Profile'!J28 -> 0.7 | Q84: ='1.Profile'!J28 -> 0.7 | R84: ='1.Profile'!I28 -> 0.65 | S84: ='1.Profile'!L28 -> 0.7 | T84: ='1.Profile'!L28 -> 0.7 | W84: Topping: crops: 75% pastures: 90%
A85: 21 | B85: Post-E 1: Paraquat (shielded) | C85: =IF(C27<>"",1-(HLOOKUP(C27,$N$64:$T$119,$A85+1)),1) -> 1 | D85: 1 | E85: =IF(E27<>"",1-(HLOOKUP(E27,$N$64:$T$119,$A85+1)),1) -> 1 | F85: 1 | G85: =IF(G27<>"",1-(HLOOKUP(G27,$N$64:$T$119,$A85+1)),1) -> 1 | H85: 1 | I85: =IF(I27<>"",1-(HLOOKUP(I27,$N$64:$T$119,$A85+1)),1) -> 1 | J85: 1 | K85: =IF(K27<>"",1-(HLOOKUP(K27,$N$64:$T$119,$A85+1)),1) -> 1 | L85: 1 | N85: ='1.Profile'!K29 -> 0.8 | O85: ='1.Profile'!K29 -> 0.8 | P85: ='1.Profile'!J29 -> 0.8 | Q85: ='1.Profile'!J29 -> 0.8 | R85: ='1.Profile'!I29 -> 0.8 | S85: ='1.Profile'!L29 -> 0.95 | T85: ='1.Profile'!L29 -> 0.95 | W85: n.a.
A86: 22 | B86: Post-E 1: Inter-row tillage | C86: =IF(C28<>"",1-(HLOOKUP(C28,$N$64:$T$119,$A86+1)),1) -> 1 | D86: 1 | E86: =IF(E28<>"",1-(HLOOKUP(E28,$N$64:$T$119,$A86+1)),1) -> 1 | F86: 1 | G86: =IF(G28<>"",1-(HLOOKUP(G28,$N$64:$T$119,$A86+1)),1) -> 1 | H86: 1 | I86: =IF(I28<>"",1-(HLOOKUP(I28,$N$64:$T$119,$A86+1)),1) -> 1 | J86: 1 | K86: =IF(K28<>"",1-(HLOOKUP(K28,$N$64:$T$119,$A86+1)),1) -> 1 | L86: 1 | N86: ='1.Profile'!K30 -> 0.85 | O86: ='1.Profile'!K30 -> 0.85 | P86: ='1.Profile'!J30 -> 0.85 | Q86: ='1.Profile'!J30 -> 0.85 | R86: ='1.Profile'!I30 -> 0.8 | S86: ='1.Profile'!L30 -> 0.95 | T86: ='1.Profile'!L30 -> 0.95 | W86: Sacrifice + spray: | Y86: 1
A87: 23 | B87: Post-E 1: Group A | C87: =IF(C29<>"",1-(HLOOKUP(C29,$N$64:$T$119,$A87+1)),1) -> 1 | D87: 1 | E87: =IF(E29<>"",1-(HLOOKUP(E29,$N$64:$T$119,$A87+1)),1) -> 1 | F87: 1 | G87: 1 | H87: 1 | I87: 1 | J87: 1 | K87: 1 | L87: 1 | N87: ='1.Profile'!K31 -> 0.92 | O87: ='1.Profile'!K31 -> 0.92 | P87: ='1.Profile'!J31 -> 0.92 | Q87: ='1.Profile'!J31 -> 0.92 | R87: ='1.Profile'!I31 -> 0.9 | S87: ='1.Profile'!K31 -> 0.92 | T87: ='1.Profile'!L31 -> 0.95 | W87: Sacrifice + spray: | Y87: 1 | AA87: 60% if no no-selectives
A88: 24 | B88: Post-E 2: Glyphosate | C88: =IF(C30<>"",1-(HLOOKUP(C30,$N$64:$T$119,$A88+1)),1) -> 1 | D88: 1 | E88: 1 | F88: 1 | G88: 0.85 | H88: 1 | I88: 0.85 | J88: 1 | K88: 1 | L88: 1 | N88: =N83 -> 0.2 | O88: 0.2 | P88: 0.2 | Q88: 0.2 | R88: 0.15 | S88: 0.2 | T88: 0.2 | W88: Hay + spray | Y88: 1
A89: 25 | B89: Post-E 2: Glufosinate | C89: =IF(C31<>"",1-(HLOOKUP(C31,$N$64:$T$119,$A89+1)),1) -> 1 | D89: 1 | E89: 1 | F89: 1 | G89: 1 | H89: 1 | I89: 1 | J89: 1 | K89: 1 | L89: 1 | N89: =N84 -> 0.7 | O89: 0.7 | P89: =P84 -> 0.7 | Q89: 0.7 | R89: 0.65 | S89: 0.7 | T89: 0.7 | W89: Silage: higher than hay
A90: 26 | B90: Post-E 2: Paraquat (shielded) | C90: =IF(C32<>"",1-(HLOOKUP(C32,$N$64:$T$119,$A90+1)),1) -> 1 | D90: 1 | E90: 1 | F90: 1 | G90: 1 | H90: 1 | I90: 1 | J90: 1 | K90: 1 | L90: 1 | N90: 0.8 | O90: 0.8 | P90: 0.8 | Q90: 0.8 | R90: 0.8 | S90: 0.95 | T90: 0.95
A91: 27 | B91: Post-E 2: Inter-row tillage | C91: =IF(C33<>"",1-(HLOOKUP(C33,$N$64:$T$119,$A91+1)),1) -> 1 | D91: 1 | E91: 1 | F91: 1 | G91: 1 | H91: 1 | I91: 1 | J91: 1 | K91: 0.2 | L91: 1 | N91: 0.85 | O91: 0.85 | P91: 0.85 | Q91: 0.85 | R91: 0.8 | S91: 0.95 | T91: 0.95 | U91: Options
A92: 28 | B92: Post-E 2: Group A | C92: =IF(C34<>"",1-(HLOOKUP(C34,$N$64:$T$119,$A92+1)),1) -> 1 | D92: 1 | E92: 1 | F92: 1 | G92: 1 | H92: 1 | I92: 1 | J92: 1 | K92: 1 | L92: 1 | N92: 0.92 | O92: 0.92 | P92: 0.92 | Q92: 0.92 | R92: 0.9 | S92: 0.92 | T92: 0.95 | W92: Swathe: legumes & Cotton: 35% cereals: 45%
A93: 29 | B93: Post-E 3: Glyphosate | C93: =IF(C35<>"",1-(HLOOKUP(C35,$N$64:$T$119,$A93+1)),1) -> 0.85 | D93: 1 | E93: 0.85 | F93: 1 | G93: 1 | H93: 1 | I93: 1 | J93: 1 | K93: 0.85 | L93: 1 | N93: =N83 -> 0.2 | O93: =O83 -> 0.2 | P93: 0.2 | Q93: 0.2 | R93: 0.15 | S93: 0.2 | T93: 0.2 | W93: Swathe + spray: | Y93: 0.9
A94: 30 | B94: Post-E 3: Glufosinate | C94: =IF(C36<>"",1-(HLOOKUP(C36,$N$64:$T$119,$A94+1)),1) -> 1 | D94: 1 | E94: 1 | F94: 1 | G94: 1 | H94: 1 | I94: 1 | J94: 1 | K94: 1 | L94: 1 | N94: =N84 -> 0.7 | O94: 0.7 | P94: 0.7 | Q94: 0.7 | R94: 0.65 | S94: 0.7 | T94: 0.7 | W94: 0.85 | X94: --> RG controlled ~ 85% (+/- 20%), from:
A95: 31 | B95: Post-E 3: Paraquat (shielded) | C95: =IF(C37<>"",1-(HLOOKUP(C37,$N$64:$T$119,$A95+1)),1) -> 1 | D95: 1 | E95: 1 | F95: 1 | G95: 1 | H95: 1 | I95: 1 | J95: 1 | K95: 1 | L95: 1 | N95: =N85 -> 0.8 | O95: 0.8 | P95: 0.8 | Q95: 0.8 | R95: 0.8 | S95: 0.95 | T95: 0.95 | U95: Options | W95: 0.85 | X95: Ryegrass captured at harvest 88% (75-100%).
A96: 32 | B96: Post-E 3: Inter-row tillage | C96: =IF(C38<>"",1-(HLOOKUP(C38,$N$64:$T$119,$A96+1)),1) -> 1 | D96: 1 | E96: 1 | F96: 1 | G96: 0.2 | H96: 1 | I96: 1 | J96: 1 | K96: 1 | L96: 1 | N96: =N86 -> 0.85 | O96: 0.85 | P96: 0.85 | Q96: 0.85 | R96: 0.8 | S96: 0.95 | T96: 0.95 | W96: 0.85 | X96: (combination of ryegrass seeds retention and header height)
A97: 33 | B97: Post-E 3: Group A | C97: =IF(C39<>"",1-(HLOOKUP(C39,$N$64:$T$119,$A97+1)),1) -> 1 | D97: 1 | E97: 1 | F97: 1 | G97: 1 | H97: 1 | I97: 1 | J97: 1 | K97: 1 | L97: 1 | N97: =N87 -> 0.92 | O97: 0.92 | P97: 0.92 | Q97: 0.92 | R97: 0.9 | S97: 0.92 | T97: 0.95 | U97: Profile | W97: 0.85 | X97: Proportion of seeds in chaff: 95%, closer to 100% if straw as well (narrow windrows and BDS)
A98: 34 | B98: =B40 -> Layby: Topping | C98: 1 | D98: 1 | E98: 1 | F98: 1 | G98: 1 | H98: 1 | I98: 1 | J98: 1 | K98: 1 | L98: 1 | N98: ='+Options'!$Q$23 -> 0.75 | O98: ='+Options'!$Q$23 -> 0.75 | P98: ='+Options'!$Q$24 -> 0.75 | Q98: ='+Options'!$Q$24 -> 0.75 | R98: ='+Options'!$Q$24 -> 0.75 | S98: ='+Options'!$Q$23 -> 0.75 | X98: Kill by high burn, export, crush, stumped+herbicide: 98% (95-100%)
A99: 35 | B99: Layby: Diuron | C99: =IF(C41<>"",1-(HLOOKUP(C41,$N$64:$T$119,$A99+1)),1) -> 1 | D99: 1 | E99: =IF(E41<>"",1-(HLOOKUP(E41,$N$64:$T$119,$A99+1)),1) -> 1 | F99: 1 | G99: 1 | H99: 1 | I99: 1 | J99: 1 | K99: 1 | L99: 1 | N99: ='1.Profile'!K33 -> 0.7 | O99: ='1.Profile'!K33 -> 0.7 | P99: ='1.Profile'!J33 -> 0.7 | Q99: ='1.Profile'!J33 -> 0.7 | R99: ='1.Profile'!I33 -> 0.7 | S99: ='1.Profile'!K33 -> 0.7 | T99: ='1.Profile'!L33 -> 0.7 | U99: Options | W99: 0.85
A100: 36 | B100: Layby: Pendimetha | C100: =IF(C42<>"",1-(HLOOKUP(C42,$N$64:$T$119,$A100+1)),1) -> 0.3 | D100: 1 | E100: 1 | F100: 1 | G100: 1 | H100: 1 | I100: 1 | J100: 1 | K100: 1 | L100: 1 | N100: ='1.Profile'!K34 -> 0.7 | O100: ='1.Profile'!K34 -> 0.7 | P100: ='1.Profile'!J34 -> 0.7 | Q100: ='1.Profile'!J34 -> 0.7 | R100: ='1.Profile'!I34 -> 0.7 | S100: ='1.Profile'!K34 -> 0.7 | T100: ='1.Profile'!L34 -> 0.7 | W100: 0.6 | X100: Highly variable. Much lower for Cotton and legumes than cereals
A101: 37 | B101: Post-E 5: Glyphosate | C101: =IF(C43<>"",1-(HLOOKUP(C43,$N$64:$T$119,$A101+1)),1) -> 1 | D101: 1 | E101: 1 | F101: 1 | G101: 1 | H101: 1 | I101: 1 | J101: 1 | K101: 1 | L101: 1 | N101: =N83 -> 0.2 | O101: =O83 -> 0.2 | P101: 0.2 | Q101: 0.2 | R101: 0.15 | S101: 0.2 | T101: 0.2
A102: 38 | B102: Post-E 5: Glufosinate | C102: =IF(C44<>"",1-(HLOOKUP(C44,$N$64:$T$119,$A102+1)),1) -> 1 | D102: 1 | E102: 1 | F102: 1 | G102: 1 | H102: 1 | I102: 1 | J102: 1 | K102: 1 | L102: 1 | N102: =N84 -> 0.7 | O102: 0.7 | P102: 0.7 | Q102: 0.7 | R102: 0.65 | S102: 0.7 | T102: 0.7
A103: 39 | B103: Post-E 5: Paraquat (shielded) | C103: =IF(C45<>"",1-(HLOOKUP(C45,$N$64:$T$119,$A103+1)),1) -> 1 | D103: 1 | E103: 1 | F103: 1 | G103: 1 | H103: 1 | I103: 1 | J103: 1 | K103: 1 | L103: 1 | N103: 0.8 | O103: 0.8 | P103: 0.8 | Q103: 0.8 | R103: 0.8 | S103: 0.95 | T103: 0.95
A104: 40 | B104: Post-E 5: Inter-row tillage | C104: =IF(C46<>"",1-(HLOOKUP(C46,$N$64:$T$119,$A104+1)),1) -> 1 | D104: 1 | E104: 0.2 | F104: 1 | G104: 1 | H104: 1 | I104: 1 | J104: 1 | K104: 0.2 | L104: 1 | N104: 0.85 | O104: 0.85 | P104: 0.85 | Q104: 0.85 | R104: 0.8 | S104: 0.95 | T104: 0.95
A105: 41 | B105: Post-E 5: Group A | C105: =IF(C47<>"",1-(HLOOKUP(C47,$N$64:$T$119,$A105+1)),1) -> 1 | D105: 1 | E105: 1 | F105: 1 | G105: 1 | H105: 1 | I105: 1 | J105: 1 | K105: 1 | L105: 1 | N105: 0.92 | O105: 0.92 | P105: 0.92 | Q105: 0.92 | R105: 0.9 | S105: 0.92 | T105: 0.95
A106: 42 | B106: Post-E 6: Glyphosate | C106: =IF(C48<>"",1-(HLOOKUP(C48,$N$64:$T$119,$A106+1)),1) -> 0.85 | D106: 1 | E106: 1 | F106: 1 | G106: 0.85 | H106: 1 | I106: 0.85 | J106: 1 | K106: 1 | L106: 1 | N106: =N83 -> 0.2 | O106: =O83 -> 0.2 | P106: 0.2 | Q106: 0.2 | R106: 0.15 | S106: 0.2 | T106: 0.2
A107: 43 | B107: Post-E 6: Glufosinate | C107: =IF(C49<>"",1-(HLOOKUP(C49,$N$64:$T$119,$A107+1)),1) -> 1 | D107: 1 | E107: 1 | F107: 1 | G107: 1 | H107: 1 | I107: 1 | J107: 1 | K107: 1 | L107: 1 | N107: =N84 -> 0.7 | O107: 0.7 | P107: 0.7 | Q107: 0.7 | R107: 0.65 | S107: 0.7 | T107: 0.7
A108: 44 | B108: Post-E 6: Paraquat (shielded) | C108: =IF(C50<>"",1-(HLOOKUP(C50,$N$64:$T$119,$A108+1)),1) -> 1 | D108: 1 | E108: 1 | F108: 1 | G108: 1 | H108: 1 | I108: 1 | J108: 1 | K108: 1 | L108: 1 | N108: 0.8 | O108: 0.8 | P108: 0.8 | Q108: 0.8 | R108: 0.8 | S108: 0.95 | T108: 0.95
A109: 45 | B109: Post-E 6: Inter-row tillage | C109: =IF(C51<>"",1-(HLOOKUP(C51,$N$64:$T$119,$A109+1)),1) -> 1 | D109: 1 | E109: 1 | F109: 1 | G109: 1 | H109: 1 | I109: 1 | J109: 1 | K109: 1 | L109: 1 | N109: 0.85 | O109: 0.85 | P109: 0.85 | Q109: 0.85 | R109: 0.8 | S109: 0.95 | T109: 0.95
A110: 46 | B110: Post-E 6: Group A | C110: =IF(C52<>"",1-(HLOOKUP(C52,$N$64:$T$119,$A110+1)),1) -> 1 | D110: 1 | E110: =IF(E52<>"",1-(HLOOKUP(E52,$N$64:$T$119,$A110+1)),1) -> 1 | F110: 1 | G110: 1 | H110: 1 | I110: 1 | J110: 1 | K110: 1 | L110: 1 | N110: 0.92 | O110: 0.92 | P110: 0.92 | Q110: 0.92 | R110: 0.9 | S110: 0.92 | T110: 0.95
A111: 47 | B111: =B53 -> Harvest: Cart+B. | C111: =IF(C53<>"",1-(HLOOKUP(C53,$N$64:$T$119,$A111+1)),1) -> 1 | D111: 1 | E111: 1 | F111: 1 | G111: 1 | H111: 1 | I111: 1 | J111: 1 | K111: 1 | L111: 1 | N111: ='+Options'!Q33 -> 0.85 | O111: =N111 -> 0.85 | P111: =N111 -> 0.85 | Q111: 0 | R111: 0 | S111: 0 | T111: 0
A112: 48 | B112: Harvest: Narr+B. | C112: =IF(C54<>"",1-(HLOOKUP(C54,$N$64:$T$119,$A112+1)),1) -> 1 | D112: 1 | E112: 1 | F112: 1 | G112: 1 | H112: 1 | I112: 1 | J112: 1 | K112: 1 | L112: 1 | N112: ='+Options'!Q34 -> 0.85 | O112: =N112 -> 0.85 | P112: 0.85 | Q112: 0 | R112: 0 | S112: 0 | T112: 0
A113: 49 | B113: Harvest: HSD | C113: =IF(C55<>"",1-(HLOOKUP(C55,$N$64:$T$119,$A113+1)),1) -> 1 | D113: 1 | E113: 1 | F113: 1 | G113: 1 | H113: 1 | I113: 1 | J113: 1 | K113: 1 | L113: 1 | N113: ='+Options'!Q32 -> 0.85 | O113: =N113 -> 0.85 | P113: 0.85 | Q113: 0
A114: 50 | B114: Harvest: Tram. | C114: =IF(C56<>"",1-(HLOOKUP(C56,$N$64:$T$119,$A114+1)),1) -> 1 | D114: 1 | E114: 1 | F114: 1 | G114: 1 | H114: 1 | I114: 1 | J114: 1 | K114: 1 | L114: 1 | N114: ='+Options'!Q31 -> 0.85 | O114: =N114 -> 0.85 | P114: 0.85 | Q114: 0
A115: 51 | B115: empty slot for adding a harvest option, configured for bales | C115: =IF(C57<>"",1-(HLOOKUP(C57,$N$64:$T$119,$A115+1)),1) -> 1 | D115: 1 | E115: 1 | F115: 1 | G115: 1 | H115: 1 | I115: 1 | J115: 1 | K115: 1 | L115: 1
A116: 52 | B116: Harvest: BDS+E. | C116: =IF(C58<>"",1-(HLOOKUP(C58,$N$64:$T$119,$A116+1)),1) -> 1 | D116: 1 | E116: 1 | F116: 1 | G116: 1 | H116: 1 | I116: 1 | J116: 1 | K116: 1 | L116: 1 | N116: ='+Options'!Q32 -> 0.85 | O116: =N116 -> 0.85 | P116: 0.85 | Q116: 0 | U116: Options
A117: 53 | B117: Harvest: Burn | C117: =IF(C59<>"",1-(HLOOKUP(C59,$N$64:$T$119,$A117+1)),1) -> 1 | D117: 1 | E117: 1 | F117: 1 | G117: 1 | H117: 1 | I117: 1 | J117: 1 | K117: 1 | L117: 1 | N117: ='+Options'!Q35 -> 0.6 | O117: =N117 -> 0.6 | P117: =$N$117 -> 0.6 | Q117: =$N$117*0.75 -> 0.45 | R117: =$N$117*0.75 -> 0.45 | S117: =N117*1.15 -> 0.69 | T117: 0
A118: 54 | B118: Harvest B1: Defol glyp | C118: =IF(C60<>"",1-(HLOOKUP(C60,$N$64:$T$119,$A118+1)),1) -> 1 | D118: 1 | E118: 1 | F118: 1 | G118: 1 | H118: 1 | I118: 1 | J118: 1 | K118: 1 | L118: 1 | N118: ='1.Profile'!K36 -> 0.15 | O118: ='1.Profile'!K36 -> 0.15 | P118: ='1.Profile'!J36 -> 0.12 | Q118: ='1.Profile'!J36 -> 0.12 | R118: ='1.Profile'!I36 -> 0.12 | S118: ='1.Profile'!K36 -> 0.15 | T118: ='1.Profile'!L36 -> 0.3
A119: 55 | B119: Harvest B2: Defol Drop | C119: =IF(C61<>"",1-(HLOOKUP(C61,$N$64:$T$119,$A119+1)),1) -> 0.94 | D119: 1 | E119: 0.94 | F119: 1 | G119: 0.94 | H119: 1 | I119: 0.94 | J119: 1 | K119: 0.94 | L119: 1 | N119: ='1.Profile'!K37 -> 0 | O119: ='1.Profile'!K37 -> 0 | P119: ='1.Profile'!J37 -> 0.05 | Q119: ='1.Profile'!J37 -> 0.05 | R119: ='1.Profile'!I37 -> 0.06 | S119: ='1.Profile'!K37 -> 0 | T119: ='1.Profile'!L37 -> 0
A120: 56
A121: 57 | B121: Removal of seed in normal harvest | C121: =IF(AND(E217<4,AND(COUNTIF(C41:C52,">=0")=0,COUNTIF(C53:C61,">=0")=0)),1-'+Options'!$AG$133,1) -> 1 | D121: =IF(AND(F217<4,AND(COUNTIF(D41:D52,">=0")=0,COUNTIF(D53:D61,">=0")=0)),1-'+Options'!$AG$133,1) -> 1 | E121: =IF(AND(G217<4,AND(COUNTIF(E41:E52,">=0")=0,COUNTIF(E53:E61,">=0")=0)),1-'+Options'!$AG$133,1) -> 1 | F121: =IF(AND(H217<4,AND(COUNTIF(F41:F52,">=0")=0,COUNTIF(F53:F61,">=0")=0)),1-'+Options'!$AG$133,1) -> 1 | G121: =IF(AND(I217<4,AND(COUNTIF(G41:G52,">=0")=0,COUNTIF(G53:G61,">=0")=0)),1-'+Options'!$AG$133,1) -> 1 | H121: =IF(AND(J217<4,AND(COUNTIF(H41:H52,">=0")=0,COUNTIF(H53:H61,">=0")=0)),1-'+Options'!$AG$133,1) -> 1 | I121: =IF(AND(K217<4,AND(COUNTIF(I41:I52,">=0")=0,COUNTIF(I53:I61,">=0")=0)),1-'+Options'!$AG$133,1) -> 1 | J121: =IF(AND(L217<4,AND(COUNTIF(J41:J52,">=0")=0,COUNTIF(J53:J61,">=0")=0)),1-'+Options'!$AG$133,1) -> 1 | K121: =IF(AND(M217<4,AND(COUNTIF(K41:K52,">=0")=0,COUNTIF(K53:K61,">=0")=0)),1-'+Options'!$AG$133,1) -> 1 | L121: =IF(AND(N217<4,AND(COUNTIF(L41:L52,">=0")=0,COUNTIF(L53:L61,">=0")=0)),1-'+Options'!$AG$133,1) -> 1
U122: Options | Y122: Table 3b. Generic costs ($/ha)
U123: Profile | AB123: Winter Crop | AC123: Sorghum | AD123: Irrig cotton | AE123: D/L cotton | AF123: Corn | AG123: Beans | AH123: CC/fallow
B124: Table 3. Selected costs ($/ha) | C124: Cost of each selected option. | O124: Table 3a Options costs ($/ha) | X124: +boom | Y124: Cost by boom of herbicide/pesticide application ($/ha) | AB124: ='1.Profile'!$O$9 -> 4.5 | AC124: ='1.Profile'!$O$9 -> 4.5 | AD124: ='1.Profile'!$O$9 -> 4.5 | AE124: ='1.Profile'!$O$9 -> 4.5 | AF124: ='1.Profile'!$O$9 -> 4.5 | AG124: ='1.Profile'!$O$9 -> 4.5 | AH124: ='1.Profile'!$O$9 -> 4.5 | AI124: from Profile
N125: Winter Crop | O125: Sorghum | P125: Irrig cotton | Q125: D/L cotton | R125: Corn | S125: Beans | T125: CC/fallows | AI125: Rate | AJ125: Leg.
B126: =B7 -> KD/DK: Glyphosate | C126: =IF(C7=1,Calcs!$N126,IF(C7=2,Calcs!$O126,IF(C7=3,Calcs!$R126,IF(C7=4,Calcs!$S126,IF(C7=5,Calcs!$Q126,IF(C7=6,Calcs!$P126,IF(C7=7,Calcs!$T126,IF(C7=8,Calcs!$T126,IF(C7=9,Calcs!$T126,0))))))))) -> 12.5 | D126: =IF(D7=1,Calcs!$N126,IF(D7=2,Calcs!$O126,IF(D7=3,Calcs!$R126,IF(D7=4,Calcs!$S126,IF(D7=5,Calcs!$Q126,IF(D7=6,Calcs!$P126,IF(D7=7,Calcs!$T126,IF(D7=8,Calcs!$T126,IF(D7=9,Calcs!$T126,0))))))))) -> 0 | E126: =IF(E7=1,Calcs!$N126,IF(E7=2,Calcs!$O126,IF(E7=3,Calcs!$R126,IF(E7=4,Calcs!$S126,IF(E7=5,Calcs!$Q126,IF(E7=6,Calcs!$P126,IF(E7=7,Calcs!$T126,IF(E7=8,Calcs!$T126,IF(E7=9,Calcs!$T126,0))))))))) -> 12.5 | F126: =IF(F7=1,Calcs!$N126,IF(F7=2,Calcs!$O126,IF(F7=3,Calcs!$R126,IF(F7=4,Calcs!$S126,IF(F7=5,Calcs!$Q126,IF(F7=6,Calcs!$P126,IF(F7=7,Calcs!$T126,IF(F7=8,Calcs!$T126,IF(F7=9,Calcs!$T126,0))))))))) -> 12.5 | G126: =IF(G7=1,Calcs!$N126,IF(G7=2,Calcs!$O126,IF(G7=3,Calcs!$R126,IF(G7=4,Calcs!$S126,IF(G7=5,Calcs!$Q126,IF(G7=6,Calcs!$P126,IF(G7=7,Calcs!$T126,IF(G7=8,Calcs!$T126,IF(G7=9,Calcs!$T126,0))))))))) -> 12.5 | H126: =IF(H7=1,Calcs!$N126,IF(H7=2,Calcs!$O126,IF(H7=3,Calcs!$R126,IF(H7=4,Calcs!$S126,IF(H7=5,Calcs!$Q126,IF(H7=6,Calcs!$P126,IF(H7=7,Calcs!$T126,IF(H7=8,Calcs!$T126,IF(H7=9,Calcs!$T126,0))))))))) -> 0 | I126: =IF(I7=1,Calcs!$N126,IF(I7=2,Calcs!$O126,IF(I7=3,Calcs!$R126,IF(I7=4,Calcs!$S126,IF(I7=5,Calcs!$Q126,IF(I7=6,Calcs!$P126,IF(I7=7,Calcs!$T126,IF(I7=8,Calcs!$T126,IF(I7=9,Calcs!$T126,0))))))))) -> 12.5 | J126: =IF(J7=1,Calcs!$N126,IF(J7=2,Calcs!$O126,IF(J7=3,Calcs!$R126,IF(J7=4,Calcs!$S126,IF(J7=5,Calcs!$Q126,IF(J7=6,Calcs!$P126,IF(J7=7,Calcs!$T126,IF(J7=8,Calcs!$T126,IF(J7=9,Calcs!$T126,0))))))))) -> 0 | K126: =IF(K7=1,Calcs!$N126,IF(K7=2,Calcs!$O126,IF(K7=3,Calcs!$R126,IF(K7=4,Calcs!$S126,IF(K7=5,Calcs!$Q126,IF(K7=6,Calcs!$P126,IF(K7=7,Calcs!$T126,IF(K7=8,Calcs!$T126,IF(K7=9,Calcs!$T126,0))))))))) -> 12.5 | L126: =IF(L7=1,Calcs!$N126,IF(L7=2,Calcs!$O126,IF(L7=3,Calcs!$R126,IF(L7=4,Calcs!$S126,IF(L7=5,Calcs!$Q126,IF(L7=6,Calcs!$P126,IF(L7=7,Calcs!$T126,IF(L7=8,Calcs!$T126,IF(L7=9,Calcs!$T126,0))))))))) -> 0 | N126: ='1.Profile'!G15+Calcs!$AB$124 -> 12.5 | O126: ='1.Profile'!G15+Calcs!$AC$124 -> 12.5 | P126: ='1.Profile'!E15+Calcs!$AD$124 -> 12.5 | Q126: ='1.Profile'!F15+Calcs!$AE$124 -> 12.5 | R126: ='1.Profile'!G15+Calcs!$AF$124 -> 12.5 | S126: ='1.Profile'!F15+Calcs!$AG$124 -> 12.5 | T126: ='1.Profile'!H15+Calcs!$AH$124 -> 12.5 | X126: +SP | Y126: Autumn spray, high, chemical only | AB126: =IF(SUM('1.Profile'!E15:E16)<>0,AVERAGE('1.Profile'!E15:E16)*AI126,0) -> 10.8 | AC126: =IF(SUM('1.Profile'!E15:E16)<>0,AVERAGE('1.Profile'!E15:E16)*AI126,0) -> 10.8 | AD126: =IF(SUM('1.Profile'!F15:F16)<>0,AVERAGE('1.Profile'!F15:F16)*AI126,0) -> 10.8 | AE126: =IF(SUM('1.Profile'!F15:F16)<>0,AVERAGE('1.Profile'!F15:F16)*AI126,0) -> 10.8 | AF126: =IF(SUM('1.Profile'!H15:H16)<>0,AVERAGE('1.Profile'!H15:H16)*AI126,0) -> 10.8 | AG126: =IF(SUM('1.Profile'!H15:H16)<>0,AVERAGE('1.Profile'!H15:H16)*AI126,0) -> 10.8 | AH126: =IF(SUM('1.Profile'!H15:H16)<>0,AVERAGE('1.Profile'!H15:H16)*AI126,0) -> 10.8 | AI126: 1.2
B127: KD/DK: Paraquat | C127: =IF(C8=1,Calcs!$N127,IF(C8=2,Calcs!$O127,IF(C8=3,Calcs!$R127,IF(C8=4,Calcs!$S127,IF(C8=5,Calcs!$Q127,IF(C8=6,Calcs!$P127,IF(C8=7,Calcs!$T127,IF(C8=8,Calcs!$T127,IF(C8=9,Calcs!$T127,0))))))))) -> 0 | D127: =IF(D8=1,Calcs!$N127,IF(D8=2,Calcs!$O127,IF(D8=3,Calcs!$R127,IF(D8=4,Calcs!$S127,IF(D8=5,Calcs!$Q127,IF(D8=6,Calcs!$P127,IF(D8=7,Calcs!$T127,IF(D8=8,Calcs!$T127,IF(D8=9,Calcs!$T127,0))))))))) -> 0 | E127: =IF(E8=1,Calcs!$N127,IF(E8=2,Calcs!$O127,IF(E8=3,Calcs!$R127,IF(E8=4,Calcs!$S127,IF(E8=5,Calcs!$Q127,IF(E8=6,Calcs!$P127,IF(E8=7,Calcs!$T127,IF(E8=8,Calcs!$T127,IF(E8=9,Calcs!$T127,0))))))))) -> 14.5 | F127: =IF(F8=1,Calcs!$N127,IF(F8=2,Calcs!$O127,IF(F8=3,Calcs!$R127,IF(F8=4,Calcs!$S127,IF(F8=5,Calcs!$Q127,IF(F8=6,Calcs!$P127,IF(F8=7,Calcs!$T127,IF(F8=8,Calcs!$T127,IF(F8=9,Calcs!$T127,0))))))))) -> 14.5 | G127: =IF(G8=1,Calcs!$N127,IF(G8=2,Calcs!$O127,IF(G8=3,Calcs!$R127,IF(G8=4,Calcs!$S127,IF(G8=5,Calcs!$Q127,IF(G8=6,Calcs!$P127,IF(G8=7,Calcs!$T127,IF(G8=8,Calcs!$T127,IF(G8=9,Calcs!$T127,0))))))))) -> 14.5 | H127: =IF(H8=1,Calcs!$N127,IF(H8=2,Calcs!$O127,IF(H8=3,Calcs!$R127,IF(H8=4,Calcs!$S127,IF(H8=5,Calcs!$Q127,IF(H8=6,Calcs!$P127,IF(H8=7,Calcs!$T127,IF(H8=8,Calcs!$T127,IF(H8=9,Calcs!$T127,0))))))))) -> 0 | I127: =IF(I8=1,Calcs!$N127,IF(I8=2,Calcs!$O127,IF(I8=3,Calcs!$R127,IF(I8=4,Calcs!$S127,IF(I8=5,Calcs!$Q127,IF(I8=6,Calcs!$P127,IF(I8=7,Calcs!$T127,IF(I8=8,Calcs!$T127,IF(I8=9,Calcs!$T127,0))))))))) -> 14.5 | J127: =IF(J8=1,Calcs!$N127,IF(J8=2,Calcs!$O127,IF(J8=3,Calcs!$R127,IF(J8=4,Calcs!$S127,IF(J8=5,Calcs!$Q127,IF(J8=6,Calcs!$P127,IF(J8=7,Calcs!$T127,IF(J8=8,Calcs!$T127,IF(J8=9,Calcs!$T127,0))))))))) -> 0 | K127: =IF(K8=1,Calcs!$N127,IF(K8=2,Calcs!$O127,IF(K8=3,Calcs!$R127,IF(K8=4,Calcs!$S127,IF(K8=5,Calcs!$Q127,IF(K8=6,Calcs!$P127,IF(K8=7,Calcs!$T127,IF(K8=8,Calcs!$T127,IF(K8=9,Calcs!$T127,0))))))))) -> 14.5 | L127: =IF(L8=1,Calcs!$N127,IF(L8=2,Calcs!$O127,IF(L8=3,Calcs!$R127,IF(L8=4,Calcs!$S127,IF(L8=5,Calcs!$Q127,IF(L8=6,Calcs!$P127,IF(L8=7,Calcs!$T127,IF(L8=8,Calcs!$T127,IF(L8=9,Calcs!$T127,0))))))))) -> 0 | N127: ='1.Profile'!G16+Calcs!$AB$124 -> 14.5 | O127: ='1.Profile'!G16+Calcs!$AC$124 -> 14.5 | P127: ='1.Profile'!E16+Calcs!$AD$124 -> 14.5 | Q127: ='1.Profile'!F16+Calcs!$AE$124 -> 14.5 | R127: ='1.Profile'!G16+Calcs!$AF$124 -> 14.5 | S127: ='1.Profile'!F16+Calcs!$AG$124 -> 14.5 | T127: ='1.Profile'!H16+Calcs!$AH$124 -> 14.5 | X127: +sp | Y127: autumn spray, low, chemical only | AB127: =IF(SUM('1.Profile'!E15:E16)<>0,AVERAGE('1.Profile'!E15:E16)*AI127,0) -> 4.5 | AC127: =IF(SUM('1.Profile'!E15:E16)<>0,AVERAGE('1.Profile'!E15:E16)*AI127,0) -> 4.5 | AD127: =IF(SUM('1.Profile'!F15:F16)<>0,AVERAGE('1.Profile'!F15:F16)*AI127,0) -> 4.5 | AE127: =IF(SUM('1.Profile'!F15:F16)<>0,AVERAGE('1.Profile'!F15:F16)*AJ127,0) -> 2.25 | AF127: =IF(SUM('1.Profile'!H15:H16)<>0,AVERAGE('1.Profile'!H15:H16)*AJ127,0) -> 2.25 | AG127: =IF(SUM('1.Profile'!H15:H16)<>0,AVERAGE('1.Profile'!H15:H16)*AJ127,0) -> 2.25 | AH127: =IF(SUM('1.Profile'!H15:H16)<>0,AVERAGE('1.Profile'!H15:H16)*AJ127,0) -> 2.25 | AI127: 0.5 | AJ127: 0.25
B128: KD/DK: Group A | C128: =IF(C9=1,Calcs!$N128,IF(C9=2,Calcs!$O128,IF(C9=3,Calcs!$R128,IF(C9=4,Calcs!$S128,IF(C9=5,Calcs!$Q128,IF(C9=6,Calcs!$P128,IF(C9=7,Calcs!$T128,IF(C9=8,Calcs!$T128,IF(C9=9,Calcs!$T128,0))))))))) -> 0 | D128: =IF(D9=1,Calcs!$N128,IF(D9=2,Calcs!$O128,IF(D9=3,Calcs!$R128,IF(D9=4,Calcs!$S128,IF(D9=5,Calcs!$Q128,IF(D9=6,Calcs!$P128,IF(D9=7,Calcs!$T128,IF(D9=8,Calcs!$T128,IF(D9=9,Calcs!$T128,0))))))))) -> 0 | E128: =IF(E9=1,Calcs!$N128,IF(E9=2,Calcs!$O128,IF(E9=3,Calcs!$R128,IF(E9=4,Calcs!$S128,IF(E9=5,Calcs!$Q128,IF(E9=6,Calcs!$P128,IF(E9=7,Calcs!$T128,IF(E9=8,Calcs!$T128,IF(E9=9,Calcs!$T128,0))))))))) -> 0 | F128: =IF(F9=1,Calcs!$N128,IF(F9=2,Calcs!$O128,IF(F9=3,Calcs!$R128,IF(F9=4,Calcs!$S128,IF(F9=5,Calcs!$Q128,IF(F9=6,Calcs!$P128,IF(F9=7,Calcs!$T128,IF(F9=8,Calcs!$T128,IF(F9=9,Calcs!$T128,0))))))))) -> 0 | G128: =IF(G9=1,Calcs!$N128,IF(G9=2,Calcs!$O128,IF(G9=3,Calcs!$R128,IF(G9=4,Calcs!$S128,IF(G9=5,Calcs!$Q128,IF(G9=6,Calcs!$P128,IF(G9=7,Calcs!$T128,IF(G9=8,Calcs!$T128,IF(G9=9,Calcs!$T128,0))))))))) -> 0 | H128: =IF(H9=1,Calcs!$N128,IF(H9=2,Calcs!$O128,IF(H9=3,Calcs!$R128,IF(H9=4,Calcs!$S128,IF(H9=5,Calcs!$Q128,IF(H9=6,Calcs!$P128,IF(H9=7,Calcs!$T128,IF(H9=8,Calcs!$T128,IF(H9=9,Calcs!$T128,0))))))))) -> 0 | I128: =IF(I9=1,Calcs!$N128,IF(I9=2,Calcs!$O128,IF(I9=3,Calcs!$R128,IF(I9=4,Calcs!$S128,IF(I9=5,Calcs!$Q128,IF(I9=6,Calcs!$P128,IF(I9=7,Calcs!$T128,IF(I9=8,Calcs!$T128,IF(I9=9,Calcs!$T128,0))))))))) -> 0 | J128: =IF(J9=1,Calcs!$N128,IF(J9=2,Calcs!$O128,IF(J9=3,Calcs!$R128,IF(J9=4,Calcs!$S128,IF(J9=5,Calcs!$Q128,IF(J9=6,Calcs!$P128,IF(J9=7,Calcs!$T128,IF(J9=8,Calcs!$T128,IF(J9=9,Calcs!$T128,0))))))))) -> 0 | K128: =IF(K9=1,Calcs!$N128,IF(K9=2,Calcs!$O128,IF(K9=3,Calcs!$R128,IF(K9=4,Calcs!$S128,IF(K9=5,Calcs!$Q128,IF(K9=6,Calcs!$P128,IF(K9=7,Calcs!$T128,IF(K9=8,Calcs!$T128,IF(K9=9,Calcs!$T128,0))))))))) -> 0 | L128: =IF(L9=1,Calcs!$N128,IF(L9=2,Calcs!$O128,IF(L9=3,Calcs!$R128,IF(L9=4,Calcs!$S128,IF(L9=5,Calcs!$Q128,IF(L9=6,Calcs!$P128,IF(L9=7,Calcs!$T128,IF(L9=8,Calcs!$T128,IF(L9=9,Calcs!$T128,0))))))))) -> 0 | N128: ='1.Profile'!G17+Calcs!$AB$124 -> 19.5 | O128: ='1.Profile'!G17+Calcs!$AC$124 -> 19.5 | P128: ='1.Profile'!E17+Calcs!$AD$124 -> 19.5 | Q128: ='1.Profile'!F17+Calcs!$AE$124 -> 19.5 | R128: ='1.Profile'!G17+Calcs!$AF$124 -> 19.5 | S128: ='1.Profile'!F17+Calcs!$AG$124 -> 19.5 | T128: ='1.Profile'!H17+Calcs!$AH$124 -> 19.5 | AC128: from Prices
B129: KD/DK: Tillage | C129: =IF(C10=1,Calcs!$N129,IF(C10=2,Calcs!$O129,IF(C10=3,Calcs!$R129,IF(C10=4,Calcs!$S129,IF(C10=5,Calcs!$Q129,IF(C10=6,Calcs!$P129,IF(C10=7,Calcs!$T129,IF(C10=8,Calcs!$T129,IF(C10=9,Calcs!$T129,0))))))))) -> 0 | D129: =IF(D10=1,Calcs!$N129,IF(D10=2,Calcs!$O129,IF(D10=3,Calcs!$R129,IF(D10=4,Calcs!$S129,IF(D10=5,Calcs!$Q129,IF(D10=6,Calcs!$P129,IF(D10=7,Calcs!$T129,IF(D10=8,Calcs!$T129,IF(D10=9,Calcs!$T129,0))))))))) -> 0 | E129: =IF(E10=1,Calcs!$N129,IF(E10=2,Calcs!$O129,IF(E10=3,Calcs!$R129,IF(E10=4,Calcs!$S129,IF(E10=5,Calcs!$Q129,IF(E10=6,Calcs!$P129,IF(E10=7,Calcs!$T129,IF(E10=8,Calcs!$T129,IF(E10=9,Calcs!$T129,0))))))))) -> 0 | F129: =IF(F10=1,Calcs!$N129,IF(F10=2,Calcs!$O129,IF(F10=3,Calcs!$R129,IF(F10=4,Calcs!$S129,IF(F10=5,Calcs!$Q129,IF(F10=6,Calcs!$P129,IF(F10=7,Calcs!$T129,IF(F10=8,Calcs!$T129,IF(F10=9,Calcs!$T129,0))))))))) -> 0 | G129: =IF(G10=1,Calcs!$N129,IF(G10=2,Calcs!$O129,IF(G10=3,Calcs!$R129,IF(G10=4,Calcs!$S129,IF(G10=5,Calcs!$Q129,IF(G10=6,Calcs!$P129,IF(G10=7,Calcs!$T129,IF(G10=8,Calcs!$T129,IF(G10=9,Calcs!$T129,0))))))))) -> 0 | H129: =IF(H10=1,Calcs!$N129,IF(H10=2,Calcs!$O129,IF(H10=3,Calcs!$R129,IF(H10=4,Calcs!$S129,IF(H10=5,Calcs!$Q129,IF(H10=6,Calcs!$P129,IF(H10=7,Calcs!$T129,IF(H10=8,Calcs!$T129,IF(H10=9,Calcs!$T129,0))))))))) -> 0 | I129: =IF(I10=1,Calcs!$N129,IF(I10=2,Calcs!$O129,IF(I10=3,Calcs!$R129,IF(I10=4,Calcs!$S129,IF(I10=5,Calcs!$Q129,IF(I10=6,Calcs!$P129,IF(I10=7,Calcs!$T129,IF(I10=8,Calcs!$T129,IF(I10=9,Calcs!$T129,0))))))))) -> 0 | J129: =IF(J10=1,Calcs!$N129,IF(J10=2,Calcs!$O129,IF(J10=3,Calcs!$R129,IF(J10=4,Calcs!$S129,IF(J10=5,Calcs!$Q129,IF(J10=6,Calcs!$P129,IF(J10=7,Calcs!$T129,IF(J10=8,Calcs!$T129,IF(J10=9,Calcs!$T129,0))))))))) -> 0 | K129: =IF(K10=1,Calcs!$N129,IF(K10=2,Calcs!$O129,IF(K10=3,Calcs!$R129,IF(K10=4,Calcs!$S129,IF(K10=5,Calcs!$Q129,IF(K10=6,Calcs!$P129,IF(K10=7,Calcs!$T129,IF(K10=8,Calcs!$T129,IF(K10=9,Calcs!$T129,0))))))))) -> 0 | L129: =IF(L10=1,Calcs!$N129,IF(L10=2,Calcs!$O129,IF(L10=3,Calcs!$R129,IF(L10=4,Calcs!$S129,IF(L10=5,Calcs!$Q129,IF(L10=6,Calcs!$P129,IF(L10=7,Calcs!$T129,IF(L10=8,Calcs!$T129,IF(L10=9,Calcs!$T129,0))))))))) -> 13.5 | N129: ='1.Profile'!G18+Calcs!$AB$124 -> 13.5 | O129: ='1.Profile'!G18+Calcs!$AC$124 -> 13.5 | P129: ='1.Profile'!E18+Calcs!$AD$124 -> 13.5 | Q129: ='1.Profile'!F18+Calcs!$AE$124 -> 13.5 | R129: ='1.Profile'!G18+Calcs!$AF$124 -> 13.5 | S129: ='1.Profile'!F18+Calcs!$AG$124 -> 13.5 | T129: ='1.Profile'!H18+Calcs!$AH$124 -> 13.5 | X129: +Inc | Y129: Cost of incorporation (=full-cut) | AC129: ='+Prices'!AN70 -> 12.6 | AE129: For green manuring
B130: KD/DK: Glyphosate/Paraquat | C130: =IF(C11=1,Calcs!$N130,IF(C11=2,Calcs!$O130,IF(C11=3,Calcs!$R130,IF(C11=4,Calcs!$S130,IF(C11=5,Calcs!$Q130,IF(C11=6,Calcs!$P130,IF(C11=7,Calcs!$T130,IF(C11=8,Calcs!$T130,IF(C11=9,Calcs!$T130,0))))))))) -> 0 | D130: =IF(D11=1,Calcs!$N130,IF(D11=2,Calcs!$O130,IF(D11=3,Calcs!$R130,IF(D11=4,Calcs!$S130,IF(D11=5,Calcs!$Q130,IF(D11=6,Calcs!$P130,IF(D11=7,Calcs!$T130,IF(D11=8,Calcs!$T130,IF(D11=9,Calcs!$T130,0))))))))) -> 0 | E130: =IF(E11=1,Calcs!$N130,IF(E11=2,Calcs!$O130,IF(E11=3,Calcs!$R130,IF(E11=4,Calcs!$S130,IF(E11=5,Calcs!$Q130,IF(E11=6,Calcs!$P130,IF(E11=7,Calcs!$T130,IF(E11=8,Calcs!$T130,IF(E11=9,Calcs!$T130,0))))))))) -> 0 | F130: =IF(F11=1,Calcs!$N130,IF(F11=2,Calcs!$O130,IF(F11=3,Calcs!$R130,IF(F11=4,Calcs!$S130,IF(F11=5,Calcs!$Q130,IF(F11=6,Calcs!$P130,IF(F11=7,Calcs!$T130,IF(F11=8,Calcs!$T130,IF(F11=9,Calcs!$T130,0))))))))) -> 0 | G130: =IF(G11=1,Calcs!$N130,IF(G11=2,Calcs!$O130,IF(G11=3,Calcs!$R130,IF(G11=4,Calcs!$S130,IF(G11=5,Calcs!$Q130,IF(G11=6,Calcs!$P130,IF(G11=7,Calcs!$T130,IF(G11=8,Calcs!$T130,IF(G11=9,Calcs!$T130,0))))))))) -> 0 | H130: =IF(H11=1,Calcs!$N130,IF(H11=2,Calcs!$O130,IF(H11=3,Calcs!$R130,IF(H11=4,Calcs!$S130,IF(H11=5,Calcs!$Q130,IF(H11=6,Calcs!$P130,IF(H11=7,Calcs!$T130,IF(H11=8,Calcs!$T130,IF(H11=9,Calcs!$T130,0))))))))) -> 0 | I130: =IF(I11=1,Calcs!$N130,IF(I11=2,Calcs!$O130,IF(I11=3,Calcs!$R130,IF(I11=4,Calcs!$S130,IF(I11=5,Calcs!$Q130,IF(I11=6,Calcs!$P130,IF(I11=7,Calcs!$T130,IF(I11=8,Calcs!$T130,IF(I11=9,Calcs!$T130,0))))))))) -> 0 | J130: =IF(J11=1,Calcs!$N130,IF(J11=2,Calcs!$O130,IF(J11=3,Calcs!$R130,IF(J11=4,Calcs!$S130,IF(J11=5,Calcs!$Q130,IF(J11=6,Calcs!$P130,IF(J11=7,Calcs!$T130,IF(J11=8,Calcs!$T130,IF(J11=9,Calcs!$T130,0))))))))) -> 0 | K130: =IF(K11=1,Calcs!$N130,IF(K11=2,Calcs!$O130,IF(K11=3,Calcs!$R130,IF(K11=4,Calcs!$S130,IF(K11=5,Calcs!$Q130,IF(K11=6,Calcs!$P130,IF(K11=7,Calcs!$T130,IF(K11=8,Calcs!$T130,IF(K11=9,Calcs!$T130,0))))))))) -> 0 | L130: =IF(L11=1,Calcs!$N130,IF(L11=2,Calcs!$O130,IF(L11=3,Calcs!$R130,IF(L11=4,Calcs!$S130,IF(L11=5,Calcs!$Q130,IF(L11=6,Calcs!$P130,IF(L11=7,Calcs!$T130,IF(L11=8,Calcs!$T130,IF(L11=9,Calcs!$T130,0))))))))) -> 0 | N130: ='1.Profile'!G19+2*Calcs!$AB$124 -> 27 | O130: ='1.Profile'!G19+2*Calcs!$AC$124 -> 27 | P130: ='1.Profile'!E19+2*Calcs!$AD$124 -> 27 | Q130: ='1.Profile'!F19+2*Calcs!$AE$124 -> 27 | R130: ='1.Profile'!G19+2*Calcs!$AF$124 -> 27 | S130: ='1.Profile'!F19+2*Calcs!$AG$124 -> 27 | T130: ='1.Profile'!H19+2*Calcs!$AH$124 -> 27 | U130: from | V130: added | X130: +N/n | Y130: Cost of extra nutrient removal, hay&sil | AC130: ='+Prices'!F21 -> 0 | AD130: 0.75 | AE130: Less for silage | AG130: 1/2 for Cotton and legumes, none for pastures
A131: 1 | B131: Pre-E: Trifluralin | C131: =IF(C12=1,Calcs!$N131,IF(C12=2,Calcs!$O131,IF(C12=3,Calcs!$R131,IF(C12=4,Calcs!$S131,IF(C12=5,Calcs!$Q131,IF(C12=6,Calcs!$P131,IF(C12=7,Calcs!$T131,IF(C12=8,Calcs!$T131,IF(C12=9,Calcs!$T131,0))))))))) -> 0 | D131: =IF(D12=1,Calcs!$N131,IF(D12=2,Calcs!$O131,IF(D12=3,Calcs!$R131,IF(D12=4,Calcs!$S131,IF(D12=5,Calcs!$Q131,IF(D12=6,Calcs!$P131,IF(D12=7,Calcs!$T131,IF(D12=8,Calcs!$T131,IF(D12=9,Calcs!$T131,0))))))))) -> 0 | E131: =IF(E12=1,Calcs!$N131,IF(E12=2,Calcs!$O131,IF(E12=3,Calcs!$R131,IF(E12=4,Calcs!$S131,IF(E12=5,Calcs!$Q131,IF(E12=6,Calcs!$P131,IF(E12=7,Calcs!$T131,IF(E12=8,Calcs!$T131,IF(E12=9,Calcs!$T131,0))))))))) -> 0 | F131: =IF(F12=1,Calcs!$N131,IF(F12=2,Calcs!$O131,IF(F12=3,Calcs!$R131,IF(F12=4,Calcs!$S131,IF(F12=5,Calcs!$Q131,IF(F12=6,Calcs!$P131,IF(F12=7,Calcs!$T131,IF(F12=8,Calcs!$T131,IF(F12=9,Calcs!$T131,0))))))))) -> 24.5 | G131: =IF(G12=1,Calcs!$N131,IF(G12=2,Calcs!$O131,IF(G12=3,Calcs!$R131,IF(G12=4,Calcs!$S131,IF(G12=5,Calcs!$Q131,IF(G12=6,Calcs!$P131,IF(G12=7,Calcs!$T131,IF(G12=8,Calcs!$T131,IF(G12=9,Calcs!$T131,0))))))))) -> 0 | H131: =IF(H12=1,Calcs!$N131,IF(H12=2,Calcs!$O131,IF(H12=3,Calcs!$R131,IF(H12=4,Calcs!$S131,IF(H12=5,Calcs!$Q131,IF(H12=6,Calcs!$P131,IF(H12=7,Calcs!$T131,IF(H12=8,Calcs!$T131,IF(H12=9,Calcs!$T131,0))))))))) -> 0 | I131: =IF(I12=1,Calcs!$N131,IF(I12=2,Calcs!$O131,IF(I12=3,Calcs!$R131,IF(I12=4,Calcs!$S131,IF(I12=5,Calcs!$Q131,IF(I12=6,Calcs!$P131,IF(I12=7,Calcs!$T131,IF(I12=8,Calcs!$T131,IF(I12=9,Calcs!$T131,0))))))))) -> 0 | J131: =IF(J12=1,Calcs!$N131,IF(J12=2,Calcs!$O131,IF(J12=3,Calcs!$R131,IF(J12=4,Calcs!$S131,IF(J12=5,Calcs!$Q131,IF(J12=6,Calcs!$P131,IF(J12=7,Calcs!$T131,IF(J12=8,Calcs!$T131,IF(J12=9,Calcs!$T131,0))))))))) -> 0 | K131: =IF(K12=1,Calcs!$N131,IF(K12=2,Calcs!$O131,IF(K12=3,Calcs!$R131,IF(K12=4,Calcs!$S131,IF(K12=5,Calcs!$Q131,IF(K12=6,Calcs!$P131,IF(K12=7,Calcs!$T131,IF(K12=8,Calcs!$T131,IF(K12=9,Calcs!$T131,0))))))))) -> 0 | L131: =IF(L12=1,Calcs!$N131,IF(L12=2,Calcs!$O131,IF(L12=3,Calcs!$R131,IF(L12=4,Calcs!$S131,IF(L12=5,Calcs!$Q131,IF(L12=6,Calcs!$P131,IF(L12=7,Calcs!$T131,IF(L12=8,Calcs!$T131,IF(L12=9,Calcs!$T131,0))))))))) -> 24.5 | N131: ='1.Profile'!G21+Calcs!$AB$124 -> 24.5 | O131: ='1.Profile'!G21+Calcs!$AC$124 -> 24.5 | P131: ='1.Profile'!E21+Calcs!$AD$124 -> 24.5 | Q131: ='1.Profile'!F21+Calcs!$AE$124 -> 24.5 | R131: ='1.Profile'!G21+Calcs!$AF$124 -> 24.5 | S131: ='1.Profile'!F21+Calcs!$AG$124 -> 24.5 | T131: ='1.Profile'!H21+Calcs!$AH$124 -> 24.5 | U131: Profile | V131: +boom | X131: -harvest | Y131: Cost of harvesting | AC131: ='+Prices'!AN71 -> 16.6 | AE131: Subtracted when crops are sacrificed
A132: 2 | B132: Pre-E: Diuron | C132: =IF(C13=1,Calcs!$N132,IF(C13=2,Calcs!$O132,IF(C13=3,Calcs!$R132,IF(C13=4,Calcs!$S132,IF(C13=5,Calcs!$Q132,IF(C13=6,Calcs!$P132,IF(C13=7,Calcs!$T132,IF(C13=8,Calcs!$T132,IF(C13=9,Calcs!$T132,0))))))))) -> 0 | D132: =IF(D13=1,Calcs!$N132,IF(D13=2,Calcs!$O132,IF(D13=3,Calcs!$R132,IF(D13=4,Calcs!$S132,IF(D13=5,Calcs!$Q132,IF(D13=6,Calcs!$P132,IF(D13=7,Calcs!$T132,IF(D13=8,Calcs!$T132,IF(D13=9,Calcs!$T132,0))))))))) -> 0 | E132: =IF(E13=1,Calcs!$N132,IF(E13=2,Calcs!$O132,IF(E13=3,Calcs!$R132,IF(E13=4,Calcs!$S132,IF(E13=5,Calcs!$Q132,IF(E13=6,Calcs!$P132,IF(E13=7,Calcs!$T132,IF(E13=8,Calcs!$T132,IF(E13=9,Calcs!$T132,0))))))))) -> 0 | F132: =IF(F13=1,Calcs!$N132,IF(F13=2,Calcs!$O132,IF(F13=3,Calcs!$R132,IF(F13=4,Calcs!$S132,IF(F13=5,Calcs!$Q132,IF(F13=6,Calcs!$P132,IF(F13=7,Calcs!$T132,IF(F13=8,Calcs!$T132,IF(F13=9,Calcs!$T132,0))))))))) -> 0 | G132: =IF(G13=1,Calcs!$N132,IF(G13=2,Calcs!$O132,IF(G13=3,Calcs!$R132,IF(G13=4,Calcs!$S132,IF(G13=5,Calcs!$Q132,IF(G13=6,Calcs!$P132,IF(G13=7,Calcs!$T132,IF(G13=8,Calcs!$T132,IF(G13=9,Calcs!$T132,0))))))))) -> 0 | H132: =IF(H13=1,Calcs!$N132,IF(H13=2,Calcs!$O132,IF(H13=3,Calcs!$R132,IF(H13=4,Calcs!$S132,IF(H13=5,Calcs!$Q132,IF(H13=6,Calcs!$P132,IF(H13=7,Calcs!$T132,IF(H13=8,Calcs!$T132,IF(H13=9,Calcs!$T132,0))))))))) -> 0 | I132: =IF(I13=1,Calcs!$N132,IF(I13=2,Calcs!$O132,IF(I13=3,Calcs!$R132,IF(I13=4,Calcs!$S132,IF(I13=5,Calcs!$Q132,IF(I13=6,Calcs!$P132,IF(I13=7,Calcs!$T132,IF(I13=8,Calcs!$T132,IF(I13=9,Calcs!$T132,0))))))))) -> 0 | J132: =IF(J13=1,Calcs!$N132,IF(J13=2,Calcs!$O132,IF(J13=3,Calcs!$R132,IF(J13=4,Calcs!$S132,IF(J13=5,Calcs!$Q132,IF(J13=6,Calcs!$P132,IF(J13=7,Calcs!$T132,IF(J13=8,Calcs!$T132,IF(J13=9,Calcs!$T132,0))))))))) -> 0 | K132: =IF(K13=1,Calcs!$N132,IF(K13=2,Calcs!$O132,IF(K13=3,Calcs!$R132,IF(K13=4,Calcs!$S132,IF(K13=5,Calcs!$Q132,IF(K13=6,Calcs!$P132,IF(K13=7,Calcs!$T132,IF(K13=8,Calcs!$T132,IF(K13=9,Calcs!$T132,0))))))))) -> 0 | L132: =IF(L13=1,Calcs!$N132,IF(L13=2,Calcs!$O132,IF(L13=3,Calcs!$R132,IF(L13=4,Calcs!$S132,IF(L13=5,Calcs!$Q132,IF(L13=6,Calcs!$P132,IF(L13=7,Calcs!$T132,IF(L13=8,Calcs!$T132,IF(L13=9,Calcs!$T132,0))))))))) -> 0 | N132: ='1.Profile'!G22+Calcs!$AB$124 -> 19.5 | O132: ='1.Profile'!G22+Calcs!$AC$124 -> 19.5 | P132: ='1.Profile'!E22+Calcs!$AD$124 -> 19.5 | Q132: ='1.Profile'!F22+Calcs!$AE$124 -> 19.5 | R132: ='1.Profile'!G22+Calcs!$AF$124 -> 19.5 | S132: ='1.Profile'!F22+Calcs!$AG$124 -> 19.5 | T132: ='1.Profile'!H22+Calcs!$AH$124 -> 19.5 | V132: +boom | Y132: Environmental cost of cultivating | AC132: ='+Prices'!F25 -> 5 | AD132: Ratios
A133: 3 | B133: Pre-E: Pendimethalin | C133: =IF(C14=1,Calcs!$N133,IF(C14=2,Calcs!$O133,IF(C14=3,Calcs!$R133,IF(C14=4,Calcs!$S133,IF(C14=5,Calcs!$Q133,IF(C14=6,Calcs!$P133,IF(C14=7,Calcs!$T133,IF(C14=8,Calcs!$T133,IF(C14=9,Calcs!$T133,0))))))))) -> 0 | D133: =IF(D14=1,Calcs!$N133,IF(D14=2,Calcs!$O133,IF(D14=3,Calcs!$R133,IF(D14=4,Calcs!$S133,IF(D14=5,Calcs!$Q133,IF(D14=6,Calcs!$P133,IF(D14=7,Calcs!$T133,IF(D14=8,Calcs!$T133,IF(D14=9,Calcs!$T133,0))))))))) -> 0 | E133: =IF(E14=1,Calcs!$N133,IF(E14=2,Calcs!$O133,IF(E14=3,Calcs!$R133,IF(E14=4,Calcs!$S133,IF(E14=5,Calcs!$Q133,IF(E14=6,Calcs!$P133,IF(E14=7,Calcs!$T133,IF(E14=8,Calcs!$T133,IF(E14=9,Calcs!$T133,0))))))))) -> 0 | F133: =IF(F14=1,Calcs!$N133,IF(F14=2,Calcs!$O133,IF(F14=3,Calcs!$R133,IF(F14=4,Calcs!$S133,IF(F14=5,Calcs!$Q133,IF(F14=6,Calcs!$P133,IF(F14=7,Calcs!$T133,IF(F14=8,Calcs!$T133,IF(F14=9,Calcs!$T133,0))))))))) -> 0 | G133: =IF(G14=1,Calcs!$N133,IF(G14=2,Calcs!$O133,IF(G14=3,Calcs!$R133,IF(G14=4,Calcs!$S133,IF(G14=5,Calcs!$Q133,IF(G14=6,Calcs!$P133,IF(G14=7,Calcs!$T133,IF(G14=8,Calcs!$T133,IF(G14=9,Calcs!$T133,0))))))))) -> 39.5 | H133: =IF(H14=1,Calcs!$N133,IF(H14=2,Calcs!$O133,IF(H14=3,Calcs!$R133,IF(H14=4,Calcs!$S133,IF(H14=5,Calcs!$Q133,IF(H14=6,Calcs!$P133,IF(H14=7,Calcs!$T133,IF(H14=8,Calcs!$T133,IF(H14=9,Calcs!$T133,0))))))))) -> 0 | I133: =IF(I14=1,Calcs!$N133,IF(I14=2,Calcs!$O133,IF(I14=3,Calcs!$R133,IF(I14=4,Calcs!$S133,IF(I14=5,Calcs!$Q133,IF(I14=6,Calcs!$P133,IF(I14=7,Calcs!$T133,IF(I14=8,Calcs!$T133,IF(I14=9,Calcs!$T133,0))))))))) -> 0 | J133: =IF(J14=1,Calcs!$N133,IF(J14=2,Calcs!$O133,IF(J14=3,Calcs!$R133,IF(J14=4,Calcs!$S133,IF(J14=5,Calcs!$Q133,IF(J14=6,Calcs!$P133,IF(J14=7,Calcs!$T133,IF(J14=8,Calcs!$T133,IF(J14=9,Calcs!$T133,0))))))))) -> 0 | K133: =IF(K14=1,Calcs!$N133,IF(K14=2,Calcs!$O133,IF(K14=3,Calcs!$R133,IF(K14=4,Calcs!$S133,IF(K14=5,Calcs!$Q133,IF(K14=6,Calcs!$P133,IF(K14=7,Calcs!$T133,IF(K14=8,Calcs!$T133,IF(K14=9,Calcs!$T133,0))))))))) -> 0 | L133: =IF(L14=1,Calcs!$N133,IF(L14=2,Calcs!$O133,IF(L14=3,Calcs!$R133,IF(L14=4,Calcs!$S133,IF(L14=5,Calcs!$Q133,IF(L14=6,Calcs!$P133,IF(L14=7,Calcs!$T133,IF(L14=8,Calcs!$T133,IF(L14=9,Calcs!$T133,0))))))))) -> 0 | N133: ='1.Profile'!G23+Calcs!$AB$124 -> 39.5 | O133: ='1.Profile'!G23+Calcs!$AC$124 -> 39.5 | P133: ='1.Profile'!E23+Calcs!$AD$124 -> 39.5 | Q133: ='1.Profile'!F23+Calcs!$AE$124 -> 39.5 | R133: ='1.Profile'!G23+Calcs!$AF$124 -> 39.5 | S133: ='1.Profile'!F23+Calcs!$AG$124 -> 39.5 | T133: ='1.Profile'!H23+Calcs!$AH$124 -> 39.5 | V133: +2xboom | X133: +F | Y133: Envir. cost of whole paddock burning | AC133: =AC132*AD133 -> 3.5 | AD133: 0.7
A134: 4 | B134: Pre-E: s-Metolachlor | C134: =IF(C15=1,Calcs!$N134,IF(C15=2,Calcs!$O134,IF(C15=3,Calcs!$R134,IF(C15=4,Calcs!$S134,IF(C15=5,Calcs!$Q134,IF(C15=6,Calcs!$P134,IF(C15=7,Calcs!$T134,IF(C15=8,Calcs!$T134,IF(C15=9,Calcs!$T134,0))))))))) -> 0 | D134: =IF(D15=1,Calcs!$N134,IF(D15=2,Calcs!$O134,IF(D15=3,Calcs!$R134,IF(D15=4,Calcs!$S134,IF(D15=5,Calcs!$Q134,IF(D15=6,Calcs!$P134,IF(D15=7,Calcs!$T134,IF(D15=8,Calcs!$T134,IF(D15=9,Calcs!$T134,0))))))))) -> 0 | E134: =IF(E15=1,Calcs!$N134,IF(E15=2,Calcs!$O134,IF(E15=3,Calcs!$R134,IF(E15=4,Calcs!$S134,IF(E15=5,Calcs!$Q134,IF(E15=6,Calcs!$P134,IF(E15=7,Calcs!$T134,IF(E15=8,Calcs!$T134,IF(E15=9,Calcs!$T134,0))))))))) -> 0 | F134: =IF(F15=1,Calcs!$N134,IF(F15=2,Calcs!$O134,IF(F15=3,Calcs!$R134,IF(F15=4,Calcs!$S134,IF(F15=5,Calcs!$Q134,IF(F15=6,Calcs!$P134,IF(F15=7,Calcs!$T134,IF(F15=8,Calcs!$T134,IF(F15=9,Calcs!$T134,0))))))))) -> 0 | G134: =IF(G15=1,Calcs!$N134,IF(G15=2,Calcs!$O134,IF(G15=3,Calcs!$R134,IF(G15=4,Calcs!$S134,IF(G15=5,Calcs!$Q134,IF(G15=6,Calcs!$P134,IF(G15=7,Calcs!$T134,IF(G15=8,Calcs!$T134,IF(G15=9,Calcs!$T134,0))))))))) -> 0 | H134: =IF(H15=1,Calcs!$N134,IF(H15=2,Calcs!$O134,IF(H15=3,Calcs!$R134,IF(H15=4,Calcs!$S134,IF(H15=5,Calcs!$Q134,IF(H15=6,Calcs!$P134,IF(H15=7,Calcs!$T134,IF(H15=8,Calcs!$T134,IF(H15=9,Calcs!$T134,0))))))))) -> 34.5 | I134: =IF(I15=1,Calcs!$N134,IF(I15=2,Calcs!$O134,IF(I15=3,Calcs!$R134,IF(I15=4,Calcs!$S134,IF(I15=5,Calcs!$Q134,IF(I15=6,Calcs!$P134,IF(I15=7,Calcs!$T134,IF(I15=8,Calcs!$T134,IF(I15=9,Calcs!$T134,0))))))))) -> 0 | J134: =IF(J15=1,Calcs!$N134,IF(J15=2,Calcs!$O134,IF(J15=3,Calcs!$R134,IF(J15=4,Calcs!$S134,IF(J15=5,Calcs!$Q134,IF(J15=6,Calcs!$P134,IF(J15=7,Calcs!$T134,IF(J15=8,Calcs!$T134,IF(J15=9,Calcs!$T134,0))))))))) -> 0 | K134: =IF(K15=1,Calcs!$N134,IF(K15=2,Calcs!$O134,IF(K15=3,Calcs!$R134,IF(K15=4,Calcs!$S134,IF(K15=5,Calcs!$Q134,IF(K15=6,Calcs!$P134,IF(K15=7,Calcs!$T134,IF(K15=8,Calcs!$T134,IF(K15=9,Calcs!$T134,0))))))))) -> 0 | L134: =IF(L15=1,Calcs!$N134,IF(L15=2,Calcs!$O134,IF(L15=3,Calcs!$R134,IF(L15=4,Calcs!$S134,IF(L15=5,Calcs!$Q134,IF(L15=6,Calcs!$P134,IF(L15=7,Calcs!$T134,IF(L15=8,Calcs!$T134,IF(L15=9,Calcs!$T134,0))))))))) -> 0 | N134: ='1.Profile'!G24+Calcs!$AB$124 -> 29.5 | O134: ='1.Profile'!G24+Calcs!$AC$124 -> 29.5 | P134: ='1.Profile'!E24+Calcs!$AD$124 -> 34.5 | Q134: ='1.Profile'!F24+Calcs!$AE$124 -> 29.5 | R134: ='1.Profile'!G24+Calcs!$AF$124 -> 29.5 | S134: ='1.Profile'!F24+Calcs!$AG$124 -> 29.5 | T134: ='1.Profile'!H24+Calcs!$AH$124 -> 34.5 | U134: Profile | V134: +boom | X134: +f | Y134: Envir. cost of limited burning (fire risk) | AC134: =AC132*AD134 -> 1.5 | AD134: 0.3
A135: 5 | B135: Pre-E: Fluometuron+Prometryn | C135: =IF(C16=1,Calcs!$N135,IF(C16=2,Calcs!$O135,IF(C16=3,Calcs!$R135,IF(C16=4,Calcs!$S135,IF(C16=5,Calcs!$Q135,IF(C16=6,Calcs!$P135,IF(C16=7,Calcs!$T135,IF(C16=8,Calcs!$T135,IF(C16=9,Calcs!$T135,0))))))))) -> 0 | D135: =IF(D16=1,Calcs!$N135,IF(D16=2,Calcs!$O135,IF(D16=3,Calcs!$R135,IF(D16=4,Calcs!$S135,IF(D16=5,Calcs!$Q135,IF(D16=6,Calcs!$P135,IF(D16=7,Calcs!$T135,IF(D16=8,Calcs!$T135,IF(D16=9,Calcs!$T135,0))))))))) -> 0 | E135: =IF(E16=1,Calcs!$N135,IF(E16=2,Calcs!$O135,IF(E16=3,Calcs!$R135,IF(E16=4,Calcs!$S135,IF(E16=5,Calcs!$Q135,IF(E16=6,Calcs!$P135,IF(E16=7,Calcs!$T135,IF(E16=8,Calcs!$T135,IF(E16=9,Calcs!$T135,0))))))))) -> 0 | F135: =IF(F16=1,Calcs!$N135,IF(F16=2,Calcs!$O135,IF(F16=3,Calcs!$R135,IF(F16=4,Calcs!$S135,IF(F16=5,Calcs!$Q135,IF(F16=6,Calcs!$P135,IF(F16=7,Calcs!$T135,IF(F16=8,Calcs!$T135,IF(F16=9,Calcs!$T135,0))))))))) -> 0 | G135: =IF(G16=1,Calcs!$N135,IF(G16=2,Calcs!$O135,IF(G16=3,Calcs!$R135,IF(G16=4,Calcs!$S135,IF(G16=5,Calcs!$Q135,IF(G16=6,Calcs!$P135,IF(G16=7,Calcs!$T135,IF(G16=8,Calcs!$T135,IF(G16=9,Calcs!$T135,0))))))))) -> 0 | H135: =IF(H16=1,Calcs!$N135,IF(H16=2,Calcs!$O135,IF(H16=3,Calcs!$R135,IF(H16=4,Calcs!$S135,IF(H16=5,Calcs!$Q135,IF(H16=6,Calcs!$P135,IF(H16=7,Calcs!$T135,IF(H16=8,Calcs!$T135,IF(H16=9,Calcs!$T135,0))))))))) -> 0 | I135: =IF(I16=1,Calcs!$N135,IF(I16=2,Calcs!$O135,IF(I16=3,Calcs!$R135,IF(I16=4,Calcs!$S135,IF(I16=5,Calcs!$Q135,IF(I16=6,Calcs!$P135,IF(I16=7,Calcs!$T135,IF(I16=8,Calcs!$T135,IF(I16=9,Calcs!$T135,0))))))))) -> 0 | J135: =IF(J16=1,Calcs!$N135,IF(J16=2,Calcs!$O135,IF(J16=3,Calcs!$R135,IF(J16=4,Calcs!$S135,IF(J16=5,Calcs!$Q135,IF(J16=6,Calcs!$P135,IF(J16=7,Calcs!$T135,IF(J16=8,Calcs!$T135,IF(J16=9,Calcs!$T135,0))))))))) -> 0 | K135: =IF(K16=1,Calcs!$N135,IF(K16=2,Calcs!$O135,IF(K16=3,Calcs!$R135,IF(K16=4,Calcs!$S135,IF(K16=5,Calcs!$Q135,IF(K16=6,Calcs!$P135,IF(K16=7,Calcs!$T135,IF(K16=8,Calcs!$T135,IF(K16=9,Calcs!$T135,0))))))))) -> 0 | L135: =IF(L16=1,Calcs!$N135,IF(L16=2,Calcs!$O135,IF(L16=3,Calcs!$R135,IF(L16=4,Calcs!$S135,IF(L16=5,Calcs!$Q135,IF(L16=6,Calcs!$P135,IF(L16=7,Calcs!$T135,IF(L16=8,Calcs!$T135,IF(L16=9,Calcs!$T135,0))))))))) -> 0 | N135: ='1.Profile'!G25+Calcs!$AB$124 -> 64.5 | O135: ='1.Profile'!G25+Calcs!$AC$124 -> 64.5 | P135: ='1.Profile'!E25+Calcs!$AD$124 -> 64.5 | Q135: ='1.Profile'!F25+Calcs!$AE$124 -> 64.5 | R135: ='1.Profile'!G25+Calcs!$AF$124 -> 64.5 | S135: ='1.Profile'!F25+Calcs!$AG$124 -> 64.5 | T135: ='1.Profile'!H25+Calcs!$AH$124 -> 64.5 | V135: +boom
A136: 6 | B136: High crop seeding rate selected | C136: =IF(C17=1,Calcs!$N136,IF(C17=2,Calcs!$O136,IF(C17=3,Calcs!$R136,IF(C17=4,Calcs!$S136,IF(C17=5,Calcs!$Q136,IF(C17=6,Calcs!$P136,IF(C17=7,0,0))))))) -> 0 | D136: =IF(D17=1,Calcs!$N136,IF(D17=2,Calcs!$O136,IF(D17=3,Calcs!$R136,IF(D17=4,Calcs!$S136,IF(D17=5,Calcs!$Q136,IF(D17=6,Calcs!$P136,IF(D17=7,0,0))))))) -> 0 | E136: =IF(E17=1,Calcs!$N136,IF(E17=2,Calcs!$O136,IF(E17=3,Calcs!$R136,IF(E17=4,Calcs!$S136,IF(E17=5,Calcs!$Q136,IF(E17=6,Calcs!$P136,IF(E17=7,0,0))))))) -> 0 | F136: =IF(F17=1,Calcs!$N136,IF(F17=2,Calcs!$O136,IF(F17=3,Calcs!$R136,IF(F17=4,Calcs!$S136,IF(F17=5,Calcs!$Q136,IF(F17=6,Calcs!$P136,IF(F17=7,0,0))))))) -> 0 | G136: =IF(G17=1,Calcs!$N136,IF(G17=2,Calcs!$O136,IF(G17=3,Calcs!$R136,IF(G17=4,Calcs!$S136,IF(G17=5,Calcs!$Q136,IF(G17=6,Calcs!$P136,IF(G17=7,0,0))))))) -> 0 | H136: =IF(H17=1,Calcs!$N136,IF(H17=2,Calcs!$O136,IF(H17=3,Calcs!$R136,IF(H17=4,Calcs!$S136,IF(H17=5,Calcs!$Q136,IF(H17=6,Calcs!$P136,IF(H17=7,0,0))))))) -> 0 | I136: =IF(I17=1,Calcs!$N136,IF(I17=2,Calcs!$O136,IF(I17=3,Calcs!$R136,IF(I17=4,Calcs!$S136,IF(I17=5,Calcs!$Q136,IF(I17=6,Calcs!$P136,IF(I17=7,0,0))))))) -> 0 | J136: =IF(J17=1,Calcs!$N136,IF(J17=2,Calcs!$O136,IF(J17=3,Calcs!$R136,IF(J17=4,Calcs!$S136,IF(J17=5,Calcs!$Q136,IF(J17=6,Calcs!$P136,IF(J17=7,0,0))))))) -> 0 | K136: =IF(K17=1,Calcs!$N136,IF(K17=2,Calcs!$O136,IF(K17=3,Calcs!$R136,IF(K17=4,Calcs!$S136,IF(K17=5,Calcs!$Q136,IF(K17=6,Calcs!$P136,IF(K17=7,0,0))))))) -> 0 | L136: =IF(L17=1,Calcs!$N136,IF(L17=2,Calcs!$O136,IF(L17=3,Calcs!$R136,IF(L17=4,Calcs!$S136,IF(L17=5,Calcs!$Q136,IF(L17=6,Calcs!$P136,IF(L17=7,0,0))))))) -> 0 | N136: ='+Prices'!AL100 -> 11.66666667 | O136: ='+Prices'!AL100 -> 11.66666667 | P136: ='+Prices'!AJ100 -> 3.076923077 | Q136: ='+Prices'!AK100 -> 3.312857143 | R136: ='+Prices'!AM100 -> 5 | S136: ='+Prices'!AN100 -> 13.33333333 | T136: ='+Prices'!AQ100 -> 0 | V136: +boom
A137: 7 | B137: Tickle selected | C137: =IF(C18=1,Calcs!$N137,IF(C18=2,Calcs!$O137,IF(C18=3,Calcs!$R137,IF(C18=4,Calcs!$S137,IF(C18=5,Calcs!$Q137,IF(C18=6,Calcs!$P137,IF(C18=7,Calcs!$T137,IF(C18=8,Calcs!$T137,IF(C18=9,Calcs!$T137,0))))))))) -> 0 | D137: =IF(D18=1,Calcs!$N137,IF(D18=2,Calcs!$O137,IF(D18=3,Calcs!$R137,IF(D18=4,Calcs!$S137,IF(D18=5,Calcs!$Q137,IF(D18=6,Calcs!$P137,IF(D18=7,Calcs!$T137,IF(D18=8,Calcs!$T137,IF(D18=9,Calcs!$T137,0))))))))) -> 0 | E137: =IF(E18=1,Calcs!$N137,IF(E18=2,Calcs!$O137,IF(E18=3,Calcs!$R137,IF(E18=4,Calcs!$S137,IF(E18=5,Calcs!$Q137,IF(E18=6,Calcs!$P137,IF(E18=7,Calcs!$T137,IF(E18=8,Calcs!$T137,IF(E18=9,Calcs!$T137,0))))))))) -> 0 | F137: =IF(F18=1,Calcs!$N137,IF(F18=2,Calcs!$O137,IF(F18=3,Calcs!$R137,IF(F18=4,Calcs!$S137,IF(F18=5,Calcs!$Q137,IF(F18=6,Calcs!$P137,IF(F18=7,Calcs!$T137,IF(F18=8,Calcs!$T137,IF(F18=9,Calcs!$T137,0))))))))) -> 6.3 | G137: =IF(G18=1,Calcs!$N137,IF(G18=2,Calcs!$O137,IF(G18=3,Calcs!$R137,IF(G18=4,Calcs!$S137,IF(G18=5,Calcs!$Q137,IF(G18=6,Calcs!$P137,IF(G18=7,Calcs!$T137,IF(G18=8,Calcs!$T137,IF(G18=9,Calcs!$T137,0))))))))) -> 0 | H137: =IF(H18=1,Calcs!$N137,IF(H18=2,Calcs!$O137,IF(H18=3,Calcs!$R137,IF(H18=4,Calcs!$S137,IF(H18=5,Calcs!$Q137,IF(H18=6,Calcs!$P137,IF(H18=7,Calcs!$T137,IF(H18=8,Calcs!$T137,IF(H18=9,Calcs!$T137,0))))))))) -> 0 | I137: =IF(I18=1,Calcs!$N137,IF(I18=2,Calcs!$O137,IF(I18=3,Calcs!$R137,IF(I18=4,Calcs!$S137,IF(I18=5,Calcs!$Q137,IF(I18=6,Calcs!$P137,IF(I18=7,Calcs!$T137,IF(I18=8,Calcs!$T137,IF(I18=9,Calcs!$T137,0))))))))) -> 0 | J137: =IF(J18=1,Calcs!$N137,IF(J18=2,Calcs!$O137,IF(J18=3,Calcs!$R137,IF(J18=4,Calcs!$S137,IF(J18=5,Calcs!$Q137,IF(J18=6,Calcs!$P137,IF(J18=7,Calcs!$T137,IF(J18=8,Calcs!$T137,IF(J18=9,Calcs!$T137,0))))))))) -> 0 | K137: =IF(K18=1,Calcs!$N137,IF(K18=2,Calcs!$O137,IF(K18=3,Calcs!$R137,IF(K18=4,Calcs!$S137,IF(K18=5,Calcs!$Q137,IF(K18=6,Calcs!$P137,IF(K18=7,Calcs!$T137,IF(K18=8,Calcs!$T137,IF(K18=9,Calcs!$T137,0))))))))) -> 6.3 | L137: =IF(L18=1,Calcs!$N137,IF(L18=2,Calcs!$O137,IF(L18=3,Calcs!$R137,IF(L18=4,Calcs!$S137,IF(L18=5,Calcs!$Q137,IF(L18=6,Calcs!$P137,IF(L18=7,Calcs!$T137,IF(L18=8,Calcs!$T137,IF(L18=9,Calcs!$T137,0))))))))) -> 0 | N137: ='+Prices'!$AJ$97 -> 6.3 | O137: ='+Prices'!$AL$97 -> 6.3 | P137: ='+Prices'!$AJ$97 -> 6.3 | Q137: ='+Prices'!$AK$97 -> 6.3 | R137: ='+Prices'!$AL$97 -> 6.3 | S137: ='+Prices'!$AM$97 -> 6.3 | T137: ='+Prices'!$AJ$97 -> 6.3 | V137: +boom
A138: 8 | B138: Cultivate selected | C138: =IF(C19=1,Calcs!$N138,IF(C19=2,Calcs!$O138,IF(C19=3,Calcs!$R138,IF(C19=4,Calcs!$S138,IF(C19=5,Calcs!$Q138,IF(C19=6,Calcs!$P138,IF(C19=7,Calcs!$T138,IF(C19=8,Calcs!$T138,IF(C19=9,Calcs!$T138,0))))))))) -> 12.6 | D138: =IF(D19=1,Calcs!$N138,IF(D19=2,Calcs!$O138,IF(D19=3,Calcs!$R138,IF(D19=4,Calcs!$S138,IF(D19=5,Calcs!$Q138,IF(D19=6,Calcs!$P138,IF(D19=7,Calcs!$T138,IF(D19=8,Calcs!$T138,IF(D19=9,Calcs!$T138,0))))))))) -> 0 | E138: =IF(E19=1,Calcs!$N138,IF(E19=2,Calcs!$O138,IF(E19=3,Calcs!$R138,IF(E19=4,Calcs!$S138,IF(E19=5,Calcs!$Q138,IF(E19=6,Calcs!$P138,IF(E19=7,Calcs!$T138,IF(E19=8,Calcs!$T138,IF(E19=9,Calcs!$T138,0))))))))) -> 12.6 | F138: =IF(F19=1,Calcs!$N138,IF(F19=2,Calcs!$O138,IF(F19=3,Calcs!$R138,IF(F19=4,Calcs!$S138,IF(F19=5,Calcs!$Q138,IF(F19=6,Calcs!$P138,IF(F19=7,Calcs!$T138,IF(F19=8,Calcs!$T138,IF(F19=9,Calcs!$T138,0))))))))) -> 0 | G138: =IF(G19=1,Calcs!$N138,IF(G19=2,Calcs!$O138,IF(G19=3,Calcs!$R138,IF(G19=4,Calcs!$S138,IF(G19=5,Calcs!$Q138,IF(G19=6,Calcs!$P138,IF(G19=7,Calcs!$T138,IF(G19=8,Calcs!$T138,IF(G19=9,Calcs!$T138,0))))))))) -> 12.6 | H138: =IF(H19=1,Calcs!$N138,IF(H19=2,Calcs!$O138,IF(H19=3,Calcs!$R138,IF(H19=4,Calcs!$S138,IF(H19=5,Calcs!$Q138,IF(H19=6,Calcs!$P138,IF(H19=7,Calcs!$T138,IF(H19=8,Calcs!$T138,IF(H19=9,Calcs!$T138,0))))))))) -> 0 | I138: =IF(I19=1,Calcs!$N138,IF(I19=2,Calcs!$O138,IF(I19=3,Calcs!$R138,IF(I19=4,Calcs!$S138,IF(I19=5,Calcs!$Q138,IF(I19=6,Calcs!$P138,IF(I19=7,Calcs!$T138,IF(I19=8,Calcs!$T138,IF(I19=9,Calcs!$T138,0))))))))) -> 12.6 | J138: =IF(J19=1,Calcs!$N138,IF(J19=2,Calcs!$O138,IF(J19=3,Calcs!$R138,IF(J19=4,Calcs!$S138,IF(J19=5,Calcs!$Q138,IF(J19=6,Calcs!$P138,IF(J19=7,Calcs!$T138,IF(J19=8,Calcs!$T138,IF(J19=9,Calcs!$T138,0))))))))) -> 0 | K138: =IF(K19=1,Calcs!$N138,IF(K19=2,Calcs!$O138,IF(K19=3,Calcs!$R138,IF(K19=4,Calcs!$S138,IF(K19=5,Calcs!$Q138,IF(K19=6,Calcs!$P138,IF(K19=7,Calcs!$T138,IF(K19=8,Calcs!$T138,IF(K19=9,Calcs!$T138,0))))))))) -> 0 | L138: =IF(L19=1,Calcs!$N138,IF(L19=2,Calcs!$O138,IF(L19=3,Calcs!$R138,IF(L19=4,Calcs!$S138,IF(L19=5,Calcs!$Q138,IF(L19=6,Calcs!$P138,IF(L19=7,Calcs!$T138,IF(L19=8,Calcs!$T138,IF(L19=9,Calcs!$T138,0))))))))) -> 0 | N138: ='+Prices'!$AJ$98 -> 12.6 | O138: ='+Prices'!$AL$98 -> 12.6 | P138: ='+Prices'!$AJ$98 -> 12.6 | Q138: ='+Prices'!$AK$98 -> 12.6 | R138: ='+Prices'!$AL$98 -> 12.6 | S138: ='+Prices'!$AM$98 -> 12.6 | T138: ='+Prices'!$AJ$98 -> 12.6 | V138: +boom
A139: 9 | C139: Codes #1: 1=wc, 2=Sorghum, 3=corn, 4=beans, 5=d/l cotton, 6=irri cotton, 7=cover crop, 8=wf, 9=sf | U139: Prices
A140: 10 | B140: =B21 -> Very early sowing | D140: Since sowing must occur anyway, the cost attributable to weed control is zero and | U140: Prices
A141: 11 | B141: Early sowing | D141: included instead in the non-weed control costs, from the Prices page to the | U141: Prices
A142: 12 | B142: Average sowing time | D142: Production cost table below, to the Eco results. | U142: Prices
A143: 13 | B143: Sow late | D143: Yield penalty accounted for in 'Bio results'.
A144: 14 | B144: Post-E 1: Glyphosate | C144: =IF(C25=1,Calcs!$N144,IF(C25=2,Calcs!$O144,IF(C25=3,Calcs!$R144,IF(C25=4,Calcs!$S144,IF(C25=5,Calcs!$Q144,IF(C25=6,Calcs!$P144,IF(C25=7,Calcs!$T144,IF(C25=8,Calcs!$T144,IF(C25=9,Calcs!$T144,0))))))))) -> 15.5 | D144: =IF(D25=1,Calcs!$N144,IF(D25=2,Calcs!$O144,IF(D25=3,Calcs!$R144,IF(D25=4,Calcs!$S144,IF(D25=5,Calcs!$Q144,IF(D25=6,Calcs!$P144,IF(D25=7,Calcs!$T144,IF(D25=8,Calcs!$T144,IF(D25=9,Calcs!$T144,0))))))))) -> 0 | E144: =IF(E25=1,Calcs!$N144,IF(E25=2,Calcs!$O144,IF(E25=3,Calcs!$R144,IF(E25=4,Calcs!$S144,IF(E25=5,Calcs!$Q144,IF(E25=6,Calcs!$P144,IF(E25=7,Calcs!$T144,IF(E25=8,Calcs!$T144,IF(E25=9,Calcs!$T144,0))))))))) -> 15.5 | F144: =IF(F25=1,Calcs!$N144,IF(F25=2,Calcs!$O144,IF(F25=3,Calcs!$R144,IF(F25=4,Calcs!$S144,IF(F25=5,Calcs!$Q144,IF(F25=6,Calcs!$P144,IF(F25=7,Calcs!$T144,IF(F25=8,Calcs!$T144,IF(F25=9,Calcs!$T144,0))))))))) -> 0 | G144: =IF(G25=1,Calcs!$N144,IF(G25=2,Calcs!$O144,IF(G25=3,Calcs!$R144,IF(G25=4,Calcs!$S144,IF(G25=5,Calcs!$Q144,IF(G25=6,Calcs!$P144,IF(G25=7,Calcs!$T144,IF(G25=8,Calcs!$T144,IF(G25=9,Calcs!$T144,0))))))))) -> 15.5 | H144: =IF(H25=1,Calcs!$N144,IF(H25=2,Calcs!$O144,IF(H25=3,Calcs!$R144,IF(H25=4,Calcs!$S144,IF(H25=5,Calcs!$Q144,IF(H25=6,Calcs!$P144,IF(H25=7,Calcs!$T144,IF(H25=8,Calcs!$T144,IF(H25=9,Calcs!$T144,0))))))))) -> 0 | I144: =IF(I25=1,Calcs!$N144,IF(I25=2,Calcs!$O144,IF(I25=3,Calcs!$R144,IF(I25=4,Calcs!$S144,IF(I25=5,Calcs!$Q144,IF(I25=6,Calcs!$P144,IF(I25=7,Calcs!$T144,IF(I25=8,Calcs!$T144,IF(I25=9,Calcs!$T144,0))))))))) -> 0 | J144: =IF(J25=1,Calcs!$N144,IF(J25=2,Calcs!$O144,IF(J25=3,Calcs!$R144,IF(J25=4,Calcs!$S144,IF(J25=5,Calcs!$Q144,IF(J25=6,Calcs!$P144,IF(J25=7,Calcs!$T144,IF(J25=8,Calcs!$T144,IF(J25=9,Calcs!$T144,0))))))))) -> 0 | K144: =IF(K25=1,Calcs!$N144,IF(K25=2,Calcs!$O144,IF(K25=3,Calcs!$R144,IF(K25=4,Calcs!$S144,IF(K25=5,Calcs!$Q144,IF(K25=6,Calcs!$P144,IF(K25=7,Calcs!$T144,IF(K25=8,Calcs!$T144,IF(K25=9,Calcs!$T144,0))))))))) -> 15.5 | L144: =IF(L25=1,Calcs!$N144,IF(L25=2,Calcs!$O144,IF(L25=3,Calcs!$R144,IF(L25=4,Calcs!$S144,IF(L25=5,Calcs!$Q144,IF(L25=6,Calcs!$P144,IF(L25=7,Calcs!$T144,IF(L25=8,Calcs!$T144,IF(L25=9,Calcs!$T144,0))))))))) -> 12.5 | N144: ='1.Profile'!G27+Calcs!$AB$124 -> 15.5 | O144: ='1.Profile'!G27+Calcs!$AC$124 -> 15.5 | P144: ='1.Profile'!E27+Calcs!$AD$124 -> 15.5 | Q144: ='1.Profile'!F27+Calcs!$AE$124 -> 15.5 | R144: ='1.Profile'!G27+Calcs!$AF$124 -> 15.5 | S144: ='1.Profile'!F27+Calcs!$AG$124 -> 15.5 | T144: ='1.Profile'!H27+Calcs!$AH$124 -> 12.5
A145: 15 | B145: Post-E 1: Glufosinate | C145: =IF(C26=1,Calcs!$N145,IF(C26=2,Calcs!$O145,IF(C26=3,Calcs!$R145,IF(C26=4,Calcs!$S145,IF(C26=5,Calcs!$Q145,IF(C26=6,Calcs!$P145,IF(C26=7,Calcs!$T145,IF(C26=8,Calcs!$T145,IF(C26=9,Calcs!$T145,0))))))))) -> 0 | D145: =IF(D26=1,Calcs!$N145,IF(D26=2,Calcs!$O145,IF(D26=3,Calcs!$R145,IF(D26=4,Calcs!$S145,IF(D26=5,Calcs!$Q145,IF(D26=6,Calcs!$P145,IF(D26=7,Calcs!$T145,IF(D26=8,Calcs!$T145,IF(D26=9,Calcs!$T145,0))))))))) -> 0 | E145: =IF(E26=1,Calcs!$N145,IF(E26=2,Calcs!$O145,IF(E26=3,Calcs!$R145,IF(E26=4,Calcs!$S145,IF(E26=5,Calcs!$Q145,IF(E26=6,Calcs!$P145,IF(E26=7,Calcs!$T145,IF(E26=8,Calcs!$T145,IF(E26=9,Calcs!$T145,0))))))))) -> 0 | F145: =IF(F26=1,Calcs!$N145,IF(F26=2,Calcs!$O145,IF(F26=3,Calcs!$R145,IF(F26=4,Calcs!$S145,IF(F26=5,Calcs!$Q145,IF(F26=6,Calcs!$P145,IF(F26=7,Calcs!$T145,IF(F26=8,Calcs!$T145,IF(F26=9,Calcs!$T145,0))))))))) -> 0 | G145: =IF(G26=1,Calcs!$N145,IF(G26=2,Calcs!$O145,IF(G26=3,Calcs!$R145,IF(G26=4,Calcs!$S145,IF(G26=5,Calcs!$Q145,IF(G26=6,Calcs!$P145,IF(G26=7,Calcs!$T145,IF(G26=8,Calcs!$T145,IF(G26=9,Calcs!$T145,0))))))))) -> 0 | H145: =IF(H26=1,Calcs!$N145,IF(H26=2,Calcs!$O145,IF(H26=3,Calcs!$R145,IF(H26=4,Calcs!$S145,IF(H26=5,Calcs!$Q145,IF(H26=6,Calcs!$P145,IF(H26=7,Calcs!$T145,IF(H26=8,Calcs!$T145,IF(H26=9,Calcs!$T145,0))))))))) -> 0 | I145: =IF(I26=1,Calcs!$N145,IF(I26=2,Calcs!$O145,IF(I26=3,Calcs!$R145,IF(I26=4,Calcs!$S145,IF(I26=5,Calcs!$Q145,IF(I26=6,Calcs!$P145,IF(I26=7,Calcs!$T145,IF(I26=8,Calcs!$T145,IF(I26=9,Calcs!$T145,0))))))))) -> 0 | J145: =IF(J26=1,Calcs!$N145,IF(J26=2,Calcs!$O145,IF(J26=3,Calcs!$R145,IF(J26=4,Calcs!$S145,IF(J26=5,Calcs!$Q145,IF(J26=6,Calcs!$P145,IF(J26=7,Calcs!$T145,IF(J26=8,Calcs!$T145,IF(J26=9,Calcs!$T145,0))))))))) -> 0 | K145: =IF(K26=1,Calcs!$N145,IF(K26=2,Calcs!$O145,IF(K26=3,Calcs!$R145,IF(K26=4,Calcs!$S145,IF(K26=5,Calcs!$Q145,IF(K26=6,Calcs!$P145,IF(K26=7,Calcs!$T145,IF(K26=8,Calcs!$T145,IF(K26=9,Calcs!$T145,0))))))))) -> 0 | L145: =IF(L26=1,Calcs!$N145,IF(L26=2,Calcs!$O145,IF(L26=3,Calcs!$R145,IF(L26=4,Calcs!$S145,IF(L26=5,Calcs!$Q145,IF(L26=6,Calcs!$P145,IF(L26=7,Calcs!$T145,IF(L26=8,Calcs!$T145,IF(L26=9,Calcs!$T145,0))))))))) -> 0 | N145: ='1.Profile'!G28+Calcs!$AB$124 -> 22.5 | O145: ='1.Profile'!G28+Calcs!$AC$124 -> 22.5 | P145: ='1.Profile'!E28+Calcs!$AD$124 -> 22.5 | Q145: ='1.Profile'!F28+Calcs!$AE$124 -> 22.5 | R145: ='1.Profile'!G28+Calcs!$AF$124 -> 22.5 | S145: ='1.Profile'!F28+Calcs!$AG$124 -> 22.5 | T145: ='1.Profile'!H28+Calcs!$AH$124 -> 22.5
A146: 16 | B146: Post-E 1: Paraquat (shielded) | C146: =IF(C27=1,Calcs!$N146,IF(C27=2,Calcs!$O146,IF(C27=3,Calcs!$R146,IF(C27=4,Calcs!$S146,IF(C27=5,Calcs!$Q146,IF(C27=6,Calcs!$P146,IF(C27=7,Calcs!$T146,IF(C27=8,Calcs!$T146,IF(C27=9,Calcs!$T146,0))))))))) -> 0 | D146: =IF(D27=1,Calcs!$N146,IF(D27=2,Calcs!$O146,IF(D27=3,Calcs!$R146,IF(D27=4,Calcs!$S146,IF(D27=5,Calcs!$Q146,IF(D27=6,Calcs!$P146,IF(D27=7,Calcs!$T146,IF(D27=8,Calcs!$T146,IF(D27=9,Calcs!$T146,0))))))))) -> 0 | E146: =IF(E27=1,Calcs!$N146,IF(E27=2,Calcs!$O146,IF(E27=3,Calcs!$R146,IF(E27=4,Calcs!$S146,IF(E27=5,Calcs!$Q146,IF(E27=6,Calcs!$P146,IF(E27=7,Calcs!$T146,IF(E27=8,Calcs!$T146,IF(E27=9,Calcs!$T146,0))))))))) -> 0 | F146: =IF(F27=1,Calcs!$N146,IF(F27=2,Calcs!$O146,IF(F27=3,Calcs!$R146,IF(F27=4,Calcs!$S146,IF(F27=5,Calcs!$Q146,IF(F27=6,Calcs!$P146,IF(F27=7,Calcs!$T146,IF(F27=8,Calcs!$T146,IF(F27=9,Calcs!$T146,0))))))))) -> 0 | G146: =IF(G27=1,Calcs!$N146,IF(G27=2,Calcs!$O146,IF(G27=3,Calcs!$R146,IF(G27=4,Calcs!$S146,IF(G27=5,Calcs!$Q146,IF(G27=6,Calcs!$P146,IF(G27=7,Calcs!$T146,IF(G27=8,Calcs!$T146,IF(G27=9,Calcs!$T146,0))))))))) -> 0 | H146: =IF(H27=1,Calcs!$N146,IF(H27=2,Calcs!$O146,IF(H27=3,Calcs!$R146,IF(H27=4,Calcs!$S146,IF(H27=5,Calcs!$Q146,IF(H27=6,Calcs!$P146,IF(H27=7,Calcs!$T146,IF(H27=8,Calcs!$T146,IF(H27=9,Calcs!$T146,0))))))))) -> 0 | I146: =IF(I27=1,Calcs!$N146,IF(I27=2,Calcs!$O146,IF(I27=3,Calcs!$R146,IF(I27=4,Calcs!$S146,IF(I27=5,Calcs!$Q146,IF(I27=6,Calcs!$P146,IF(I27=7,Calcs!$T146,IF(I27=8,Calcs!$T146,IF(I27=9,Calcs!$T146,0))))))))) -> 0 | J146: =IF(J27=1,Calcs!$N146,IF(J27=2,Calcs!$O146,IF(J27=3,Calcs!$R146,IF(J27=4,Calcs!$S146,IF(J27=5,Calcs!$Q146,IF(J27=6,Calcs!$P146,IF(J27=7,Calcs!$T146,IF(J27=8,Calcs!$T146,IF(J27=9,Calcs!$T146,0))))))))) -> 0 | K146: =IF(K27=1,Calcs!$N146,IF(K27=2,Calcs!$O146,IF(K27=3,Calcs!$R146,IF(K27=4,Calcs!$S146,IF(K27=5,Calcs!$Q146,IF(K27=6,Calcs!$P146,IF(K27=7,Calcs!$T146,IF(K27=8,Calcs!$T146,IF(K27=9,Calcs!$T146,0))))))))) -> 0 | L146: =IF(L27=1,Calcs!$N146,IF(L27=2,Calcs!$O146,IF(L27=3,Calcs!$R146,IF(L27=4,Calcs!$S146,IF(L27=5,Calcs!$Q146,IF(L27=6,Calcs!$P146,IF(L27=7,Calcs!$T146,IF(L27=8,Calcs!$T146,IF(L27=9,Calcs!$T146,0))))))))) -> 0 | N146: ='1.Profile'!G29+Calcs!$AB$124 -> 13.5 | O146: ='1.Profile'!G29+Calcs!$AC$124 -> 13.5 | P146: ='1.Profile'!E29+Calcs!$AD$124 -> 13.5 | Q146: ='1.Profile'!F29+Calcs!$AE$124 -> 13.5 | R146: ='1.Profile'!G29+Calcs!$AF$124 -> 13.5 | S146: ='1.Profile'!F29+Calcs!$AG$124 -> 13.5 | T146: ='1.Profile'!H29+Calcs!$AH$124 -> 15.5
A147: 17 | B147: Post-E 1: Inter-row tillage | C147: =IF(C28=1,Calcs!$N147,IF(C28=2,Calcs!$O147,IF(C28=3,Calcs!$R147,IF(C28=4,Calcs!$S147,IF(C28=5,Calcs!$Q147,IF(C28=6,Calcs!$P147,IF(C28=7,Calcs!$T147,IF(C28=8,Calcs!$T147,IF(C28=9,Calcs!$T147,0))))))))) -> 0 | D147: =IF(D28=1,Calcs!$N147,IF(D28=2,Calcs!$O147,IF(D28=3,Calcs!$R147,IF(D28=4,Calcs!$S147,IF(D28=5,Calcs!$Q147,IF(D28=6,Calcs!$P147,IF(D28=7,Calcs!$T147,IF(D28=8,Calcs!$T147,IF(D28=9,Calcs!$T147,0))))))))) -> 0 | E147: =IF(E28=1,Calcs!$N147,IF(E28=2,Calcs!$O147,IF(E28=3,Calcs!$R147,IF(E28=4,Calcs!$S147,IF(E28=5,Calcs!$Q147,IF(E28=6,Calcs!$P147,IF(E28=7,Calcs!$T147,IF(E28=8,Calcs!$T147,IF(E28=9,Calcs!$T147,0))))))))) -> 0 | F147: =IF(F28=1,Calcs!$N147,IF(F28=2,Calcs!$O147,IF(F28=3,Calcs!$R147,IF(F28=4,Calcs!$S147,IF(F28=5,Calcs!$Q147,IF(F28=6,Calcs!$P147,IF(F28=7,Calcs!$T147,IF(F28=8,Calcs!$T147,IF(F28=9,Calcs!$T147,0))))))))) -> 0 | G147: =IF(G28=1,Calcs!$N147,IF(G28=2,Calcs!$O147,IF(G28=3,Calcs!$R147,IF(G28=4,Calcs!$S147,IF(G28=5,Calcs!$Q147,IF(G28=6,Calcs!$P147,IF(G28=7,Calcs!$T147,IF(G28=8,Calcs!$T147,IF(G28=9,Calcs!$T147,0))))))))) -> 0 | H147: =IF(H28=1,Calcs!$N147,IF(H28=2,Calcs!$O147,IF(H28=3,Calcs!$R147,IF(H28=4,Calcs!$S147,IF(H28=5,Calcs!$Q147,IF(H28=6,Calcs!$P147,IF(H28=7,Calcs!$T147,IF(H28=8,Calcs!$T147,IF(H28=9,Calcs!$T147,0))))))))) -> 0 | I147: =IF(I28=1,Calcs!$N147,IF(I28=2,Calcs!$O147,IF(I28=3,Calcs!$R147,IF(I28=4,Calcs!$S147,IF(I28=5,Calcs!$Q147,IF(I28=6,Calcs!$P147,IF(I28=7,Calcs!$T147,IF(I28=8,Calcs!$T147,IF(I28=9,Calcs!$T147,0))))))))) -> 0 | J147: =IF(J28=1,Calcs!$N147,IF(J28=2,Calcs!$O147,IF(J28=3,Calcs!$R147,IF(J28=4,Calcs!$S147,IF(J28=5,Calcs!$Q147,IF(J28=6,Calcs!$P147,IF(J28=7,Calcs!$T147,IF(J28=8,Calcs!$T147,IF(J28=9,Calcs!$T147,0))))))))) -> 0 | K147: =IF(K28=1,Calcs!$N147,IF(K28=2,Calcs!$O147,IF(K28=3,Calcs!$R147,IF(K28=4,Calcs!$S147,IF(K28=5,Calcs!$Q147,IF(K28=6,Calcs!$P147,IF(K28=7,Calcs!$T147,IF(K28=8,Calcs!$T147,IF(K28=9,Calcs!$T147,0))))))))) -> 0 | L147: =IF(L28=1,Calcs!$N147,IF(L28=2,Calcs!$O147,IF(L28=3,Calcs!$R147,IF(L28=4,Calcs!$S147,IF(L28=5,Calcs!$Q147,IF(L28=6,Calcs!$P147,IF(L28=7,Calcs!$T147,IF(L28=8,Calcs!$T147,IF(L28=9,Calcs!$T147,0))))))))) -> 0 | N147: ='1.Profile'!G30+Calcs!$AB$124 -> 13.5 | O147: ='1.Profile'!G30+Calcs!$AC$124 -> 13.5 | P147: ='1.Profile'!E30+Calcs!$AD$124 -> 13.5 | Q147: ='1.Profile'!F30+Calcs!$AE$124 -> 13.5 | R147: ='1.Profile'!G30+Calcs!$AF$124 -> 13.5 | S147: ='1.Profile'!F30+Calcs!$AG$124 -> 13.5 | T147: ='1.Profile'!H30+Calcs!$AH$124 -> 12.5 | U147: Profile | V147: +boom
A148: 18 | B148: Post-E 1: Group A | C148: =IF(C29=1,Calcs!$N148,IF(C29=2,Calcs!$O148,IF(C29=3,Calcs!$R148,IF(C29=4,Calcs!$S148,IF(C29=5,Calcs!$Q148,IF(C29=6,Calcs!$P148,IF(C29=7,Calcs!$T148,IF(C29=8,Calcs!$T148,IF(C29=9,Calcs!$T148,0))))))))) -> 0 | D148: =IF(D29=1,Calcs!$N148,IF(D29=2,Calcs!$O148,IF(D29=3,Calcs!$R148,IF(D29=4,Calcs!$S148,IF(D29=5,Calcs!$Q148,IF(D29=6,Calcs!$P148,IF(D29=7,Calcs!$T148,IF(D29=8,Calcs!$T148,IF(D29=9,Calcs!$T148,0))))))))) -> 0 | E148: =IF(E29=1,Calcs!$N148,IF(E29=2,Calcs!$O148,IF(E29=3,Calcs!$R148,IF(E29=4,Calcs!$S148,IF(E29=5,Calcs!$Q148,IF(E29=6,Calcs!$P148,IF(E29=7,Calcs!$T148,IF(E29=8,Calcs!$T148,IF(E29=9,Calcs!$T148,0))))))))) -> 0 | F148: =IF(F29=1,Calcs!$N148,IF(F29=2,Calcs!$O148,IF(F29=3,Calcs!$R148,IF(F29=4,Calcs!$S148,IF(F29=5,Calcs!$Q148,IF(F29=6,Calcs!$P148,IF(F29=7,Calcs!$T148,IF(F29=8,Calcs!$T148,IF(F29=9,Calcs!$T148,0))))))))) -> 0 | G148: =IF(G29=1,Calcs!$N148,IF(G29=2,Calcs!$O148,IF(G29=3,Calcs!$R148,IF(G29=4,Calcs!$S148,IF(G29=5,Calcs!$Q148,IF(G29=6,Calcs!$P148,IF(G29=7,Calcs!$T148,IF(G29=8,Calcs!$T148,IF(G29=9,Calcs!$T148,0))))))))) -> 0 | H148: =IF(H29=1,Calcs!$N148,IF(H29=2,Calcs!$O148,IF(H29=3,Calcs!$R148,IF(H29=4,Calcs!$S148,IF(H29=5,Calcs!$Q148,IF(H29=6,Calcs!$P148,IF(H29=7,Calcs!$T148,IF(H29=8,Calcs!$T148,IF(H29=9,Calcs!$T148,0))))))))) -> 0 | I148: =IF(I29=1,Calcs!$N148,IF(I29=2,Calcs!$O148,IF(I29=3,Calcs!$R148,IF(I29=4,Calcs!$S148,IF(I29=5,Calcs!$Q148,IF(I29=6,Calcs!$P148,IF(I29=7,Calcs!$T148,IF(I29=8,Calcs!$T148,IF(I29=9,Calcs!$T148,0))))))))) -> 0 | J148: =IF(J29=1,Calcs!$N148,IF(J29=2,Calcs!$O148,IF(J29=3,Calcs!$R148,IF(J29=4,Calcs!$S148,IF(J29=5,Calcs!$Q148,IF(J29=6,Calcs!$P148,IF(J29=7,Calcs!$T148,IF(J29=8,Calcs!$T148,IF(J29=9,Calcs!$T148,0))))))))) -> 19.5 | K148: =IF(K29=1,Calcs!$N148,IF(K29=2,Calcs!$O148,IF(K29=3,Calcs!$R148,IF(K29=4,Calcs!$S148,IF(K29=5,Calcs!$Q148,IF(K29=6,Calcs!$P148,IF(K29=7,Calcs!$T148,IF(K29=8,Calcs!$T148,IF(K29=9,Calcs!$T148,0))))))))) -> 0 | L148: =IF(L29=1,Calcs!$N148,IF(L29=2,Calcs!$O148,IF(L29=3,Calcs!$R148,IF(L29=4,Calcs!$S148,IF(L29=5,Calcs!$Q148,IF(L29=6,Calcs!$P148,IF(L29=7,Calcs!$T148,IF(L29=8,Calcs!$T148,IF(L29=9,Calcs!$T148,0))))))))) -> 0 | N148: ='1.Profile'!G31+Calcs!$AB$124 -> 19.5 | O148: ='1.Profile'!G31+Calcs!$AC$124 -> 19.5 | P148: ='1.Profile'!E31+Calcs!$AD$124 -> 19.5 | Q148: ='1.Profile'!F31+Calcs!$AE$124 -> 19.5 | R148: ='1.Profile'!G31+Calcs!$AF$124 -> 19.5 | S148: ='1.Profile'!F31+Calcs!$AG$124 -> 19.5 | T148: ='1.Profile'!H31+Calcs!$AH$124 -> 19.5 | V148: +boom
A149: 19 | B149: Post-E 2: Glyphosate | C149: =IF(C30=1,Calcs!$N149,IF(C30=2,Calcs!$O149,IF(C30=3,Calcs!$R149,IF(C30=4,Calcs!$S149,IF(C30=5,Calcs!$Q149,IF(C30=6,Calcs!$P149,IF(C30=7,Calcs!$T149,IF(C30=8,Calcs!$T149,IF(C30=9,Calcs!$T149,0))))))))) -> 0 | D149: =IF(D30=1,Calcs!$N149,IF(D30=2,Calcs!$O149,IF(D30=3,Calcs!$R149,IF(D30=4,Calcs!$S149,IF(D30=5,Calcs!$Q149,IF(D30=6,Calcs!$P149,IF(D30=7,Calcs!$T149,IF(D30=8,Calcs!$T149,IF(D30=9,Calcs!$T149,0))))))))) -> 0 | E149: =IF(E30=1,Calcs!$N149,IF(E30=2,Calcs!$O149,IF(E30=3,Calcs!$R149,IF(E30=4,Calcs!$S149,IF(E30=5,Calcs!$Q149,IF(E30=6,Calcs!$P149,IF(E30=7,Calcs!$T149,IF(E30=8,Calcs!$T149,IF(E30=9,Calcs!$T149,0))))))))) -> 0 | F149: =IF(F30=1,Calcs!$N149,IF(F30=2,Calcs!$O149,IF(F30=3,Calcs!$R149,IF(F30=4,Calcs!$S149,IF(F30=5,Calcs!$Q149,IF(F30=6,Calcs!$P149,IF(F30=7,Calcs!$T149,IF(F30=8,Calcs!$T149,IF(F30=9,Calcs!$T149,0))))))))) -> 0 | G149: =IF(G30=1,Calcs!$N149,IF(G30=2,Calcs!$O149,IF(G30=3,Calcs!$R149,IF(G30=4,Calcs!$S149,IF(G30=5,Calcs!$Q149,IF(G30=6,Calcs!$P149,IF(G30=7,Calcs!$T149,IF(G30=8,Calcs!$T149,IF(G30=9,Calcs!$T149,0))))))))) -> 15.5 | H149: =IF(H30=1,Calcs!$N149,IF(H30=2,Calcs!$O149,IF(H30=3,Calcs!$R149,IF(H30=4,Calcs!$S149,IF(H30=5,Calcs!$Q149,IF(H30=6,Calcs!$P149,IF(H30=7,Calcs!$T149,IF(H30=8,Calcs!$T149,IF(H30=9,Calcs!$T149,0))))))))) -> 0 | I149: =IF(I30=1,Calcs!$N149,IF(I30=2,Calcs!$O149,IF(I30=3,Calcs!$R149,IF(I30=4,Calcs!$S149,IF(I30=5,Calcs!$Q149,IF(I30=6,Calcs!$P149,IF(I30=7,Calcs!$T149,IF(I30=8,Calcs!$T149,IF(I30=9,Calcs!$T149,0))))))))) -> 15.5 | J149: =IF(J30=1,Calcs!$N149,IF(J30=2,Calcs!$O149,IF(J30=3,Calcs!$R149,IF(J30=4,Calcs!$S149,IF(J30=5,Calcs!$Q149,IF(J30=6,Calcs!$P149,IF(J30=7,Calcs!$T149,IF(J30=8,Calcs!$T149,IF(J30=9,Calcs!$T149,0))))))))) -> 0 | K149: =IF(K30=1,Calcs!$N149,IF(K30=2,Calcs!$O149,IF(K30=3,Calcs!$R149,IF(K30=4,Calcs!$S149,IF(K30=5,Calcs!$Q149,IF(K30=6,Calcs!$P149,IF(K30=7,Calcs!$T149,IF(K30=8,Calcs!$T149,IF(K30=9,Calcs!$T149,0))))))))) -> 0 | L149: =IF(L30=1,Calcs!$N149,IF(L30=2,Calcs!$O149,IF(L30=3,Calcs!$R149,IF(L30=4,Calcs!$S149,IF(L30=5,Calcs!$Q149,IF(L30=6,Calcs!$P149,IF(L30=7,Calcs!$T149,IF(L30=8,Calcs!$T149,IF(L30=9,Calcs!$T149,0))))))))) -> 0 | N149: ='1.Profile'!G27+Calcs!$AB$124 -> 15.5 | O149: ='1.Profile'!G27+Calcs!$AC$124 -> 15.5 | P149: ='1.Profile'!E27+Calcs!$AD$124 -> 15.5 | Q149: ='1.Profile'!F27+Calcs!$AE$124 -> 15.5 | R149: ='1.Profile'!G27+Calcs!$AF$124 -> 15.5 | S149: ='1.Profile'!F27+Calcs!$AG$124 -> 15.5 | T149: ='1.Profile'!H27+Calcs!$AH$124 -> 12.5 | V149: +boom
A150: 20 | B150: Post-E 2: Glufosinate | C150: =IF(C31=1,Calcs!$N150,IF(C31=2,Calcs!$O150,IF(C31=3,Calcs!$R150,IF(C31=4,Calcs!$S150,IF(C31=5,Calcs!$Q150,IF(C31=6,Calcs!$P150,IF(C31=7,Calcs!$T150,IF(C31=8,Calcs!$T150,IF(C31=9,Calcs!$T150,0))))))))) -> 0 | D150: =IF(D31=1,Calcs!$N150,IF(D31=2,Calcs!$O150,IF(D31=3,Calcs!$R150,IF(D31=4,Calcs!$S150,IF(D31=5,Calcs!$Q150,IF(D31=6,Calcs!$P150,IF(D31=7,Calcs!$T150,IF(D31=8,Calcs!$T150,IF(D31=9,Calcs!$T150,0))))))))) -> 0 | E150: =IF(E31=1,Calcs!$N150,IF(E31=2,Calcs!$O150,IF(E31=3,Calcs!$R150,IF(E31=4,Calcs!$S150,IF(E31=5,Calcs!$Q150,IF(E31=6,Calcs!$P150,IF(E31=7,Calcs!$T150,IF(E31=8,Calcs!$T150,IF(E31=9,Calcs!$T150,0))))))))) -> 0 | F150: =IF(F31=1,Calcs!$N150,IF(F31=2,Calcs!$O150,IF(F31=3,Calcs!$R150,IF(F31=4,Calcs!$S150,IF(F31=5,Calcs!$Q150,IF(F31=6,Calcs!$P150,IF(F31=7,Calcs!$T150,IF(F31=8,Calcs!$T150,IF(F31=9,Calcs!$T150,0))))))))) -> 0 | G150: =IF(G31=1,Calcs!$N150,IF(G31=2,Calcs!$O150,IF(G31=3,Calcs!$R150,IF(G31=4,Calcs!$S150,IF(G31=5,Calcs!$Q150,IF(G31=6,Calcs!$P150,IF(G31=7,Calcs!$T150,IF(G31=8,Calcs!$T150,IF(G31=9,Calcs!$T150,0))))))))) -> 0 | H150: =IF(H31=1,Calcs!$N150,IF(H31=2,Calcs!$O150,IF(H31=3,Calcs!$R150,IF(H31=4,Calcs!$S150,IF(H31=5,Calcs!$Q150,IF(H31=6,Calcs!$P150,IF(H31=7,Calcs!$T150,IF(H31=8,Calcs!$T150,IF(H31=9,Calcs!$T150,0))))))))) -> 0 | I150: =IF(I31=1,Calcs!$N150,IF(I31=2,Calcs!$O150,IF(I31=3,Calcs!$R150,IF(I31=4,Calcs!$S150,IF(I31=5,Calcs!$Q150,IF(I31=6,Calcs!$P150,IF(I31=7,Calcs!$T150,IF(I31=8,Calcs!$T150,IF(I31=9,Calcs!$T150,0))))))))) -> 0 | J150: =IF(J31=1,Calcs!$N150,IF(J31=2,Calcs!$O150,IF(J31=3,Calcs!$R150,IF(J31=4,Calcs!$S150,IF(J31=5,Calcs!$Q150,IF(J31=6,Calcs!$P150,IF(J31=7,Calcs!$T150,IF(J31=8,Calcs!$T150,IF(J31=9,Calcs!$T150,0))))))))) -> 0 | K150: =IF(K31=1,Calcs!$N150,IF(K31=2,Calcs!$O150,IF(K31=3,Calcs!$R150,IF(K31=4,Calcs!$S150,IF(K31=5,Calcs!$Q150,IF(K31=6,Calcs!$P150,IF(K31=7,Calcs!$T150,IF(K31=8,Calcs!$T150,IF(K31=9,Calcs!$T150,0))))))))) -> 0 | L150: =IF(L31=1,Calcs!$N150,IF(L31=2,Calcs!$O150,IF(L31=3,Calcs!$R150,IF(L31=4,Calcs!$S150,IF(L31=5,Calcs!$Q150,IF(L31=6,Calcs!$P150,IF(L31=7,Calcs!$T150,IF(L31=8,Calcs!$T150,IF(L31=9,Calcs!$T150,0))))))))) -> 0 | N150: ='1.Profile'!G28+Calcs!$AB$124 -> 22.5 | O150: ='1.Profile'!G28+Calcs!$AC$124 -> 22.5 | P150: ='1.Profile'!E28+Calcs!$AD$124 -> 22.5 | Q150: ='1.Profile'!F28+Calcs!$AE$124 -> 22.5 | R150: ='1.Profile'!G28+Calcs!$AF$124 -> 22.5 | S150: ='1.Profile'!F28+Calcs!$AG$124 -> 22.5 | T150: ='1.Profile'!H28+Calcs!$AH$124 -> 22.5 | V150: +boom
A151: 21 | B151: Post-E 2: Paraquat (shielded) | C151: =IF(C32=1,Calcs!$N151,IF(C32=2,Calcs!$O151,IF(C32=3,Calcs!$R151,IF(C32=4,Calcs!$S151,IF(C32=5,Calcs!$Q151,IF(C32=6,Calcs!$P151,IF(C32=7,Calcs!$T151,IF(C32=8,Calcs!$T151,IF(C32=9,Calcs!$T151,0))))))))) -> 0 | D151: =IF(D32=1,Calcs!$N151,IF(D32=2,Calcs!$O151,IF(D32=3,Calcs!$R151,IF(D32=4,Calcs!$S151,IF(D32=5,Calcs!$Q151,IF(D32=6,Calcs!$P151,IF(D32=7,Calcs!$T151,IF(D32=8,Calcs!$T151,IF(D32=9,Calcs!$T151,0))))))))) -> 0 | E151: =IF(E32=1,Calcs!$N151,IF(E32=2,Calcs!$O151,IF(E32=3,Calcs!$R151,IF(E32=4,Calcs!$S151,IF(E32=5,Calcs!$Q151,IF(E32=6,Calcs!$P151,IF(E32=7,Calcs!$T151,IF(E32=8,Calcs!$T151,IF(E32=9,Calcs!$T151,0))))))))) -> 0 | F151: =IF(F32=1,Calcs!$N151,IF(F32=2,Calcs!$O151,IF(F32=3,Calcs!$R151,IF(F32=4,Calcs!$S151,IF(F32=5,Calcs!$Q151,IF(F32=6,Calcs!$P151,IF(F32=7,Calcs!$T151,IF(F32=8,Calcs!$T151,IF(F32=9,Calcs!$T151,0))))))))) -> 0 | G151: =IF(G32=1,Calcs!$N151,IF(G32=2,Calcs!$O151,IF(G32=3,Calcs!$R151,IF(G32=4,Calcs!$S151,IF(G32=5,Calcs!$Q151,IF(G32=6,Calcs!$P151,IF(G32=7,Calcs!$T151,IF(G32=8,Calcs!$T151,IF(G32=9,Calcs!$T151,0))))))))) -> 0 | H151: =IF(H32=1,Calcs!$N151,IF(H32=2,Calcs!$O151,IF(H32=3,Calcs!$R151,IF(H32=4,Calcs!$S151,IF(H32=5,Calcs!$Q151,IF(H32=6,Calcs!$P151,IF(H32=7,Calcs!$T151,IF(H32=8,Calcs!$T151,IF(H32=9,Calcs!$T151,0))))))))) -> 0 | I151: =IF(I32=1,Calcs!$N151,IF(I32=2,Calcs!$O151,IF(I32=3,Calcs!$R151,IF(I32=4,Calcs!$S151,IF(I32=5,Calcs!$Q151,IF(I32=6,Calcs!$P151,IF(I32=7,Calcs!$T151,IF(I32=8,Calcs!$T151,IF(I32=9,Calcs!$T151,0))))))))) -> 0 | J151: =IF(J32=1,Calcs!$N151,IF(J32=2,Calcs!$O151,IF(J32=3,Calcs!$R151,IF(J32=4,Calcs!$S151,IF(J32=5,Calcs!$Q151,IF(J32=6,Calcs!$P151,IF(J32=7,Calcs!$T151,IF(J32=8,Calcs!$T151,IF(J32=9,Calcs!$T151,0))))))))) -> 0 | K151: =IF(K32=1,Calcs!$N151,IF(K32=2,Calcs!$O151,IF(K32=3,Calcs!$R151,IF(K32=4,Calcs!$S151,IF(K32=5,Calcs!$Q151,IF(K32=6,Calcs!$P151,IF(K32=7,Calcs!$T151,IF(K32=8,Calcs!$T151,IF(K32=9,Calcs!$T151,0))))))))) -> 0 | L151: =IF(L32=1,Calcs!$N151,IF(L32=2,Calcs!$O151,IF(L32=3,Calcs!$R151,IF(L32=4,Calcs!$S151,IF(L32=5,Calcs!$Q151,IF(L32=6,Calcs!$P151,IF(L32=7,Calcs!$T151,IF(L32=8,Calcs!$T151,IF(L32=9,Calcs!$T151,0))))))))) -> 0 | N151: ='1.Profile'!G29+Calcs!$AB$124 -> 13.5 | O151: ='1.Profile'!G29+Calcs!$AC$124 -> 13.5 | P151: ='1.Profile'!E29+Calcs!$AD$124 -> 13.5 | Q151: ='1.Profile'!F29+Calcs!$AE$124 -> 13.5 | R151: ='1.Profile'!G29+Calcs!$AF$124 -> 13.5 | S151: ='1.Profile'!F29+Calcs!$AG$124 -> 13.5 | T151: ='1.Profile'!H29+Calcs!$AH$124 -> 15.5 | V151: +boom
A152: 22 | B152: Post-E 2: Inter-row tillage | C152: =IF(C33=1,Calcs!$N152,IF(C33=2,Calcs!$O152,IF(C33=3,Calcs!$R152,IF(C33=4,Calcs!$S152,IF(C33=5,Calcs!$Q152,IF(C33=6,Calcs!$P152,IF(C33=7,Calcs!$T152,IF(C33=8,Calcs!$T152,IF(C33=9,Calcs!$T152,0))))))))) -> 0 | D152: =IF(D33=1,Calcs!$N152,IF(D33=2,Calcs!$O152,IF(D33=3,Calcs!$R152,IF(D33=4,Calcs!$S152,IF(D33=5,Calcs!$Q152,IF(D33=6,Calcs!$P152,IF(D33=7,Calcs!$T152,IF(D33=8,Calcs!$T152,IF(D33=9,Calcs!$T152,0))))))))) -> 0 | E152: =IF(E33=1,Calcs!$N152,IF(E33=2,Calcs!$O152,IF(E33=3,Calcs!$R152,IF(E33=4,Calcs!$S152,IF(E33=5,Calcs!$Q152,IF(E33=6,Calcs!$P152,IF(E33=7,Calcs!$T152,IF(E33=8,Calcs!$T152,IF(E33=9,Calcs!$T152,0))))))))) -> 0 | F152: =IF(F33=1,Calcs!$N152,IF(F33=2,Calcs!$O152,IF(F33=3,Calcs!$R152,IF(F33=4,Calcs!$S152,IF(F33=5,Calcs!$Q152,IF(F33=6,Calcs!$P152,IF(F33=7,Calcs!$T152,IF(F33=8,Calcs!$T152,IF(F33=9,Calcs!$T152,0))))))))) -> 0 | G152: =IF(G33=1,Calcs!$N152,IF(G33=2,Calcs!$O152,IF(G33=3,Calcs!$R152,IF(G33=4,Calcs!$S152,IF(G33=5,Calcs!$Q152,IF(G33=6,Calcs!$P152,IF(G33=7,Calcs!$T152,IF(G33=8,Calcs!$T152,IF(G33=9,Calcs!$T152,0))))))))) -> 0 | H152: =IF(H33=1,Calcs!$N152,IF(H33=2,Calcs!$O152,IF(H33=3,Calcs!$R152,IF(H33=4,Calcs!$S152,IF(H33=5,Calcs!$Q152,IF(H33=6,Calcs!$P152,IF(H33=7,Calcs!$T152,IF(H33=8,Calcs!$T152,IF(H33=9,Calcs!$T152,0))))))))) -> 0 | I152: =IF(I33=1,Calcs!$N152,IF(I33=2,Calcs!$O152,IF(I33=3,Calcs!$R152,IF(I33=4,Calcs!$S152,IF(I33=5,Calcs!$Q152,IF(I33=6,Calcs!$P152,IF(I33=7,Calcs!$T152,IF(I33=8,Calcs!$T152,IF(I33=9,Calcs!$T152,0))))))))) -> 0 | J152: =IF(J33=1,Calcs!$N152,IF(J33=2,Calcs!$O152,IF(J33=3,Calcs!$R152,IF(J33=4,Calcs!$S152,IF(J33=5,Calcs!$Q152,IF(J33=6,Calcs!$P152,IF(J33=7,Calcs!$T152,IF(J33=8,Calcs!$T152,IF(J33=9,Calcs!$T152,0))))))))) -> 0 | K152: =IF(K33=1,Calcs!$N152,IF(K33=2,Calcs!$O152,IF(K33=3,Calcs!$R152,IF(K33=4,Calcs!$S152,IF(K33=5,Calcs!$Q152,IF(K33=6,Calcs!$P152,IF(K33=7,Calcs!$T152,IF(K33=8,Calcs!$T152,IF(K33=9,Calcs!$T152,0))))))))) -> 13.5 | L152: =IF(L33=1,Calcs!$N152,IF(L33=2,Calcs!$O152,IF(L33=3,Calcs!$R152,IF(L33=4,Calcs!$S152,IF(L33=5,Calcs!$Q152,IF(L33=6,Calcs!$P152,IF(L33=7,Calcs!$T152,IF(L33=8,Calcs!$T152,IF(L33=9,Calcs!$T152,0))))))))) -> 0 | N152: ='1.Profile'!G30+Calcs!$AB$124 -> 13.5 | O152: ='1.Profile'!G30+Calcs!$AC$124 -> 13.5 | P152: ='1.Profile'!E30+Calcs!$AD$124 -> 13.5 | Q152: ='1.Profile'!F30+Calcs!$AE$124 -> 13.5 | R152: ='1.Profile'!G30+Calcs!$AF$124 -> 13.5 | S152: ='1.Profile'!F30+Calcs!$AG$124 -> 13.5 | T152: ='1.Profile'!H30+Calcs!$AH$124 -> 12.5
A153: 23 | B153: Post-E 2: Group A | C153: =IF(C34=1,Calcs!$N153,IF(C34=2,Calcs!$O153,IF(C34=3,Calcs!$R153,IF(C34=4,Calcs!$S153,IF(C34=5,Calcs!$Q153,IF(C34=6,Calcs!$P153,IF(C34=7,Calcs!$T153,IF(C34=8,Calcs!$T153,IF(C34=9,Calcs!$T153,0))))))))) -> 0 | D153: =IF(D34=1,Calcs!$N153,IF(D34=2,Calcs!$O153,IF(D34=3,Calcs!$R153,IF(D34=4,Calcs!$S153,IF(D34=5,Calcs!$Q153,IF(D34=6,Calcs!$P153,IF(D34=7,Calcs!$T153,IF(D34=8,Calcs!$T153,IF(D34=9,Calcs!$T153,0))))))))) -> 0 | E153: =IF(E34=1,Calcs!$N153,IF(E34=2,Calcs!$O153,IF(E34=3,Calcs!$R153,IF(E34=4,Calcs!$S153,IF(E34=5,Calcs!$Q153,IF(E34=6,Calcs!$P153,IF(E34=7,Calcs!$T153,IF(E34=8,Calcs!$T153,IF(E34=9,Calcs!$T153,0))))))))) -> 0 | F153: =IF(F34=1,Calcs!$N153,IF(F34=2,Calcs!$O153,IF(F34=3,Calcs!$R153,IF(F34=4,Calcs!$S153,IF(F34=5,Calcs!$Q153,IF(F34=6,Calcs!$P153,IF(F34=7,Calcs!$T153,IF(F34=8,Calcs!$T153,IF(F34=9,Calcs!$T153,0))))))))) -> 0 | G153: =IF(G34=1,Calcs!$N153,IF(G34=2,Calcs!$O153,IF(G34=3,Calcs!$R153,IF(G34=4,Calcs!$S153,IF(G34=5,Calcs!$Q153,IF(G34=6,Calcs!$P153,IF(G34=7,Calcs!$T153,IF(G34=8,Calcs!$T153,IF(G34=9,Calcs!$T153,0))))))))) -> 0 | H153: =IF(H34=1,Calcs!$N153,IF(H34=2,Calcs!$O153,IF(H34=3,Calcs!$R153,IF(H34=4,Calcs!$S153,IF(H34=5,Calcs!$Q153,IF(H34=6,Calcs!$P153,IF(H34=7,Calcs!$T153,IF(H34=8,Calcs!$T153,IF(H34=9,Calcs!$T153,0))))))))) -> 0 | I153: =IF(I34=1,Calcs!$N153,IF(I34=2,Calcs!$O153,IF(I34=3,Calcs!$R153,IF(I34=4,Calcs!$S153,IF(I34=5,Calcs!$Q153,IF(I34=6,Calcs!$P153,IF(I34=7,Calcs!$T153,IF(I34=8,Calcs!$T153,IF(I34=9,Calcs!$T153,0))))))))) -> 0 | J153: =IF(J34=1,Calcs!$N153,IF(J34=2,Calcs!$O153,IF(J34=3,Calcs!$R153,IF(J34=4,Calcs!$S153,IF(J34=5,Calcs!$Q153,IF(J34=6,Calcs!$P153,IF(J34=7,Calcs!$T153,IF(J34=8,Calcs!$T153,IF(J34=9,Calcs!$T153,0))))))))) -> 0 | K153: =IF(K34=1,Calcs!$N153,IF(K34=2,Calcs!$O153,IF(K34=3,Calcs!$R153,IF(K34=4,Calcs!$S153,IF(K34=5,Calcs!$Q153,IF(K34=6,Calcs!$P153,IF(K34=7,Calcs!$T153,IF(K34=8,Calcs!$T153,IF(K34=9,Calcs!$T153,0))))))))) -> 0 | L153: =IF(L34=1,Calcs!$N153,IF(L34=2,Calcs!$O153,IF(L34=3,Calcs!$R153,IF(L34=4,Calcs!$S153,IF(L34=5,Calcs!$Q153,IF(L34=6,Calcs!$P153,IF(L34=7,Calcs!$T153,IF(L34=8,Calcs!$T153,IF(L34=9,Calcs!$T153,0))))))))) -> 0 | N153: ='1.Profile'!G31+Calcs!$AB$124 -> 19.5 | O153: ='1.Profile'!G31+Calcs!$AC$124 -> 19.5 | P153: ='1.Profile'!E31+Calcs!$AD$124 -> 19.5 | Q153: ='1.Profile'!F31+Calcs!$AE$124 -> 19.5 | R153: ='1.Profile'!G31+Calcs!$AF$124 -> 19.5 | S153: ='1.Profile'!F31+Calcs!$AG$124 -> 19.5 | T153: ='1.Profile'!H31+Calcs!$AH$124 -> 19.5
A154: 24 | B154: Post-E 3: Glyphosate | C154: =IF(C35=1,Calcs!$N154,IF(C35=2,Calcs!$O154,IF(C35=3,Calcs!$R154,IF(C35=4,Calcs!$S154,IF(C35=5,Calcs!$Q154,IF(C35=6,Calcs!$P154,IF(C35=7,Calcs!$T154,IF(C35=8,Calcs!$T154,IF(C35=9,Calcs!$T154,0))))))))) -> 15.5 | D154: =IF(D35=1,Calcs!$N154,IF(D35=2,Calcs!$O154,IF(D35=3,Calcs!$R154,IF(D35=4,Calcs!$S154,IF(D35=5,Calcs!$Q154,IF(D35=6,Calcs!$P154,IF(D35=7,Calcs!$T154,IF(D35=8,Calcs!$T154,IF(D35=9,Calcs!$T154,0))))))))) -> 0 | E154: =IF(E35=1,Calcs!$N154,IF(E35=2,Calcs!$O154,IF(E35=3,Calcs!$R154,IF(E35=4,Calcs!$S154,IF(E35=5,Calcs!$Q154,IF(E35=6,Calcs!$P154,IF(E35=7,Calcs!$T154,IF(E35=8,Calcs!$T154,IF(E35=9,Calcs!$T154,0))))))))) -> 15.5 | F154: =IF(F35=1,Calcs!$N154,IF(F35=2,Calcs!$O154,IF(F35=3,Calcs!$R154,IF(F35=4,Calcs!$S154,IF(F35=5,Calcs!$Q154,IF(F35=6,Calcs!$P154,IF(F35=7,Calcs!$T154,IF(F35=8,Calcs!$T154,IF(F35=9,Calcs!$T154,0))))))))) -> 0 | G154: =IF(G35=1,Calcs!$N154,IF(G35=2,Calcs!$O154,IF(G35=3,Calcs!$R154,IF(G35=4,Calcs!$S154,IF(G35=5,Calcs!$Q154,IF(G35=6,Calcs!$P154,IF(G35=7,Calcs!$T154,IF(G35=8,Calcs!$T154,IF(G35=9,Calcs!$T154,0))))))))) -> 0 | H154: =IF(H35=1,Calcs!$N154,IF(H35=2,Calcs!$O154,IF(H35=3,Calcs!$R154,IF(H35=4,Calcs!$S154,IF(H35=5,Calcs!$Q154,IF(H35=6,Calcs!$P154,IF(H35=7,Calcs!$T154,IF(H35=8,Calcs!$T154,IF(H35=9,Calcs!$T154,0))))))))) -> 0 | I154: =IF(I35=1,Calcs!$N154,IF(I35=2,Calcs!$O154,IF(I35=3,Calcs!$R154,IF(I35=4,Calcs!$S154,IF(I35=5,Calcs!$Q154,IF(I35=6,Calcs!$P154,IF(I35=7,Calcs!$T154,IF(I35=8,Calcs!$T154,IF(I35=9,Calcs!$T154,0))))))))) -> 0 | J154: =IF(J35=1,Calcs!$N154,IF(J35=2,Calcs!$O154,IF(J35=3,Calcs!$R154,IF(J35=4,Calcs!$S154,IF(J35=5,Calcs!$Q154,IF(J35=6,Calcs!$P154,IF(J35=7,Calcs!$T154,IF(J35=8,Calcs!$T154,IF(J35=9,Calcs!$T154,0))))))))) -> 0 | K154: =IF(K35=1,Calcs!$N154,IF(K35=2,Calcs!$O154,IF(K35=3,Calcs!$R154,IF(K35=4,Calcs!$S154,IF(K35=5,Calcs!$Q154,IF(K35=6,Calcs!$P154,IF(K35=7,Calcs!$T154,IF(K35=8,Calcs!$T154,IF(K35=9,Calcs!$T154,0))))))))) -> 15.5 | L154: =IF(L35=1,Calcs!$N154,IF(L35=2,Calcs!$O154,IF(L35=3,Calcs!$R154,IF(L35=4,Calcs!$S154,IF(L35=5,Calcs!$Q154,IF(L35=6,Calcs!$P154,IF(L35=7,Calcs!$T154,IF(L35=8,Calcs!$T154,IF(L35=9,Calcs!$T154,0))))))))) -> 0 | N154: ='1.Profile'!G27+Calcs!$AB$124 -> 15.5 | O154: ='1.Profile'!G27+Calcs!$AC$124 -> 15.5 | P154: ='1.Profile'!E27+Calcs!$AD$124 -> 15.5 | Q154: ='1.Profile'!F27+Calcs!$AE$124 -> 15.5 | R154: ='1.Profile'!G27+Calcs!$AF$124 -> 15.5 | S154: ='1.Profile'!F27+Calcs!$AG$124 -> 15.5 | T154: ='1.Profile'!H27+Calcs!$AH$124 -> 12.5 | V154: +boom+SP-harvest
A155: 25 | B155: Post-E 3: Glufosinate | C155: =IF(C36=1,Calcs!$N155,IF(C36=2,Calcs!$O155,IF(C36=3,Calcs!$R155,IF(C36=4,Calcs!$S155,IF(C36=5,Calcs!$Q155,IF(C36=6,Calcs!$P155,IF(C36=7,Calcs!$T155,IF(C36=8,Calcs!$T155,IF(C36=9,Calcs!$T155,0))))))))) -> 0 | D155: =IF(D36=1,Calcs!$N155,IF(D36=2,Calcs!$O155,IF(D36=3,Calcs!$R155,IF(D36=4,Calcs!$S155,IF(D36=5,Calcs!$Q155,IF(D36=6,Calcs!$P155,IF(D36=7,Calcs!$T155,IF(D36=8,Calcs!$T155,IF(D36=9,Calcs!$T155,0))))))))) -> 0 | E155: =IF(E36=1,Calcs!$N155,IF(E36=2,Calcs!$O155,IF(E36=3,Calcs!$R155,IF(E36=4,Calcs!$S155,IF(E36=5,Calcs!$Q155,IF(E36=6,Calcs!$P155,IF(E36=7,Calcs!$T155,IF(E36=8,Calcs!$T155,IF(E36=9,Calcs!$T155,0))))))))) -> 0 | F155: =IF(F36=1,Calcs!$N155,IF(F36=2,Calcs!$O155,IF(F36=3,Calcs!$R155,IF(F36=4,Calcs!$S155,IF(F36=5,Calcs!$Q155,IF(F36=6,Calcs!$P155,IF(F36=7,Calcs!$T155,IF(F36=8,Calcs!$T155,IF(F36=9,Calcs!$T155,0))))))))) -> 0 | G155: =IF(G36=1,Calcs!$N155,IF(G36=2,Calcs!$O155,IF(G36=3,Calcs!$R155,IF(G36=4,Calcs!$S155,IF(G36=5,Calcs!$Q155,IF(G36=6,Calcs!$P155,IF(G36=7,Calcs!$T155,IF(G36=8,Calcs!$T155,IF(G36=9,Calcs!$T155,0))))))))) -> 0 | H155: =IF(H36=1,Calcs!$N155,IF(H36=2,Calcs!$O155,IF(H36=3,Calcs!$R155,IF(H36=4,Calcs!$S155,IF(H36=5,Calcs!$Q155,IF(H36=6,Calcs!$P155,IF(H36=7,Calcs!$T155,IF(H36=8,Calcs!$T155,IF(H36=9,Calcs!$T155,0))))))))) -> 0 | I155: =IF(I36=1,Calcs!$N155,IF(I36=2,Calcs!$O155,IF(I36=3,Calcs!$R155,IF(I36=4,Calcs!$S155,IF(I36=5,Calcs!$Q155,IF(I36=6,Calcs!$P155,IF(I36=7,Calcs!$T155,IF(I36=8,Calcs!$T155,IF(I36=9,Calcs!$T155,0))))))))) -> 0 | J155: =IF(J36=1,Calcs!$N155,IF(J36=2,Calcs!$O155,IF(J36=3,Calcs!$R155,IF(J36=4,Calcs!$S155,IF(J36=5,Calcs!$Q155,IF(J36=6,Calcs!$P155,IF(J36=7,Calcs!$T155,IF(J36=8,Calcs!$T155,IF(J36=9,Calcs!$T155,0))))))))) -> 0 | K155: =IF(K36=1,Calcs!$N155,IF(K36=2,Calcs!$O155,IF(K36=3,Calcs!$R155,IF(K36=4,Calcs!$S155,IF(K36=5,Calcs!$Q155,IF(K36=6,Calcs!$P155,IF(K36=7,Calcs!$T155,IF(K36=8,Calcs!$T155,IF(K36=9,Calcs!$T155,0))))))))) -> 0 | L155: =IF(L36=1,Calcs!$N155,IF(L36=2,Calcs!$O155,IF(L36=3,Calcs!$R155,IF(L36=4,Calcs!$S155,IF(L36=5,Calcs!$Q155,IF(L36=6,Calcs!$P155,IF(L36=7,Calcs!$T155,IF(L36=8,Calcs!$T155,IF(L36=9,Calcs!$T155,0))))))))) -> 0 | N155: ='1.Profile'!G28+Calcs!$AB$124 -> 22.5 | O155: ='1.Profile'!G28+Calcs!$AC$124 -> 22.5 | P155: ='1.Profile'!E28+Calcs!$AD$124 -> 22.5 | Q155: ='1.Profile'!F28+Calcs!$AE$124 -> 22.5 | R155: ='1.Profile'!G28+Calcs!$AF$124 -> 22.5 | S155: ='1.Profile'!F28+Calcs!$AG$124 -> 22.5 | T155: ='1.Profile'!H28+Calcs!$AH$124 -> 22.5 | V155: +boom+sp
A156: 26 | B156: Post-E 3: Paraquat (shielded) | C156: =IF(C37=1,Calcs!$N156,IF(C37=2,Calcs!$O156,IF(C37=3,Calcs!$R156,IF(C37=4,Calcs!$S156,IF(C37=5,Calcs!$Q156,IF(C37=6,Calcs!$P156,IF(C37=7,Calcs!$T156,IF(C37=8,Calcs!$T156,IF(C37=9,Calcs!$T156,0))))))))) -> 0 | D156: =IF(D37=1,Calcs!$N156,IF(D37=2,Calcs!$O156,IF(D37=3,Calcs!$R156,IF(D37=4,Calcs!$S156,IF(D37=5,Calcs!$Q156,IF(D37=6,Calcs!$P156,IF(D37=7,Calcs!$T156,IF(D37=8,Calcs!$T156,IF(D37=9,Calcs!$T156,0))))))))) -> 0 | E156: =IF(E37=1,Calcs!$N156,IF(E37=2,Calcs!$O156,IF(E37=3,Calcs!$R156,IF(E37=4,Calcs!$S156,IF(E37=5,Calcs!$Q156,IF(E37=6,Calcs!$P156,IF(E37=7,Calcs!$T156,IF(E37=8,Calcs!$T156,IF(E37=9,Calcs!$T156,0))))))))) -> 0 | F156: =IF(F37=1,Calcs!$N156,IF(F37=2,Calcs!$O156,IF(F37=3,Calcs!$R156,IF(F37=4,Calcs!$S156,IF(F37=5,Calcs!$Q156,IF(F37=6,Calcs!$P156,IF(F37=7,Calcs!$T156,IF(F37=8,Calcs!$T156,IF(F37=9,Calcs!$T156,0))))))))) -> 0 | G156: =IF(G37=1,Calcs!$N156,IF(G37=2,Calcs!$O156,IF(G37=3,Calcs!$R156,IF(G37=4,Calcs!$S156,IF(G37=5,Calcs!$Q156,IF(G37=6,Calcs!$P156,IF(G37=7,Calcs!$T156,IF(G37=8,Calcs!$T156,IF(G37=9,Calcs!$T156,0))))))))) -> 0 | H156: =IF(H37=1,Calcs!$N156,IF(H37=2,Calcs!$O156,IF(H37=3,Calcs!$R156,IF(H37=4,Calcs!$S156,IF(H37=5,Calcs!$Q156,IF(H37=6,Calcs!$P156,IF(H37=7,Calcs!$T156,IF(H37=8,Calcs!$T156,IF(H37=9,Calcs!$T156,0))))))))) -> 0 | I156: =IF(I37=1,Calcs!$N156,IF(I37=2,Calcs!$O156,IF(I37=3,Calcs!$R156,IF(I37=4,Calcs!$S156,IF(I37=5,Calcs!$Q156,IF(I37=6,Calcs!$P156,IF(I37=7,Calcs!$T156,IF(I37=8,Calcs!$T156,IF(I37=9,Calcs!$T156,0))))))))) -> 0 | J156: =IF(J37=1,Calcs!$N156,IF(J37=2,Calcs!$O156,IF(J37=3,Calcs!$R156,IF(J37=4,Calcs!$S156,IF(J37=5,Calcs!$Q156,IF(J37=6,Calcs!$P156,IF(J37=7,Calcs!$T156,IF(J37=8,Calcs!$T156,IF(J37=9,Calcs!$T156,0))))))))) -> 0 | K156: =IF(K37=1,Calcs!$N156,IF(K37=2,Calcs!$O156,IF(K37=3,Calcs!$R156,IF(K37=4,Calcs!$S156,IF(K37=5,Calcs!$Q156,IF(K37=6,Calcs!$P156,IF(K37=7,Calcs!$T156,IF(K37=8,Calcs!$T156,IF(K37=9,Calcs!$T156,0))))))))) -> 0 | L156: =IF(L37=1,Calcs!$N156,IF(L37=2,Calcs!$O156,IF(L37=3,Calcs!$R156,IF(L37=4,Calcs!$S156,IF(L37=5,Calcs!$Q156,IF(L37=6,Calcs!$P156,IF(L37=7,Calcs!$T156,IF(L37=8,Calcs!$T156,IF(L37=9,Calcs!$T156,0))))))))) -> 0 | N156: ='1.Profile'!G29+Calcs!$AB$124 -> 13.5 | O156: ='1.Profile'!G29+Calcs!$AC$124 -> 13.5 | P156: ='1.Profile'!E29+Calcs!$AD$124 -> 13.5 | Q156: ='1.Profile'!F29+Calcs!$AE$124 -> 13.5 | R156: ='1.Profile'!G29+Calcs!$AF$124 -> 13.5 | S156: ='1.Profile'!F29+Calcs!$AG$124 -> 13.5 | T156: ='1.Profile'!H29+Calcs!$AH$124 -> 15.5
A157: 27 | B157: Post-E 3: Inter-row tillage | C157: =IF(C38=1,Calcs!$N157,IF(C38=2,Calcs!$O157,IF(C38=3,Calcs!$R157,IF(C38=4,Calcs!$S157,IF(C38=5,Calcs!$Q157,IF(C38=6,Calcs!$P157,IF(C38=7,Calcs!$T157,IF(C38=8,Calcs!$T157,IF(C38=9,Calcs!$T157,0))))))))) -> 0 | D157: =IF(D38=1,Calcs!$N157,IF(D38=2,Calcs!$O157,IF(D38=3,Calcs!$R157,IF(D38=4,Calcs!$S157,IF(D38=5,Calcs!$Q157,IF(D38=6,Calcs!$P157,IF(D38=7,Calcs!$T157,IF(D38=8,Calcs!$T157,IF(D38=9,Calcs!$T157,0))))))))) -> 0 | E157: =IF(E38=1,Calcs!$N157,IF(E38=2,Calcs!$O157,IF(E38=3,Calcs!$R157,IF(E38=4,Calcs!$S157,IF(E38=5,Calcs!$Q157,IF(E38=6,Calcs!$P157,IF(E38=7,Calcs!$T157,IF(E38=8,Calcs!$T157,IF(E38=9,Calcs!$T157,0))))))))) -> 0 | F157: =IF(F38=1,Calcs!$N157,IF(F38=2,Calcs!$O157,IF(F38=3,Calcs!$R157,IF(F38=4,Calcs!$S157,IF(F38=5,Calcs!$Q157,IF(F38=6,Calcs!$P157,IF(F38=7,Calcs!$T157,IF(F38=8,Calcs!$T157,IF(F38=9,Calcs!$T157,0))))))))) -> 0 | G157: =IF(G38=1,Calcs!$N157,IF(G38=2,Calcs!$O157,IF(G38=3,Calcs!$R157,IF(G38=4,Calcs!$S157,IF(G38=5,Calcs!$Q157,IF(G38=6,Calcs!$P157,IF(G38=7,Calcs!$T157,IF(G38=8,Calcs!$T157,IF(G38=9,Calcs!$T157,0))))))))) -> 13.5 | H157: =IF(H38=1,Calcs!$N157,IF(H38=2,Calcs!$O157,IF(H38=3,Calcs!$R157,IF(H38=4,Calcs!$S157,IF(H38=5,Calcs!$Q157,IF(H38=6,Calcs!$P157,IF(H38=7,Calcs!$T157,IF(H38=8,Calcs!$T157,IF(H38=9,Calcs!$T157,0))))))))) -> 0 | I157: =IF(I38=1,Calcs!$N157,IF(I38=2,Calcs!$O157,IF(I38=3,Calcs!$R157,IF(I38=4,Calcs!$S157,IF(I38=5,Calcs!$Q157,IF(I38=6,Calcs!$P157,IF(I38=7,Calcs!$T157,IF(I38=8,Calcs!$T157,IF(I38=9,Calcs!$T157,0))))))))) -> 0 | J157: =IF(J38=1,Calcs!$N157,IF(J38=2,Calcs!$O157,IF(J38=3,Calcs!$R157,IF(J38=4,Calcs!$S157,IF(J38=5,Calcs!$Q157,IF(J38=6,Calcs!$P157,IF(J38=7,Calcs!$T157,IF(J38=8,Calcs!$T157,IF(J38=9,Calcs!$T157,0))))))))) -> 0 | K157: =IF(K38=1,Calcs!$N157,IF(K38=2,Calcs!$O157,IF(K38=3,Calcs!$R157,IF(K38=4,Calcs!$S157,IF(K38=5,Calcs!$Q157,IF(K38=6,Calcs!$P157,IF(K38=7,Calcs!$T157,IF(K38=8,Calcs!$T157,IF(K38=9,Calcs!$T157,0))))))))) -> 0 | L157: =IF(L38=1,Calcs!$N157,IF(L38=2,Calcs!$O157,IF(L38=3,Calcs!$R157,IF(L38=4,Calcs!$S157,IF(L38=5,Calcs!$Q157,IF(L38=6,Calcs!$P157,IF(L38=7,Calcs!$T157,IF(L38=8,Calcs!$T157,IF(L38=9,Calcs!$T157,0))))))))) -> 0 | N157: ='1.Profile'!G30+Calcs!$AB$124 -> 13.5 | O157: ='1.Profile'!G30+Calcs!$AC$124 -> 13.5 | P157: ='1.Profile'!E30+Calcs!$AD$124 -> 13.5 | Q157: ='1.Profile'!F30+Calcs!$AE$124 -> 13.5 | R157: ='1.Profile'!G30+Calcs!$AF$124 -> 13.5 | S157: ='1.Profile'!F30+Calcs!$AG$124 -> 13.5 | T157: ='1.Profile'!H30+Calcs!$AH$124 -> 12.5 | U157: Prices | V157: +boom+SP-harvest
A158: 28 | B158: Post-E 3: Group A | C158: =IF(C39=1,Calcs!$N158,IF(C39=2,Calcs!$O158,IF(C39=3,Calcs!$R158,IF(C39=4,Calcs!$S158,IF(C39=5,Calcs!$Q158,IF(C39=6,Calcs!$P158,IF(C39=7,Calcs!$T158,IF(C39=8,Calcs!$T158,IF(C39=9,Calcs!$T158,0))))))))) -> 0 | D158: =IF(D39=1,Calcs!$N158,IF(D39=2,Calcs!$O158,IF(D39=3,Calcs!$R158,IF(D39=4,Calcs!$S158,IF(D39=5,Calcs!$Q158,IF(D39=6,Calcs!$P158,IF(D39=7,Calcs!$T158,IF(D39=8,Calcs!$T158,IF(D39=9,Calcs!$T158,0))))))))) -> 0 | E158: =IF(E39=1,Calcs!$N158,IF(E39=2,Calcs!$O158,IF(E39=3,Calcs!$R158,IF(E39=4,Calcs!$S158,IF(E39=5,Calcs!$Q158,IF(E39=6,Calcs!$P158,IF(E39=7,Calcs!$T158,IF(E39=8,Calcs!$T158,IF(E39=9,Calcs!$T158,0))))))))) -> 0 | F158: =IF(F39=1,Calcs!$N158,IF(F39=2,Calcs!$O158,IF(F39=3,Calcs!$R158,IF(F39=4,Calcs!$S158,IF(F39=5,Calcs!$Q158,IF(F39=6,Calcs!$P158,IF(F39=7,Calcs!$T158,IF(F39=8,Calcs!$T158,IF(F39=9,Calcs!$T158,0))))))))) -> 0 | G158: =IF(G39=1,Calcs!$N158,IF(G39=2,Calcs!$O158,IF(G39=3,Calcs!$R158,IF(G39=4,Calcs!$S158,IF(G39=5,Calcs!$Q158,IF(G39=6,Calcs!$P158,IF(G39=7,Calcs!$T158,IF(G39=8,Calcs!$T158,IF(G39=9,Calcs!$T158,0))))))))) -> 0 | H158: =IF(H39=1,Calcs!$N158,IF(H39=2,Calcs!$O158,IF(H39=3,Calcs!$R158,IF(H39=4,Calcs!$S158,IF(H39=5,Calcs!$Q158,IF(H39=6,Calcs!$P158,IF(H39=7,Calcs!$T158,IF(H39=8,Calcs!$T158,IF(H39=9,Calcs!$T158,0))))))))) -> 0 | I158: =IF(I39=1,Calcs!$N158,IF(I39=2,Calcs!$O158,IF(I39=3,Calcs!$R158,IF(I39=4,Calcs!$S158,IF(I39=5,Calcs!$Q158,IF(I39=6,Calcs!$P158,IF(I39=7,Calcs!$T158,IF(I39=8,Calcs!$T158,IF(I39=9,Calcs!$T158,0))))))))) -> 0 | J158: =IF(J39=1,Calcs!$N158,IF(J39=2,Calcs!$O158,IF(J39=3,Calcs!$R158,IF(J39=4,Calcs!$S158,IF(J39=5,Calcs!$Q158,IF(J39=6,Calcs!$P158,IF(J39=7,Calcs!$T158,IF(J39=8,Calcs!$T158,IF(J39=9,Calcs!$T158,0))))))))) -> 0 | K158: =IF(K39=1,Calcs!$N158,IF(K39=2,Calcs!$O158,IF(K39=3,Calcs!$R158,IF(K39=4,Calcs!$S158,IF(K39=5,Calcs!$Q158,IF(K39=6,Calcs!$P158,IF(K39=7,Calcs!$T158,IF(K39=8,Calcs!$T158,IF(K39=9,Calcs!$T158,0))))))))) -> 0 | L158: =IF(L39=1,Calcs!$N158,IF(L39=2,Calcs!$O158,IF(L39=3,Calcs!$R158,IF(L39=4,Calcs!$S158,IF(L39=5,Calcs!$Q158,IF(L39=6,Calcs!$P158,IF(L39=7,Calcs!$T158,IF(L39=8,Calcs!$T158,IF(L39=9,Calcs!$T158,0))))))))) -> 0 | N158: ='1.Profile'!G31+Calcs!$AB$124 -> 19.5 | O158: ='1.Profile'!G31+Calcs!$AC$124 -> 19.5 | P158: ='1.Profile'!E31+Calcs!$AD$124 -> 19.5 | Q158: ='1.Profile'!F31+Calcs!$AE$124 -> 19.5 | R158: ='1.Profile'!G31+Calcs!$AF$124 -> 19.5 | S158: ='1.Profile'!F31+Calcs!$AG$124 -> 19.5 | T158: ='1.Profile'!H31+Calcs!$AH$124 -> 19.5 | V158: +Inc-harvest
A159: 29 | B159: Layby: Topping | C159: =IF(C40=1,Calcs!$N159,IF(C40=2,Calcs!$O159,IF(C40=3,Calcs!$R159,IF(C40=4,Calcs!$S159,IF(C40=5,Calcs!$Q159,IF(C40=6,Calcs!$P159,IF(C40=7,Calcs!$T159,IF(C40=8,Calcs!$T159,IF(C40=9,Calcs!$T159,0))))))))) -> 0 | D159: =IF(D40=1,Calcs!$N159,IF(D40=2,Calcs!$O159,IF(D40=3,Calcs!$R159,IF(D40=4,Calcs!$S159,IF(D40=5,Calcs!$Q159,IF(D40=6,Calcs!$P159,IF(D40=7,Calcs!$T159,IF(D40=8,Calcs!$T159,IF(D40=9,Calcs!$T159,0))))))))) -> 0 | E159: =IF(E40=1,Calcs!$N159,IF(E40=2,Calcs!$O159,IF(E40=3,Calcs!$R159,IF(E40=4,Calcs!$S159,IF(E40=5,Calcs!$Q159,IF(E40=6,Calcs!$P159,IF(E40=7,Calcs!$T159,IF(E40=8,Calcs!$T159,IF(E40=9,Calcs!$T159,0))))))))) -> 0 | F159: =IF(F40=1,Calcs!$N159,IF(F40=2,Calcs!$O159,IF(F40=3,Calcs!$R159,IF(F40=4,Calcs!$S159,IF(F40=5,Calcs!$Q159,IF(F40=6,Calcs!$P159,IF(F40=7,Calcs!$T159,IF(F40=8,Calcs!$T159,IF(F40=9,Calcs!$T159,0))))))))) -> 0 | G159: =IF(G40=1,Calcs!$N159,IF(G40=2,Calcs!$O159,IF(G40=3,Calcs!$R159,IF(G40=4,Calcs!$S159,IF(G40=5,Calcs!$Q159,IF(G40=6,Calcs!$P159,IF(G40=7,Calcs!$T159,IF(G40=8,Calcs!$T159,IF(G40=9,Calcs!$T159,0))))))))) -> 0 | H159: =IF(H40=1,Calcs!$N159,IF(H40=2,Calcs!$O159,IF(H40=3,Calcs!$R159,IF(H40=4,Calcs!$S159,IF(H40=5,Calcs!$Q159,IF(H40=6,Calcs!$P159,IF(H40=7,Calcs!$T159,IF(H40=8,Calcs!$T159,IF(H40=9,Calcs!$T159,0))))))))) -> 0 | I159: =IF(I40=1,Calcs!$N159,IF(I40=2,Calcs!$O159,IF(I40=3,Calcs!$R159,IF(I40=4,Calcs!$S159,IF(I40=5,Calcs!$Q159,IF(I40=6,Calcs!$P159,IF(I40=7,Calcs!$T159,IF(I40=8,Calcs!$T159,IF(I40=9,Calcs!$T159,0))))))))) -> 0 | J159: =IF(J40=1,Calcs!$N159,IF(J40=2,Calcs!$O159,IF(J40=3,Calcs!$R159,IF(J40=4,Calcs!$S159,IF(J40=5,Calcs!$Q159,IF(J40=6,Calcs!$P159,IF(J40=7,Calcs!$T159,IF(J40=8,Calcs!$T159,IF(J40=9,Calcs!$T159,0))))))))) -> 0 | K159: =IF(K40=1,Calcs!$N159,IF(K40=2,Calcs!$O159,IF(K40=3,Calcs!$R159,IF(K40=4,Calcs!$S159,IF(K40=5,Calcs!$Q159,IF(K40=6,Calcs!$P159,IF(K40=7,Calcs!$T159,IF(K40=8,Calcs!$T159,IF(K40=9,Calcs!$T159,0))))))))) -> 0 | L159: =IF(L40=1,Calcs!$N159,IF(L40=2,Calcs!$O159,IF(L40=3,Calcs!$R159,IF(L40=4,Calcs!$S159,IF(L40=5,Calcs!$Q159,IF(L40=6,Calcs!$P159,IF(L40=7,Calcs!$T159,IF(L40=8,Calcs!$T159,IF(L40=9,Calcs!$T159,0))))))))) -> 0 | N159: ='+Prices'!$F$28 -> 25 | O159: ='+Prices'!$F$28 -> 25 | P159: ='+Prices'!$F$28 -> 25 | Q159: ='+Prices'!$F$28 -> 25 | R159: ='+Prices'!$F$28 -> 25 | S159: ='+Prices'!$F$28 -> 25 | T159: ='+Prices'!$F$28 -> 25 | U159: Profile | V159: +boom+SP-harvest+N | Y159: Residue removal accounted for in Prices, Machinary
A160: 30 | B160: Layby: Diuron | C160: =IF(C41=1,Calcs!$N160,IF(C41=2,Calcs!$O160,IF(C41=3,Calcs!$R160,IF(C41=4,Calcs!$S160,IF(C41=5,Calcs!$Q160,IF(C41=6,Calcs!$P160,IF(C41=7,Calcs!$T160,IF(C41=8,Calcs!$T160,IF(C41=9,Calcs!$T160,0))))))))) -> 0 | D160: =IF(D41=1,Calcs!$N160,IF(D41=2,Calcs!$O160,IF(D41=3,Calcs!$R160,IF(D41=4,Calcs!$S160,IF(D41=5,Calcs!$Q160,IF(D41=6,Calcs!$P160,IF(D41=7,Calcs!$T160,IF(D41=8,Calcs!$T160,IF(D41=9,Calcs!$T160,0))))))))) -> 14.5 | E160: =IF(E41=1,Calcs!$N160,IF(E41=2,Calcs!$O160,IF(E41=3,Calcs!$R160,IF(E41=4,Calcs!$S160,IF(E41=5,Calcs!$Q160,IF(E41=6,Calcs!$P160,IF(E41=7,Calcs!$T160,IF(E41=8,Calcs!$T160,IF(E41=9,Calcs!$T160,0))))))))) -> 0 | F160: =IF(F41=1,Calcs!$N160,IF(F41=2,Calcs!$O160,IF(F41=3,Calcs!$R160,IF(F41=4,Calcs!$S160,IF(F41=5,Calcs!$Q160,IF(F41=6,Calcs!$P160,IF(F41=7,Calcs!$T160,IF(F41=8,Calcs!$T160,IF(F41=9,Calcs!$T160,0))))))))) -> 0 | G160: =IF(G41=1,Calcs!$N160,IF(G41=2,Calcs!$O160,IF(G41=3,Calcs!$R160,IF(G41=4,Calcs!$S160,IF(G41=5,Calcs!$Q160,IF(G41=6,Calcs!$P160,IF(G41=7,Calcs!$T160,IF(G41=8,Calcs!$T160,IF(G41=9,Calcs!$T160,0))))))))) -> 0 | H160: =IF(H41=1,Calcs!$N160,IF(H41=2,Calcs!$O160,IF(H41=3,Calcs!$R160,IF(H41=4,Calcs!$S160,IF(H41=5,Calcs!$Q160,IF(H41=6,Calcs!$P160,IF(H41=7,Calcs!$T160,IF(H41=8,Calcs!$T160,IF(H41=9,Calcs!$T160,0))))))))) -> 0 | I160: =IF(I41=1,Calcs!$N160,IF(I41=2,Calcs!$O160,IF(I41=3,Calcs!$R160,IF(I41=4,Calcs!$S160,IF(I41=5,Calcs!$Q160,IF(I41=6,Calcs!$P160,IF(I41=7,Calcs!$T160,IF(I41=8,Calcs!$T160,IF(I41=9,Calcs!$T160,0))))))))) -> 0 | J160: =IF(J41=1,Calcs!$N160,IF(J41=2,Calcs!$O160,IF(J41=3,Calcs!$R160,IF(J41=4,Calcs!$S160,IF(J41=5,Calcs!$Q160,IF(J41=6,Calcs!$P160,IF(J41=7,Calcs!$T160,IF(J41=8,Calcs!$T160,IF(J41=9,Calcs!$T160,0))))))))) -> 0 | K160: =IF(K41=1,Calcs!$N160,IF(K41=2,Calcs!$O160,IF(K41=3,Calcs!$R160,IF(K41=4,Calcs!$S160,IF(K41=5,Calcs!$Q160,IF(K41=6,Calcs!$P160,IF(K41=7,Calcs!$T160,IF(K41=8,Calcs!$T160,IF(K41=9,Calcs!$T160,0))))))))) -> 0 | L160: =IF(L41=1,Calcs!$N160,IF(L41=2,Calcs!$O160,IF(L41=3,Calcs!$R160,IF(L41=4,Calcs!$S160,IF(L41=5,Calcs!$Q160,IF(L41=6,Calcs!$P160,IF(L41=7,Calcs!$T160,IF(L41=8,Calcs!$T160,IF(L41=9,Calcs!$T160,0))))))))) -> 0 | N160: ='1.Profile'!E33+Calcs!$AB$124 -> 14.5 | O160: ='1.Profile'!E33+Calcs!$AC$124 -> 14.5 | P160: ='1.Profile'!F33+Calcs!$AD$124 -> 15.5 | Q160: ='1.Profile'!F33+Calcs!$AE$124 -> 15.5 | R160: ='1.Profile'!H33+Calcs!$AF$124 -> 14.5 | S160: ='1.Profile'!H33+Calcs!$AG$124 -> 14.5 | T160: ='1.Profile'!H33+Calcs!$AH$124 -> 14.5 | U160: Profile | V160: +boom+SP-harvest+n
A161: 31 | B161: Layby: Pendimetha | C161: =IF(C42=1,Calcs!$N161,IF(C42=2,Calcs!$O161,IF(C42=3,Calcs!$R161,IF(C42=4,Calcs!$S161,IF(C42=5,Calcs!$Q161,IF(C42=6,Calcs!$P161,IF(C42=7,Calcs!$T161,IF(C42=8,Calcs!$T161,IF(C42=9,Calcs!$T161,0))))))))) -> 24.5 | D161: =IF(D42=1,Calcs!$N161,IF(D42=2,Calcs!$O161,IF(D42=3,Calcs!$R161,IF(D42=4,Calcs!$S161,IF(D42=5,Calcs!$Q161,IF(D42=6,Calcs!$P161,IF(D42=7,Calcs!$T161,IF(D42=8,Calcs!$T161,IF(D42=9,Calcs!$T161,0))))))))) -> 0 | E161: =IF(E42=1,Calcs!$N161,IF(E42=2,Calcs!$O161,IF(E42=3,Calcs!$R161,IF(E42=4,Calcs!$S161,IF(E42=5,Calcs!$Q161,IF(E42=6,Calcs!$P161,IF(E42=7,Calcs!$T161,IF(E42=8,Calcs!$T161,IF(E42=9,Calcs!$T161,0))))))))) -> 0 | F161: =IF(F42=1,Calcs!$N161,IF(F42=2,Calcs!$O161,IF(F42=3,Calcs!$R161,IF(F42=4,Calcs!$S161,IF(F42=5,Calcs!$Q161,IF(F42=6,Calcs!$P161,IF(F42=7,Calcs!$T161,IF(F42=8,Calcs!$T161,IF(F42=9,Calcs!$T161,0))))))))) -> 0 | G161: =IF(G42=1,Calcs!$N161,IF(G42=2,Calcs!$O161,IF(G42=3,Calcs!$R161,IF(G42=4,Calcs!$S161,IF(G42=5,Calcs!$Q161,IF(G42=6,Calcs!$P161,IF(G42=7,Calcs!$T161,IF(G42=8,Calcs!$T161,IF(G42=9,Calcs!$T161,0))))))))) -> 0 | H161: =IF(H42=1,Calcs!$N161,IF(H42=2,Calcs!$O161,IF(H42=3,Calcs!$R161,IF(H42=4,Calcs!$S161,IF(H42=5,Calcs!$Q161,IF(H42=6,Calcs!$P161,IF(H42=7,Calcs!$T161,IF(H42=8,Calcs!$T161,IF(H42=9,Calcs!$T161,0))))))))) -> 0 | I161: =IF(I42=1,Calcs!$N161,IF(I42=2,Calcs!$O161,IF(I42=3,Calcs!$R161,IF(I42=4,Calcs!$S161,IF(I42=5,Calcs!$Q161,IF(I42=6,Calcs!$P161,IF(I42=7,Calcs!$T161,IF(I42=8,Calcs!$T161,IF(I42=9,Calcs!$T161,0))))))))) -> 0 | J161: =IF(J42=1,Calcs!$N161,IF(J42=2,Calcs!$O161,IF(J42=3,Calcs!$R161,IF(J42=4,Calcs!$S161,IF(J42=5,Calcs!$Q161,IF(J42=6,Calcs!$P161,IF(J42=7,Calcs!$T161,IF(J42=8,Calcs!$T161,IF(J42=9,Calcs!$T161,0))))))))) -> 0 | K161: =IF(K42=1,Calcs!$N161,IF(K42=2,Calcs!$O161,IF(K42=3,Calcs!$R161,IF(K42=4,Calcs!$S161,IF(K42=5,Calcs!$Q161,IF(K42=6,Calcs!$P161,IF(K42=7,Calcs!$T161,IF(K42=8,Calcs!$T161,IF(K42=9,Calcs!$T161,0))))))))) -> 0 | L161: =IF(L42=1,Calcs!$N161,IF(L42=2,Calcs!$O161,IF(L42=3,Calcs!$R161,IF(L42=4,Calcs!$S161,IF(L42=5,Calcs!$Q161,IF(L42=6,Calcs!$P161,IF(L42=7,Calcs!$T161,IF(L42=8,Calcs!$T161,IF(L42=9,Calcs!$T161,0))))))))) -> 0 | N161: ='1.Profile'!E34+Calcs!$AB$124 -> 24.5 | O161: ='1.Profile'!E34+Calcs!$AC$124 -> 24.5 | P161: ='1.Profile'!F34+Calcs!$AD$124 -> 24.5 | Q161: ='1.Profile'!F34+Calcs!$AE$124 -> 24.5 | R161: ='1.Profile'!H34+Calcs!$AF$124 -> 39.5 | S161: ='1.Profile'!H34+Calcs!$AG$124 -> 39.5 | T161: ='1.Profile'!H34+Calcs!$AH$124 -> 39.5 | U161: Profile
A162: 32 | B162: Post-E 5: Glyphosate | C162: =IF(C43=1,Calcs!$N162,IF(C43=2,Calcs!$O162,IF(C43=3,Calcs!$R162,IF(C43=4,Calcs!$S162,IF(C43=5,Calcs!$Q162,IF(C43=6,Calcs!$P162,IF(C43=7,Calcs!$T162,IF(C43=8,Calcs!$T162,IF(C43=9,Calcs!$T162,0))))))))) -> 0 | D162: =IF(D43=1,Calcs!$N162,IF(D43=2,Calcs!$O162,IF(D43=3,Calcs!$R162,IF(D43=4,Calcs!$S162,IF(D43=5,Calcs!$Q162,IF(D43=6,Calcs!$P162,IF(D43=7,Calcs!$T162,IF(D43=8,Calcs!$T162,IF(D43=9,Calcs!$T162,0))))))))) -> 12.5 | E162: =IF(E43=1,Calcs!$N162,IF(E43=2,Calcs!$O162,IF(E43=3,Calcs!$R162,IF(E43=4,Calcs!$S162,IF(E43=5,Calcs!$Q162,IF(E43=6,Calcs!$P162,IF(E43=7,Calcs!$T162,IF(E43=8,Calcs!$T162,IF(E43=9,Calcs!$T162,0))))))))) -> 0 | F162: =IF(F43=1,Calcs!$N162,IF(F43=2,Calcs!$O162,IF(F43=3,Calcs!$R162,IF(F43=4,Calcs!$S162,IF(F43=5,Calcs!$Q162,IF(F43=6,Calcs!$P162,IF(F43=7,Calcs!$T162,IF(F43=8,Calcs!$T162,IF(F43=9,Calcs!$T162,0))))))))) -> 0 | G162: =IF(G43=1,Calcs!$N162,IF(G43=2,Calcs!$O162,IF(G43=3,Calcs!$R162,IF(G43=4,Calcs!$S162,IF(G43=5,Calcs!$Q162,IF(G43=6,Calcs!$P162,IF(G43=7,Calcs!$T162,IF(G43=8,Calcs!$T162,IF(G43=9,Calcs!$T162,0))))))))) -> 0 | H162: =IF(H43=1,Calcs!$N162,IF(H43=2,Calcs!$O162,IF(H43=3,Calcs!$R162,IF(H43=4,Calcs!$S162,IF(H43=5,Calcs!$Q162,IF(H43=6,Calcs!$P162,IF(H43=7,Calcs!$T162,IF(H43=8,Calcs!$T162,IF(H43=9,Calcs!$T162,0))))))))) -> 0 | I162: =IF(I43=1,Calcs!$N162,IF(I43=2,Calcs!$O162,IF(I43=3,Calcs!$R162,IF(I43=4,Calcs!$S162,IF(I43=5,Calcs!$Q162,IF(I43=6,Calcs!$P162,IF(I43=7,Calcs!$T162,IF(I43=8,Calcs!$T162,IF(I43=9,Calcs!$T162,0))))))))) -> 0 | J162: =IF(J43=1,Calcs!$N162,IF(J43=2,Calcs!$O162,IF(J43=3,Calcs!$R162,IF(J43=4,Calcs!$S162,IF(J43=5,Calcs!$Q162,IF(J43=6,Calcs!$P162,IF(J43=7,Calcs!$T162,IF(J43=8,Calcs!$T162,IF(J43=9,Calcs!$T162,0))))))))) -> 0 | K162: =IF(K43=1,Calcs!$N162,IF(K43=2,Calcs!$O162,IF(K43=3,Calcs!$R162,IF(K43=4,Calcs!$S162,IF(K43=5,Calcs!$Q162,IF(K43=6,Calcs!$P162,IF(K43=7,Calcs!$T162,IF(K43=8,Calcs!$T162,IF(K43=9,Calcs!$T162,0))))))))) -> 0 | L162: =IF(L43=1,Calcs!$N162,IF(L43=2,Calcs!$O162,IF(L43=3,Calcs!$R162,IF(L43=4,Calcs!$S162,IF(L43=5,Calcs!$Q162,IF(L43=6,Calcs!$P162,IF(L43=7,Calcs!$T162,IF(L43=8,Calcs!$T162,IF(L43=9,Calcs!$T162,0))))))))) -> 0 | N162: ='1.Profile'!G27+Calcs!$AB$124 -> 15.5 | O162: ='1.Profile'!G27+Calcs!$AC$124 -> 15.5 | P162: ='1.Profile'!E27+Calcs!$AD$124 -> 15.5 | Q162: ='1.Profile'!F27+Calcs!$AE$124 -> 15.5 | R162: ='1.Profile'!G27+Calcs!$AF$124 -> 15.5 | S162: ='1.Profile'!F27+Calcs!$AG$124 -> 15.5 | T162: ='1.Profile'!H27+Calcs!$AH$124 -> 12.5 | U162: Profile
A163: 33 | B163: Post-E 5: Glufosinate | C163: =IF(C44=1,Calcs!$N163,IF(C44=2,Calcs!$O163,IF(C44=3,Calcs!$R163,IF(C44=4,Calcs!$S163,IF(C44=5,Calcs!$Q163,IF(C44=6,Calcs!$P163,IF(C44=7,Calcs!$T163,IF(C44=8,Calcs!$T163,IF(C44=9,Calcs!$T163,0))))))))) -> 0 | D163: =IF(D44=1,Calcs!$N163,IF(D44=2,Calcs!$O163,IF(D44=3,Calcs!$R163,IF(D44=4,Calcs!$S163,IF(D44=5,Calcs!$Q163,IF(D44=6,Calcs!$P163,IF(D44=7,Calcs!$T163,IF(D44=8,Calcs!$T163,IF(D44=9,Calcs!$T163,0))))))))) -> 0 | E163: =IF(E44=1,Calcs!$N163,IF(E44=2,Calcs!$O163,IF(E44=3,Calcs!$R163,IF(E44=4,Calcs!$S163,IF(E44=5,Calcs!$Q163,IF(E44=6,Calcs!$P163,IF(E44=7,Calcs!$T163,IF(E44=8,Calcs!$T163,IF(E44=9,Calcs!$T163,0))))))))) -> 0 | F163: =IF(F44=1,Calcs!$N163,IF(F44=2,Calcs!$O163,IF(F44=3,Calcs!$R163,IF(F44=4,Calcs!$S163,IF(F44=5,Calcs!$Q163,IF(F44=6,Calcs!$P163,IF(F44=7,Calcs!$T163,IF(F44=8,Calcs!$T163,IF(F44=9,Calcs!$T163,0))))))))) -> 0 | G163: =IF(G44=1,Calcs!$N163,IF(G44=2,Calcs!$O163,IF(G44=3,Calcs!$R163,IF(G44=4,Calcs!$S163,IF(G44=5,Calcs!$Q163,IF(G44=6,Calcs!$P163,IF(G44=7,Calcs!$T163,IF(G44=8,Calcs!$T163,IF(G44=9,Calcs!$T163,0))))))))) -> 0 | H163: =IF(H44=1,Calcs!$N163,IF(H44=2,Calcs!$O163,IF(H44=3,Calcs!$R163,IF(H44=4,Calcs!$S163,IF(H44=5,Calcs!$Q163,IF(H44=6,Calcs!$P163,IF(H44=7,Calcs!$T163,IF(H44=8,Calcs!$T163,IF(H44=9,Calcs!$T163,0))))))))) -> 0 | I163: =IF(I44=1,Calcs!$N163,IF(I44=2,Calcs!$O163,IF(I44=3,Calcs!$R163,IF(I44=4,Calcs!$S163,IF(I44=5,Calcs!$Q163,IF(I44=6,Calcs!$P163,IF(I44=7,Calcs!$T163,IF(I44=8,Calcs!$T163,IF(I44=9,Calcs!$T163,0))))))))) -> 0 | J163: =IF(J44=1,Calcs!$N163,IF(J44=2,Calcs!$O163,IF(J44=3,Calcs!$R163,IF(J44=4,Calcs!$S163,IF(J44=5,Calcs!$Q163,IF(J44=6,Calcs!$P163,IF(J44=7,Calcs!$T163,IF(J44=8,Calcs!$T163,IF(J44=9,Calcs!$T163,0))))))))) -> 0 | K163: =IF(K44=1,Calcs!$N163,IF(K44=2,Calcs!$O163,IF(K44=3,Calcs!$R163,IF(K44=4,Calcs!$S163,IF(K44=5,Calcs!$Q163,IF(K44=6,Calcs!$P163,IF(K44=7,Calcs!$T163,IF(K44=8,Calcs!$T163,IF(K44=9,Calcs!$T163,0))))))))) -> 0 | L163: =IF(L44=1,Calcs!$N163,IF(L44=2,Calcs!$O163,IF(L44=3,Calcs!$R163,IF(L44=4,Calcs!$S163,IF(L44=5,Calcs!$Q163,IF(L44=6,Calcs!$P163,IF(L44=7,Calcs!$T163,IF(L44=8,Calcs!$T163,IF(L44=9,Calcs!$T163,0))))))))) -> 0 | N163: ='1.Profile'!G28+Calcs!$AB$124 -> 22.5 | O163: ='1.Profile'!G28+Calcs!$AC$124 -> 22.5 | P163: ='1.Profile'!E28+Calcs!$AD$124 -> 22.5 | Q163: ='1.Profile'!F28+Calcs!$AE$124 -> 22.5 | R163: ='1.Profile'!G28+Calcs!$AF$124 -> 22.5 | S163: ='1.Profile'!F28+Calcs!$AG$124 -> 22.5 | T163: ='1.Profile'!H28+Calcs!$AH$124 -> 22.5 | U163: Prices
A164: 34 | B164: Post-E 5: Paraquat (shielded) | C164: =IF(C45=1,Calcs!$N164,IF(C45=2,Calcs!$O164,IF(C45=3,Calcs!$R164,IF(C45=4,Calcs!$S164,IF(C45=5,Calcs!$Q164,IF(C45=6,Calcs!$P164,IF(C45=7,Calcs!$T164,IF(C45=8,Calcs!$T164,IF(C45=9,Calcs!$T164,0))))))))) -> 0 | D164: =IF(D45=1,Calcs!$N164,IF(D45=2,Calcs!$O164,IF(D45=3,Calcs!$R164,IF(D45=4,Calcs!$S164,IF(D45=5,Calcs!$Q164,IF(D45=6,Calcs!$P164,IF(D45=7,Calcs!$T164,IF(D45=8,Calcs!$T164,IF(D45=9,Calcs!$T164,0))))))))) -> 0 | E164: =IF(E45=1,Calcs!$N164,IF(E45=2,Calcs!$O164,IF(E45=3,Calcs!$R164,IF(E45=4,Calcs!$S164,IF(E45=5,Calcs!$Q164,IF(E45=6,Calcs!$P164,IF(E45=7,Calcs!$T164,IF(E45=8,Calcs!$T164,IF(E45=9,Calcs!$T164,0))))))))) -> 0 | F164: =IF(F45=1,Calcs!$N164,IF(F45=2,Calcs!$O164,IF(F45=3,Calcs!$R164,IF(F45=4,Calcs!$S164,IF(F45=5,Calcs!$Q164,IF(F45=6,Calcs!$P164,IF(F45=7,Calcs!$T164,IF(F45=8,Calcs!$T164,IF(F45=9,Calcs!$T164,0))))))))) -> 0 | G164: =IF(G45=1,Calcs!$N164,IF(G45=2,Calcs!$O164,IF(G45=3,Calcs!$R164,IF(G45=4,Calcs!$S164,IF(G45=5,Calcs!$Q164,IF(G45=6,Calcs!$P164,IF(G45=7,Calcs!$T164,IF(G45=8,Calcs!$T164,IF(G45=9,Calcs!$T164,0))))))))) -> 0 | H164: =IF(H45=1,Calcs!$N164,IF(H45=2,Calcs!$O164,IF(H45=3,Calcs!$R164,IF(H45=4,Calcs!$S164,IF(H45=5,Calcs!$Q164,IF(H45=6,Calcs!$P164,IF(H45=7,Calcs!$T164,IF(H45=8,Calcs!$T164,IF(H45=9,Calcs!$T164,0))))))))) -> 0 | I164: =IF(I45=1,Calcs!$N164,IF(I45=2,Calcs!$O164,IF(I45=3,Calcs!$R164,IF(I45=4,Calcs!$S164,IF(I45=5,Calcs!$Q164,IF(I45=6,Calcs!$P164,IF(I45=7,Calcs!$T164,IF(I45=8,Calcs!$T164,IF(I45=9,Calcs!$T164,0))))))))) -> 0 | J164: =IF(J45=1,Calcs!$N164,IF(J45=2,Calcs!$O164,IF(J45=3,Calcs!$R164,IF(J45=4,Calcs!$S164,IF(J45=5,Calcs!$Q164,IF(J45=6,Calcs!$P164,IF(J45=7,Calcs!$T164,IF(J45=8,Calcs!$T164,IF(J45=9,Calcs!$T164,0))))))))) -> 0 | K164: =IF(K45=1,Calcs!$N164,IF(K45=2,Calcs!$O164,IF(K45=3,Calcs!$R164,IF(K45=4,Calcs!$S164,IF(K45=5,Calcs!$Q164,IF(K45=6,Calcs!$P164,IF(K45=7,Calcs!$T164,IF(K45=8,Calcs!$T164,IF(K45=9,Calcs!$T164,0))))))))) -> 0 | L164: =IF(L45=1,Calcs!$N164,IF(L45=2,Calcs!$O164,IF(L45=3,Calcs!$R164,IF(L45=4,Calcs!$S164,IF(L45=5,Calcs!$Q164,IF(L45=6,Calcs!$P164,IF(L45=7,Calcs!$T164,IF(L45=8,Calcs!$T164,IF(L45=9,Calcs!$T164,0))))))))) -> 0 | N164: ='1.Profile'!G29+Calcs!$AB$124 -> 13.5 | O164: ='1.Profile'!G29+Calcs!$AC$124 -> 13.5 | P164: ='1.Profile'!E29+Calcs!$AD$124 -> 13.5 | Q164: ='1.Profile'!F29+Calcs!$AE$124 -> 13.5 | R164: ='1.Profile'!G29+Calcs!$AF$124 -> 13.5 | S164: ='1.Profile'!F29+Calcs!$AG$124 -> 13.5 | T164: ='1.Profile'!H29+Calcs!$AH$124 -> 15.5 | V164: +boom+sp
A165: 35 | B165: Post-E 5: Inter-row tillage | C165: =IF(C46=1,Calcs!$N165,IF(C46=2,Calcs!$O165,IF(C46=3,Calcs!$R165,IF(C46=4,Calcs!$S165,IF(C46=5,Calcs!$Q165,IF(C46=6,Calcs!$P165,IF(C46=7,Calcs!$T165,IF(C46=8,Calcs!$T165,IF(C46=9,Calcs!$T165,0))))))))) -> 0 | D165: =IF(D46=1,Calcs!$N165,IF(D46=2,Calcs!$O165,IF(D46=3,Calcs!$R165,IF(D46=4,Calcs!$S165,IF(D46=5,Calcs!$Q165,IF(D46=6,Calcs!$P165,IF(D46=7,Calcs!$T165,IF(D46=8,Calcs!$T165,IF(D46=9,Calcs!$T165,0))))))))) -> 0 | E165: =IF(E46=1,Calcs!$N165,IF(E46=2,Calcs!$O165,IF(E46=3,Calcs!$R165,IF(E46=4,Calcs!$S165,IF(E46=5,Calcs!$Q165,IF(E46=6,Calcs!$P165,IF(E46=7,Calcs!$T165,IF(E46=8,Calcs!$T165,IF(E46=9,Calcs!$T165,0))))))))) -> 13.5 | F165: =IF(F46=1,Calcs!$N165,IF(F46=2,Calcs!$O165,IF(F46=3,Calcs!$R165,IF(F46=4,Calcs!$S165,IF(F46=5,Calcs!$Q165,IF(F46=6,Calcs!$P165,IF(F46=7,Calcs!$T165,IF(F46=8,Calcs!$T165,IF(F46=9,Calcs!$T165,0))))))))) -> 0 | G165: =IF(G46=1,Calcs!$N165,IF(G46=2,Calcs!$O165,IF(G46=3,Calcs!$R165,IF(G46=4,Calcs!$S165,IF(G46=5,Calcs!$Q165,IF(G46=6,Calcs!$P165,IF(G46=7,Calcs!$T165,IF(G46=8,Calcs!$T165,IF(G46=9,Calcs!$T165,0))))))))) -> 0 | H165: =IF(H46=1,Calcs!$N165,IF(H46=2,Calcs!$O165,IF(H46=3,Calcs!$R165,IF(H46=4,Calcs!$S165,IF(H46=5,Calcs!$Q165,IF(H46=6,Calcs!$P165,IF(H46=7,Calcs!$T165,IF(H46=8,Calcs!$T165,IF(H46=9,Calcs!$T165,0))))))))) -> 0 | I165: =IF(I46=1,Calcs!$N165,IF(I46=2,Calcs!$O165,IF(I46=3,Calcs!$R165,IF(I46=4,Calcs!$S165,IF(I46=5,Calcs!$Q165,IF(I46=6,Calcs!$P165,IF(I46=7,Calcs!$T165,IF(I46=8,Calcs!$T165,IF(I46=9,Calcs!$T165,0))))))))) -> 0 | J165: =IF(J46=1,Calcs!$N165,IF(J46=2,Calcs!$O165,IF(J46=3,Calcs!$R165,IF(J46=4,Calcs!$S165,IF(J46=5,Calcs!$Q165,IF(J46=6,Calcs!$P165,IF(J46=7,Calcs!$T165,IF(J46=8,Calcs!$T165,IF(J46=9,Calcs!$T165,0))))))))) -> 0 | K165: =IF(K46=1,Calcs!$N165,IF(K46=2,Calcs!$O165,IF(K46=3,Calcs!$R165,IF(K46=4,Calcs!$S165,IF(K46=5,Calcs!$Q165,IF(K46=6,Calcs!$P165,IF(K46=7,Calcs!$T165,IF(K46=8,Calcs!$T165,IF(K46=9,Calcs!$T165,0))))))))) -> 13.5 | L165: =IF(L46=1,Calcs!$N165,IF(L46=2,Calcs!$O165,IF(L46=3,Calcs!$R165,IF(L46=4,Calcs!$S165,IF(L46=5,Calcs!$Q165,IF(L46=6,Calcs!$P165,IF(L46=7,Calcs!$T165,IF(L46=8,Calcs!$T165,IF(L46=9,Calcs!$T165,0))))))))) -> 0 | N165: ='1.Profile'!G30+Calcs!$AB$124 -> 13.5 | O165: ='1.Profile'!G30+Calcs!$AC$124 -> 13.5 | P165: ='1.Profile'!E30+Calcs!$AD$124 -> 13.5 | Q165: ='1.Profile'!F30+Calcs!$AE$124 -> 13.5 | R165: ='1.Profile'!G30+Calcs!$AF$124 -> 13.5 | S165: ='1.Profile'!F30+Calcs!$AG$124 -> 13.5 | T165: ='1.Profile'!H30+Calcs!$AH$124 -> 12.5
A166: 36 | B166: Post-E 5: Group A | C166: =IF(C47=1,Calcs!$N166,IF(C47=2,Calcs!$O166,IF(C47=3,Calcs!$R166,IF(C47=4,Calcs!$S166,IF(C47=5,Calcs!$Q166,IF(C47=6,Calcs!$P166,IF(C47=7,Calcs!$T166,IF(C47=8,Calcs!$T166,IF(C47=9,Calcs!$T166,0))))))))) -> 0 | D166: =IF(D47=1,Calcs!$N166,IF(D47=2,Calcs!$O166,IF(D47=3,Calcs!$R166,IF(D47=4,Calcs!$S166,IF(D47=5,Calcs!$Q166,IF(D47=6,Calcs!$P166,IF(D47=7,Calcs!$T166,IF(D47=8,Calcs!$T166,IF(D47=9,Calcs!$T166,0))))))))) -> 0 | E166: =IF(E47=1,Calcs!$N166,IF(E47=2,Calcs!$O166,IF(E47=3,Calcs!$R166,IF(E47=4,Calcs!$S166,IF(E47=5,Calcs!$Q166,IF(E47=6,Calcs!$P166,IF(E47=7,Calcs!$T166,IF(E47=8,Calcs!$T166,IF(E47=9,Calcs!$T166,0))))))))) -> 0 | F166: =IF(F47=1,Calcs!$N166,IF(F47=2,Calcs!$O166,IF(F47=3,Calcs!$R166,IF(F47=4,Calcs!$S166,IF(F47=5,Calcs!$Q166,IF(F47=6,Calcs!$P166,IF(F47=7,Calcs!$T166,IF(F47=8,Calcs!$T166,IF(F47=9,Calcs!$T166,0))))))))) -> 0 | G166: =IF(G47=1,Calcs!$N166,IF(G47=2,Calcs!$O166,IF(G47=3,Calcs!$R166,IF(G47=4,Calcs!$S166,IF(G47=5,Calcs!$Q166,IF(G47=6,Calcs!$P166,IF(G47=7,Calcs!$T166,IF(G47=8,Calcs!$T166,IF(G47=9,Calcs!$T166,0))))))))) -> 0 | H166: =IF(H47=1,Calcs!$N166,IF(H47=2,Calcs!$O166,IF(H47=3,Calcs!$R166,IF(H47=4,Calcs!$S166,IF(H47=5,Calcs!$Q166,IF(H47=6,Calcs!$P166,IF(H47=7,Calcs!$T166,IF(H47=8,Calcs!$T166,IF(H47=9,Calcs!$T166,0))))))))) -> 0 | I166: =IF(I47=1,Calcs!$N166,IF(I47=2,Calcs!$O166,IF(I47=3,Calcs!$R166,IF(I47=4,Calcs!$S166,IF(I47=5,Calcs!$Q166,IF(I47=6,Calcs!$P166,IF(I47=7,Calcs!$T166,IF(I47=8,Calcs!$T166,IF(I47=9,Calcs!$T166,0))))))))) -> 0 | J166: =IF(J47=1,Calcs!$N166,IF(J47=2,Calcs!$O166,IF(J47=3,Calcs!$R166,IF(J47=4,Calcs!$S166,IF(J47=5,Calcs!$Q166,IF(J47=6,Calcs!$P166,IF(J47=7,Calcs!$T166,IF(J47=8,Calcs!$T166,IF(J47=9,Calcs!$T166,0))))))))) -> 0 | K166: =IF(K47=1,Calcs!$N166,IF(K47=2,Calcs!$O166,IF(K47=3,Calcs!$R166,IF(K47=4,Calcs!$S166,IF(K47=5,Calcs!$Q166,IF(K47=6,Calcs!$P166,IF(K47=7,Calcs!$T166,IF(K47=8,Calcs!$T166,IF(K47=9,Calcs!$T166,0))))))))) -> 0 | L166: =IF(L47=1,Calcs!$N166,IF(L47=2,Calcs!$O166,IF(L47=3,Calcs!$R166,IF(L47=4,Calcs!$S166,IF(L47=5,Calcs!$Q166,IF(L47=6,Calcs!$P166,IF(L47=7,Calcs!$T166,IF(L47=8,Calcs!$T166,IF(L47=9,Calcs!$T166,0))))))))) -> 0 | N166: ='1.Profile'!G31+Calcs!$AB$124 -> 19.5 | O166: ='1.Profile'!G31+Calcs!$AC$124 -> 19.5 | P166: ='1.Profile'!E31+Calcs!$AD$124 -> 19.5 | Q166: ='1.Profile'!F31+Calcs!$AE$124 -> 19.5 | R166: ='1.Profile'!G31+Calcs!$AF$124 -> 19.5 | S166: ='1.Profile'!F31+Calcs!$AG$124 -> 19.5 | T166: ='1.Profile'!H31+Calcs!$AH$124 -> 19.5
A167: 37 | B167: Post-E 6: Glyphosate | C167: =IF(C48=1,Calcs!$N167,IF(C48=2,Calcs!$O167,IF(C48=3,Calcs!$R167,IF(C48=4,Calcs!$S167,IF(C48=5,Calcs!$Q167,IF(C48=6,Calcs!$P167,IF(C48=7,Calcs!$T167,IF(C48=8,Calcs!$T167,IF(C48=9,Calcs!$T167,0))))))))) -> 15.5 | D167: =IF(D48=1,Calcs!$N167,IF(D48=2,Calcs!$O167,IF(D48=3,Calcs!$R167,IF(D48=4,Calcs!$S167,IF(D48=5,Calcs!$Q167,IF(D48=6,Calcs!$P167,IF(D48=7,Calcs!$T167,IF(D48=8,Calcs!$T167,IF(D48=9,Calcs!$T167,0))))))))) -> 0 | E167: =IF(E48=1,Calcs!$N167,IF(E48=2,Calcs!$O167,IF(E48=3,Calcs!$R167,IF(E48=4,Calcs!$S167,IF(E48=5,Calcs!$Q167,IF(E48=6,Calcs!$P167,IF(E48=7,Calcs!$T167,IF(E48=8,Calcs!$T167,IF(E48=9,Calcs!$T167,0))))))))) -> 0 | F167: =IF(F48=1,Calcs!$N167,IF(F48=2,Calcs!$O167,IF(F48=3,Calcs!$R167,IF(F48=4,Calcs!$S167,IF(F48=5,Calcs!$Q167,IF(F48=6,Calcs!$P167,IF(F48=7,Calcs!$T167,IF(F48=8,Calcs!$T167,IF(F48=9,Calcs!$T167,0))))))))) -> 0 | G167: =IF(G48=1,Calcs!$N167,IF(G48=2,Calcs!$O167,IF(G48=3,Calcs!$R167,IF(G48=4,Calcs!$S167,IF(G48=5,Calcs!$Q167,IF(G48=6,Calcs!$P167,IF(G48=7,Calcs!$T167,IF(G48=8,Calcs!$T167,IF(G48=9,Calcs!$T167,0))))))))) -> 15.5 | H167: =IF(H48=1,Calcs!$N167,IF(H48=2,Calcs!$O167,IF(H48=3,Calcs!$R167,IF(H48=4,Calcs!$S167,IF(H48=5,Calcs!$Q167,IF(H48=6,Calcs!$P167,IF(H48=7,Calcs!$T167,IF(H48=8,Calcs!$T167,IF(H48=9,Calcs!$T167,0))))))))) -> 0 | I167: =IF(I48=1,Calcs!$N167,IF(I48=2,Calcs!$O167,IF(I48=3,Calcs!$R167,IF(I48=4,Calcs!$S167,IF(I48=5,Calcs!$Q167,IF(I48=6,Calcs!$P167,IF(I48=7,Calcs!$T167,IF(I48=8,Calcs!$T167,IF(I48=9,Calcs!$T167,0))))))))) -> 15.5 | J167: =IF(J48=1,Calcs!$N167,IF(J48=2,Calcs!$O167,IF(J48=3,Calcs!$R167,IF(J48=4,Calcs!$S167,IF(J48=5,Calcs!$Q167,IF(J48=6,Calcs!$P167,IF(J48=7,Calcs!$T167,IF(J48=8,Calcs!$T167,IF(J48=9,Calcs!$T167,0))))))))) -> 0 | K167: =IF(K48=1,Calcs!$N167,IF(K48=2,Calcs!$O167,IF(K48=3,Calcs!$R167,IF(K48=4,Calcs!$S167,IF(K48=5,Calcs!$Q167,IF(K48=6,Calcs!$P167,IF(K48=7,Calcs!$T167,IF(K48=8,Calcs!$T167,IF(K48=9,Calcs!$T167,0))))))))) -> 0 | L167: =IF(L48=1,Calcs!$N167,IF(L48=2,Calcs!$O167,IF(L48=3,Calcs!$R167,IF(L48=4,Calcs!$S167,IF(L48=5,Calcs!$Q167,IF(L48=6,Calcs!$P167,IF(L48=7,Calcs!$T167,IF(L48=8,Calcs!$T167,IF(L48=9,Calcs!$T167,0))))))))) -> 0 | N167: ='1.Profile'!G27+Calcs!$AB$124 -> 15.5 | O167: ='1.Profile'!G27+Calcs!$AC$124 -> 15.5 | P167: ='1.Profile'!E27+Calcs!$AD$124 -> 15.5 | Q167: ='1.Profile'!F27+Calcs!$AE$124 -> 15.5 | R167: ='1.Profile'!G27+Calcs!$AF$124 -> 15.5 | S167: ='1.Profile'!F27+Calcs!$AG$124 -> 15.5 | T167: ='1.Profile'!H27+Calcs!$AH$124 -> 12.5
A168: 38 | B168: Post-E 6: Glufosinate | C168: =IF(C49=1,Calcs!$N168,IF(C49=2,Calcs!$O168,IF(C49=3,Calcs!$R168,IF(C49=4,Calcs!$S168,IF(C49=5,Calcs!$Q168,IF(C49=6,Calcs!$P168,IF(C49=7,Calcs!$T168,IF(C49=8,Calcs!$T168,IF(C49=9,Calcs!$T168,0))))))))) -> 0 | D168: =IF(D49=1,Calcs!$N168,IF(D49=2,Calcs!$O168,IF(D49=3,Calcs!$R168,IF(D49=4,Calcs!$S168,IF(D49=5,Calcs!$Q168,IF(D49=6,Calcs!$P168,IF(D49=7,Calcs!$T168,IF(D49=8,Calcs!$T168,IF(D49=9,Calcs!$T168,0))))))))) -> 0 | E168: =IF(E49=1,Calcs!$N168,IF(E49=2,Calcs!$O168,IF(E49=3,Calcs!$R168,IF(E49=4,Calcs!$S168,IF(E49=5,Calcs!$Q168,IF(E49=6,Calcs!$P168,IF(E49=7,Calcs!$T168,IF(E49=8,Calcs!$T168,IF(E49=9,Calcs!$T168,0))))))))) -> 0 | F168: =IF(F49=1,Calcs!$N168,IF(F49=2,Calcs!$O168,IF(F49=3,Calcs!$R168,IF(F49=4,Calcs!$S168,IF(F49=5,Calcs!$Q168,IF(F49=6,Calcs!$P168,IF(F49=7,Calcs!$T168,IF(F49=8,Calcs!$T168,IF(F49=9,Calcs!$T168,0))))))))) -> 0 | G168: =IF(G49=1,Calcs!$N168,IF(G49=2,Calcs!$O168,IF(G49=3,Calcs!$R168,IF(G49=4,Calcs!$S168,IF(G49=5,Calcs!$Q168,IF(G49=6,Calcs!$P168,IF(G49=7,Calcs!$T168,IF(G49=8,Calcs!$T168,IF(G49=9,Calcs!$T168,0))))))))) -> 0 | H168: =IF(H49=1,Calcs!$N168,IF(H49=2,Calcs!$O168,IF(H49=3,Calcs!$R168,IF(H49=4,Calcs!$S168,IF(H49=5,Calcs!$Q168,IF(H49=6,Calcs!$P168,IF(H49=7,Calcs!$T168,IF(H49=8,Calcs!$T168,IF(H49=9,Calcs!$T168,0))))))))) -> 0 | I168: =IF(I49=1,Calcs!$N168,IF(I49=2,Calcs!$O168,IF(I49=3,Calcs!$R168,IF(I49=4,Calcs!$S168,IF(I49=5,Calcs!$Q168,IF(I49=6,Calcs!$P168,IF(I49=7,Calcs!$T168,IF(I49=8,Calcs!$T168,IF(I49=9,Calcs!$T168,0))))))))) -> 0 | J168: =IF(J49=1,Calcs!$N168,IF(J49=2,Calcs!$O168,IF(J49=3,Calcs!$R168,IF(J49=4,Calcs!$S168,IF(J49=5,Calcs!$Q168,IF(J49=6,Calcs!$P168,IF(J49=7,Calcs!$T168,IF(J49=8,Calcs!$T168,IF(J49=9,Calcs!$T168,0))))))))) -> 0 | K168: =IF(K49=1,Calcs!$N168,IF(K49=2,Calcs!$O168,IF(K49=3,Calcs!$R168,IF(K49=4,Calcs!$S168,IF(K49=5,Calcs!$Q168,IF(K49=6,Calcs!$P168,IF(K49=7,Calcs!$T168,IF(K49=8,Calcs!$T168,IF(K49=9,Calcs!$T168,0))))))))) -> 0 | L168: =IF(L49=1,Calcs!$N168,IF(L49=2,Calcs!$O168,IF(L49=3,Calcs!$R168,IF(L49=4,Calcs!$S168,IF(L49=5,Calcs!$Q168,IF(L49=6,Calcs!$P168,IF(L49=7,Calcs!$T168,IF(L49=8,Calcs!$T168,IF(L49=9,Calcs!$T168,0))))))))) -> 0 | N168: ='1.Profile'!G28+Calcs!$AB$124 -> 22.5 | O168: ='1.Profile'!G28+Calcs!$AC$124 -> 22.5 | P168: ='1.Profile'!E28+Calcs!$AD$124 -> 22.5 | Q168: ='1.Profile'!F28+Calcs!$AE$124 -> 22.5 | R168: ='1.Profile'!G28+Calcs!$AF$124 -> 22.5 | S168: ='1.Profile'!F28+Calcs!$AG$124 -> 22.5 | T168: ='1.Profile'!H28+Calcs!$AH$124 -> 22.5
A169: 39 | B169: Post-E 6: Paraquat (shielded) | C169: =IF(C50=1,Calcs!$N169,IF(C50=2,Calcs!$O169,IF(C50=3,Calcs!$R169,IF(C50=4,Calcs!$S169,IF(C50=5,Calcs!$Q169,IF(C50=6,Calcs!$P169,IF(C50=7,Calcs!$T169,IF(C50=8,Calcs!$T169,IF(C50=9,Calcs!$T169,0))))))))) -> 0 | D169: =IF(D50=1,Calcs!$N169,IF(D50=2,Calcs!$O169,IF(D50=3,Calcs!$R169,IF(D50=4,Calcs!$S169,IF(D50=5,Calcs!$Q169,IF(D50=6,Calcs!$P169,IF(D50=7,Calcs!$T169,IF(D50=8,Calcs!$T169,IF(D50=9,Calcs!$T169,0))))))))) -> 0 | E169: =IF(E50=1,Calcs!$N169,IF(E50=2,Calcs!$O169,IF(E50=3,Calcs!$R169,IF(E50=4,Calcs!$S169,IF(E50=5,Calcs!$Q169,IF(E50=6,Calcs!$P169,IF(E50=7,Calcs!$T169,IF(E50=8,Calcs!$T169,IF(E50=9,Calcs!$T169,0))))))))) -> 0 | F169: =IF(F50=1,Calcs!$N169,IF(F50=2,Calcs!$O169,IF(F50=3,Calcs!$R169,IF(F50=4,Calcs!$S169,IF(F50=5,Calcs!$Q169,IF(F50=6,Calcs!$P169,IF(F50=7,Calcs!$T169,IF(F50=8,Calcs!$T169,IF(F50=9,Calcs!$T169,0))))))))) -> 0 | G169: =IF(G50=1,Calcs!$N169,IF(G50=2,Calcs!$O169,IF(G50=3,Calcs!$R169,IF(G50=4,Calcs!$S169,IF(G50=5,Calcs!$Q169,IF(G50=6,Calcs!$P169,IF(G50=7,Calcs!$T169,IF(G50=8,Calcs!$T169,IF(G50=9,Calcs!$T169,0))))))))) -> 0 | H169: =IF(H50=1,Calcs!$N169,IF(H50=2,Calcs!$O169,IF(H50=3,Calcs!$R169,IF(H50=4,Calcs!$S169,IF(H50=5,Calcs!$Q169,IF(H50=6,Calcs!$P169,IF(H50=7,Calcs!$T169,IF(H50=8,Calcs!$T169,IF(H50=9,Calcs!$T169,0))))))))) -> 0 | I169: =IF(I50=1,Calcs!$N169,IF(I50=2,Calcs!$O169,IF(I50=3,Calcs!$R169,IF(I50=4,Calcs!$S169,IF(I50=5,Calcs!$Q169,IF(I50=6,Calcs!$P169,IF(I50=7,Calcs!$T169,IF(I50=8,Calcs!$T169,IF(I50=9,Calcs!$T169,0))))))))) -> 0 | J169: =IF(J50=1,Calcs!$N169,IF(J50=2,Calcs!$O169,IF(J50=3,Calcs!$R169,IF(J50=4,Calcs!$S169,IF(J50=5,Calcs!$Q169,IF(J50=6,Calcs!$P169,IF(J50=7,Calcs!$T169,IF(J50=8,Calcs!$T169,IF(J50=9,Calcs!$T169,0))))))))) -> 0 | K169: =IF(K50=1,Calcs!$N169,IF(K50=2,Calcs!$O169,IF(K50=3,Calcs!$R169,IF(K50=4,Calcs!$S169,IF(K50=5,Calcs!$Q169,IF(K50=6,Calcs!$P169,IF(K50=7,Calcs!$T169,IF(K50=8,Calcs!$T169,IF(K50=9,Calcs!$T169,0))))))))) -> 0 | L169: =IF(L50=1,Calcs!$N169,IF(L50=2,Calcs!$O169,IF(L50=3,Calcs!$R169,IF(L50=4,Calcs!$S169,IF(L50=5,Calcs!$Q169,IF(L50=6,Calcs!$P169,IF(L50=7,Calcs!$T169,IF(L50=8,Calcs!$T169,IF(L50=9,Calcs!$T169,0))))))))) -> 0 | N169: ='1.Profile'!G29+Calcs!$AB$124 -> 13.5 | O169: ='1.Profile'!G29+Calcs!$AC$124 -> 13.5 | P169: ='1.Profile'!E29+Calcs!$AD$124 -> 13.5 | Q169: ='1.Profile'!F29+Calcs!$AE$124 -> 13.5 | R169: ='1.Profile'!G29+Calcs!$AF$124 -> 13.5 | S169: ='1.Profile'!F29+Calcs!$AG$124 -> 13.5 | T169: ='1.Profile'!H29+Calcs!$AH$124 -> 15.5
A170: 40 | B170: Post-E 6: Inter-row tillage | C170: =IF(C51=1,Calcs!$N170,IF(C51=2,Calcs!$O170,IF(C51=3,Calcs!$R170,IF(C51=4,Calcs!$S170,IF(C51=5,Calcs!$Q170,IF(C51=6,Calcs!$P170,IF(C51=7,Calcs!$T170,IF(C51=8,Calcs!$T170,IF(C51=9,Calcs!$T170,0))))))))) -> 0 | D170: =IF(D51=1,Calcs!$N170,IF(D51=2,Calcs!$O170,IF(D51=3,Calcs!$R170,IF(D51=4,Calcs!$S170,IF(D51=5,Calcs!$Q170,IF(D51=6,Calcs!$P170,IF(D51=7,Calcs!$T170,IF(D51=8,Calcs!$T170,IF(D51=9,Calcs!$T170,0))))))))) -> 0 | E170: =IF(E51=1,Calcs!$N170,IF(E51=2,Calcs!$O170,IF(E51=3,Calcs!$R170,IF(E51=4,Calcs!$S170,IF(E51=5,Calcs!$Q170,IF(E51=6,Calcs!$P170,IF(E51=7,Calcs!$T170,IF(E51=8,Calcs!$T170,IF(E51=9,Calcs!$T170,0))))))))) -> 0 | F170: =IF(F51=1,Calcs!$N170,IF(F51=2,Calcs!$O170,IF(F51=3,Calcs!$R170,IF(F51=4,Calcs!$S170,IF(F51=5,Calcs!$Q170,IF(F51=6,Calcs!$P170,IF(F51=7,Calcs!$T170,IF(F51=8,Calcs!$T170,IF(F51=9,Calcs!$T170,0))))))))) -> 0 | G170: =IF(G51=1,Calcs!$N170,IF(G51=2,Calcs!$O170,IF(G51=3,Calcs!$R170,IF(G51=4,Calcs!$S170,IF(G51=5,Calcs!$Q170,IF(G51=6,Calcs!$P170,IF(G51=7,Calcs!$T170,IF(G51=8,Calcs!$T170,IF(G51=9,Calcs!$T170,0))))))))) -> 0 | H170: =IF(H51=1,Calcs!$N170,IF(H51=2,Calcs!$O170,IF(H51=3,Calcs!$R170,IF(H51=4,Calcs!$S170,IF(H51=5,Calcs!$Q170,IF(H51=6,Calcs!$P170,IF(H51=7,Calcs!$T170,IF(H51=8,Calcs!$T170,IF(H51=9,Calcs!$T170,0))))))))) -> 0 | I170: =IF(I51=1,Calcs!$N170,IF(I51=2,Calcs!$O170,IF(I51=3,Calcs!$R170,IF(I51=4,Calcs!$S170,IF(I51=5,Calcs!$Q170,IF(I51=6,Calcs!$P170,IF(I51=7,Calcs!$T170,IF(I51=8,Calcs!$T170,IF(I51=9,Calcs!$T170,0))))))))) -> 0 | J170: =IF(J51=1,Calcs!$N170,IF(J51=2,Calcs!$O170,IF(J51=3,Calcs!$R170,IF(J51=4,Calcs!$S170,IF(J51=5,Calcs!$Q170,IF(J51=6,Calcs!$P170,IF(J51=7,Calcs!$T170,IF(J51=8,Calcs!$T170,IF(J51=9,Calcs!$T170,0))))))))) -> 0 | K170: =IF(K51=1,Calcs!$N170,IF(K51=2,Calcs!$O170,IF(K51=3,Calcs!$R170,IF(K51=4,Calcs!$S170,IF(K51=5,Calcs!$Q170,IF(K51=6,Calcs!$P170,IF(K51=7,Calcs!$T170,IF(K51=8,Calcs!$T170,IF(K51=9,Calcs!$T170,0))))))))) -> 0 | L170: =IF(L51=1,Calcs!$N170,IF(L51=2,Calcs!$O170,IF(L51=3,Calcs!$R170,IF(L51=4,Calcs!$S170,IF(L51=5,Calcs!$Q170,IF(L51=6,Calcs!$P170,IF(L51=7,Calcs!$T170,IF(L51=8,Calcs!$T170,IF(L51=9,Calcs!$T170,0))))))))) -> 0 | N170: ='1.Profile'!G30+Calcs!$AB$124 -> 13.5 | O170: ='1.Profile'!G30+Calcs!$AC$124 -> 13.5 | P170: ='1.Profile'!E30+Calcs!$AD$124 -> 13.5 | Q170: ='1.Profile'!F30+Calcs!$AE$124 -> 13.5 | R170: ='1.Profile'!G30+Calcs!$AF$124 -> 13.5 | S170: ='1.Profile'!F30+Calcs!$AG$124 -> 13.5 | T170: ='1.Profile'!H30+Calcs!$AH$124 -> 12.5
A171: 41 | B171: Post-E 6: Group A | C171: =IF(C52=1,Calcs!$N171,IF(C52=2,Calcs!$O171,IF(C52=3,Calcs!$R171,IF(C52=4,Calcs!$S171,IF(C52=5,Calcs!$Q171,IF(C52=6,Calcs!$P171,IF(C52=7,Calcs!$T171,IF(C52=8,Calcs!$T171,IF(C52=9,Calcs!$T171,0))))))))) -> 0 | D171: =IF(D52=1,Calcs!$N171,IF(D52=2,Calcs!$O171,IF(D52=3,Calcs!$R171,IF(D52=4,Calcs!$S171,IF(D52=5,Calcs!$Q171,IF(D52=6,Calcs!$P171,IF(D52=7,Calcs!$T171,IF(D52=8,Calcs!$T171,IF(D52=9,Calcs!$T171,0))))))))) -> 0 | E171: =IF(E52=1,Calcs!$N171,IF(E52=2,Calcs!$O171,IF(E52=3,Calcs!$R171,IF(E52=4,Calcs!$S171,IF(E52=5,Calcs!$Q171,IF(E52=6,Calcs!$P171,IF(E52=7,Calcs!$T171,IF(E52=8,Calcs!$T171,IF(E52=9,Calcs!$T171,0))))))))) -> 0 | F171: =IF(F52=1,Calcs!$N171,IF(F52=2,Calcs!$O171,IF(F52=3,Calcs!$R171,IF(F52=4,Calcs!$S171,IF(F52=5,Calcs!$Q171,IF(F52=6,Calcs!$P171,IF(F52=7,Calcs!$T171,IF(F52=8,Calcs!$T171,IF(F52=9,Calcs!$T171,0))))))))) -> 0 | G171: =IF(G52=1,Calcs!$N171,IF(G52=2,Calcs!$O171,IF(G52=3,Calcs!$R171,IF(G52=4,Calcs!$S171,IF(G52=5,Calcs!$Q171,IF(G52=6,Calcs!$P171,IF(G52=7,Calcs!$T171,IF(G52=8,Calcs!$T171,IF(G52=9,Calcs!$T171,0))))))))) -> 0 | H171: =IF(H52=1,Calcs!$N171,IF(H52=2,Calcs!$O171,IF(H52=3,Calcs!$R171,IF(H52=4,Calcs!$S171,IF(H52=5,Calcs!$Q171,IF(H52=6,Calcs!$P171,IF(H52=7,Calcs!$T171,IF(H52=8,Calcs!$T171,IF(H52=9,Calcs!$T171,0))))))))) -> 0 | I171: =IF(I52=1,Calcs!$N171,IF(I52=2,Calcs!$O171,IF(I52=3,Calcs!$R171,IF(I52=4,Calcs!$S171,IF(I52=5,Calcs!$Q171,IF(I52=6,Calcs!$P171,IF(I52=7,Calcs!$T171,IF(I52=8,Calcs!$T171,IF(I52=9,Calcs!$T171,0))))))))) -> 0 | J171: =IF(J52=1,Calcs!$N171,IF(J52=2,Calcs!$O171,IF(J52=3,Calcs!$R171,IF(J52=4,Calcs!$S171,IF(J52=5,Calcs!$Q171,IF(J52=6,Calcs!$P171,IF(J52=7,Calcs!$T171,IF(J52=8,Calcs!$T171,IF(J52=9,Calcs!$T171,0))))))))) -> 0 | K171: =IF(K52=1,Calcs!$N171,IF(K52=2,Calcs!$O171,IF(K52=3,Calcs!$R171,IF(K52=4,Calcs!$S171,IF(K52=5,Calcs!$Q171,IF(K52=6,Calcs!$P171,IF(K52=7,Calcs!$T171,IF(K52=8,Calcs!$T171,IF(K52=9,Calcs!$T171,0))))))))) -> 0 | L171: =IF(L52=1,Calcs!$N171,IF(L52=2,Calcs!$O171,IF(L52=3,Calcs!$R171,IF(L52=4,Calcs!$S171,IF(L52=5,Calcs!$Q171,IF(L52=6,Calcs!$P171,IF(L52=7,Calcs!$T171,IF(L52=8,Calcs!$T171,IF(L52=9,Calcs!$T171,0))))))))) -> 0 | N171: ='1.Profile'!G31+Calcs!$AB$124 -> 19.5 | O171: ='1.Profile'!G31+Calcs!$AC$124 -> 19.5 | P171: ='1.Profile'!E31+Calcs!$AD$124 -> 19.5 | Q171: ='1.Profile'!F31+Calcs!$AE$124 -> 19.5 | R171: ='1.Profile'!G31+Calcs!$AF$124 -> 19.5 | S171: ='1.Profile'!F31+Calcs!$AG$124 -> 19.5 | T171: ='1.Profile'!H31+Calcs!$AH$124 -> 19.5
